Workbook

Sheet Input
D5: Project Cost Analysis
B6: Sl. No. | C6: Description | D6: Input | E6: Output | J6: 1 | K6: 2 | L6: 3 | M6: 4 | N6: 5 | O6: 6 | P6: 7 | Q6: 8 | R6: 9 | S6: 10 | T6: 11 | U6: 12 | V6: 13 | W6: 14 | X6: 15 | Y6: 16 | Z6: 17 | AA6: 18 | AB6: 19 | AC6: 20 | AD6: 21 | AE6: 22 | AF6: 23 | AG6: 24 | AH6: 25 | AI6: 26 | AJ6: 27 | AK6: 28 | AL6: 29
E7: Total Cost (Cr.) | F7: Total Cost (Rupees) | G7: Cost Per Unit (Cr.) | J7: Andaman & Nicobar Islands | K7: Andhra Pradesh | L7: Assam | M7: Bihar | N7: Chandigarh | O7: Chhattisgarh | P7: Dadra & Nagar Haveli | Q7: Daman & Diu | R7: Delhi | S7: Goa | T7: Gujarat | U7: Haryana | V7: Himachal Pradesh | W7: Jammu & Kashmir | X7: Jharkhand | Y7: Karnataka | Z7: Kerala | AA7: Lakshadweep | AB7: Madhya Pradesh | AC7: Maharashtra | AD7: Odisha | AE7: Puducherry | AF7: Punjab | AG7: Rajasthan | AH7: Tamil Nadu | AI7: Telangana | AJ7: Uttar Pradesh | AK7: Uttarakhand | AL7: West Bengal
B8: 1 | C8: Name of State | D8: Delhi
C9: Aggregate Lead in km | D9: 50
B11: 2 | C11: Flexible Pavement | J11: AN | K11: AP | L11: AS | M11: BR | N11: CH | O11: CG | P11: DN | Q11: DD | R11: DL | S11: GA | T11: GJ | U11: HR | V11: HP | W11: JK | X11: JH | Y11: KA | Z11: KL | AA11: LD | AB11: MP | AC11: MH | AD11: OD | AE11: PY | AF11: PB | AG11: RJ | AH11: TN | AI11: TS | AJ11: UP | AK11: UK | AL11: WB
B12: (a) | C12: Type-1
C13: Configuration of Road with Pavement Combination | D13: Greenfield Alignment - 2 Lane+ PS_ (BC, DBM, WMM & GSB) | E13: =IF($D$8="Andaman & Nicobar Islands ",J13,IF($D$8="Andhra Pradesh",K13,IF($D$8="Assam",L13,IF($D$8="Bihar",M13,IF($D$8="Chandigarh",N13,IF($D$8="Chhattisgarh",O13,IF($D$8="Dadra & Nagar Haveli",P13,IF($D$8="Daman & Diu",Q13,IF($D$8="Delhi",R13,IF($D$8="Goa",S13,IF($D$8="Gujarat",T13,IF($D$8="Haryana",U13,IF($D$8="Himachal Pradesh",V13,IF($D$8="Jammu & Kashmir",W13,IF($D$8="Jharkhand",X13,IF($D$8="Karnataka",Y13,IF($D$8="Kerala",Z13,IF($D$8="Lakshadweep",AA13,IF($D$8="Madhya Pradesh",AB13,IF($D$8="Maharashtra",AC13,IF($D$8="Odisha",AD13,IF($D$8="Puducherry",AE13,IF($D$8="Punjab",AF13,IF($D$8="Rajasthan",AG13,IF($D$8="Tamil Nadu",AH13,IF($D$8="Telangana",AI13,IF($D$8="Uttar Pradesh",AJ13,IF($D$8="Uttarakhand",AK13,IF($D$8="West Bengal",AL13))))))))))))))))))))))))))))) -> 21.4 | F13: =E13*10^7 -> 214000000 | G13: =IF(E13>0,E13/D14,0) -> 4.28 | J13: =(INDEX('1-AN'!$E$7:$E$42,MATCH(Input!$D$13,'1-AN'!$B$7:$B$42,0))+ROUND(($D$15-1)/0.5,0)*INDEX('1-AN'!$F$7:$F$42,MATCH(Input!$D$13,'1-AN'!$B$7:$B$42,0))+IFERROR(LEFT(INDEX('1-AN'!$G$7:$G$42,MATCH(Input!$D$13,'1-AN'!$B$7:$B$42,0)),5)*($D$16-MID(INDEX('1-AN'!$G$7:$G$42,MATCH(Input!$D$13,'1-AN'!$B$7:$B$42,0)),10,2)),0)+LEFT(INDEX('1-AN'!$H$7:$H$42,MATCH(Input!$D$13,'1-AN'!$B$7:$B$42,0)),5)*($D$17-MID(INDEX('1-AN'!$H$7:$H$42,MATCH(Input!$D$13,'1-AN'!$B$7:$B$42,0)),10,2)))*$D$14 -> 23.2 | K13: =(INDEX('2-AP'!$E$7:$E$42,MATCH(Input!$D$13,'2-AP'!$B$7:$B$42,0))+ROUND(($D$15-1)/0.5,0)*INDEX('2-AP'!$F$7:$F$42,MATCH(Input!$D$13,'2-AP'!$B$7:$B$42,0))+IFERROR(LEFT(INDEX('2-AP'!$G$7:$G$42,MATCH(Input!$D$13,'2-AP'!$B$7:$B$42,0)),5)*($D$16-MID(INDEX('2-AP'!$G$7:$G$42,MATCH(Input!$D$13,'2-AP'!$B$7:$B$42,0)),10,2)),0)+LEFT(INDEX('2-AP'!$H$7:$H$42,MATCH(Input!$D$13,'2-AP'!$B$7:$B$42,0)),5)*($D$17-MID(INDEX('2-AP'!$H$7:$H$42,MATCH(Input!$D$13,'2-AP'!$B$7:$B$42,0)),10,2)))*$D$14 -> 17.65 | L13: =(INDEX('3-AS'!$E$7:$E$42,MATCH(Input!$D$13,'3-AS'!$B$7:$B$42,0))+ROUND(($D$15-1)/0.5,0)*INDEX('3-AS'!$F$7:$F$42,MATCH(Input!$D$13,'3-AS'!$B$7:$B$42,0))+IFERROR(LEFT(INDEX('3-AS'!$G$7:$G$42,MATCH(Input!$D$13,'3-AS'!$B$7:$B$42,0)),5)*($D$16-MID(INDEX('3-AS'!$G$7:$G$42,MATCH(Input!$D$13,'3-AS'!$B$7:$B$42,0)),10,2)),0)+LEFT(INDEX('3-AS'!$H$7:$H$42,MATCH(Input!$D$13,'3-AS'!$B$7:$B$42,0)),5)*($D$17-MID(INDEX('3-AS'!$H$7:$H$42,MATCH(Input!$D$13,'3-AS'!$B$7:$B$42,0)),10,2)))*$D$14 -> 22.95 | M13: =(INDEX('4-BR'!$E$7:$E$42,MATCH(Input!$D$13,'4-BR'!$B$7:$B$42,0))+ROUND(($D$15-1)/0.5,0)*INDEX('4-BR'!$F$7:$F$42,MATCH(Input!$D$13,'4-BR'!$B$7:$B$42,0))+IFERROR(LEFT(INDEX('4-BR'!$G$7:$G$42,MATCH(Input!$D$13,'4-BR'!$B$7:$B$42,0)),5)*($D$16-MID(INDEX('4-BR'!$G$7:$G$42,MATCH(Input!$D$13,'4-BR'!$B$7:$B$42,0)),10,2)),0)+LEFT(INDEX('4-BR'!$H$7:$H$42,MATCH(Input!$D$13,'4-BR'!$B$7:$B$42,0)),5)*($D$17-MID(INDEX('4-BR'!$H$7:$H$42,MATCH(Input!$D$13,'4-BR'!$B$7:$B$42,3)),10,2)))*$D$14 -> 20.1 | N13: =(INDEX('5-CH'!$E$7:$E$42,MATCH(Input!$D$13,'5-CH'!$B$7:$B$42,0))+ROUND(($D$15-1)/0.5,0)*INDEX('5-CH'!$F$7:$F$42,MATCH(Input!$D$13,'5-CH'!$B$7:$B$42,0))+IFERROR(LEFT(INDEX('5-CH'!$G$7:$G$42,MATCH(Input!$D$13,'5-CH'!$B$7:$B$42,0)),5)*($D$16-MID(INDEX('5-CH'!$G$7:$G$42,MATCH(Input!$D$13,'5-CH'!$B$7:$B$42,0)),10,2)),0)+LEFT(INDEX('5-CH'!$H$7:$H$42,MATCH(Input!$D$13,'5-CH'!$B$7:$B$42,0)),5)*($D$17-MID(INDEX('5-CH'!$H$7:$H$42,MATCH(Input!$D$13,'5-CH'!$B$7:$B$42,0)),10,2)))*$D$14 -> 23.1 | O13: =(INDEX('6-CG'!$E$7:$E$42,MATCH(Input!$D$13,'6-CG'!$B$7:$B$42,0))+ROUND(($D$15-1)/0.5,0)*INDEX('6-CG'!$F$7:$F$42,MATCH(Input!$D$13,'6-CG'!$B$7:$B$42,0))+IFERROR(LEFT(INDEX('6-CG'!$G$7:$G$42,MATCH(Input!$D$13,'6-CG'!$B$7:$B$42,0)),5)*($D$16-MID(INDEX('6-CG'!$G$7:$G$42,MATCH(Input!$D$13,'6-CG'!$B$7:$B$42,0)),10,2)),0)+LEFT(INDEX('6-CG'!$H$7:$H$42,MATCH(Input!$D$13,'6-CG'!$B$7:$B$42,0)),5)*($D$17-MID(INDEX('6-CG'!$H$7:$H$42,MATCH(Input!$D$13,'6-CG'!$B$7:$B$42,0)),10,2)))*$D$14 -> 19.3 | P13: =(INDEX('7-DN'!$E$7:$E$42,MATCH(Input!$D$13,'7-DN'!$B$7:$B$42,0))+ROUND(($D$15-1)/0.5,0)*INDEX('7-DN'!$F$7:$F$42,MATCH(Input!$D$13,'7-DN'!$B$7:$B$42,0))+IFERROR(LEFT(INDEX('7-DN'!$G$7:$G$42,MATCH(Input!$D$13,'7-DN'!$B$7:$B$42,0)),5)*($D$16-MID(INDEX('7-DN'!$G$7:$G$42,MATCH(Input!$D$13,'7-DN'!$B$7:$B$42,0)),10,2)),0)+LEFT(INDEX('7-DN'!$H$7:$H$42,MATCH(Input!$D$13,'7-DN'!$B$7:$B$42,0)),5)*($D$17-MID(INDEX('7-DN'!$H$7:$H$42,MATCH(Input!$D$13,'7-DN'!$B$7:$B$42,0)),10,2)))*$D$14 -> 23.65 | Q13: =(INDEX('8-DD'!$E$7:$E$42,MATCH(Input!$D$13,'8-DD'!$B$7:$B$42,0))+ROUND(($D$15-1)/0.5,0)*INDEX('8-DD'!$F$7:$F$42,MATCH(Input!$D$13,'8-DD'!$B$7:$B$42,0))+IFERROR(LEFT(INDEX('8-DD'!$G$7:$G$42,MATCH(Input!$D$13,'8-DD'!$B$7:$B$42,0)),5)*($D$16-MID(INDEX('8-DD'!$G$7:$G$42,MATCH(Input!$D$13,'8-DD'!$B$7:$B$42,0)),10,2)),0)+LEFT(INDEX('8-DD'!$H$7:$H$42,MATCH(Input!$D$13,'8-DD'!$B$7:$B$42,0)),5)*($D$17-MID(INDEX('8-DD'!$H$7:$H$42,MATCH(Input!$D$13,'8-DD'!$B$7:$B$42,0)),10,2)))*$D$14 -> 20.05 | R13: =(INDEX('9-DL'!$E$7:$E$42,MATCH(Input!$D$13,'9-DL'!$B$7:$B$42,0))+ROUND(($D$15-1)/0.5,0)*INDEX('9-DL'!$F$7:$F$42,MATCH(Input!$D$13,'9-DL'!$B$7:$B$42,0))+IFERROR(LEFT(INDEX('9-DL'!$G$7:$G$42,MATCH(Input!$D$13,'9-DL'!$B$7:$B$42,0)),5)*($D$16-MID(INDEX('9-DL'!$G$7:$G$42,MATCH(Input!$D$13,'9-DL'!$B$7:$B$42,0)),10,2)),0)+LEFT(INDEX('9-DL'!$H$7:$H$42,MATCH(Input!$D$13,'9-DL'!$B$7:$B$42,0)),5)*($D$17-MID(INDEX('9-DL'!$H$7:$H$42,MATCH(Input!$D$13,'9-DL'!$B$7:$B$42,0)),10,2)))*$D$14 -> 21.4 | S13: =(INDEX('10-GA'!$E$7:$E$42,MATCH(Input!$D$13,'10-GA'!$B$7:$B$42,0))+ROUND(($D$15-1)/0.5,0)*INDEX('10-GA'!$F$7:$F$42,MATCH(Input!$D$13,'10-GA'!$B$7:$B$42,0))+IFERROR(LEFT(INDEX('10-GA'!$G$7:$G$42,MATCH(Input!$D$13,'10-GA'!$B$7:$B$42,0)),5)*($D$16-MID(INDEX('10-GA'!$G$7:$G$42,MATCH(Input!$D$13,'10-GA'!$B$7:$B$42,0)),10,2)),0)+LEFT(INDEX('10-GA'!$H$7:$H$42,MATCH(Input!$D$13,'10-GA'!$B$7:$B$42,0)),5)*($D$17-MID(INDEX('10-GA'!$H$7:$H$42,MATCH(Input!$D$13,'10-GA'!$B$7:$B$42,0)),10,2)))*$D$14 -> 23.65 | T13: =(INDEX('11-GJ'!$E$7:$E$42,MATCH(Input!$D$13,'11-GJ'!$B$7:$B$42,0))+ROUND(($D$15-1)/0.5,0)*INDEX('11-GJ'!$F$7:$F$42,MATCH(Input!$D$13,'11-GJ'!$B$7:$B$42,0))+IFERROR(LEFT(INDEX('11-GJ'!$G$7:$G$42,MATCH(Input!$D$13,'11-GJ'!$B$7:$B$42,0)),5)*($D$16-MID(INDEX('11-GJ'!$G$7:$G$42,MATCH(Input!$D$13,'11-GJ'!$B$7:$B$42,0)),10,2)),0)+LEFT(INDEX('11-GJ'!$H$7:$H$42,MATCH(Input!$D$13,'11-GJ'!$B$7:$B$42,0)),5)*($D$17-MID(INDEX('11-GJ'!$H$7:$H$42,MATCH(Input!$D$13,'11-GJ'!$B$7:$B$42,0)),10,2)))*$D$14 -> 19.1 | U13: =(INDEX('12-HR'!$E$7:$E$42,MATCH(Input!$D$13,'12-HR'!$B$7:$B$42,0))+ROUND(($D$15-1)/0.5,0)*INDEX('12-HR'!$F$7:$F$42,MATCH(Input!$D$13,'12-HR'!$B$7:$B$42,0))+IFERROR(LEFT(INDEX('12-HR'!$G$7:$G$42,MATCH(Input!$D$13,'12-HR'!$B$7:$B$42,0)),5)*($D$16-MID(INDEX('12-HR'!$G$7:$G$42,MATCH(Input!$D$13,'12-HR'!$B$7:$B$42,0)),10,2)),0)+LEFT(INDEX('12-HR'!$H$7:$H$42,MATCH(Input!$D$13,'12-HR'!$B$7:$B$42,0)),5)*($D$17-MID(INDEX('12-HR'!$H$7:$H$42,MATCH(Input!$D$13,'12-HR'!$B$7:$B$42,0)),10,2)))*$D$14 -> 20.35 | V13: =(INDEX('13-HP'!$E$7:$E$42,MATCH(Input!$D$13,'13-HP'!$B$7:$B$42,0))+ROUND(($D$15-1)/0.5,0)*INDEX('13-HP'!$F$7:$F$42,MATCH(Input!$D$13,'13-HP'!$B$7:$B$42,0))+IFERROR(LEFT(INDEX('13-HP'!$G$7:$G$42,MATCH(Input!$D$13,'13-HP'!$B$7:$B$42,0)),5)*($D$16-MID(INDEX('13-HP'!$G$7:$G$42,MATCH(Input!$D$13,'13-HP'!$B$7:$B$42,0)),10,2)),0)+LEFT(INDEX('13-HP'!$H$7:$H$42,MATCH(Input!$D$13,'13-HP'!$B$7:$B$42,0)),5)*($D$17-MID(INDEX('13-HP'!$H$7:$H$42,MATCH(Input!$D$13,'13-HP'!$B$7:$B$42,0)),10,2)))*$D$14 -> 25.2 | W13: =(INDEX('14-JK'!$E$7:$E$42,MATCH(Input!$D$13,'14-JK'!$B$7:$B$42,0))+ROUND(($D$15-1)/0.5,0)*INDEX('14-JK'!$F$7:$F$42,MATCH(Input!$D$13,'14-JK'!$B$7:$B$42,0))+IFERROR(LEFT(INDEX('14-JK'!$G$7:$G$42,MATCH(Input!$D$13,'14-JK'!$B$7:$B$42,0)),5)*($D$16-MID(INDEX('14-JK'!$G$7:$G$42,MATCH(Input!$D$13,'14-JK'!$B$7:$B$42,0)),10,2)),0)+LEFT(INDEX('14-JK'!$H$7:$H$42,MATCH(Input!$D$13,'14-JK'!$B$7:$B$42,0)),5)*($D$17-MID(INDEX('14-JK'!$H$7:$H$42,MATCH(Input!$D$13,'14-JK'!$B$7:$B$42,0)),10,2)))*$D$14 -> 23.9 | X13: =(INDEX('15-JH'!$E$7:$E$42,MATCH(Input!$D$13,'15-JH'!$B$7:$B$42,0))+ROUND(($D$15-1)/0.5,0)*INDEX('15-JH'!$F$7:$F$42,MATCH(Input!$D$13,'15-JH'!$B$7:$B$42,0))+IFERROR(LEFT(INDEX('15-JH'!$G$7:$G$42,MATCH(Input!$D$13,'15-JH'!$B$7:$B$42,0)),5)*($D$16-MID(INDEX('15-JH'!$G$7:$G$42,MATCH(Input!$D$13,'15-JH'!$B$7:$B$42,0)),10,2)),0)+LEFT(INDEX('15-JH'!$H$7:$H$42,MATCH(Input!$D$13,'15-JH'!$B$7:$B$42,0)),5)*($D$17-MID(INDEX('15-JH'!$H$7:$H$42,MATCH(Input!$D$13,'15-JH'!$B$7:$B$42,0)),10,2)))*$D$14 -> 19.1 | Y13: =(INDEX('16-KA'!$E$7:$E$42,MATCH(Input!$D$13,'16-KA'!$B$7:$B$42,0))+ROUND(($D$15-1)/0.5,0)*INDEX('16-KA'!$F$7:$F$42,MATCH(Input!$D$13,'16-KA'!$B$7:$B$42,0))+IFERROR(LEFT(INDEX('16-KA'!$G$7:$G$42,MATCH(Input!$D$13,'16-KA'!$B$7:$B$42,0)),5)*($D$16-MID(INDEX('16-KA'!$G$7:$G$42,MATCH(Input!$D$13,'16-KA'!$B$7:$B$42,0)),10,2)),0)+LEFT(INDEX('16-KA'!$H$7:$H$42,MATCH(Input!$D$13,'16-KA'!$B$7:$B$42,0)),5)*($D$17-MID(INDEX('16-KA'!$H$7:$H$42,MATCH(Input!$D$13,'16-KA'!$B$7:$B$42,0)),10,2)))*$D$14 -> 18.7 | Z13: =(INDEX('17-KL'!$E$7:$E$42,MATCH(Input!$D$13,'17-KL'!$B$7:$B$42,0))+ROUND(($D$15-1)/0.5,0)*INDEX('17-KL'!$F$7:$F$42,MATCH(Input!$D$13,'17-KL'!$B$7:$B$42,0))+IFERROR(LEFT(INDEX('17-KL'!$G$7:$G$42,MATCH(Input!$D$13,'17-KL'!$B$7:$B$42,0)),5)*($D$16-MID(INDEX('17-KL'!$G$7:$G$42,MATCH(Input!$D$13,'17-KL'!$B$7:$B$42,0)),10,2)),0)+LEFT(INDEX('17-KL'!$H$7:$H$42,MATCH(Input!$D$13,'17-KL'!$B$7:$B$42,0)),5)*($D$17-MID(INDEX('17-KL'!$H$7:$H$42,MATCH(Input!$D$13,'17-KL'!$B$7:$B$42,0)),10,2)))*$D$14 -> 19.45 | AA13: =(INDEX('18-LD'!$E$7:$E$42,MATCH(Input!$D$13,'18-LD'!$B$7:$B$42,0))+ROUND(($D$15-1)/0.5,0)*INDEX('18-LD'!$F$7:$F$42,MATCH(Input!$D$13,'18-LD'!$B$7:$B$42,0))+IFERROR(LEFT(INDEX('18-LD'!$G$7:$G$42,MATCH(Input!$D$13,'18-LD'!$B$7:$B$42,0)),5)*($D$16-MID(INDEX('18-LD'!$G$7:$G$42,MATCH(Input!$D$13,'18-LD'!$B$7:$B$42,0)),10,2)),0)+LEFT(INDEX('18-LD'!$H$7:$H$42,MATCH(Input!$D$13,'18-LD'!$B$7:$B$42,0)),5)*($D$17-MID(INDEX('18-LD'!$H$7:$H$42,MATCH(Input!$D$13,'18-LD'!$B$7:$B$42,0)),10,2)))*$D$14 -> 20.4 | AB13: =(INDEX('19-MP'!$E$7:$E$42,MATCH(Input!$D$13,'19-MP'!$B$7:$B$42,0))+ROUND(($D$15-1)/0.5,0)*INDEX('19-MP'!$F$7:$F$42,MATCH(Input!$D$13,'19-MP'!$B$7:$B$42,0))+IFERROR(LEFT(INDEX('19-MP'!$G$7:$G$42,MATCH(Input!$D$13,'19-MP'!$B$7:$B$42,0)),5)*($D$16-MID(INDEX('19-MP'!$G$7:$G$42,MATCH(Input!$D$13,'19-MP'!$B$7:$B$42,0)),10,2)),0)+LEFT(INDEX('19-MP'!$H$7:$H$42,MATCH(Input!$D$13,'19-MP'!$B$7:$B$42,0)),5)*($D$17-MID(INDEX('19-MP'!$H$7:$H$42,MATCH(Input!$D$13,'19-MP'!$B$7:$B$42,0)),10,2)))*$D$14 -> 18.35 | AC13: =(INDEX('20-MH'!$E$7:$E$42,MATCH(Input!$D$13,'20-MH'!$B$7:$B$42,0))+ROUND(($D$15-1)/0.5,0)*INDEX('20-MH'!$F$7:$F$42,MATCH(Input!$D$13,'20-MH'!$B$7:$B$42,0))+IFERROR(LEFT(INDEX('20-MH'!$G$7:$G$42,MATCH(Input!$D$13,'20-MH'!$B$7:$B$42,0)),5)*($D$16-MID(INDEX('20-MH'!$G$7:$G$42,MATCH(Input!$D$13,'20-MH'!$B$7:$B$42,0)),10,2)),0)+LEFT(INDEX('20-MH'!$H$7:$H$42,MATCH(Input!$D$13,'20-MH'!$B$7:$B$42,0)),5)*($D$17-MID(INDEX('20-MH'!$H$7:$H$42,MATCH(Input!$D$13,'20-MH'!$B$7:$B$42,0)),10,2)))*$D$14 -> 23.65 | AD13: =(INDEX('21-OD'!$E$7:$E$42,MATCH(Input!$D$13,'21-OD'!$B$7:$B$42,0))+ROUND(($D$15-1)/0.5,0)*INDEX('21-OD'!$F$7:$F$42,MATCH(Input!$D$13,'21-OD'!$B$7:$B$42,0))+IFERROR(LEFT(INDEX('21-OD'!$G$7:$G$42,MATCH(Input!$D$13,'21-OD'!$B$7:$B$42,0)),5)*($D$16-MID(INDEX('21-OD'!$G$7:$G$42,MATCH(Input!$D$13,'21-OD'!$B$7:$B$42,0)),10,2)),0)+LEFT(INDEX('21-OD'!$H$7:$H$42,MATCH(Input!$D$13,'21-OD'!$B$7:$B$42,0)),5)*($D$17-MID(INDEX('21-OD'!$H$7:$H$42,MATCH(Input!$D$13,'21-OD'!$B$7:$B$42,0)),10,2)))*$D$14 -> 18.7 | AE13: =(INDEX('22-PY'!$E$7:$E$42,MATCH(Input!$D$13,'22-PY'!$B$7:$B$42,0))+ROUND(($D$15-1)/0.5,0)*INDEX('22-PY'!$F$7:$F$42,MATCH(Input!$D$13,'22-PY'!$B$7:$B$42,0))+IFERROR(LEFT(INDEX('22-PY'!$G$7:$G$42,MATCH(Input!$D$13,'22-PY'!$B$7:$B$42,0)),5)*($D$16-MID(INDEX('22-PY'!$G$7:$G$42,MATCH(Input!$D$13,'22-PY'!$B$7:$B$42,0)),10,2)),0)+LEFT(INDEX('22-PY'!$H$7:$H$42,MATCH(Input!$D$13,'22-PY'!$B$7:$B$42,0)),5)*($D$17-MID(INDEX('22-PY'!$H$7:$H$42,MATCH(Input!$D$13,'22-PY'!$B$7:$B$42,0)),10,2)))*$D$14 -> 19.5 | AF13: =(INDEX('23-PB'!$E$7:$E$42,MATCH(Input!$D$13,'23-PB'!$B$7:$B$42,0))+ROUND(($D$15-1)/0.5,0)*INDEX('23-PB'!$F$7:$F$42,MATCH(Input!$D$13,'23-PB'!$B$7:$B$42,0))+IFERROR(LEFT(INDEX('23-PB'!$G$7:$G$42,MATCH(Input!$D$13,'23-PB'!$B$7:$B$42,0)),5)*($D$16-MID(INDEX('23-PB'!$G$7:$G$42,MATCH(Input!$D$13,'23-PB'!$B$7:$B$42,0)),10,2)),0)+LEFT(INDEX('23-PB'!$H$7:$H$42,MATCH(Input!$D$13,'23-PB'!$B$7:$B$42,0)),5)*($D$17-MID(INDEX('23-PB'!$H$7:$H$42,MATCH(Input!$D$13,'23-PB'!$B$7:$B$42,0)),10,2)))*$D$14 -> 23.1 | AG13: =(INDEX('24-RJ'!$E$7:$E$42,MATCH(Input!$D$13,'24-RJ'!$B$7:$B$42,0))+ROUND(($D$15-1)/0.5,0)*INDEX('24-RJ'!$F$7:$F$42,MATCH(Input!$D$13,'24-RJ'!$B$7:$B$42,0))+IFERROR(LEFT(INDEX('24-RJ'!$G$7:$G$42,MATCH(Input!$D$13,'24-RJ'!$B$7:$B$42,0)),5)*($D$16-MID(INDEX('24-RJ'!$G$7:$G$42,MATCH(Input!$D$13,'24-RJ'!$B$7:$B$42,0)),10,2)),0)+LEFT(INDEX('24-RJ'!$H$7:$H$42,MATCH(Input!$D$13,'24-RJ'!$B$7:$B$42,0)),5)*($D$17-MID(INDEX('24-RJ'!$H$7:$H$42,MATCH(Input!$D$13,'24-RJ'!$B$7:$B$42,0)),10,2)))*$D$14 -> 21.95 | AH13: =(INDEX('25-TN'!$E$7:$E$42,MATCH(Input!$D$13,'25-TN'!$B$7:$B$42,0))+ROUND(($D$15-1)/0.5,0)*INDEX('25-TN'!$F$7:$F$42,MATCH(Input!$D$13,'25-TN'!$B$7:$B$42,0))+IFERROR(LEFT(INDEX('25-TN'!$G$7:$G$42,MATCH(Input!$D$13,'25-TN'!$B$7:$B$42,0)),5)*($D$16-MID(INDEX('25-TN'!$G$7:$G$42,MATCH(Input!$D$13,'25-TN'!$B$7:$B$42,0)),10,2)),0)+LEFT(INDEX('25-TN'!$H$7:$H$42,MATCH(Input!$D$13,'25-TN'!$B$7:$B$42,0)),5)*($D$17-MID(INDEX('25-TN'!$H$7:$H$42,MATCH(Input!$D$13,'25-TN'!$B$7:$B$42,0)),10,2)))*$D$14 -> 18.55 | AI13: =(INDEX('26-TS'!$E$7:$E$42,MATCH(Input!$D$13,'26-TS'!$B$7:$B$42,0))+ROUND(($D$15-1)/0.5,0)*INDEX('26-TS'!$F$7:$F$42,MATCH(Input!$D$13,'26-TS'!$B$7:$B$42,0))+IFERROR(LEFT(INDEX('26-TS'!$G$7:$G$42,MATCH(Input!$D$13,'26-TS'!$B$7:$B$42,0)),5)*($D$16-MID(INDEX('26-TS'!$G$7:$G$42,MATCH(Input!$D$13,'26-TS'!$B$7:$B$42,0)),10,2)),0)+LEFT(INDEX('26-TS'!$H$7:$H$42,MATCH(Input!$D$13,'26-TS'!$B$7:$B$42,0)),5)*($D$17-MID(INDEX('26-TS'!$H$7:$H$42,MATCH(Input!$D$13,'26-TS'!$B$7:$B$42,0)),10,2)))*$D$14 -> 17.7 | AJ13: =(INDEX('27-UP'!$E$7:$E$42,MATCH(Input!$D$13,'27-UP'!$B$7:$B$42,0))+ROUND(($D$15-1)/0.5,0)*INDEX('27-UP'!$F$7:$F$42,MATCH(Input!$D$13,'27-UP'!$B$7:$B$42,0))+IFERROR(LEFT(INDEX('27-UP'!$G$7:$G$42,MATCH(Input!$D$13,'27-UP'!$B$7:$B$42,0)),5)*($D$16-MID(INDEX('27-UP'!$G$7:$G$42,MATCH(Input!$D$13,'27-UP'!$B$7:$B$42,0)),10,2)),0)+LEFT(INDEX('27-UP'!$H$7:$H$42,MATCH(Input!$D$13,'27-UP'!$B$7:$B$42,0)),5)*($D$17-MID(INDEX('27-UP'!$H$7:$H$42,MATCH(Input!$D$13,'27-UP'!$B$7:$B$42,0)),10,2)))*$D$14 -> 19.65 | AK13: =(INDEX('28-UK'!$E$7:$E$42,MATCH(Input!$D$13,'28-UK'!$B$7:$B$42,0))+ROUND(($D$15-1)/0.5,0)*INDEX('28-UK'!$F$7:$F$42,MATCH(Input!$D$13,'28-UK'!$B$7:$B$42,0))+IFERROR(LEFT(INDEX('28-UK'!$G$7:$G$42,MATCH(Input!$D$13,'28-UK'!$B$7:$B$42,0)),5)*($D$16-MID(INDEX('28-UK'!$G$7:$G$42,MATCH(Input!$D$13,'28-UK'!$B$7:$B$42,0)),10,2)),0)+LEFT(INDEX('28-UK'!$H$7:$H$42,MATCH(Input!$D$13,'28-UK'!$B$7:$B$42,0)),5)*($D$17-MID(INDEX('28-UK'!$H$7:$H$42,MATCH(Input!$D$13,'28-UK'!$B$7:$B$42,0)),10,2)))*$D$14 -> 23.9 | AL13: =(INDEX('29-WB'!$E$7:$E$42,MATCH(Input!$D$13,'29-WB'!$B$7:$B$42,0))+ROUND(($D$15-1)/0.5,0)*INDEX('29-WB'!$F$7:$F$42,MATCH(Input!$D$13,'29-WB'!$B$7:$B$42,0))+IFERROR(LEFT(INDEX('29-WB'!$G$7:$G$42,MATCH(Input!$D$13,'29-WB'!$B$7:$B$42,0)),5)*($D$16-MID(INDEX('29-WB'!$G$7:$G$42,MATCH(Input!$D$13,'29-WB'!$B$7:$B$42,0)),10,2)),0)+LEFT(INDEX('29-WB'!$H$7:$H$42,MATCH(Input!$D$13,'29-WB'!$B$7:$B$42,0)),5)*($D$17-MID(INDEX('29-WB'!$H$7:$H$42,MATCH(Input!$D$13,'29-WB'!$B$7:$B$42,0)),10,2)))*$D$14 -> 23.2
C14: Length in Km | D14: 5
C15: Embankment Height in meter | D15: 1
C16: MSA | D16: 50
C17: Aggregate Lead in km | D17: =$D$9 -> 50
B18: (b) | C18: Type-2
C19: Configuration of Road with Pavement Combination | D19: Greenfield Alignment Expressway - 4 lane+ PS_ (BC, DBM, CTB, CTSB & SAMI or BC, DBM, WMM, & CTSB) | E19: =IF($D$8="Andaman & Nicobar Islands ",J19,IF($D$8="Andhra Pradesh",K19,IF($D$8="Assam",L19,IF($D$8="Bihar",M19,IF($D$8="Chandigarh",N19,IF($D$8="Chhattisgarh",O19,IF($D$8="Dadra & Nagar Haveli",P19,IF($D$8="Daman & Diu",Q19,IF($D$8="Delhi",R19,IF($D$8="Goa",S19,IF($D$8="Gujarat",T19,IF($D$8="Haryana",U19,IF($D$8="Himachal Pradesh",V19,IF($D$8="Jammu & Kashmir",W19,IF($D$8="Jharkhand",X19,IF($D$8="Karnataka",Y19,IF($D$8="Kerala",Z19,IF($D$8="Lakshadweep",AA19,IF($D$8="Madhya Pradesh",AB19,IF($D$8="Maharashtra",AC19,IF($D$8="Odisha",AD19,IF($D$8="Puducherry",AE19,IF($D$8="Punjab",AF19,IF($D$8="Rajasthan",AG19,IF($D$8="Tamil Nadu",AH19,IF($D$8="Telangana",AI19,IF($D$8="Uttar Pradesh",AJ19,IF($D$8="Uttarakhand",AK19,IF($D$8="West Bengal",AL19))))))))))))))))))))))))))))) -> 40.975 | F19: =E19*10^7 -> 409750000 | G19: =IF(E19>0,E19/D20,0) -> 8.195 | J19: =(INDEX('1-AN'!$E$7:$E$42,MATCH(Input!$D$19,'1-AN'!$B$7:$B$42,0))+ROUND(($D$21-1)/0.5,0)*INDEX('1-AN'!$F$7:$F$42,MATCH(Input!$D$19,'1-AN'!$B$7:$B$42,0))+IFERROR(LEFT(INDEX('1-AN'!$G$7:$G$42,MATCH(Input!$D$19,'1-AN'!$B$7:$B$42,0)),5)*($D$22-MID(INDEX('1-AN'!$G$7:$G$42,MATCH(Input!$D$19,'1-AN'!$B$7:$B$42,0)),10,2)),0)+LEFT(INDEX('1-AN'!$H$7:$H$42,MATCH(Input!$D$19,'1-AN'!$B$7:$B$42,0)),5)*($D$23-MID(INDEX('1-AN'!$H$7:$H$42,MATCH(Input!$D$19,'1-AN'!$B$7:$B$42,0)),10,2)))*$D$20 -> 45.05 | K19: =(INDEX('2-AP'!$E$7:$E$42,MATCH(Input!$D$19,'2-AP'!$B$7:$B$42,0))+ROUND(($D$21-1)/0.5,0)*INDEX('2-AP'!$F$7:$F$42,MATCH(Input!$D$19,'2-AP'!$B$7:$B$42,0))+IFERROR(LEFT(INDEX('2-AP'!$G$7:$G$42,MATCH(Input!$D$19,'2-AP'!$B$7:$B$42,0)),5)*($D$22-MID(INDEX('2-AP'!$G$7:$G$42,MATCH(Input!$D$19,'2-AP'!$B$7:$B$42,0)),10,2)),0)+LEFT(INDEX('2-AP'!$H$7:$H$42,MATCH(Input!$D$19,'2-AP'!$B$7:$B$42,0)),5)*($D$23-MID(INDEX('2-AP'!$H$7:$H$42,MATCH(Input!$D$19,'2-AP'!$B$7:$B$42,0)),10,2)))*$D$20 -> 36.825 | L19: =(INDEX('3-AS'!$E$7:$E$42,MATCH(Input!$D$19,'3-AS'!$B$7:$B$42,0))+ROUND(($D$21-1)/0.5,0)*INDEX('3-AS'!$F$7:$F$42,MATCH(Input!$D$19,'3-AS'!$B$7:$B$42,0))+IFERROR(LEFT(INDEX('3-AS'!$G$7:$G$42,MATCH(Input!$D$19,'3-AS'!$B$7:$B$42,0)),5)*($D$22-MID(INDEX('3-AS'!$G$7:$G$42,MATCH(Input!$D$19,'3-AS'!$B$7:$B$42,0)),10,2)),0)+LEFT(INDEX('3-AS'!$H$7:$H$42,MATCH(Input!$D$19,'3-AS'!$B$7:$B$42,0)),5)*($D$23-MID(INDEX('3-AS'!$H$7:$H$42,MATCH(Input!$D$19,'3-AS'!$B$7:$B$42,0)),10,2)))*$D$20 -> 43.825 | M19: =(INDEX('4-BR'!$E$7:$E$42,MATCH(Input!$D$19,'4-BR'!$B$7:$B$42,0))+ROUND(($D$21-1)/0.5,0)*INDEX('4-BR'!$F$7:$F$42,MATCH(Input!$D$19,'4-BR'!$B$7:$B$42,0))+IFERROR(LEFT(INDEX('4-BR'!$G$7:$G$42,MATCH(Input!$D$19,'4-BR'!$B$7:$B$42,0)),5)*($D$22-MID(INDEX('4-BR'!$G$7:$G$42,MATCH(Input!$D$19,'4-BR'!$B$7:$B$42,0)),10,2)),0)+LEFT(INDEX('4-BR'!$H$7:$H$42,MATCH(Input!$D$19,'4-BR'!$B$7:$B$42,0)),5)*($D$23-MID(INDEX('4-BR'!$H$7:$H$42,MATCH(Input!$D$19,'4-BR'!$B$7:$B$42,0)),10,2)))*$D$20 -> 38.95 | N19: =(INDEX('5-CH'!$E$7:$E$42,MATCH(Input!$D$19,'5-CH'!$B$7:$B$42,0))+ROUND(($D$21-1)/0.5,0)*INDEX('5-CH'!$F$7:$F$42,MATCH(Input!$D$19,'5-CH'!$B$7:$B$42,0))+IFERROR(LEFT(INDEX('5-CH'!$G$7:$G$42,MATCH(Input!$D$19,'5-CH'!$B$7:$B$42,0)),5)*($D$22-MID(INDEX('5-CH'!$G$7:$G$42,MATCH(Input!$D$19,'5-CH'!$B$7:$B$42,0)),10,2)),0)+LEFT(INDEX('5-CH'!$H$7:$H$42,MATCH(Input!$D$19,'5-CH'!$B$7:$B$42,0)),5)*($D$23-MID(INDEX('5-CH'!$H$7:$H$42,MATCH(Input!$D$19,'5-CH'!$B$7:$B$42,0)),10,2)))*$D$20 -> 43.8 | O19: =(INDEX('6-CG'!$E$7:$E$42,MATCH(Input!$D$19,'6-CG'!$B$7:$B$42,0))+ROUND(($D$21-1)/0.5,0)*INDEX('6-CG'!$F$7:$F$42,MATCH(Input!$D$19,'6-CG'!$B$7:$B$42,0))+IFERROR(LEFT(INDEX('6-CG'!$G$7:$G$42,MATCH(Input!$D$19,'6-CG'!$B$7:$B$42,0)),5)*($D$22-MID(INDEX('6-CG'!$G$7:$G$42,MATCH(Input!$D$19,'6-CG'!$B$7:$B$42,0)),10,2)),0)+LEFT(INDEX('6-CG'!$H$7:$H$42,MATCH(Input!$D$19,'6-CG'!$B$7:$B$42,0)),5)*($D$23-MID(INDEX('6-CG'!$H$7:$H$42,MATCH(Input!$D$19,'6-CG'!$B$7:$B$42,0)),10,2)))*$D$20 -> 39.6 | P19: =(INDEX('7-DN'!$E$7:$E$42,MATCH(Input!$D$19,'7-DN'!$B$7:$B$42,0))+ROUND(($D$21-1)/0.5,0)*INDEX('7-DN'!$F$7:$F$42,MATCH(Input!$D$19,'7-DN'!$B$7:$B$42,0))+IFERROR(LEFT(INDEX('7-DN'!$G$7:$G$42,MATCH(Input!$D$19,'7-DN'!$B$7:$B$42,0)),5)*($D$22-MID(INDEX('7-DN'!$G$7:$G$42,MATCH(Input!$D$19,'7-DN'!$B$7:$B$42,0)),10,2)),0)+LEFT(INDEX('7-DN'!$H$7:$H$42,MATCH(Input!$D$19,'7-DN'!$B$7:$B$42,0)),5)*($D$23-MID(INDEX('7-DN'!$H$7:$H$42,MATCH(Input!$D$19,'7-DN'!$B$7:$B$42,0)),10,2)))*$D$20 -> 50.2 | Q19: =(INDEX('8-DD'!$E$7:$E$42,MATCH(Input!$D$19,'8-DD'!$B$7:$B$42,0))+ROUND(($D$21-1)/0.5,0)*INDEX('8-DD'!$F$7:$F$42,MATCH(Input!$D$19,'8-DD'!$B$7:$B$42,0))+IFERROR(LEFT(INDEX('8-DD'!$G$7:$G$42,MATCH(Input!$D$19,'8-DD'!$B$7:$B$42,0)),5)*($D$22-MID(INDEX('8-DD'!$G$7:$G$42,MATCH(Input!$D$19,'8-DD'!$B$7:$B$42,0)),10,2)),0)+LEFT(INDEX('8-DD'!$H$7:$H$42,MATCH(Input!$D$19,'8-DD'!$B$7:$B$42,0)),5)*($D$23-MID(INDEX('8-DD'!$H$7:$H$42,MATCH(Input!$D$19,'8-DD'!$B$7:$B$42,0)),10,2)))*$D$20 -> 39.15 | R19: =(INDEX('9-DL'!$E$7:$E$42,MATCH(Input!$D$19,'9-DL'!$B$7:$B$42,0))+ROUND(($D$21-1)/0.5,0)*INDEX('9-DL'!$F$7:$F$42,MATCH(Input!$D$19,'9-DL'!$B$7:$B$42,0))+IFERROR(LEFT(INDEX('9-DL'!$G$7:$G$42,MATCH(Input!$D$19,'9-DL'!$B$7:$B$42,0)),5)*($D$22-MID(INDEX('9-DL'!$G$7:$G$42,MATCH(Input!$D$19,'9-DL'!$B$7:$B$42,0)),10,2)),0)+LEFT(INDEX('9-DL'!$H$7:$H$42,MATCH(Input!$D$19,'9-DL'!$B$7:$B$42,0)),5)*($D$23-MID(INDEX('9-DL'!$H$7:$H$42,MATCH(Input!$D$19,'9-DL'!$B$7:$B$42,0)),10,2)))*$D$20 -> 40.975 | S19: =(INDEX('10-GA'!$E$7:$E$42,MATCH(Input!$D$19,'10-GA'!$B$7:$B$42,0))+ROUND(($D$21-1)/0.5,0)*INDEX('10-GA'!$F$7:$F$42,MATCH(Input!$D$19,'10-GA'!$B$7:$B$42,0))+IFERROR(LEFT(INDEX('10-GA'!$G$7:$G$42,MATCH(Input!$D$19,'10-GA'!$B$7:$B$42,0)),5)*($D$22-MID(INDEX('10-GA'!$G$7:$G$42,MATCH(Input!$D$19,'10-GA'!$B$7:$B$42,0)),10,2)),0)+LEFT(INDEX('10-GA'!$H$7:$H$42,MATCH(Input!$D$19,'10-GA'!$B$7:$B$42,0)),5)*($D$23-MID(INDEX('10-GA'!$H$7:$H$42,MATCH(Input!$D$19,'10-GA'!$B$7:$B$42,0)),10,2)))*$D$20 -> 50.2 | T19: =(INDEX('11-GJ'!$E$7:$E$42,MATCH(Input!$D$19,'11-GJ'!$B$7:$B$42,0))+ROUND(($D$21-1)/0.5,0)*INDEX('11-GJ'!$F$7:$F$42,MATCH(Input!$D$19,'11-GJ'!$B$7:$B$42,0))+IFERROR(LEFT(INDEX('11-GJ'!$G$7:$G$42,MATCH(Input!$D$19,'11-GJ'!$B$7:$B$42,0)),5)*($D$22-MID(INDEX('11-GJ'!$G$7:$G$42,MATCH(Input!$D$19,'11-GJ'!$B$7:$B$42,0)),10,2)),0)+LEFT(INDEX('11-GJ'!$H$7:$H$42,MATCH(Input!$D$19,'11-GJ'!$B$7:$B$42,0)),5)*($D$23-MID(INDEX('11-GJ'!$H$7:$H$42,MATCH(Input!$D$19,'11-GJ'!$B$7:$B$42,0)),10,2)))*$D$20 -> 37.45 | U19: =(INDEX('12-HR'!$E$7:$E$42,MATCH(Input!$D$19,'12-HR'!$B$7:$B$42,0))+ROUND(($D$21-1)/0.5,0)*INDEX('12-HR'!$F$7:$F$42,MATCH(Input!$D$19,'12-HR'!$B$7:$B$42,0))+IFERROR(LEFT(INDEX('12-HR'!$G$7:$G$42,MATCH(Input!$D$19,'12-HR'!$B$7:$B$42,0)),5)*($D$22-MID(INDEX('12-HR'!$G$7:$G$42,MATCH(Input!$D$19,'12-HR'!$B$7:$B$42,0)),10,2)),0)+LEFT(INDEX('12-HR'!$H$7:$H$42,MATCH(Input!$D$19,'12-HR'!$B$7:$B$42,0)),5)*($D$23-MID(INDEX('12-HR'!$H$7:$H$42,MATCH(Input!$D$19,'12-HR'!$B$7:$B$42,0)),10,2)))*$D$20 -> 39.1 | V19: =(INDEX('13-HP'!$E$7:$E$42,MATCH(Input!$D$19,'13-HP'!$B$7:$B$42,0))+ROUND(($D$21-1)/0.5,0)*INDEX('13-HP'!$F$7:$F$42,MATCH(Input!$D$19,'13-HP'!$B$7:$B$42,0))+IFERROR(LEFT(INDEX('13-HP'!$G$7:$G$42,MATCH(Input!$D$19,'13-HP'!$B$7:$B$42,0)),5)*($D$22-MID(INDEX('13-HP'!$G$7:$G$42,MATCH(Input!$D$19,'13-HP'!$B$7:$B$42,0)),10,2)),0)+LEFT(INDEX('13-HP'!$H$7:$H$42,MATCH(Input!$D$19,'13-HP'!$B$7:$B$42,0)),5)*($D$23-MID(INDEX('13-HP'!$H$7:$H$42,MATCH(Input!$D$19,'13-HP'!$B$7:$B$42,0)),10,2)))*$D$20 -> 53 | W19: =(INDEX('14-JK'!$E$7:$E$42,MATCH(Input!$D$19,'14-JK'!$B$7:$B$42,0))+ROUND(($D$21-1)/0.5,0)*INDEX('14-JK'!$F$7:$F$42,MATCH(Input!$D$19,'14-JK'!$B$7:$B$42,0))+IFERROR(LEFT(INDEX('14-JK'!$G$7:$G$42,MATCH(Input!$D$19,'14-JK'!$B$7:$B$42,0)),5)*($D$22-MID(INDEX('14-JK'!$G$7:$G$42,MATCH(Input!$D$19,'14-JK'!$B$7:$B$42,0)),10,2)),0)+LEFT(INDEX('14-JK'!$H$7:$H$42,MATCH(Input!$D$19,'14-JK'!$B$7:$B$42,0)),5)*($D$23-MID(INDEX('14-JK'!$H$7:$H$42,MATCH(Input!$D$19,'14-JK'!$B$7:$B$42,0)),10,2)))*$D$20 -> 50.5 | X19: =(INDEX('15-JH'!$E$7:$E$42,MATCH(Input!$D$19,'15-JH'!$B$7:$B$42,0))+ROUND(($D$21-1)/0.5,0)*INDEX('15-JH'!$F$7:$F$42,MATCH(Input!$D$19,'15-JH'!$B$7:$B$42,0))+IFERROR(LEFT(INDEX('15-JH'!$G$7:$G$42,MATCH(Input!$D$19,'15-JH'!$B$7:$B$42,0)),5)*($D$22-MID(INDEX('15-JH'!$G$7:$G$42,MATCH(Input!$D$19,'15-JH'!$B$7:$B$42,0)),10,2)),0)+LEFT(INDEX('15-JH'!$H$7:$H$42,MATCH(Input!$D$19,'15-JH'!$B$7:$B$42,0)),5)*($D$23-MID(INDEX('15-JH'!$H$7:$H$42,MATCH(Input!$D$19,'15-JH'!$B$7:$B$42,0)),10,2)))*$D$20 -> 37.15 | Y19: =(INDEX('16-KA'!$E$7:$E$42,MATCH(Input!$D$19,'16-KA'!$B$7:$B$42,0))+ROUND(($D$21-1)/0.5,0)*INDEX('16-KA'!$F$7:$F$42,MATCH(Input!$D$19,'16-KA'!$B$7:$B$42,0))+IFERROR(LEFT(INDEX('16-KA'!$G$7:$G$42,MATCH(Input!$D$19,'16-KA'!$B$7:$B$42,0)),5)*($D$22-MID(INDEX('16-KA'!$G$7:$G$42,MATCH(Input!$D$19,'16-KA'!$B$7:$B$42,0)),10,2)),0)+LEFT(INDEX('16-KA'!$H$7:$H$42,MATCH(Input!$D$19,'16-KA'!$B$7:$B$42,0)),5)*($D$23-MID(INDEX('16-KA'!$H$7:$H$42,MATCH(Input!$D$19,'16-KA'!$B$7:$B$42,0)),10,2)))*$D$20 -> 38.85 | Z19: =(INDEX('17-KL'!$E$7:$E$42,MATCH(Input!$D$19,'17-KL'!$B$7:$B$42,0))+ROUND(($D$21-1)/0.5,0)*INDEX('17-KL'!$F$7:$F$42,MATCH(Input!$D$19,'17-KL'!$B$7:$B$42,0))+IFERROR(LEFT(INDEX('17-KL'!$G$7:$G$42,MATCH(Input!$D$19,'17-KL'!$B$7:$B$42,0)),5)*($D$22-MID(INDEX('17-KL'!$G$7:$G$42,MATCH(Input!$D$19,'17-KL'!$B$7:$B$42,0)),10,2)),0)+LEFT(INDEX('17-KL'!$H$7:$H$42,MATCH(Input!$D$19,'17-KL'!$B$7:$B$42,0)),5)*($D$23-MID(INDEX('17-KL'!$H$7:$H$42,MATCH(Input!$D$19,'17-KL'!$B$7:$B$42,0)),10,2)))*$D$20 -> 40.25 | AA19: =(INDEX('18-LD'!$E$7:$E$42,MATCH(Input!$D$19,'18-LD'!$B$7:$B$42,0))+ROUND(($D$21-1)/0.5,0)*INDEX('18-LD'!$F$7:$F$42,MATCH(Input!$D$19,'18-LD'!$B$7:$B$42,0))+IFERROR(LEFT(INDEX('18-LD'!$G$7:$G$42,MATCH(Input!$D$19,'18-LD'!$B$7:$B$42,0)),5)*($D$22-MID(INDEX('18-LD'!$G$7:$G$42,MATCH(Input!$D$19,'18-LD'!$B$7:$B$42,0)),10,2)),0)+LEFT(INDEX('18-LD'!$H$7:$H$42,MATCH(Input!$D$19,'18-LD'!$B$7:$B$42,0)),5)*($D$23-MID(INDEX('18-LD'!$H$7:$H$42,MATCH(Input!$D$19,'18-LD'!$B$7:$B$42,0)),10,2)))*$D$20 -> 42.15 | AB19: =(INDEX('19-MP'!$E$7:$E$42,MATCH(Input!$D$19,'19-MP'!$B$7:$B$42,0))+ROUND(($D$21-1)/0.5,0)*INDEX('19-MP'!$F$7:$F$42,MATCH(Input!$D$19,'19-MP'!$B$7:$B$42,0))+IFERROR(LEFT(INDEX('19-MP'!$G$7:$G$42,MATCH(Input!$D$19,'19-MP'!$B$7:$B$42,0)),5)*($D$22-MID(INDEX('19-MP'!$G$7:$G$42,MATCH(Input!$D$19,'19-MP'!$B$7:$B$42,0)),10,2)),0)+LEFT(INDEX('19-MP'!$H$7:$H$42,MATCH(Input!$D$19,'19-MP'!$B$7:$B$42,0)),5)*($D$23-MID(INDEX('19-MP'!$H$7:$H$42,MATCH(Input!$D$19,'19-MP'!$B$7:$B$42,0)),10,2)))*$D$20 -> 37.75 | AC19: =(INDEX('20-MH'!$E$7:$E$42,MATCH(Input!$D$19,'20-MH'!$B$7:$B$42,0))+ROUND(($D$21-1)/0.5,0)*INDEX('20-MH'!$F$7:$F$42,MATCH(Input!$D$19,'20-MH'!$B$7:$B$42,0))+IFERROR(LEFT(INDEX('20-MH'!$G$7:$G$42,MATCH(Input!$D$19,'20-MH'!$B$7:$B$42,0)),5)*($D$22-MID(INDEX('20-MH'!$G$7:$G$42,MATCH(Input!$D$19,'20-MH'!$B$7:$B$42,0)),10,2)),0)+LEFT(INDEX('20-MH'!$H$7:$H$42,MATCH(Input!$D$19,'20-MH'!$B$7:$B$42,0)),5)*($D$23-MID(INDEX('20-MH'!$H$7:$H$42,MATCH(Input!$D$19,'20-MH'!$B$7:$B$42,0)),10,2)))*$D$20 -> 50.2 | AD19: =(INDEX('21-OD'!$E$7:$E$42,MATCH(Input!$D$19,'21-OD'!$B$7:$B$42,0))+ROUND(($D$21-1)/0.5,0)*INDEX('21-OD'!$F$7:$F$42,MATCH(Input!$D$19,'21-OD'!$B$7:$B$42,0))+IFERROR(LEFT(INDEX('21-OD'!$G$7:$G$42,MATCH(Input!$D$19,'21-OD'!$B$7:$B$42,0)),5)*($D$22-MID(INDEX('21-OD'!$G$7:$G$42,MATCH(Input!$D$19,'21-OD'!$B$7:$B$42,0)),10,2)),0)+LEFT(INDEX('21-OD'!$H$7:$H$42,MATCH(Input!$D$19,'21-OD'!$B$7:$B$42,0)),5)*($D$23-MID(INDEX('21-OD'!$H$7:$H$42,MATCH(Input!$D$19,'21-OD'!$B$7:$B$42,0)),10,2)))*$D$20 -> 38.275 | AE19: =(INDEX('22-PY'!$E$7:$E$42,MATCH(Input!$D$19,'22-PY'!$B$7:$B$42,0))+ROUND(($D$21-1)/0.5,0)*INDEX('22-PY'!$F$7:$F$42,MATCH(Input!$D$19,'22-PY'!$B$7:$B$42,0))+IFERROR(LEFT(INDEX('22-PY'!$G$7:$G$42,MATCH(Input!$D$19,'22-PY'!$B$7:$B$42,0)),5)*($D$22-MID(INDEX('22-PY'!$G$7:$G$42,MATCH(Input!$D$19,'22-PY'!$B$7:$B$42,0)),10,2)),0)+LEFT(INDEX('22-PY'!$H$7:$H$42,MATCH(Input!$D$19,'22-PY'!$B$7:$B$42,0)),5)*($D$23-MID(INDEX('22-PY'!$H$7:$H$42,MATCH(Input!$D$19,'22-PY'!$B$7:$B$42,0)),10,2)))*$D$20 -> 40.35 | AF19: =(INDEX('23-PB'!$E$7:$E$42,MATCH(Input!$D$19,'23-PB'!$B$7:$B$42,0))+ROUND(($D$21-1)/0.5,0)*INDEX('23-PB'!$F$7:$F$42,MATCH(Input!$D$19,'23-PB'!$B$7:$B$42,0))+IFERROR(LEFT(INDEX('23-PB'!$G$7:$G$42,MATCH(Input!$D$19,'23-PB'!$B$7:$B$42,0)),5)*($D$22-MID(INDEX('23-PB'!$G$7:$G$42,MATCH(Input!$D$19,'23-PB'!$B$7:$B$42,0)),10,2)),0)+LEFT(INDEX('23-PB'!$H$7:$H$42,MATCH(Input!$D$19,'23-PB'!$B$7:$B$42,0)),5)*($D$23-MID(INDEX('23-PB'!$H$7:$H$42,MATCH(Input!$D$19,'23-PB'!$B$7:$B$42,0)),10,2)))*$D$20 -> 43.8 | AG19: =(INDEX('24-RJ'!$E$7:$E$42,MATCH(Input!$D$19,'24-RJ'!$B$7:$B$42,0))+ROUND(($D$21-1)/0.5,0)*INDEX('24-RJ'!$F$7:$F$42,MATCH(Input!$D$19,'24-RJ'!$B$7:$B$42,0))+IFERROR(LEFT(INDEX('24-RJ'!$G$7:$G$42,MATCH(Input!$D$19,'24-RJ'!$B$7:$B$42,0)),5)*($D$22-MID(INDEX('24-RJ'!$G$7:$G$42,MATCH(Input!$D$19,'24-RJ'!$B$7:$B$42,0)),10,2)),0)+LEFT(INDEX('24-RJ'!$H$7:$H$42,MATCH(Input!$D$19,'24-RJ'!$B$7:$B$42,0)),5)*($D$23-MID(INDEX('24-RJ'!$H$7:$H$42,MATCH(Input!$D$19,'24-RJ'!$B$7:$B$42,0)),10,2)))*$D$20 -> 42.35 | AH19: =(INDEX('25-TN'!$E$7:$E$42,MATCH(Input!$D$19,'25-TN'!$B$7:$B$42,0))+ROUND(($D$21-1)/0.5,0)*INDEX('25-TN'!$F$7:$F$42,MATCH(Input!$D$19,'25-TN'!$B$7:$B$42,0))+IFERROR(LEFT(INDEX('25-TN'!$G$7:$G$42,MATCH(Input!$D$19,'25-TN'!$B$7:$B$42,0)),5)*($D$22-MID(INDEX('25-TN'!$G$7:$G$42,MATCH(Input!$D$19,'25-TN'!$B$7:$B$42,0)),10,2)),0)+LEFT(INDEX('25-TN'!$H$7:$H$42,MATCH(Input!$D$19,'25-TN'!$B$7:$B$42,0)),5)*($D$23-MID(INDEX('25-TN'!$H$7:$H$42,MATCH(Input!$D$19,'25-TN'!$B$7:$B$42,0)),10,2)))*$D$20 -> 38.55 | AI19: =(INDEX('26-TS'!$E$7:$E$42,MATCH(Input!$D$19,'26-TS'!$B$7:$B$42,0))+ROUND(($D$21-1)/0.5,0)*INDEX('26-TS'!$F$7:$F$42,MATCH(Input!$D$19,'26-TS'!$B$7:$B$42,0))+IFERROR(LEFT(INDEX('26-TS'!$G$7:$G$42,MATCH(Input!$D$19,'26-TS'!$B$7:$B$42,0)),5)*($D$22-MID(INDEX('26-TS'!$G$7:$G$42,MATCH(Input!$D$19,'26-TS'!$B$7:$B$42,0)),10,2)),0)+LEFT(INDEX('26-TS'!$H$7:$H$42,MATCH(Input!$D$19,'26-TS'!$B$7:$B$42,0)),5)*($D$23-MID(INDEX('26-TS'!$H$7:$H$42,MATCH(Input!$D$19,'26-TS'!$B$7:$B$42,0)),10,2)))*$D$20 -> 37.025 | AJ19: =(INDEX('27-UP'!$E$7:$E$42,MATCH(Input!$D$19,'27-UP'!$B$7:$B$42,0))+ROUND(($D$21-1)/0.5,0)*INDEX('27-UP'!$F$7:$F$42,MATCH(Input!$D$19,'27-UP'!$B$7:$B$42,0))+IFERROR(LEFT(INDEX('27-UP'!$G$7:$G$42,MATCH(Input!$D$19,'27-UP'!$B$7:$B$42,0)),5)*($D$22-MID(INDEX('27-UP'!$G$7:$G$42,MATCH(Input!$D$19,'27-UP'!$B$7:$B$42,0)),10,2)),0)+LEFT(INDEX('27-UP'!$H$7:$H$42,MATCH(Input!$D$19,'27-UP'!$B$7:$B$42,0)),5)*($D$23-MID(INDEX('27-UP'!$H$7:$H$42,MATCH(Input!$D$19,'27-UP'!$B$7:$B$42,0)),10,2)))*$D$20 -> 38.25 | AK19: =(INDEX('28-UK'!$E$7:$E$42,MATCH(Input!$D$19,'28-UK'!$B$7:$B$42,0))+ROUND(($D$21-1)/0.5,0)*INDEX('28-UK'!$F$7:$F$42,MATCH(Input!$D$19,'28-UK'!$B$7:$B$42,0))+IFERROR(LEFT(INDEX('28-UK'!$G$7:$G$42,MATCH(Input!$D$19,'28-UK'!$B$7:$B$42,0)),5)*($D$22-MID(INDEX('28-UK'!$G$7:$G$42,MATCH(Input!$D$19,'28-UK'!$B$7:$B$42,0)),10,2)),0)+LEFT(INDEX('28-UK'!$H$7:$H$42,MATCH(Input!$D$19,'28-UK'!$B$7:$B$42,0)),5)*($D$23-MID(INDEX('28-UK'!$H$7:$H$42,MATCH(Input!$D$19,'28-UK'!$B$7:$B$42,0)),10,2)))*$D$20 -> 51.15 | AL19: =(INDEX('29-WB'!$E$7:$E$42,MATCH(Input!$D$19,'29-WB'!$B$7:$B$42,0))+ROUND(($D$21-1)/0.5,0)*INDEX('29-WB'!$F$7:$F$42,MATCH(Input!$D$19,'29-WB'!$B$7:$B$42,0))+IFERROR(LEFT(INDEX('29-WB'!$G$7:$G$42,MATCH(Input!$D$19,'29-WB'!$B$7:$B$42,0)),5)*($D$22-MID(INDEX('29-WB'!$G$7:$G$42,MATCH(Input!$D$19,'29-WB'!$B$7:$B$42,0)),10,2)),0)+LEFT(INDEX('29-WB'!$H$7:$H$42,MATCH(Input!$D$19,'29-WB'!$B$7:$B$42,0)),5)*($D$23-MID(INDEX('29-WB'!$H$7:$H$42,MATCH(Input!$D$19,'29-WB'!$B$7:$B$42,0)),10,2)))*$D$20 -> 45.05
C20: Length in Km | D20: 5
C21: Embankment Height in meter | D21: 2
C22: MSA | D22: 110
C23: Aggregate Lead in km | D23: =$D$9 -> 50
B24: (c) | C24: Type-3
C25: Configuration of Road with Pavement Combination | D25: Greenfield Alignment - 6 Lane+ PS_ (BC, DBM, AIL, CTB & CTSB or BC, DBM, AIL, CTB & GSB) | E25: =IF($D$8="Andaman & Nicobar Islands ",J25,IF($D$8="Andhra Pradesh",K25,IF($D$8="Assam",L25,IF($D$8="Bihar",M25,IF($D$8="Chandigarh",N25,IF($D$8="Chhattisgarh",O25,IF($D$8="Dadra & Nagar Haveli",P25,IF($D$8="Daman & Diu",Q25,IF($D$8="Delhi",R25,IF($D$8="Goa",S25,IF($D$8="Gujarat",T25,IF($D$8="Haryana",U25,IF($D$8="Himachal Pradesh",V25,IF($D$8="Jammu & Kashmir",W25,IF($D$8="Jharkhand",X25,IF($D$8="Karnataka",Y25,IF($D$8="Kerala",Z25,IF($D$8="Lakshadweep",AA25,IF($D$8="Madhya Pradesh",AB25,IF($D$8="Maharashtra",AC25,IF($D$8="Odisha",AD25,IF($D$8="Puducherry",AE25,IF($D$8="Punjab",AF25,IF($D$8="Rajasthan",AG25,IF($D$8="Tamil Nadu",AH25,IF($D$8="Telangana",AI25,IF($D$8="Uttar Pradesh",AJ25,IF($D$8="Uttarakhand",AK25,IF($D$8="West Bengal",AL25))))))))))))))))))))))))))))) -> 47.225 | F25: =E25*10^7 -> 472250000 | G25: =IF(E25>0,E25/D26,0) -> 9.445 | J25: =(INDEX('1-AN'!$E$7:$E$42,MATCH(Input!$D$25,'1-AN'!$B$7:$B$42,0))+ROUND(($D$27-1)/0.5,0)*INDEX('1-AN'!$F$7:$F$42,MATCH(Input!$D$25,'1-AN'!$B$7:$B$42,0))+IFERROR(LEFT(INDEX('1-AN'!$G$7:$G$42,MATCH(Input!$D$25,'1-AN'!$B$7:$B$42,0)),5)*($D$28-MID(INDEX('1-AN'!$G$7:$G$42,MATCH(Input!$D$25,'1-AN'!$B$7:$B$42,0)),10,2)),0)+LEFT(INDEX('1-AN'!$H$7:$H$42,MATCH(Input!$D$25,'1-AN'!$B$7:$B$42,0)),5)*($D$29-MID(INDEX('1-AN'!$H$7:$H$42,MATCH(Input!$D$25,'1-AN'!$B$7:$B$42,0)),10,2)))*$D$26 -> 50.9 | K25: =(INDEX('2-AP'!$E$7:$E$42,MATCH(Input!$D$25,'2-AP'!$B$7:$B$42,0))+ROUND(($D$27-1)/0.5,0)*INDEX('2-AP'!$F$7:$F$42,MATCH(Input!$D$25,'2-AP'!$B$7:$B$42,0))+IFERROR(LEFT(INDEX('2-AP'!$G$7:$G$42,MATCH(Input!$D$25,'2-AP'!$B$7:$B$42,0)),5)*($D$28-MID(INDEX('2-AP'!$G$7:$G$42,MATCH(Input!$D$25,'2-AP'!$B$7:$B$42,0)),10,2)),0)+LEFT(INDEX('2-AP'!$H$7:$H$42,MATCH(Input!$D$25,'2-AP'!$B$7:$B$42,0)),5)*($D$29-MID(INDEX('2-AP'!$H$7:$H$42,MATCH(Input!$D$25,'2-AP'!$B$7:$B$42,0)),10,2)))*$D$26 -> 40.75 | L25: =(INDEX('3-AS'!$E$7:$E$42,MATCH(Input!$D$25,'3-AS'!$B$7:$B$42,0))+ROUND(($D$27-1)/0.5,0)*INDEX('3-AS'!$F$7:$F$42,MATCH(Input!$D$25,'3-AS'!$B$7:$B$42,0))+IFERROR(LEFT(INDEX('3-AS'!$G$7:$G$42,MATCH(Input!$D$25,'3-AS'!$B$7:$B$42,0)),5)*($D$28-MID(INDEX('3-AS'!$G$7:$G$42,MATCH(Input!$D$25,'3-AS'!$B$7:$B$42,0)),10,2)),0)+LEFT(INDEX('3-AS'!$H$7:$H$42,MATCH(Input!$D$25,'3-AS'!$B$7:$B$42,0)),5)*($D$29-MID(INDEX('3-AS'!$H$7:$H$42,MATCH(Input!$D$25,'3-AS'!$B$7:$B$42,0)),10,2)))*$D$26 -> 51.375 | M25: =(INDEX('4-BR'!$E$7:$E$42,MATCH(Input!$D$25,'4-BR'!$B$7:$B$42,0))+ROUND(($D$27-1)/0.5,0)*INDEX('4-BR'!$F$7:$F$42,MATCH(Input!$D$25,'4-BR'!$B$7:$B$42,0))+IFERROR(LEFT(INDEX('4-BR'!$G$7:$G$42,MATCH(Input!$D$25,'4-BR'!$B$7:$B$42,0)),5)*($D$28-MID(INDEX('4-BR'!$G$7:$G$42,MATCH(Input!$D$25,'4-BR'!$B$7:$B$42,0)),10,2)),0)+LEFT(INDEX('4-BR'!$H$7:$H$42,MATCH(Input!$D$25,'4-BR'!$B$7:$B$42,0)),5)*($D$29-MID(INDEX('4-BR'!$H$7:$H$42,MATCH(Input!$D$25,'4-BR'!$B$7:$B$42,0)),10,2)))*$D$26 -> 44.625 | N25: =(INDEX('5-CH'!$E$7:$E$42,MATCH(Input!$D$25,'5-CH'!$B$7:$B$42,0))+ROUND(($D$27-1)/0.5,0)*INDEX('5-CH'!$F$7:$F$42,MATCH(Input!$D$25,'5-CH'!$B$7:$B$42,0))+IFERROR(LEFT(INDEX('5-CH'!$G$7:$G$42,MATCH(Input!$D$25,'5-CH'!$B$7:$B$42,0)),5)*($D$28-MID(INDEX('5-CH'!$G$7:$G$42,MATCH(Input!$D$25,'5-CH'!$B$7:$B$42,0)),10,2)),0)+LEFT(INDEX('5-CH'!$H$7:$H$42,MATCH(Input!$D$25,'5-CH'!$B$7:$B$42,0)),5)*($D$29-MID(INDEX('5-CH'!$H$7:$H$42,MATCH(Input!$D$25,'5-CH'!$B$7:$B$42,0)),10,2)))*$D$26 -> 50.875 | O25: =(INDEX('6-CG'!$E$7:$E$42,MATCH(Input!$D$25,'6-CG'!$B$7:$B$42,0))+ROUND(($D$27-1)/0.5,0)*INDEX('6-CG'!$F$7:$F$42,MATCH(Input!$D$25,'6-CG'!$B$7:$B$42,0))+IFERROR(LEFT(INDEX('6-CG'!$G$7:$G$42,MATCH(Input!$D$25,'6-CG'!$B$7:$B$42,0)),5)*($D$28-MID(INDEX('6-CG'!$G$7:$G$42,MATCH(Input!$D$25,'6-CG'!$B$7:$B$42,0)),10,2)),0)+LEFT(INDEX('6-CG'!$H$7:$H$42,MATCH(Input!$D$25,'6-CG'!$B$7:$B$42,0)),5)*($D$29-MID(INDEX('6-CG'!$H$7:$H$42,MATCH(Input!$D$25,'6-CG'!$B$7:$B$42,0)),10,2)))*$D$26 -> 43.9 | P25: =(INDEX('7-DN'!$E$7:$E$42,MATCH(Input!$D$25,'7-DN'!$B$7:$B$42,0))+ROUND(($D$27-1)/0.5,0)*INDEX('7-DN'!$F$7:$F$42,MATCH(Input!$D$25,'7-DN'!$B$7:$B$42,0))+IFERROR(LEFT(INDEX('7-DN'!$G$7:$G$42,MATCH(Input!$D$25,'7-DN'!$B$7:$B$42,0)),5)*($D$28-MID(INDEX('7-DN'!$G$7:$G$42,MATCH(Input!$D$25,'7-DN'!$B$7:$B$42,0)),10,2)),0)+LEFT(INDEX('7-DN'!$H$7:$H$42,MATCH(Input!$D$25,'7-DN'!$B$7:$B$42,0)),5)*($D$29-MID(INDEX('7-DN'!$H$7:$H$42,MATCH(Input!$D$25,'7-DN'!$B$7:$B$42,0)),10,2)))*$D$26 -> 52.9 | Q25: =(INDEX('8-DD'!$E$7:$E$42,MATCH(Input!$D$25,'8-DD'!$B$7:$B$42,0))+ROUND(($D$27-1)/0.5,0)*INDEX('8-DD'!$F$7:$F$42,MATCH(Input!$D$25,'8-DD'!$B$7:$B$42,0))+IFERROR(LEFT(INDEX('8-DD'!$G$7:$G$42,MATCH(Input!$D$25,'8-DD'!$B$7:$B$42,0)),5)*($D$28-MID(INDEX('8-DD'!$G$7:$G$42,MATCH(Input!$D$25,'8-DD'!$B$7:$B$42,0)),10,2)),0)+LEFT(INDEX('8-DD'!$H$7:$H$42,MATCH(Input!$D$25,'8-DD'!$B$7:$B$42,0)),5)*($D$29-MID(INDEX('8-DD'!$H$7:$H$42,MATCH(Input!$D$25,'8-DD'!$B$7:$B$42,0)),10,2)))*$D$26 -> 44.85 | R25: =(INDEX('9-DL'!$E$7:$E$42,MATCH(Input!$D$25,'9-DL'!$B$7:$B$42,0))+ROUND(($D$27-1)/0.5,0)*INDEX('9-DL'!$F$7:$F$42,MATCH(Input!$D$25,'9-DL'!$B$7:$B$42,0))+IFERROR(LEFT(INDEX('9-DL'!$G$7:$G$42,MATCH(Input!$D$25,'9-DL'!$B$7:$B$42,0)),5)*($D$28-MID(INDEX('9-DL'!$G$7:$G$42,MATCH(Input!$D$25,'9-DL'!$B$7:$B$42,0)),10,2)),0)+LEFT(INDEX('9-DL'!$H$7:$H$42,MATCH(Input!$D$25,'9-DL'!$B$7:$B$42,0)),5)*($D$29-MID(INDEX('9-DL'!$H$7:$H$42,MATCH(Input!$D$25,'9-DL'!$B$7:$B$42,0)),10,2)))*$D$26 -> 47.225 | S25: =(INDEX('10-GA'!$E$7:$E$42,MATCH(Input!$D$25,'10-GA'!$B$7:$B$42,0))+ROUND(($D$27-1)/0.5,0)*INDEX('10-GA'!$F$7:$F$42,MATCH(Input!$D$25,'10-GA'!$B$7:$B$42,0))+IFERROR(LEFT(INDEX('10-GA'!$G$7:$G$42,MATCH(Input!$D$25,'10-GA'!$B$7:$B$42,0)),5)*($D$28-MID(INDEX('10-GA'!$G$7:$G$42,MATCH(Input!$D$25,'10-GA'!$B$7:$B$42,0)),10,2)),0)+LEFT(INDEX('10-GA'!$H$7:$H$42,MATCH(Input!$D$25,'10-GA'!$B$7:$B$42,0)),5)*($D$29-MID(INDEX('10-GA'!$H$7:$H$42,MATCH(Input!$D$25,'10-GA'!$B$7:$B$42,0)),10,2)))*$D$26 -> 52.9 | T25: =(INDEX('11-GJ'!$E$7:$E$42,MATCH(Input!$D$25,'11-GJ'!$B$7:$B$42,0))+ROUND(($D$27-1)/0.5,0)*INDEX('11-GJ'!$F$7:$F$42,MATCH(Input!$D$25,'11-GJ'!$B$7:$B$42,0))+IFERROR(LEFT(INDEX('11-GJ'!$G$7:$G$42,MATCH(Input!$D$25,'11-GJ'!$B$7:$B$42,0)),5)*($D$28-MID(INDEX('11-GJ'!$G$7:$G$42,MATCH(Input!$D$25,'11-GJ'!$B$7:$B$42,0)),10,2)),0)+LEFT(INDEX('11-GJ'!$H$7:$H$42,MATCH(Input!$D$25,'11-GJ'!$B$7:$B$42,0)),5)*($D$29-MID(INDEX('11-GJ'!$H$7:$H$42,MATCH(Input!$D$25,'11-GJ'!$B$7:$B$42,0)),10,2)))*$D$26 -> 42.95 | U25: =(INDEX('12-HR'!$E$7:$E$42,MATCH(Input!$D$25,'12-HR'!$B$7:$B$42,0))+ROUND(($D$27-1)/0.5,0)*INDEX('12-HR'!$F$7:$F$42,MATCH(Input!$D$25,'12-HR'!$B$7:$B$42,0))+IFERROR(LEFT(INDEX('12-HR'!$G$7:$G$42,MATCH(Input!$D$25,'12-HR'!$B$7:$B$42,0)),5)*($D$28-MID(INDEX('12-HR'!$G$7:$G$42,MATCH(Input!$D$25,'12-HR'!$B$7:$B$42,0)),10,2)),0)+LEFT(INDEX('12-HR'!$H$7:$H$42,MATCH(Input!$D$25,'12-HR'!$B$7:$B$42,0)),5)*($D$29-MID(INDEX('12-HR'!$H$7:$H$42,MATCH(Input!$D$25,'12-HR'!$B$7:$B$42,0)),10,2)))*$D$26 -> 45.1 | V25: =(INDEX('13-HP'!$E$7:$E$42,MATCH(Input!$D$25,'13-HP'!$B$7:$B$42,0))+ROUND(($D$27-1)/0.5,0)*INDEX('13-HP'!$F$7:$F$42,MATCH(Input!$D$25,'13-HP'!$B$7:$B$42,0))+IFERROR(LEFT(INDEX('13-HP'!$G$7:$G$42,MATCH(Input!$D$25,'13-HP'!$B$7:$B$42,0)),5)*($D$28-MID(INDEX('13-HP'!$G$7:$G$42,MATCH(Input!$D$25,'13-HP'!$B$7:$B$42,0)),10,2)),0)+LEFT(INDEX('13-HP'!$H$7:$H$42,MATCH(Input!$D$25,'13-HP'!$B$7:$B$42,0)),5)*($D$29-MID(INDEX('13-HP'!$H$7:$H$42,MATCH(Input!$D$25,'13-HP'!$B$7:$B$42,0)),10,2)))*$D$26 -> 55.275 | W25: =(INDEX('14-JK'!$E$7:$E$42,MATCH(Input!$D$25,'14-JK'!$B$7:$B$42,0))+ROUND(($D$27-1)/0.5,0)*INDEX('14-JK'!$F$7:$F$42,MATCH(Input!$D$25,'14-JK'!$B$7:$B$42,0))+IFERROR(LEFT(INDEX('14-JK'!$G$7:$G$42,MATCH(Input!$D$25,'14-JK'!$B$7:$B$42,0)),5)*($D$28-MID(INDEX('14-JK'!$G$7:$G$42,MATCH(Input!$D$25,'14-JK'!$B$7:$B$42,0)),10,2)),0)+LEFT(INDEX('14-JK'!$H$7:$H$42,MATCH(Input!$D$25,'14-JK'!$B$7:$B$42,0)),5)*($D$29-MID(INDEX('14-JK'!$H$7:$H$42,MATCH(Input!$D$25,'14-JK'!$B$7:$B$42,0)),10,2)))*$D$26 -> 52.05 | X25: =(INDEX('15-JH'!$E$7:$E$42,MATCH(Input!$D$25,'15-JH'!$B$7:$B$42,0))+ROUND(($D$27-1)/0.5,0)*INDEX('15-JH'!$F$7:$F$42,MATCH(Input!$D$25,'15-JH'!$B$7:$B$42,0))+IFERROR(LEFT(INDEX('15-JH'!$G$7:$G$42,MATCH(Input!$D$25,'15-JH'!$B$7:$B$42,0)),5)*($D$28-MID(INDEX('15-JH'!$G$7:$G$42,MATCH(Input!$D$25,'15-JH'!$B$7:$B$42,0)),10,2)),0)+LEFT(INDEX('15-JH'!$H$7:$H$42,MATCH(Input!$D$25,'15-JH'!$B$7:$B$42,0)),5)*($D$29-MID(INDEX('15-JH'!$H$7:$H$42,MATCH(Input!$D$25,'15-JH'!$B$7:$B$42,0)),10,2)))*$D$26 -> 42.6 | Y25: =(INDEX('16-KA'!$E$7:$E$42,MATCH(Input!$D$25,'16-KA'!$B$7:$B$42,0))+ROUND(($D$27-1)/0.5,0)*INDEX('16-KA'!$F$7:$F$42,MATCH(Input!$D$25,'16-KA'!$B$7:$B$42,0))+IFERROR(LEFT(INDEX('16-KA'!$G$7:$G$42,MATCH(Input!$D$25,'16-KA'!$B$7:$B$42,0)),5)*($D$28-MID(INDEX('16-KA'!$G$7:$G$42,MATCH(Input!$D$25,'16-KA'!$B$7:$B$42,0)),10,2)),0)+LEFT(INDEX('16-KA'!$H$7:$H$42,MATCH(Input!$D$25,'16-KA'!$B$7:$B$42,0)),5)*($D$29-MID(INDEX('16-KA'!$H$7:$H$42,MATCH(Input!$D$25,'16-KA'!$B$7:$B$42,0)),10,2)))*$D$26 -> 42.9 | Z25: =(INDEX('17-KL'!$E$7:$E$42,MATCH(Input!$D$25,'17-KL'!$B$7:$B$42,0))+ROUND(($D$27-1)/0.5,0)*INDEX('17-KL'!$F$7:$F$42,MATCH(Input!$D$25,'17-KL'!$B$7:$B$42,0))+IFERROR(LEFT(INDEX('17-KL'!$G$7:$G$42,MATCH(Input!$D$25,'17-KL'!$B$7:$B$42,0)),5)*($D$28-MID(INDEX('17-KL'!$G$7:$G$42,MATCH(Input!$D$25,'17-KL'!$B$7:$B$42,0)),10,2)),0)+LEFT(INDEX('17-KL'!$H$7:$H$42,MATCH(Input!$D$25,'17-KL'!$B$7:$B$42,0)),5)*($D$29-MID(INDEX('17-KL'!$H$7:$H$42,MATCH(Input!$D$25,'17-KL'!$B$7:$B$42,0)),10,2)))*$D$26 -> 44.45 | AA25: =(INDEX('18-LD'!$E$7:$E$42,MATCH(Input!$D$25,'18-LD'!$B$7:$B$42,0))+ROUND(($D$27-1)/0.5,0)*INDEX('18-LD'!$F$7:$F$42,MATCH(Input!$D$25,'18-LD'!$B$7:$B$42,0))+IFERROR(LEFT(INDEX('18-LD'!$G$7:$G$42,MATCH(Input!$D$25,'18-LD'!$B$7:$B$42,0)),5)*($D$28-MID(INDEX('18-LD'!$G$7:$G$42,MATCH(Input!$D$25,'18-LD'!$B$7:$B$42,0)),10,2)),0)+LEFT(INDEX('18-LD'!$H$7:$H$42,MATCH(Input!$D$25,'18-LD'!$B$7:$B$42,0)),5)*($D$29-MID(INDEX('18-LD'!$H$7:$H$42,MATCH(Input!$D$25,'18-LD'!$B$7:$B$42,0)),10,2)))*$D$26 -> 46.45 | AB25: =(INDEX('19-MP'!$E$7:$E$42,MATCH(Input!$D$25,'19-MP'!$B$7:$B$42,0))+ROUND(($D$27-1)/0.5,0)*INDEX('19-MP'!$F$7:$F$42,MATCH(Input!$D$25,'19-MP'!$B$7:$B$42,0))+IFERROR(LEFT(INDEX('19-MP'!$G$7:$G$42,MATCH(Input!$D$25,'19-MP'!$B$7:$B$42,0)),5)*($D$28-MID(INDEX('19-MP'!$G$7:$G$42,MATCH(Input!$D$25,'19-MP'!$B$7:$B$42,0)),10,2)),0)+LEFT(INDEX('19-MP'!$H$7:$H$42,MATCH(Input!$D$25,'19-MP'!$B$7:$B$42,0)),5)*($D$29-MID(INDEX('19-MP'!$H$7:$H$42,MATCH(Input!$D$25,'19-MP'!$B$7:$B$42,0)),10,2)))*$D$26 -> 41.95 | AC25: =(INDEX('20-MH'!$E$7:$E$42,MATCH(Input!$D$25,'20-MH'!$B$7:$B$42,0))+ROUND(($D$27-1)/0.5,0)*INDEX('20-MH'!$F$7:$F$42,MATCH(Input!$D$25,'20-MH'!$B$7:$B$42,0))+IFERROR(LEFT(INDEX('20-MH'!$G$7:$G$42,MATCH(Input!$D$25,'20-MH'!$B$7:$B$42,0)),5)*($D$28-MID(INDEX('20-MH'!$G$7:$G$42,MATCH(Input!$D$25,'20-MH'!$B$7:$B$42,0)),10,2)),0)+LEFT(INDEX('20-MH'!$H$7:$H$42,MATCH(Input!$D$25,'20-MH'!$B$7:$B$42,0)),5)*($D$29-MID(INDEX('20-MH'!$H$7:$H$42,MATCH(Input!$D$25,'20-MH'!$B$7:$B$42,0)),10,2)))*$D$26 -> 52.9 | AD25: =(INDEX('21-OD'!$E$7:$E$42,MATCH(Input!$D$25,'21-OD'!$B$7:$B$42,0))+ROUND(($D$27-1)/0.5,0)*INDEX('21-OD'!$F$7:$F$42,MATCH(Input!$D$25,'21-OD'!$B$7:$B$42,0))+IFERROR(LEFT(INDEX('21-OD'!$G$7:$G$42,MATCH(Input!$D$25,'21-OD'!$B$7:$B$42,0)),5)*($D$28-MID(INDEX('21-OD'!$G$7:$G$42,MATCH(Input!$D$25,'21-OD'!$B$7:$B$42,0)),10,2)),0)+LEFT(INDEX('21-OD'!$H$7:$H$42,MATCH(Input!$D$25,'21-OD'!$B$7:$B$42,0)),5)*($D$29-MID(INDEX('21-OD'!$H$7:$H$42,MATCH(Input!$D$25,'21-OD'!$B$7:$B$42,0)),10,2)))*$D$26 -> 42.75 | AE25: =(INDEX('22-PY'!$E$7:$E$42,MATCH(Input!$D$25,'22-PY'!$B$7:$B$42,0))+ROUND(($D$27-1)/0.5,0)*INDEX('22-PY'!$F$7:$F$42,MATCH(Input!$D$25,'22-PY'!$B$7:$B$42,0))+IFERROR(LEFT(INDEX('22-PY'!$G$7:$G$42,MATCH(Input!$D$25,'22-PY'!$B$7:$B$42,0)),5)*($D$28-MID(INDEX('22-PY'!$G$7:$G$42,MATCH(Input!$D$25,'22-PY'!$B$7:$B$42,0)),10,2)),0)+LEFT(INDEX('22-PY'!$H$7:$H$42,MATCH(Input!$D$25,'22-PY'!$B$7:$B$42,0)),5)*($D$29-MID(INDEX('22-PY'!$H$7:$H$42,MATCH(Input!$D$25,'22-PY'!$B$7:$B$42,0)),10,2)))*$D$26 -> 44.45 | AF25: =(INDEX('23-PB'!$E$7:$E$42,MATCH(Input!$D$25,'23-PB'!$B$7:$B$42,0))+ROUND(($D$27-1)/0.5,0)*INDEX('23-PB'!$F$7:$F$42,MATCH(Input!$D$25,'23-PB'!$B$7:$B$42,0))+IFERROR(LEFT(INDEX('23-PB'!$G$7:$G$42,MATCH(Input!$D$25,'23-PB'!$B$7:$B$42,0)),5)*($D$28-MID(INDEX('23-PB'!$G$7:$G$42,MATCH(Input!$D$25,'23-PB'!$B$7:$B$42,0)),10,2)),0)+LEFT(INDEX('23-PB'!$H$7:$H$42,MATCH(Input!$D$25,'23-PB'!$B$7:$B$42,0)),5)*($D$29-MID(INDEX('23-PB'!$H$7:$H$42,MATCH(Input!$D$25,'23-PB'!$B$7:$B$42,0)),10,2)))*$D$26 -> 50.875 | AG25: =(INDEX('24-RJ'!$E$7:$E$42,MATCH(Input!$D$25,'24-RJ'!$B$7:$B$42,0))+ROUND(($D$27-1)/0.5,0)*INDEX('24-RJ'!$F$7:$F$42,MATCH(Input!$D$25,'24-RJ'!$B$7:$B$42,0))+IFERROR(LEFT(INDEX('24-RJ'!$G$7:$G$42,MATCH(Input!$D$25,'24-RJ'!$B$7:$B$42,0)),5)*($D$28-MID(INDEX('24-RJ'!$G$7:$G$42,MATCH(Input!$D$25,'24-RJ'!$B$7:$B$42,0)),10,2)),0)+LEFT(INDEX('24-RJ'!$H$7:$H$42,MATCH(Input!$D$25,'24-RJ'!$B$7:$B$42,0)),5)*($D$29-MID(INDEX('24-RJ'!$H$7:$H$42,MATCH(Input!$D$25,'24-RJ'!$B$7:$B$42,0)),10,2)))*$D$26 -> 48.65 | AH25: =(INDEX('25-TN'!$E$7:$E$42,MATCH(Input!$D$25,'25-TN'!$B$7:$B$42,0))+ROUND(($D$27-1)/0.5,0)*INDEX('25-TN'!$F$7:$F$42,MATCH(Input!$D$25,'25-TN'!$B$7:$B$42,0))+IFERROR(LEFT(INDEX('25-TN'!$G$7:$G$42,MATCH(Input!$D$25,'25-TN'!$B$7:$B$42,0)),5)*($D$28-MID(INDEX('25-TN'!$G$7:$G$42,MATCH(Input!$D$25,'25-TN'!$B$7:$B$42,0)),10,2)),0)+LEFT(INDEX('25-TN'!$H$7:$H$42,MATCH(Input!$D$25,'25-TN'!$B$7:$B$42,0)),5)*($D$29-MID(INDEX('25-TN'!$H$7:$H$42,MATCH(Input!$D$25,'25-TN'!$B$7:$B$42,0)),10,2)))*$D$26 -> 42.55 | AI25: =(INDEX('26-TS'!$E$7:$E$42,MATCH(Input!$D$25,'26-TS'!$B$7:$B$42,0))+ROUND(($D$27-1)/0.5,0)*INDEX('26-TS'!$F$7:$F$42,MATCH(Input!$D$25,'26-TS'!$B$7:$B$42,0))+IFERROR(LEFT(INDEX('26-TS'!$G$7:$G$42,MATCH(Input!$D$25,'26-TS'!$B$7:$B$42,0)),5)*($D$28-MID(INDEX('26-TS'!$G$7:$G$42,MATCH(Input!$D$25,'26-TS'!$B$7:$B$42,0)),10,2)),0)+LEFT(INDEX('26-TS'!$H$7:$H$42,MATCH(Input!$D$25,'26-TS'!$B$7:$B$42,0)),5)*($D$29-MID(INDEX('26-TS'!$H$7:$H$42,MATCH(Input!$D$25,'26-TS'!$B$7:$B$42,0)),10,2)))*$D$26 -> 40.875 | AJ25: =(INDEX('27-UP'!$E$7:$E$42,MATCH(Input!$D$25,'27-UP'!$B$7:$B$42,0))+ROUND(($D$27-1)/0.5,0)*INDEX('27-UP'!$F$7:$F$42,MATCH(Input!$D$25,'27-UP'!$B$7:$B$42,0))+IFERROR(LEFT(INDEX('27-UP'!$G$7:$G$42,MATCH(Input!$D$25,'27-UP'!$B$7:$B$42,0)),5)*($D$28-MID(INDEX('27-UP'!$G$7:$G$42,MATCH(Input!$D$25,'27-UP'!$B$7:$B$42,0)),10,2)),0)+LEFT(INDEX('27-UP'!$H$7:$H$42,MATCH(Input!$D$25,'27-UP'!$B$7:$B$42,0)),5)*($D$29-MID(INDEX('27-UP'!$H$7:$H$42,MATCH(Input!$D$25,'27-UP'!$B$7:$B$42,0)),10,2)))*$D$26 -> 43.675 | AK25: =(INDEX('28-UK'!$E$7:$E$42,MATCH(Input!$D$25,'28-UK'!$B$7:$B$42,0))+ROUND(($D$27-1)/0.5,0)*INDEX('28-UK'!$F$7:$F$42,MATCH(Input!$D$25,'28-UK'!$B$7:$B$42,0))+IFERROR(LEFT(INDEX('28-UK'!$G$7:$G$42,MATCH(Input!$D$25,'28-UK'!$B$7:$B$42,0)),5)*($D$28-MID(INDEX('28-UK'!$G$7:$G$42,MATCH(Input!$D$25,'28-UK'!$B$7:$B$42,0)),10,2)),0)+LEFT(INDEX('28-UK'!$H$7:$H$42,MATCH(Input!$D$25,'28-UK'!$B$7:$B$42,0)),5)*($D$29-MID(INDEX('28-UK'!$H$7:$H$42,MATCH(Input!$D$25,'28-UK'!$B$7:$B$42,0)),10,2)))*$D$26 -> 52.75 | AL25: =(INDEX('29-WB'!$E$7:$E$42,MATCH(Input!$D$25,'29-WB'!$B$7:$B$42,0))+ROUND(($D$27-1)/0.5,0)*INDEX('29-WB'!$F$7:$F$42,MATCH(Input!$D$25,'29-WB'!$B$7:$B$42,0))+IFERROR(LEFT(INDEX('29-WB'!$G$7:$G$42,MATCH(Input!$D$25,'29-WB'!$B$7:$B$42,0)),5)*($D$28-MID(INDEX('29-WB'!$G$7:$G$42,MATCH(Input!$D$25,'29-WB'!$B$7:$B$42,0)),10,2)),0)+LEFT(INDEX('29-WB'!$H$7:$H$42,MATCH(Input!$D$25,'29-WB'!$B$7:$B$42,0)),5)*($D$29-MID(INDEX('29-WB'!$H$7:$H$42,MATCH(Input!$D$25,'29-WB'!$B$7:$B$42,0)),10,2)))*$D$26 -> 50.9
C26: Length in Km | D26: 5
C27: Embankment Height in meter | D27: 1
C28: MSA | D28: 120
C29: Aggregate Lead in km | D29: =D9 -> 50
B31: 3 | C31: Rigid Pavement
B32: (a) | C32: Type-1
C33: Configuration of Road | D33: Greenfield Alignment - 2 Lane + PS | E33: =IF($D$8="Andaman & Nicobar Islands ",J33,IF($D$8="Andhra Pradesh",K33,IF($D$8="Assam",L33,IF($D$8="Bihar",M33,IF($D$8="Chandigarh",N33,IF($D$8="Chhattisgarh",O33,IF($D$8="Dadra & Nagar Haveli",P33,IF($D$8="Daman & Diu",Q33,IF($D$8="Delhi",R33,IF($D$8="Goa",S33,IF($D$8="Gujarat",T33,IF($D$8="Haryana",U33,IF($D$8="Himachal Pradesh",V33,IF($D$8="Jammu & Kashmir",W33,IF($D$8="Jharkhand",X33,IF($D$8="Karnataka",Y33,IF($D$8="Kerala",Z33,IF($D$8="Lakshadweep",AA33,IF($D$8="Madhya Pradesh",AB33,IF($D$8="Maharashtra",AC33,IF($D$8="Odisha",AD33,IF($D$8="Puducherry",AE33,IF($D$8="Punjab",AF33,IF($D$8="Rajasthan",AG33,IF($D$8="Tamil Nadu",AH33,IF($D$8="Telangana",AI33,IF($D$8="Uttar Pradesh",AJ33,IF($D$8="Uttarakhand",AK33,IF($D$8="West Bengal",AL33))))))))))))))))))))))))))))) -> 4.71 | F33: =E33*10^7 -> 47100000 | G33: =IF(E33>0,E33/D34,0) -> 4.71 | J33: =(INDEX('1-AN'!$E$44:$E$53,MATCH(Input!$D$33,'1-AN'!$B$44:$B$53,0))+ROUND(($D$35-1)/0.5,0)*INDEX('1-AN'!$F$44:$F$53,MATCH(Input!$D$33,'1-AN'!$B$44:$B$53,0))+LEFT(INDEX('1-AN'!$H$44:$H$53,MATCH(Input!$D$33,'1-AN'!$B$44:$B$53,0)),5)*($D$36-MID(INDEX('1-AN'!$H$44:$H$53,MATCH(Input!$D$33,'1-AN'!$B$44:$B$53,0)),10,2)))*$D$34 -> 5.39 | K33: =(INDEX('2-AP'!$E$44:$E$53,MATCH(Input!$D$33,'2-AP'!$B$44:$B$53,0))+ROUND(($D$35-1)/0.5,0)*INDEX('2-AP'!$F$44:$F$53,MATCH(Input!$D$33,'2-AP'!$B$44:$B$53,0))+LEFT(INDEX('2-AP'!$H$44:$H$53,MATCH(Input!$D$33,'2-AP'!$B$44:$B$53,0)),5)*($D$36-MID(INDEX('2-AP'!$H$44:$H$53,MATCH(Input!$D$33,'2-AP'!$B$44:$B$53,0)),10,2)))*$D$34 -> 4.65 | L33: =(INDEX('3-AS'!$E$44:$E$53,MATCH(Input!$D$33,'3-AS'!$B$44:$B$53,0))+ROUND(($D$35-1)/0.5,0)*INDEX('3-AS'!$F$44:$F$53,MATCH(Input!$D$33,'3-AS'!$B$44:$B$53,0))+LEFT(INDEX('3-AS'!$H$44:$H$53,MATCH(Input!$D$33,'3-AS'!$B$44:$B$53,0)),5)*($D$36-MID(INDEX('3-AS'!$H$44:$H$53,MATCH(Input!$D$33,'3-AS'!$B$44:$B$53,0)),10,2)))*$D$34 -> 6.18 | M33: =(INDEX('4-BR'!$E$44:$E$53,MATCH(Input!$D$33,'4-BR'!$B$44:$B$53,0))+ROUND(($D$35-1)/0.5,0)*INDEX('4-BR'!$F$44:$F$53,MATCH(Input!$D$33,'4-BR'!$B$44:$B$53,0))+LEFT(INDEX('4-BR'!$H$44:$H$53,MATCH(Input!$D$33,'4-BR'!$B$44:$B$53,0)),5)*($D$36-MID(INDEX('4-BR'!$H$44:$H$53,MATCH(Input!$D$33,'4-BR'!$B$44:$B$53,0)),10,2)))*$D$34 -> 4.45 | N33: =(INDEX('5-CH'!$E$44:$E$53,MATCH(Input!$D$33,'5-CH'!$B$44:$B$53,0))+ROUND(($D$35-1)/0.5,0)*INDEX('5-CH'!$F$44:$F$53,MATCH(Input!$D$33,'5-CH'!$B$44:$B$53,0))+LEFT(INDEX('5-CH'!$H$44:$H$53,MATCH(Input!$D$33,'5-CH'!$B$44:$B$53,0)),5)*($D$36-MID(INDEX('5-CH'!$H$44:$H$53,MATCH(Input!$D$33,'5-CH'!$B$44:$B$53,0)),10,2)))*$D$34 -> 5.38 | O33: =(INDEX('6-CG'!$E$44:$E$53,MATCH(Input!$D$33,'6-CG'!$B$44:$B$53,0))+ROUND(($D$35-1)/0.5,0)*INDEX('6-CG'!$F$44:$F$53,MATCH(Input!$D$33,'6-CG'!$B$44:$B$53,0))+LEFT(INDEX('6-CG'!$H$44:$H$53,MATCH(Input!$D$33,'6-CG'!$B$44:$B$53,0)),5)*($D$36-MID(INDEX('6-CG'!$H$44:$H$53,MATCH(Input!$D$33,'6-CG'!$B$44:$B$53,0)),10,2)))*$D$34 -> 6.15 | P33: =(INDEX('7-DN'!$E$44:$E$53,MATCH(Input!$D$33,'7-DN'!$B$44:$B$53,0))+ROUND(($D$35-1)/0.5,0)*INDEX('7-DN'!$F$44:$F$53,MATCH(Input!$D$33,'7-DN'!$B$44:$B$53,0))+LEFT(INDEX('7-DN'!$H$44:$H$53,MATCH(Input!$D$33,'7-DN'!$B$44:$B$53,0)),5)*($D$36-MID(INDEX('7-DN'!$H$44:$H$53,MATCH(Input!$D$33,'7-DN'!$B$44:$B$53,0)),10,2)))*$D$34 -> 6.51 | Q33: =(INDEX('8-DD'!$E$44:$E$53,MATCH(Input!$D$33,'8-DD'!$B$44:$B$53,0))+ROUND(($D$35-1)/0.5,0)*INDEX('8-DD'!$F$44:$F$53,MATCH(Input!$D$33,'8-DD'!$B$44:$B$53,0))+LEFT(INDEX('8-DD'!$H$44:$H$53,MATCH(Input!$D$33,'8-DD'!$B$44:$B$53,0)),5)*($D$36-MID(INDEX('8-DD'!$H$44:$H$53,MATCH(Input!$D$33,'8-DD'!$B$44:$B$53,0)),10,2)))*$D$34 -> 5.16 | R33: =(INDEX('9-DL'!$E$44:$E$53,MATCH(Input!$D$33,'9-DL'!$B$44:$B$53,0))+ROUND(($D$35-1)/0.5,0)*INDEX('9-DL'!$F$44:$F$53,MATCH(Input!$D$33,'9-DL'!$B$44:$B$53,0))+LEFT(INDEX('9-DL'!$H$44:$H$53,MATCH(Input!$D$33,'9-DL'!$B$44:$B$53,0)),5)*($D$36-MID(INDEX('9-DL'!$H$44:$H$53,MATCH(Input!$D$33,'9-DL'!$B$44:$B$53,0)),10,2)))*$D$34 -> 4.71 | S33: =(INDEX('10-GA'!$E$44:$E$53,MATCH(Input!$D$33,'10-GA'!$B$44:$B$53,0))+ROUND(($D$35-1)/0.5,0)*INDEX('10-GA'!$F$44:$F$53,MATCH(Input!$D$33,'10-GA'!$B$44:$B$53,0))+LEFT(INDEX('10-GA'!$H$44:$H$53,MATCH(Input!$D$33,'10-GA'!$B$44:$B$53,0)),5)*($D$36-MID(INDEX('10-GA'!$H$44:$H$53,MATCH(Input!$D$33,'10-GA'!$B$44:$B$53,0)),10,2)))*$D$34 -> 6.51 | T33: =(INDEX('11-GJ'!$E$44:$E$53,MATCH(Input!$D$33,'11-GJ'!$B$44:$B$53,0))+ROUND(($D$35-1)/0.5,0)*INDEX('11-GJ'!$F$44:$F$53,MATCH(Input!$D$33,'11-GJ'!$B$44:$B$53,0))+LEFT(INDEX('11-GJ'!$H$44:$H$53,MATCH(Input!$D$33,'11-GJ'!$B$44:$B$53,0)),5)*($D$36-MID(INDEX('11-GJ'!$H$44:$H$53,MATCH(Input!$D$33,'11-GJ'!$B$44:$B$53,0)),10,2)))*$D$34 -> 4.91 | U33: =(INDEX('12-HR'!$E$44:$E$53,MATCH(Input!$D$33,'12-HR'!$B$44:$B$53,0))+ROUND(($D$35-1)/0.5,0)*INDEX('12-HR'!$F$44:$F$53,MATCH(Input!$D$33,'12-HR'!$B$44:$B$53,0))+LEFT(INDEX('12-HR'!$H$44:$H$53,MATCH(Input!$D$33,'12-HR'!$B$44:$B$53,0)),5)*($D$36-MID(INDEX('12-HR'!$H$44:$H$53,MATCH(Input!$D$33,'12-HR'!$B$44:$B$53,0)),10,2)))*$D$34 -> 4.47 | V33: =(INDEX('13-HP'!$E$44:$E$53,MATCH(Input!$D$33,'13-HP'!$B$44:$B$53,0))+ROUND(($D$35-1)/0.5,0)*INDEX('13-HP'!$F$44:$F$53,MATCH(Input!$D$33,'13-HP'!$B$44:$B$53,0))+LEFT(INDEX('13-HP'!$H$44:$H$53,MATCH(Input!$D$33,'13-HP'!$B$44:$B$53,0)),5)*($D$36-MID(INDEX('13-HP'!$H$44:$H$53,MATCH(Input!$D$33,'13-HP'!$B$44:$B$53,0)),10,2)))*$D$34 -> 5.74 | W33: =(INDEX('14-JK'!$E$44:$E$53,MATCH(Input!$D$33,'14-JK'!$B$44:$B$53,0))+ROUND(($D$35-1)/0.5,0)*INDEX('14-JK'!$F$44:$F$53,MATCH(Input!$D$33,'14-JK'!$B$44:$B$53,0))+LEFT(INDEX('14-JK'!$H$44:$H$53,MATCH(Input!$D$33,'14-JK'!$B$44:$B$53,0)),5)*($D$36-MID(INDEX('14-JK'!$H$44:$H$53,MATCH(Input!$D$33,'14-JK'!$B$44:$B$53,0)),10,2)))*$D$34 -> 5.05 | X33: =(INDEX('15-JH'!$E$44:$E$53,MATCH(Input!$D$33,'15-JH'!$B$44:$B$53,0))+ROUND(($D$35-1)/0.5,0)*INDEX('15-JH'!$F$44:$F$53,MATCH(Input!$D$33,'15-JH'!$B$44:$B$53,0))+LEFT(INDEX('15-JH'!$H$44:$H$53,MATCH(Input!$D$33,'15-JH'!$B$44:$B$53,0)),5)*($D$36-MID(INDEX('15-JH'!$H$44:$H$53,MATCH(Input!$D$33,'15-JH'!$B$44:$B$53,0)),10,2)))*$D$34 -> 4.23 | Y33: =(INDEX('16-KA'!$E$44:$E$53,MATCH(Input!$D$33,'16-KA'!$B$44:$B$53,0))+ROUND(($D$35-1)/0.5,0)*INDEX('16-KA'!$F$44:$F$53,MATCH(Input!$D$33,'16-KA'!$B$44:$B$53,0))+LEFT(INDEX('16-KA'!$H$44:$H$53,MATCH(Input!$D$33,'16-KA'!$B$44:$B$53,0)),5)*($D$36-MID(INDEX('16-KA'!$H$44:$H$53,MATCH(Input!$D$33,'16-KA'!$B$44:$B$53,0)),10,2)))*$D$34 -> 4.93 | Z33: =(INDEX('17-KL'!$E$44:$E$53,MATCH(Input!$D$33,'17-KL'!$B$44:$B$53,0))+ROUND(($D$35-1)/0.5,0)*INDEX('17-KL'!$F$44:$F$53,MATCH(Input!$D$33,'17-KL'!$B$44:$B$53,0))+LEFT(INDEX('17-KL'!$H$44:$H$53,MATCH(Input!$D$33,'17-KL'!$B$44:$B$53,0)),5)*($D$36-MID(INDEX('17-KL'!$H$44:$H$53,MATCH(Input!$D$33,'17-KL'!$B$44:$B$53,0)),10,2)))*$D$34 -> 5.13 | AA33: =(INDEX('18-LD'!$E$44:$E$53,MATCH(Input!$D$33,'18-LD'!$B$44:$B$53,0))+ROUND(($D$35-1)/0.5,0)*INDEX('18-LD'!$F$44:$F$53,MATCH(Input!$D$33,'18-LD'!$B$44:$B$53,0))+LEFT(INDEX('18-LD'!$H$44:$H$53,MATCH(Input!$D$33,'18-LD'!$B$44:$B$53,0)),5)*($D$36-MID(INDEX('18-LD'!$H$44:$H$53,MATCH(Input!$D$33,'18-LD'!$B$44:$B$53,0)),10,2)))*$D$34 -> 5.39 | AB33: =(INDEX('19-MP'!$E$44:$E$53,MATCH(Input!$D$33,'19-MP'!$B$44:$B$53,0))+ROUND(($D$35-1)/0.5,0)*INDEX('19-MP'!$F$44:$F$53,MATCH(Input!$D$33,'19-MP'!$B$44:$B$53,0))+LEFT(INDEX('19-MP'!$H$44:$H$53,MATCH(Input!$D$33,'19-MP'!$B$44:$B$53,0)),5)*($D$36-MID(INDEX('19-MP'!$H$44:$H$53,MATCH(Input!$D$33,'19-MP'!$B$44:$B$53,0)),10,2)))*$D$34 -> 5.84 | AC33: =(INDEX('20-MH'!$E$44:$E$53,MATCH(Input!$D$33,'20-MH'!$B$44:$B$53,0))+ROUND(($D$35-1)/0.5,0)*INDEX('20-MH'!$F$44:$F$53,MATCH(Input!$D$33,'20-MH'!$B$44:$B$53,0))+LEFT(INDEX('20-MH'!$H$44:$H$53,MATCH(Input!$D$33,'20-MH'!$B$44:$B$53,0)),5)*($D$36-MID(INDEX('20-MH'!$H$44:$H$53,MATCH(Input!$D$33,'20-MH'!$B$44:$B$53,0)),10,2)))*$D$34 -> 6.51 | AD33: =(INDEX('21-OD'!$E$44:$E$53,MATCH(Input!$D$33,'21-OD'!$B$44:$B$53,0))+ROUND(($D$35-1)/0.5,0)*INDEX('21-OD'!$F$44:$F$53,MATCH(Input!$D$33,'21-OD'!$B$44:$B$53,0))+LEFT(INDEX('21-OD'!$H$44:$H$53,MATCH(Input!$D$33,'21-OD'!$B$44:$B$53,0)),5)*($D$36-MID(INDEX('21-OD'!$H$44:$H$53,MATCH(Input!$D$33,'21-OD'!$B$44:$B$53,0)),10,2)))*$D$34 -> 5.96 | AE33: =(INDEX('22-PY'!$E$44:$E$53,MATCH(Input!$D$33,'22-PY'!$B$44:$B$53,0))+ROUND(($D$35-1)/0.5,0)*INDEX('22-PY'!$F$44:$F$53,MATCH(Input!$D$33,'22-PY'!$B$44:$B$53,0))+LEFT(INDEX('22-PY'!$H$44:$H$53,MATCH(Input!$D$33,'22-PY'!$B$44:$B$53,0)),5)*($D$36-MID(INDEX('22-PY'!$H$44:$H$53,MATCH(Input!$D$33,'22-PY'!$B$44:$B$53,0)),10,2)))*$D$34 -> 5.12 | AF33: =(INDEX('23-PB'!$E$44:$E$53,MATCH(Input!$D$33,'23-PB'!$B$44:$B$53,0))+ROUND(($D$35-1)/0.5,0)*INDEX('23-PB'!$F$44:$F$53,MATCH(Input!$D$33,'23-PB'!$B$44:$B$53,0))+LEFT(INDEX('23-PB'!$H$44:$H$53,MATCH(Input!$D$33,'23-PB'!$B$44:$B$53,0)),5)*($D$36-MID(INDEX('23-PB'!$H$44:$H$53,MATCH(Input!$D$33,'23-PB'!$B$44:$B$53,0)),10,2)))*$D$34 -> 5.38 | AG33: =(INDEX('24-RJ'!$E$44:$E$53,MATCH(Input!$D$33,'24-RJ'!$B$44:$B$53,0))+ROUND(($D$35-1)/0.5,0)*INDEX('24-RJ'!$F$44:$F$53,MATCH(Input!$D$33,'24-RJ'!$B$44:$B$53,0))+LEFT(INDEX('24-RJ'!$H$44:$H$53,MATCH(Input!$D$33,'24-RJ'!$B$44:$B$53,0)),5)*($D$36-MID(INDEX('24-RJ'!$H$44:$H$53,MATCH(Input!$D$33,'24-RJ'!$B$44:$B$53,0)),10,2)))*$D$34 -> 5.49 | AH33: =(INDEX('25-TN'!$E$44:$E$53,MATCH(Input!$D$33,'25-TN'!$B$44:$B$53,0))+ROUND(($D$35-1)/0.5,0)*INDEX('25-TN'!$F$44:$F$53,MATCH(Input!$D$33,'25-TN'!$B$44:$B$53,0))+LEFT(INDEX('25-TN'!$H$44:$H$53,MATCH(Input!$D$33,'25-TN'!$B$44:$B$53,0)),5)*($D$36-MID(INDEX('25-TN'!$H$44:$H$53,MATCH(Input!$D$33,'25-TN'!$B$44:$B$53,0)),10,2)))*$D$34 -> 4.88 | AI33: =(INDEX('26-TS'!$E$44:$E$53,MATCH(Input!$D$33,'26-TS'!$B$44:$B$53,0))+ROUND(($D$35-1)/0.5,0)*INDEX('26-TS'!$F$44:$F$53,MATCH(Input!$D$33,'26-TS'!$B$44:$B$53,0))+LEFT(INDEX('26-TS'!$H$44:$H$53,MATCH(Input!$D$33,'26-TS'!$B$44:$B$53,0)),5)*($D$36-MID(INDEX('26-TS'!$H$44:$H$53,MATCH(Input!$D$33,'26-TS'!$B$44:$B$53,0)),10,2)))*$D$34 -> 4.66 | AJ33: =(INDEX('27-UP'!$E$44:$E$53,MATCH(Input!$D$33,'27-UP'!$B$44:$B$53,0))+ROUND(($D$35-1)/0.5,0)*INDEX('27-UP'!$F$44:$F$53,MATCH(Input!$D$33,'27-UP'!$B$44:$B$53,0))+LEFT(INDEX('27-UP'!$H$44:$H$53,MATCH(Input!$D$33,'27-UP'!$B$44:$B$53,0)),5)*($D$36-MID(INDEX('27-UP'!$H$44:$H$53,MATCH(Input!$D$33,'27-UP'!$B$44:$B$53,0)),10,2)))*$D$34 -> 4.36 | AK33: =(INDEX('28-UK'!$E$44:$E$53,MATCH(Input!$D$33,'28-UK'!$B$44:$B$53,0))+ROUND(($D$35-1)/0.5,0)*INDEX('28-UK'!$F$44:$F$53,MATCH(Input!$D$33,'28-UK'!$B$44:$B$53,0))+LEFT(INDEX('28-UK'!$H$44:$H$53,MATCH(Input!$D$33,'28-UK'!$B$44:$B$53,0)),5)*($D$36-MID(INDEX('28-UK'!$H$44:$H$53,MATCH(Input!$D$33,'28-UK'!$B$44:$B$53,0)),10,2)))*$D$34 -> 5.66 | AL33: =(INDEX('29-WB'!$E$44:$E$53,MATCH(Input!$D$33,'29-WB'!$B$44:$B$53,0))+ROUND(($D$35-1)/0.5,0)*INDEX('29-WB'!$F$44:$F$53,MATCH(Input!$D$33,'29-WB'!$B$44:$B$53,0))+LEFT(INDEX('29-WB'!$H$44:$H$53,MATCH(Input!$D$33,'29-WB'!$B$44:$B$53,0)),5)*($D$36-MID(INDEX('29-WB'!$H$44:$H$53,MATCH(Input!$D$33,'29-WB'!$B$44:$B$53,0)),10,2)))*$D$34 -> 5.39
C34: Length in Km | D34: 1
C35: Embankment Height in meter | D35: 1
C36: Aggregate Lead in km | D36: =$D$9 -> 50
B37: (b) | C37: Type-2
C38: Configuration of Road | D38: Greenfield Alignment - 4 Lane + PS | E38: =IF($D$8="Andaman & Nicobar Islands ",J38,IF($D$8="Andhra Pradesh",K38,IF($D$8="Assam",L38,IF($D$8="Bihar",M38,IF($D$8="Chandigarh",N38,IF($D$8="Chhattisgarh",O38,IF($D$8="Dadra & Nagar Haveli",P38,IF($D$8="Daman & Diu",Q38,IF($D$8="Delhi",R38,IF($D$8="Goa",S38,IF($D$8="Gujarat",T38,IF($D$8="Haryana",U38,IF($D$8="Himachal Pradesh",V38,IF($D$8="Jammu & Kashmir",W38,IF($D$8="Jharkhand",X38,IF($D$8="Karnataka",Y38,IF($D$8="Kerala",Z38,IF($D$8="Lakshadweep",AA38,IF($D$8="Madhya Pradesh",AB38,IF($D$8="Maharashtra",AC38,IF($D$8="Odisha",AD38,IF($D$8="Puducherry",AE38,IF($D$8="Punjab",AF38,IF($D$8="Rajasthan",AG38,IF($D$8="Tamil Nadu",AH38,IF($D$8="Telangana",AI38,IF($D$8="Uttar Pradesh",AJ38,IF($D$8="Uttarakhand",AK38,IF($D$8="West Bengal",AL38))))))))))))))))))))))))))))) -> 42.8 | F38: =E38*10^7 -> 428000000 | G38: =IF(E38>0,E38/D39,0) -> 8.56 | J38: =(INDEX('1-AN'!$E$44:$E$53,MATCH(Input!$D$38,'1-AN'!$B$44:$B$53,0))+ROUND(($D$40-1)/0.5,0)*INDEX('1-AN'!$F$44:$F$53,MATCH(Input!$D$38,'1-AN'!$B$44:$B$53,0))+LEFT(INDEX('1-AN'!$H$44:$H$53,MATCH(Input!$D$38,'1-AN'!$B$44:$B$53,0)),5)*($D$41-MID(INDEX('1-AN'!$H$44:$H$53,MATCH(Input!$D$38,'1-AN'!$B$44:$B$53,0)),10,2)))*$D$39 -> 48.6 | K38: =(INDEX('2-AP'!$E$44:$E$53,MATCH(Input!$D$38,'2-AP'!$B$44:$B$53,0))+ROUND(($D$40-1)/0.5,0)*INDEX('2-AP'!$F$44:$F$53,MATCH(Input!$D$38,'2-AP'!$B$44:$B$53,0))+LEFT(INDEX('2-AP'!$H$44:$H$53,MATCH(Input!$D$38,'2-AP'!$B$44:$B$53,0)),5)*($D$41-MID(INDEX('2-AP'!$H$44:$H$53,MATCH(Input!$D$38,'2-AP'!$B$44:$B$53,0)),10,2)))*$D$39 -> 42.3 | L38: =(INDEX('3-AS'!$E$44:$E$53,MATCH(Input!$D$38,'3-AS'!$B$44:$B$53,0))+ROUND(($D$40-1)/0.5,0)*INDEX('3-AS'!$F$44:$F$53,MATCH(Input!$D$38,'3-AS'!$B$44:$B$53,0))+LEFT(INDEX('3-AS'!$H$44:$H$53,MATCH(Input!$D$38,'3-AS'!$B$44:$B$53,0)),5)*($D$41-MID(INDEX('3-AS'!$H$44:$H$53,MATCH(Input!$D$38,'3-AS'!$B$44:$B$53,0)),10,2)))*$D$39 -> 55.3 | M38: =(INDEX('4-BR'!$E$44:$E$53,MATCH(Input!$D$38,'4-BR'!$B$44:$B$53,0))+ROUND(($D$40-1)/0.5,0)*INDEX('4-BR'!$F$44:$F$53,MATCH(Input!$D$38,'4-BR'!$B$44:$B$53,0))+LEFT(INDEX('4-BR'!$H$44:$H$53,MATCH(Input!$D$38,'4-BR'!$B$44:$B$53,0)),5)*($D$41-MID(INDEX('4-BR'!$H$44:$H$53,MATCH(Input!$D$38,'4-BR'!$B$44:$B$53,0)),10,2)))*$D$39 -> 40.6 | N38: =(INDEX('5-CH'!$E$44:$E$53,MATCH(Input!$D$38,'5-CH'!$B$44:$B$53,0))+ROUND(($D$40-1)/0.5,0)*INDEX('5-CH'!$F$44:$F$53,MATCH(Input!$D$38,'5-CH'!$B$44:$B$53,0))+LEFT(INDEX('5-CH'!$H$44:$H$53,MATCH(Input!$D$38,'5-CH'!$B$44:$B$53,0)),5)*($D$41-MID(INDEX('5-CH'!$H$44:$H$53,MATCH(Input!$D$38,'5-CH'!$B$44:$B$53,0)),10,2)))*$D$39 -> 48.5 | O38: =(INDEX('6-CG'!$E$44:$E$53,MATCH(Input!$D$38,'6-CG'!$B$44:$B$53,0))+ROUND(($D$40-1)/0.5,0)*INDEX('6-CG'!$F$44:$F$53,MATCH(Input!$D$38,'6-CG'!$B$44:$B$53,0))+LEFT(INDEX('6-CG'!$H$44:$H$53,MATCH(Input!$D$38,'6-CG'!$B$44:$B$53,0)),5)*($D$41-MID(INDEX('6-CG'!$H$44:$H$53,MATCH(Input!$D$38,'6-CG'!$B$44:$B$53,0)),10,2)))*$D$39 -> 54.85 | P38: =(INDEX('7-DN'!$E$44:$E$53,MATCH(Input!$D$38,'7-DN'!$B$44:$B$53,0))+ROUND(($D$40-1)/0.5,0)*INDEX('7-DN'!$F$44:$F$53,MATCH(Input!$D$38,'7-DN'!$B$44:$B$53,0))+LEFT(INDEX('7-DN'!$H$44:$H$53,MATCH(Input!$D$38,'7-DN'!$B$44:$B$53,0)),5)*($D$41-MID(INDEX('7-DN'!$H$44:$H$53,MATCH(Input!$D$38,'7-DN'!$B$44:$B$53,0)),10,2)))*$D$39 -> 58.15 | Q38: =(INDEX('8-DD'!$E$44:$E$53,MATCH(Input!$D$38,'8-DD'!$B$44:$B$53,0))+ROUND(($D$40-1)/0.5,0)*INDEX('8-DD'!$F$44:$F$53,MATCH(Input!$D$38,'8-DD'!$B$44:$B$53,0))+LEFT(INDEX('8-DD'!$H$44:$H$53,MATCH(Input!$D$38,'8-DD'!$B$44:$B$53,0)),5)*($D$41-MID(INDEX('8-DD'!$H$44:$H$53,MATCH(Input!$D$38,'8-DD'!$B$44:$B$53,0)),10,2)))*$D$39 -> 46.55 | R38: =(INDEX('9-DL'!$E$44:$E$53,MATCH(Input!$D$38,'9-DL'!$B$44:$B$53,0))+ROUND(($D$40-1)/0.5,0)*INDEX('9-DL'!$F$44:$F$53,MATCH(Input!$D$38,'9-DL'!$B$44:$B$53,0))+LEFT(INDEX('9-DL'!$H$44:$H$53,MATCH(Input!$D$38,'9-DL'!$B$44:$B$53,0)),5)*($D$41-MID(INDEX('9-DL'!$H$44:$H$53,MATCH(Input!$D$38,'9-DL'!$B$44:$B$53,0)),10,2)))*$D$39 -> 42.8 | S38: =(INDEX('10-GA'!$E$44:$E$53,MATCH(Input!$D$38,'10-GA'!$B$44:$B$53,0))+ROUND(($D$40-1)/0.5,0)*INDEX('10-GA'!$F$44:$F$53,MATCH(Input!$D$38,'10-GA'!$B$44:$B$53,0))+LEFT(INDEX('10-GA'!$H$44:$H$53,MATCH(Input!$D$38,'10-GA'!$B$44:$B$53,0)),5)*($D$41-MID(INDEX('10-GA'!$H$44:$H$53,MATCH(Input!$D$38,'10-GA'!$B$44:$B$53,0)),10,2)))*$D$39 -> 58.15 | T38: =(INDEX('11-GJ'!$E$44:$E$53,MATCH(Input!$D$38,'11-GJ'!$B$44:$B$53,0))+ROUND(($D$40-1)/0.5,0)*INDEX('11-GJ'!$F$44:$F$53,MATCH(Input!$D$38,'11-GJ'!$B$44:$B$53,0))+LEFT(INDEX('11-GJ'!$H$44:$H$53,MATCH(Input!$D$38,'11-GJ'!$B$44:$B$53,0)),5)*($D$41-MID(INDEX('11-GJ'!$H$44:$H$53,MATCH(Input!$D$38,'11-GJ'!$B$44:$B$53,0)),10,2)))*$D$39 -> 44.45 | U38: =(INDEX('12-HR'!$E$44:$E$53,MATCH(Input!$D$38,'12-HR'!$B$44:$B$53,0))+ROUND(($D$40-1)/0.5,0)*INDEX('12-HR'!$F$44:$F$53,MATCH(Input!$D$38,'12-HR'!$B$44:$B$53,0))+LEFT(INDEX('12-HR'!$H$44:$H$53,MATCH(Input!$D$38,'12-HR'!$B$44:$B$53,0)),5)*($D$41-MID(INDEX('12-HR'!$H$44:$H$53,MATCH(Input!$D$38,'12-HR'!$B$44:$B$53,0)),10,2)))*$D$39 -> 40.8 | V38: =(INDEX('13-HP'!$E$44:$E$53,MATCH(Input!$D$38,'13-HP'!$B$44:$B$53,0))+ROUND(($D$40-1)/0.5,0)*INDEX('13-HP'!$F$44:$F$53,MATCH(Input!$D$38,'13-HP'!$B$44:$B$53,0))+LEFT(INDEX('13-HP'!$H$44:$H$53,MATCH(Input!$D$38,'13-HP'!$B$44:$B$53,0)),5)*($D$41-MID(INDEX('13-HP'!$H$44:$H$53,MATCH(Input!$D$38,'13-HP'!$B$44:$B$53,0)),10,2)))*$D$39 -> 51.6 | W38: =(INDEX('14-JK'!$E$44:$E$53,MATCH(Input!$D$38,'14-JK'!$B$44:$B$53,0))+ROUND(($D$40-1)/0.5,0)*INDEX('14-JK'!$F$44:$F$53,MATCH(Input!$D$38,'14-JK'!$B$44:$B$53,0))+LEFT(INDEX('14-JK'!$H$44:$H$53,MATCH(Input!$D$38,'14-JK'!$B$44:$B$53,0)),5)*($D$41-MID(INDEX('14-JK'!$H$44:$H$53,MATCH(Input!$D$38,'14-JK'!$B$44:$B$53,0)),10,2)))*$D$39 -> 45.8 | X38: =(INDEX('15-JH'!$E$44:$E$53,MATCH(Input!$D$38,'15-JH'!$B$44:$B$53,0))+ROUND(($D$40-1)/0.5,0)*INDEX('15-JH'!$F$44:$F$53,MATCH(Input!$D$38,'15-JH'!$B$44:$B$53,0))+LEFT(INDEX('15-JH'!$H$44:$H$53,MATCH(Input!$D$38,'15-JH'!$B$44:$B$53,0)),5)*($D$41-MID(INDEX('15-JH'!$H$44:$H$53,MATCH(Input!$D$38,'15-JH'!$B$44:$B$53,0)),10,2)))*$D$39 -> 38.7 | Y38: =(INDEX('16-KA'!$E$44:$E$53,MATCH(Input!$D$38,'16-KA'!$B$44:$B$53,0))+ROUND(($D$40-1)/0.5,0)*INDEX('16-KA'!$F$44:$F$53,MATCH(Input!$D$38,'16-KA'!$B$44:$B$53,0))+LEFT(INDEX('16-KA'!$H$44:$H$53,MATCH(Input!$D$38,'16-KA'!$B$44:$B$53,0)),5)*($D$41-MID(INDEX('16-KA'!$H$44:$H$53,MATCH(Input!$D$38,'16-KA'!$B$44:$B$53,0)),10,2)))*$D$39 -> 44.65 | Z38: =(INDEX('17-KL'!$E$44:$E$53,MATCH(Input!$D$38,'17-KL'!$B$44:$B$53,0))+ROUND(($D$40-1)/0.5,0)*INDEX('17-KL'!$F$44:$F$53,MATCH(Input!$D$38,'17-KL'!$B$44:$B$53,0))+LEFT(INDEX('17-KL'!$H$44:$H$53,MATCH(Input!$D$38,'17-KL'!$B$44:$B$53,0)),5)*($D$41-MID(INDEX('17-KL'!$H$44:$H$53,MATCH(Input!$D$38,'17-KL'!$B$44:$B$53,0)),10,2)))*$D$39 -> 46.35 | AA38: =(INDEX('18-LD'!$E$44:$E$53,MATCH(Input!$D$38,'18-LD'!$B$44:$B$53,0))+ROUND(($D$40-1)/0.5,0)*INDEX('18-LD'!$F$44:$F$53,MATCH(Input!$D$38,'18-LD'!$B$44:$B$53,0))+LEFT(INDEX('18-LD'!$H$44:$H$53,MATCH(Input!$D$38,'18-LD'!$B$44:$B$53,0)),5)*($D$41-MID(INDEX('18-LD'!$H$44:$H$53,MATCH(Input!$D$38,'18-LD'!$B$44:$B$53,0)),10,2)))*$D$39 -> 48.55 | AB38: =(INDEX('19-MP'!$E$44:$E$53,MATCH(Input!$D$38,'19-MP'!$B$44:$B$53,0))+ROUND(($D$40-1)/0.5,0)*INDEX('19-MP'!$F$44:$F$53,MATCH(Input!$D$38,'19-MP'!$B$44:$B$53,0))+LEFT(INDEX('19-MP'!$H$44:$H$53,MATCH(Input!$D$38,'19-MP'!$B$44:$B$53,0)),5)*($D$41-MID(INDEX('19-MP'!$H$44:$H$53,MATCH(Input!$D$38,'19-MP'!$B$44:$B$53,0)),10,2)))*$D$39 -> 52.25 | AC38: =(INDEX('20-MH'!$E$44:$E$53,MATCH(Input!$D$38,'20-MH'!$B$44:$B$53,0))+ROUND(($D$40-1)/0.5,0)*INDEX('20-MH'!$F$44:$F$53,MATCH(Input!$D$38,'20-MH'!$B$44:$B$53,0))+LEFT(INDEX('20-MH'!$H$44:$H$53,MATCH(Input!$D$38,'20-MH'!$B$44:$B$53,0)),5)*($D$41-MID(INDEX('20-MH'!$H$44:$H$53,MATCH(Input!$D$38,'20-MH'!$B$44:$B$53,0)),10,2)))*$D$39 -> 58.15 | AD38: =(INDEX('21-OD'!$E$44:$E$53,MATCH(Input!$D$38,'21-OD'!$B$44:$B$53,0))+ROUND(($D$40-1)/0.5,0)*INDEX('21-OD'!$F$44:$F$53,MATCH(Input!$D$38,'21-OD'!$B$44:$B$53,0))+LEFT(INDEX('21-OD'!$H$44:$H$53,MATCH(Input!$D$38,'21-OD'!$B$44:$B$53,0)),5)*($D$41-MID(INDEX('21-OD'!$H$44:$H$53,MATCH(Input!$D$38,'21-OD'!$B$44:$B$53,0)),10,2)))*$D$39 -> 53.25 | AE38: =(INDEX('22-PY'!$E$44:$E$53,MATCH(Input!$D$38,'22-PY'!$B$44:$B$53,0))+ROUND(($D$40-1)/0.5,0)*INDEX('22-PY'!$F$44:$F$53,MATCH(Input!$D$38,'22-PY'!$B$44:$B$53,0))+LEFT(INDEX('22-PY'!$H$44:$H$53,MATCH(Input!$D$38,'22-PY'!$B$44:$B$53,0)),5)*($D$41-MID(INDEX('22-PY'!$H$44:$H$53,MATCH(Input!$D$38,'22-PY'!$B$44:$B$53,0)),10,2)))*$D$39 -> 46.4 | AF38: =(INDEX('23-PB'!$E$44:$E$53,MATCH(Input!$D$38,'23-PB'!$B$44:$B$53,0))+ROUND(($D$40-1)/0.5,0)*INDEX('23-PB'!$F$44:$F$53,MATCH(Input!$D$38,'23-PB'!$B$44:$B$53,0))+LEFT(INDEX('23-PB'!$H$44:$H$53,MATCH(Input!$D$38,'23-PB'!$B$44:$B$53,0)),5)*($D$41-MID(INDEX('23-PB'!$H$44:$H$53,MATCH(Input!$D$38,'23-PB'!$B$44:$B$53,0)),10,2)))*$D$39 -> 48.5 | AG38: =(INDEX('24-RJ'!$E$44:$E$53,MATCH(Input!$D$38,'24-RJ'!$B$44:$B$53,0))+ROUND(($D$40-1)/0.5,0)*INDEX('24-RJ'!$F$44:$F$53,MATCH(Input!$D$38,'24-RJ'!$B$44:$B$53,0))+LEFT(INDEX('24-RJ'!$H$44:$H$53,MATCH(Input!$D$38,'24-RJ'!$B$44:$B$53,0)),5)*($D$41-MID(INDEX('24-RJ'!$H$44:$H$53,MATCH(Input!$D$38,'24-RJ'!$B$44:$B$53,0)),10,2)))*$D$39 -> 49.5 | AH38: =(INDEX('25-TN'!$E$44:$E$53,MATCH(Input!$D$38,'25-TN'!$B$44:$B$53,0))+ROUND(($D$40-1)/0.5,0)*INDEX('25-TN'!$F$44:$F$53,MATCH(Input!$D$38,'25-TN'!$B$44:$B$53,0))+LEFT(INDEX('25-TN'!$H$44:$H$53,MATCH(Input!$D$38,'25-TN'!$B$44:$B$53,0)),5)*($D$41-MID(INDEX('25-TN'!$H$44:$H$53,MATCH(Input!$D$38,'25-TN'!$B$44:$B$53,0)),10,2)))*$D$39 -> 44.3 | AI38: =(INDEX('26-TS'!$E$44:$E$53,MATCH(Input!$D$38,'26-TS'!$B$44:$B$53,0))+ROUND(($D$40-1)/0.5,0)*INDEX('26-TS'!$F$44:$F$53,MATCH(Input!$D$38,'26-TS'!$B$44:$B$53,0))+LEFT(INDEX('26-TS'!$H$44:$H$53,MATCH(Input!$D$38,'26-TS'!$B$44:$B$53,0)),5)*($D$41-MID(INDEX('26-TS'!$H$44:$H$53,MATCH(Input!$D$38,'26-TS'!$B$44:$B$53,0)),10,2)))*$D$39 -> 42.4 | AJ38: =(INDEX('27-UP'!$E$44:$E$53,MATCH(Input!$D$38,'27-UP'!$B$44:$B$53,0))+ROUND(($D$40-1)/0.5,0)*INDEX('27-UP'!$F$44:$F$53,MATCH(Input!$D$38,'27-UP'!$B$44:$B$53,0))+LEFT(INDEX('27-UP'!$H$44:$H$53,MATCH(Input!$D$38,'27-UP'!$B$44:$B$53,0)),5)*($D$41-MID(INDEX('27-UP'!$H$44:$H$53,MATCH(Input!$D$38,'27-UP'!$B$44:$B$53,0)),10,2)))*$D$39 -> 39.8 | AK38: =(INDEX('28-UK'!$E$44:$E$53,MATCH(Input!$D$38,'28-UK'!$B$44:$B$53,0))+ROUND(($D$40-1)/0.5,0)*INDEX('28-UK'!$F$44:$F$53,MATCH(Input!$D$38,'28-UK'!$B$44:$B$53,0))+LEFT(INDEX('28-UK'!$H$44:$H$53,MATCH(Input!$D$38,'28-UK'!$B$44:$B$53,0)),5)*($D$41-MID(INDEX('28-UK'!$H$44:$H$53,MATCH(Input!$D$38,'28-UK'!$B$44:$B$53,0)),10,2)))*$D$39 -> 50.9 | AL38: =(INDEX('29-WB'!$E$44:$E$53,MATCH(Input!$D$38,'29-WB'!$B$44:$B$53,0))+ROUND(($D$40-1)/0.5,0)*INDEX('29-WB'!$F$44:$F$53,MATCH(Input!$D$38,'29-WB'!$B$44:$B$53,0))+LEFT(INDEX('29-WB'!$H$44:$H$53,MATCH(Input!$D$38,'29-WB'!$B$44:$B$53,0)),5)*($D$41-MID(INDEX('29-WB'!$H$44:$H$53,MATCH(Input!$D$38,'29-WB'!$B$44:$B$53,0)),10,2)))*$D$39 -> 48.6
C39: Length in Km | D39: 5
C40: Embankment Height in meter | D40: 1
C41: Aggregate Lead in km | D41: =$D$9 -> 50
B42: (c) | C42: Type-3
C43: Configuration of Road | D43: Greenfield Alignment - 6 Lane + PS | E43: =IF($D$8="Andaman & Nicobar Islands ",J43,IF($D$8="Andhra Pradesh",K43,IF($D$8="Assam",L43,IF($D$8="Bihar",M43,IF($D$8="Chandigarh",N43,IF($D$8="Chhattisgarh",O43,IF($D$8="Dadra & Nagar Haveli",P43,IF($D$8="Daman & Diu",Q43,IF($D$8="Delhi",R43,IF($D$8="Goa",S43,IF($D$8="Gujarat",T43,IF($D$8="Haryana",U43,IF($D$8="Himachal Pradesh",V43,IF($D$8="Jammu & Kashmir",W43,IF($D$8="Jharkhand",X43,IF($D$8="Karnataka",Y43,IF($D$8="Kerala",Z43,IF($D$8="Lakshadweep",AA43,IF($D$8="Madhya Pradesh",AB43,IF($D$8="Maharashtra",AC43,IF($D$8="Odisha",AD43,IF($D$8="Puducherry",AE43,IF($D$8="Punjab",AF43,IF($D$8="Rajasthan",AG43,IF($D$8="Tamil Nadu",AH43,IF($D$8="Telangana",AI43,IF($D$8="Uttar Pradesh",AJ43,IF($D$8="Uttarakhand",AK43,IF($D$8="West Bengal",AL43))))))))))))))))))))))))))))) -> 124.9 | F43: =E43*10^7 -> 1249000000 | G43: =IF(E43>0,E43/D44,0) -> 12.49 | J43: =(INDEX('1-AN'!$E$44:$E$53,MATCH(Input!$D$43,'1-AN'!$B$44:$B$53,0))+ROUND(($D$45-1)/0.5,0)*INDEX('1-AN'!$F$44:$F$53,MATCH(Input!$D$43,'1-AN'!$B$44:$B$53,0))+LEFT(INDEX('1-AN'!$H$44:$H$53,MATCH(Input!$D$43,'1-AN'!$B$44:$B$53,0)),5)*($D$46-MID(INDEX('1-AN'!$H$44:$H$53,MATCH(Input!$D$43,'1-AN'!$B$44:$B$53,0)),10,2)))*$D$44 -> 142.3 | K43: =(INDEX('2-AP'!$E$44:$E$53,MATCH(Input!$D$43,'2-AP'!$B$44:$B$53,0))+ROUND(($D$45-1)/0.5,0)*INDEX('2-AP'!$F$44:$F$53,MATCH(Input!$D$43,'2-AP'!$B$44:$B$53,0))+LEFT(INDEX('2-AP'!$H$44:$H$53,MATCH(Input!$D$43,'2-AP'!$B$44:$B$53,0)),5)*($D$46-MID(INDEX('2-AP'!$H$44:$H$53,MATCH(Input!$D$43,'2-AP'!$B$44:$B$53,0)),10,2)))*$D$44 -> 125.1 | L43: =(INDEX('3-AS'!$E$44:$E$53,MATCH(Input!$D$43,'3-AS'!$B$44:$B$53,0))+ROUND(($D$45-1)/0.5,0)*INDEX('3-AS'!$F$44:$F$53,MATCH(Input!$D$43,'3-AS'!$B$44:$B$53,0))+LEFT(INDEX('3-AS'!$H$44:$H$53,MATCH(Input!$D$43,'3-AS'!$B$44:$B$53,0)),5)*($D$46-MID(INDEX('3-AS'!$H$44:$H$53,MATCH(Input!$D$43,'3-AS'!$B$44:$B$53,0)),10,2)))*$D$44 -> 157.7 | M43: =(INDEX('4-BR'!$E$44:$E$53,MATCH(Input!$D$43,'4-BR'!$B$44:$B$53,0))+ROUND(($D$45-1)/0.5,0)*INDEX('4-BR'!$F$44:$F$53,MATCH(Input!$D$43,'4-BR'!$B$44:$B$53,0))+LEFT(INDEX('4-BR'!$H$44:$H$53,MATCH(Input!$D$43,'4-BR'!$B$44:$B$53,0)),5)*($D$46-MID(INDEX('4-BR'!$H$44:$H$53,MATCH(Input!$D$43,'4-BR'!$B$44:$B$53,0)),10,2)))*$D$44 -> 119.2 | N43: =(INDEX('5-CH'!$E$44:$E$53,MATCH(Input!$D$43,'5-CH'!$B$44:$B$53,0))+ROUND(($D$45-1)/0.5,0)*INDEX('5-CH'!$F$44:$F$53,MATCH(Input!$D$43,'5-CH'!$B$44:$B$53,0))+LEFT(INDEX('5-CH'!$H$44:$H$53,MATCH(Input!$D$43,'5-CH'!$B$44:$B$53,0)),5)*($D$46-MID(INDEX('5-CH'!$H$44:$H$53,MATCH(Input!$D$43,'5-CH'!$B$44:$B$53,0)),10,2)))*$D$44 -> 139.9 | O43: =(INDEX('6-CG'!$E$44:$E$53,MATCH(Input!$D$43,'6-CG'!$B$44:$B$53,0))+ROUND(($D$45-1)/0.5,0)*INDEX('6-CG'!$F$44:$F$53,MATCH(Input!$D$43,'6-CG'!$B$44:$B$53,0))+LEFT(INDEX('6-CG'!$H$44:$H$53,MATCH(Input!$D$43,'6-CG'!$B$44:$B$53,0)),5)*($D$46-MID(INDEX('6-CG'!$H$44:$H$53,MATCH(Input!$D$43,'6-CG'!$B$44:$B$53,0)),10,2)))*$D$44 -> 159.6 | P43: =(INDEX('7-DN'!$E$44:$E$53,MATCH(Input!$D$43,'7-DN'!$B$44:$B$53,0))+ROUND(($D$45-1)/0.5,0)*INDEX('7-DN'!$F$44:$F$53,MATCH(Input!$D$43,'7-DN'!$B$44:$B$53,0))+LEFT(INDEX('7-DN'!$H$44:$H$53,MATCH(Input!$D$43,'7-DN'!$B$44:$B$53,0)),5)*($D$46-MID(INDEX('7-DN'!$H$44:$H$53,MATCH(Input!$D$43,'7-DN'!$B$44:$B$53,0)),10,2)))*$D$44 -> 173.7 | Q43: =(INDEX('8-DD'!$E$44:$E$53,MATCH(Input!$D$43,'8-DD'!$B$44:$B$53,0))+ROUND(($D$45-1)/0.5,0)*INDEX('8-DD'!$F$44:$F$53,MATCH(Input!$D$43,'8-DD'!$B$44:$B$53,0))+LEFT(INDEX('8-DD'!$H$44:$H$53,MATCH(Input!$D$43,'8-DD'!$B$44:$B$53,0)),5)*($D$46-MID(INDEX('8-DD'!$H$44:$H$53,MATCH(Input!$D$43,'8-DD'!$B$44:$B$53,0)),10,2)))*$D$44 -> 134.9 | R43: =(INDEX('9-DL'!$E$44:$E$53,MATCH(Input!$D$43,'9-DL'!$B$44:$B$53,0))+ROUND(($D$45-1)/0.5,0)*INDEX('9-DL'!$F$44:$F$53,MATCH(Input!$D$43,'9-DL'!$B$44:$B$53,0))+LEFT(INDEX('9-DL'!$H$44:$H$53,MATCH(Input!$D$43,'9-DL'!$B$44:$B$53,0)),5)*($D$46-MID(INDEX('9-DL'!$H$44:$H$53,MATCH(Input!$D$43,'9-DL'!$B$44:$B$53,0)),10,2)))*$D$44 -> 124.9 | S43: =(INDEX('10-GA'!$E$44:$E$53,MATCH(Input!$D$43,'10-GA'!$B$44:$B$53,0))+ROUND(($D$45-1)/0.5,0)*INDEX('10-GA'!$F$44:$F$53,MATCH(Input!$D$43,'10-GA'!$B$44:$B$53,0))+LEFT(INDEX('10-GA'!$H$44:$H$53,MATCH(Input!$D$43,'10-GA'!$B$44:$B$53,0)),5)*($D$46-MID(INDEX('10-GA'!$H$44:$H$53,MATCH(Input!$D$43,'10-GA'!$B$44:$B$53,0)),10,2)))*$D$44 -> 173.7 | T43: =(INDEX('11-GJ'!$E$44:$E$53,MATCH(Input!$D$43,'11-GJ'!$B$44:$B$53,0))+ROUND(($D$45-1)/0.5,0)*INDEX('11-GJ'!$F$44:$F$53,MATCH(Input!$D$43,'11-GJ'!$B$44:$B$53,0))+LEFT(INDEX('11-GJ'!$H$44:$H$53,MATCH(Input!$D$43,'11-GJ'!$B$44:$B$53,0)),5)*($D$46-MID(INDEX('11-GJ'!$H$44:$H$53,MATCH(Input!$D$43,'11-GJ'!$B$44:$B$53,0)),10,2)))*$D$44 -> 129 | U43: =(INDEX('12-HR'!$E$44:$E$53,MATCH(Input!$D$43,'12-HR'!$B$44:$B$53,0))+ROUND(($D$45-1)/0.5,0)*INDEX('12-HR'!$F$44:$F$53,MATCH(Input!$D$43,'12-HR'!$B$44:$B$53,0))+LEFT(INDEX('12-HR'!$H$44:$H$53,MATCH(Input!$D$43,'12-HR'!$B$44:$B$53,0)),5)*($D$46-MID(INDEX('12-HR'!$H$44:$H$53,MATCH(Input!$D$43,'12-HR'!$B$44:$B$53,0)),10,2)))*$D$44 -> 119.3 | V43: =(INDEX('13-HP'!$E$44:$E$53,MATCH(Input!$D$43,'13-HP'!$B$44:$B$53,0))+ROUND(($D$45-1)/0.5,0)*INDEX('13-HP'!$F$44:$F$53,MATCH(Input!$D$43,'13-HP'!$B$44:$B$53,0))+LEFT(INDEX('13-HP'!$H$44:$H$53,MATCH(Input!$D$43,'13-HP'!$B$44:$B$53,0)),5)*($D$46-MID(INDEX('13-HP'!$H$44:$H$53,MATCH(Input!$D$43,'13-HP'!$B$44:$B$53,0)),10,2)))*$D$44 -> 157.6 | W43: =(INDEX('14-JK'!$E$44:$E$53,MATCH(Input!$D$43,'14-JK'!$B$44:$B$53,0))+ROUND(($D$45-1)/0.5,0)*INDEX('14-JK'!$F$44:$F$53,MATCH(Input!$D$43,'14-JK'!$B$44:$B$53,0))+LEFT(INDEX('14-JK'!$H$44:$H$53,MATCH(Input!$D$43,'14-JK'!$B$44:$B$53,0)),5)*($D$46-MID(INDEX('14-JK'!$H$44:$H$53,MATCH(Input!$D$43,'14-JK'!$B$44:$B$53,0)),10,2)))*$D$44 -> 142.1 | X43: =(INDEX('15-JH'!$E$44:$E$53,MATCH(Input!$D$43,'15-JH'!$B$44:$B$53,0))+ROUND(($D$45-1)/0.5,0)*INDEX('15-JH'!$F$44:$F$53,MATCH(Input!$D$43,'15-JH'!$B$44:$B$53,0))+LEFT(INDEX('15-JH'!$H$44:$H$53,MATCH(Input!$D$43,'15-JH'!$B$44:$B$53,0)),5)*($D$46-MID(INDEX('15-JH'!$H$44:$H$53,MATCH(Input!$D$43,'15-JH'!$B$44:$B$53,0)),10,2)))*$D$44 -> 113.9 | Y43: =(INDEX('16-KA'!$E$44:$E$53,MATCH(Input!$D$43,'16-KA'!$B$44:$B$53,0))+ROUND(($D$45-1)/0.5,0)*INDEX('16-KA'!$F$44:$F$53,MATCH(Input!$D$43,'16-KA'!$B$44:$B$53,0))+LEFT(INDEX('16-KA'!$H$44:$H$53,MATCH(Input!$D$43,'16-KA'!$B$44:$B$53,0)),5)*($D$46-MID(INDEX('16-KA'!$H$44:$H$53,MATCH(Input!$D$43,'16-KA'!$B$44:$B$53,0)),10,2)))*$D$44 -> 131.9 | Z43: =(INDEX('17-KL'!$E$44:$E$53,MATCH(Input!$D$43,'17-KL'!$B$44:$B$53,0))+ROUND(($D$45-1)/0.5,0)*INDEX('17-KL'!$F$44:$F$53,MATCH(Input!$D$43,'17-KL'!$B$44:$B$53,0))+LEFT(INDEX('17-KL'!$H$44:$H$53,MATCH(Input!$D$43,'17-KL'!$B$44:$B$53,0)),5)*($D$46-MID(INDEX('17-KL'!$H$44:$H$53,MATCH(Input!$D$43,'17-KL'!$B$44:$B$53,0)),10,2)))*$D$44 -> 136.7 | AA43: =(INDEX('18-LD'!$E$44:$E$53,MATCH(Input!$D$43,'18-LD'!$B$44:$B$53,0))+ROUND(($D$45-1)/0.5,0)*INDEX('18-LD'!$F$44:$F$53,MATCH(Input!$D$43,'18-LD'!$B$44:$B$53,0))+LEFT(INDEX('18-LD'!$H$44:$H$53,MATCH(Input!$D$43,'18-LD'!$B$44:$B$53,0)),5)*($D$46-MID(INDEX('18-LD'!$H$44:$H$53,MATCH(Input!$D$43,'18-LD'!$B$44:$B$53,0)),10,2)))*$D$44 -> 143 | AB43: =(INDEX('19-MP'!$E$44:$E$53,MATCH(Input!$D$43,'19-MP'!$B$44:$B$53,0))+ROUND(($D$45-1)/0.5,0)*INDEX('19-MP'!$F$44:$F$53,MATCH(Input!$D$43,'19-MP'!$B$44:$B$53,0))+LEFT(INDEX('19-MP'!$H$44:$H$53,MATCH(Input!$D$43,'19-MP'!$B$44:$B$53,0)),5)*($D$46-MID(INDEX('19-MP'!$H$44:$H$53,MATCH(Input!$D$43,'19-MP'!$B$44:$B$53,0)),10,2)))*$D$44 -> 152.2 | AC43: =(INDEX('20-MH'!$E$44:$E$53,MATCH(Input!$D$43,'20-MH'!$B$44:$B$53,0))+ROUND(($D$45-1)/0.5,0)*INDEX('20-MH'!$F$44:$F$53,MATCH(Input!$D$43,'20-MH'!$B$44:$B$53,0))+LEFT(INDEX('20-MH'!$H$44:$H$53,MATCH(Input!$D$43,'20-MH'!$B$44:$B$53,0)),5)*($D$46-MID(INDEX('20-MH'!$H$44:$H$53,MATCH(Input!$D$43,'20-MH'!$B$44:$B$53,0)),10,2)))*$D$44 -> 173.7 | AD43: =(INDEX('21-OD'!$E$44:$E$53,MATCH(Input!$D$43,'21-OD'!$B$44:$B$53,0))+ROUND(($D$45-1)/0.5,0)*INDEX('21-OD'!$F$44:$F$53,MATCH(Input!$D$43,'21-OD'!$B$44:$B$53,0))+LEFT(INDEX('21-OD'!$H$44:$H$53,MATCH(Input!$D$43,'21-OD'!$B$44:$B$53,0)),5)*($D$46-MID(INDEX('21-OD'!$H$44:$H$53,MATCH(Input!$D$43,'21-OD'!$B$44:$B$53,0)),10,2)))*$D$44 -> 154.5 | AE43: =(INDEX('22-PY'!$E$44:$E$53,MATCH(Input!$D$43,'22-PY'!$B$44:$B$53,0))+ROUND(($D$45-1)/0.5,0)*INDEX('22-PY'!$F$44:$F$53,MATCH(Input!$D$43,'22-PY'!$B$44:$B$53,0))+LEFT(INDEX('22-PY'!$H$44:$H$53,MATCH(Input!$D$43,'22-PY'!$B$44:$B$53,0)),5)*($D$46-MID(INDEX('22-PY'!$H$44:$H$53,MATCH(Input!$D$43,'22-PY'!$B$44:$B$53,0)),10,2)))*$D$44 -> 136.8 | AF43: =(INDEX('23-PB'!$E$44:$E$53,MATCH(Input!$D$43,'23-PB'!$B$44:$B$53,0))+ROUND(($D$45-1)/0.5,0)*INDEX('23-PB'!$F$44:$F$53,MATCH(Input!$D$43,'23-PB'!$B$44:$B$53,0))+LEFT(INDEX('23-PB'!$H$44:$H$53,MATCH(Input!$D$43,'23-PB'!$B$44:$B$53,0)),5)*($D$46-MID(INDEX('23-PB'!$H$44:$H$53,MATCH(Input!$D$43,'23-PB'!$B$44:$B$53,0)),10,2)))*$D$44 -> 139.9 | AG43: =(INDEX('24-RJ'!$E$44:$E$53,MATCH(Input!$D$43,'24-RJ'!$B$44:$B$53,0))+ROUND(($D$45-1)/0.5,0)*INDEX('24-RJ'!$F$44:$F$53,MATCH(Input!$D$43,'24-RJ'!$B$44:$B$53,0))+LEFT(INDEX('24-RJ'!$H$44:$H$53,MATCH(Input!$D$43,'24-RJ'!$B$44:$B$53,0)),5)*($D$46-MID(INDEX('24-RJ'!$H$44:$H$53,MATCH(Input!$D$43,'24-RJ'!$B$44:$B$53,0)),10,2)))*$D$44 -> 143 | AH43: =(INDEX('25-TN'!$E$44:$E$53,MATCH(Input!$D$43,'25-TN'!$B$44:$B$53,0))+ROUND(($D$45-1)/0.5,0)*INDEX('25-TN'!$F$44:$F$53,MATCH(Input!$D$43,'25-TN'!$B$44:$B$53,0))+LEFT(INDEX('25-TN'!$H$44:$H$53,MATCH(Input!$D$43,'25-TN'!$B$44:$B$53,0)),5)*($D$46-MID(INDEX('25-TN'!$H$44:$H$53,MATCH(Input!$D$43,'25-TN'!$B$44:$B$53,0)),10,2)))*$D$44 -> 130.8 | AI43: =(INDEX('26-TS'!$E$44:$E$53,MATCH(Input!$D$43,'26-TS'!$B$44:$B$53,0))+ROUND(($D$45-1)/0.5,0)*INDEX('26-TS'!$F$44:$F$53,MATCH(Input!$D$43,'26-TS'!$B$44:$B$53,0))+LEFT(INDEX('26-TS'!$H$44:$H$53,MATCH(Input!$D$43,'26-TS'!$B$44:$B$53,0)),5)*($D$46-MID(INDEX('26-TS'!$H$44:$H$53,MATCH(Input!$D$43,'26-TS'!$B$44:$B$53,0)),10,2)))*$D$44 -> 125.5 | AJ43: =(INDEX('27-UP'!$E$44:$E$53,MATCH(Input!$D$43,'27-UP'!$B$44:$B$53,0))+ROUND(($D$45-1)/0.5,0)*INDEX('27-UP'!$F$44:$F$53,MATCH(Input!$D$43,'27-UP'!$B$44:$B$53,0))+LEFT(INDEX('27-UP'!$H$44:$H$53,MATCH(Input!$D$43,'27-UP'!$B$44:$B$53,0)),5)*($D$46-MID(INDEX('27-UP'!$H$44:$H$53,MATCH(Input!$D$43,'27-UP'!$B$44:$B$53,0)),10,2)))*$D$44 -> 117.1 | AK43: =(INDEX('28-UK'!$E$44:$E$53,MATCH(Input!$D$43,'28-UK'!$B$44:$B$53,0))+ROUND(($D$45-1)/0.5,0)*INDEX('28-UK'!$F$44:$F$53,MATCH(Input!$D$43,'28-UK'!$B$44:$B$53,0))+LEFT(INDEX('28-UK'!$H$44:$H$53,MATCH(Input!$D$43,'28-UK'!$B$44:$B$53,0)),5)*($D$46-MID(INDEX('28-UK'!$H$44:$H$53,MATCH(Input!$D$43,'28-UK'!$B$44:$B$53,0)),10,2)))*$D$44 -> 155.8 | AL43: =(INDEX('29-WB'!$E$44:$E$53,MATCH(Input!$D$43,'29-WB'!$B$44:$B$53,0))+ROUND(($D$45-1)/0.5,0)*INDEX('29-WB'!$F$44:$F$53,MATCH(Input!$D$43,'29-WB'!$B$44:$B$53,0))+LEFT(INDEX('29-WB'!$H$44:$H$53,MATCH(Input!$D$43,'29-WB'!$B$44:$B$53,0)),5)*($D$46-MID(INDEX('29-WB'!$H$44:$H$53,MATCH(Input!$D$43,'29-WB'!$B$44:$B$53,0)),10,2)))*$D$44 -> 142.3
C44: Length in Km | D44: 10
C45: Embankment Height in meter | D45: 2
C46: Aggregate Lead in km | D46: =$D$9 -> 50
B48: 4 | C48: Service Roads
B49: (a) | C49: Type-1
C50: Configuration of Road with Pavement Combination | D50: With flexible pavement-5.50 meter carriageway_(BC, DBM, WMM & GSB) | E50: =IF($D$8="Andaman & Nicobar Islands ",J50,IF($D$8="Andhra Pradesh",K50,IF($D$8="Assam",L50,IF($D$8="Bihar",M50,IF($D$8="Chandigarh",N50,IF($D$8="Chhattisgarh",O50,IF($D$8="Dadra & Nagar Haveli",P50,IF($D$8="Daman & Diu",Q50,IF($D$8="Delhi",R50,IF($D$8="Goa",S50,IF($D$8="Gujarat",T50,IF($D$8="Haryana",U50,IF($D$8="Himachal Pradesh",V50,IF($D$8="Jammu & Kashmir",W50,IF($D$8="Jharkhand",X50,IF($D$8="Karnataka",Y50,IF($D$8="Kerala",Z50,IF($D$8="Lakshadweep",AA50,IF($D$8="Madhya Pradesh",AB50,IF($D$8="Maharashtra",AC50,IF($D$8="Odisha",AD50,IF($D$8="Puducherry",AE50,IF($D$8="Punjab",AF50,IF($D$8="Rajasthan",AG50,IF($D$8="Tamil Nadu",AH50,IF($D$8="Telangana",AI50,IF($D$8="Uttar Pradesh",AJ50,IF($D$8="Uttarakhand",AK50,IF($D$8="West Bengal",AL50))))))))))))))))))))))))))))) -> 19 | F50: =E50*10^7 -> 190000000 | G50: =IF(E50>0,E50/D51,0) -> 1.9 | J50: =(INDEX('1-AN'!$E$60:$E$71,MATCH(Input!$D$50,'1-AN'!$B$60:$B$71,0))+ROUND(($D$52-1)/0.5,0)*INDEX('1-AN'!$F$60:$F$71,MATCH(Input!$D$50,'1-AN'!$B$60:$B$71,0))+IFERROR(LEFT(INDEX('1-AN'!$G$60:$G$71,MATCH(Input!$D$50,'1-AN'!$B$60:$B$71,0)),5)*($D$53-MID(INDEX('1-AN'!$G$60:$G$71,MATCH(Input!$D$50,'1-AN'!$B$60:$B$71,0)),10,2)),0)+LEFT(INDEX('1-AN'!$H$60:$H$71,MATCH(Input!$D$50,'1-AN'!$B$60:$B$71,0)),5)*($D$54-MID(INDEX('1-AN'!$H$60:$H$71,MATCH(Input!$D$50,'1-AN'!$B$60:$B$71,0)),10,2)))*$D$51 -> 20.85 | K50: =(INDEX('2-AP'!$E$60:$E$71,MATCH(Input!$D$50,'2-AP'!$B$60:$B$71,0))+ROUND(($D$52-1)/0.5,0)*INDEX('2-AP'!$F$60:$F$71,MATCH(Input!$D$50,'2-AP'!$B$60:$B$71,0))+IFERROR(LEFT(INDEX('2-AP'!$G$60:$G$71,MATCH(Input!$D$50,'2-AP'!$B$60:$B$71,0)),5)*($D$53-MID(INDEX('2-AP'!$G$60:$G$71,MATCH(Input!$D$50,'2-AP'!$B$60:$B$71,0)),10,2)),0)+LEFT(INDEX('2-AP'!$H$60:$H$71,MATCH(Input!$D$50,'2-AP'!$B$60:$B$71,0)),5)*($D$54-MID(INDEX('2-AP'!$H$60:$H$71,MATCH(Input!$D$50,'2-AP'!$B$60:$B$71,0)),10,2)))*$D$51 -> 16.3 | L50: =(INDEX('3-AS'!$E$60:$E$71,MATCH(Input!$D$50,'3-AS'!$B$60:$B$71,0))+ROUND(($D$52-1)/0.5,0)*INDEX('3-AS'!$F$60:$F$71,MATCH(Input!$D$50,'3-AS'!$B$60:$B$71,0))+IFERROR(LEFT(INDEX('3-AS'!$G$60:$G$71,MATCH(Input!$D$50,'3-AS'!$B$60:$B$71,0)),5)*($D$53-MID(INDEX('3-AS'!$G$60:$G$71,MATCH(Input!$D$50,'3-AS'!$B$60:$B$71,0)),10,2)),0)+LEFT(INDEX('3-AS'!$H$60:$H$71,MATCH(Input!$D$50,'3-AS'!$B$60:$B$71,0)),5)*($D$54-MID(INDEX('3-AS'!$H$60:$H$71,MATCH(Input!$D$50,'3-AS'!$B$60:$B$71,0)),10,2)))*$D$51 -> 20.9 | M50: =(INDEX('4-BR'!$E$60:$E$71,MATCH(Input!$D$50,'4-BR'!$B$60:$B$71,0))+ROUND(($D$52-1)/0.5,0)*INDEX('4-BR'!$F$60:$F$71,MATCH(Input!$D$50,'4-BR'!$B$60:$B$71,0))+IFERROR(LEFT(INDEX('4-BR'!$G$60:$G$71,MATCH(Input!$D$50,'4-BR'!$B$60:$B$71,0)),5)*($D$53-MID(INDEX('4-BR'!$G$60:$G$71,MATCH(Input!$D$50,'4-BR'!$B$60:$B$71,0)),10,2)),0)+LEFT(INDEX('4-BR'!$H$60:$H$71,MATCH(Input!$D$50,'4-BR'!$B$60:$B$71,0)),5)*($D$54-MID(INDEX('4-BR'!$H$60:$H$71,MATCH(Input!$D$50,'4-BR'!$B$60:$B$71,0)),10,2)))*$D$51 -> 17.85 | N50: =(INDEX('5-CH'!$E$60:$E$71,MATCH(Input!$D$50,'5-CH'!$B$60:$B$71,0))+ROUND(($D$52-1)/0.5,0)*INDEX('5-CH'!$F$60:$F$71,MATCH(Input!$D$50,'5-CH'!$B$60:$B$71,0))+IFERROR(LEFT(INDEX('5-CH'!$G$60:$G$71,MATCH(Input!$D$50,'5-CH'!$B$60:$B$71,0)),5)*($D$53-MID(INDEX('5-CH'!$G$60:$G$71,MATCH(Input!$D$50,'5-CH'!$B$60:$B$71,0)),10,2)),0)+LEFT(INDEX('5-CH'!$H$60:$H$71,MATCH(Input!$D$50,'5-CH'!$B$60:$B$71,0)),5)*($D$54-MID(INDEX('5-CH'!$H$60:$H$71,MATCH(Input!$D$50,'5-CH'!$B$60:$B$71,0)),10,2)))*$D$51 -> 20.15 | O50: =(INDEX('6-CG'!$E$60:$E$71,MATCH(Input!$D$50,'6-CG'!$B$60:$B$71,0))+ROUND(($D$52-1)/0.5,0)*INDEX('6-CG'!$F$60:$F$71,MATCH(Input!$D$50,'6-CG'!$B$60:$B$71,0))+IFERROR(LEFT(INDEX('6-CG'!$G$60:$G$71,MATCH(Input!$D$50,'6-CG'!$B$60:$B$71,0)),5)*($D$53-MID(INDEX('6-CG'!$G$60:$G$71,MATCH(Input!$D$50,'6-CG'!$B$60:$B$71,0)),10,2)),0)+LEFT(INDEX('6-CG'!$H$60:$H$71,MATCH(Input!$D$50,'6-CG'!$B$60:$B$71,0)),5)*($D$54-MID(INDEX('6-CG'!$H$60:$H$71,MATCH(Input!$D$50,'6-CG'!$B$60:$B$71,0)),10,2)))*$D$51 -> 17.85 | P50: =(INDEX('7-DN'!$E$60:$E$71,MATCH(Input!$D$50,'7-DN'!$B$60:$B$71,0))+ROUND(($D$52-1)/0.5,0)*INDEX('7-DN'!$F$60:$F$71,MATCH(Input!$D$50,'7-DN'!$B$60:$B$71,0))+IFERROR(LEFT(INDEX('7-DN'!$G$60:$G$71,MATCH(Input!$D$50,'7-DN'!$B$60:$B$71,0)),5)*($D$53-MID(INDEX('7-DN'!$G$60:$G$71,MATCH(Input!$D$50,'7-DN'!$B$60:$B$71,0)),10,2)),0)+LEFT(INDEX('7-DN'!$H$60:$H$71,MATCH(Input!$D$50,'7-DN'!$B$60:$B$71,0)),5)*($D$54-MID(INDEX('7-DN'!$H$60:$H$71,MATCH(Input!$D$50,'7-DN'!$B$60:$B$71,0)),10,2)))*$D$51 -> 22.3 | Q50: =(INDEX('8-DD'!$E$60:$E$71,MATCH(Input!$D$50,'8-DD'!$B$60:$B$71,0))+ROUND(($D$52-1)/0.5,0)*INDEX('8-DD'!$F$60:$F$71,MATCH(Input!$D$50,'8-DD'!$B$60:$B$71,0))+IFERROR(LEFT(INDEX('8-DD'!$G$60:$G$71,MATCH(Input!$D$50,'8-DD'!$B$60:$B$71,0)),5)*($D$53-MID(INDEX('8-DD'!$G$60:$G$71,MATCH(Input!$D$50,'8-DD'!$B$60:$B$71,0)),10,2)),0)+LEFT(INDEX('8-DD'!$H$60:$H$71,MATCH(Input!$D$50,'8-DD'!$B$60:$B$71,0)),5)*($D$54-MID(INDEX('8-DD'!$H$60:$H$71,MATCH(Input!$D$50,'8-DD'!$B$60:$B$71,0)),10,2)))*$D$51 -> 17.5 | R50: =(INDEX('9-DL'!$E$60:$E$71,MATCH(Input!$D$50,'9-DL'!$B$60:$B$71,0))+ROUND(($D$52-1)/0.5,0)*INDEX('9-DL'!$F$60:$F$71,MATCH(Input!$D$50,'9-DL'!$B$60:$B$71,0))+IFERROR(LEFT(INDEX('9-DL'!$G$60:$G$71,MATCH(Input!$D$50,'9-DL'!$B$60:$B$71,0)),5)*($D$53-MID(INDEX('9-DL'!$G$60:$G$71,MATCH(Input!$D$50,'9-DL'!$B$60:$B$71,0)),10,2)),0)+LEFT(INDEX('9-DL'!$H$60:$H$71,MATCH(Input!$D$50,'9-DL'!$B$60:$B$71,0)),5)*($D$54-MID(INDEX('9-DL'!$H$60:$H$71,MATCH(Input!$D$50,'9-DL'!$B$60:$B$71,0)),10,2)))*$D$51 -> 19 | S50: =(INDEX('10-GA'!$E$60:$E$71,MATCH(Input!$D$50,'10-GA'!$B$60:$B$71,0))+ROUND(($D$52-1)/0.5,0)*INDEX('10-GA'!$F$60:$F$71,MATCH(Input!$D$50,'10-GA'!$B$60:$B$71,0))+IFERROR(LEFT(INDEX('10-GA'!$G$60:$G$71,MATCH(Input!$D$50,'10-GA'!$B$60:$B$71,0)),5)*($D$53-MID(INDEX('10-GA'!$G$60:$G$71,MATCH(Input!$D$50,'10-GA'!$B$60:$B$71,0)),10,2)),0)+LEFT(INDEX('10-GA'!$H$60:$H$71,MATCH(Input!$D$50,'10-GA'!$B$60:$B$71,0)),5)*($D$54-MID(INDEX('10-GA'!$H$60:$H$71,MATCH(Input!$D$50,'10-GA'!$B$60:$B$71,0)),10,2)))*$D$51 -> 22.3 | T50: =(INDEX('11-GJ'!$E$60:$E$71,MATCH(Input!$D$50,'11-GJ'!$B$60:$B$71,0))+ROUND(($D$52-1)/0.5,0)*INDEX('11-GJ'!$F$60:$F$71,MATCH(Input!$D$50,'11-GJ'!$B$60:$B$71,0))+IFERROR(LEFT(INDEX('11-GJ'!$G$60:$G$71,MATCH(Input!$D$50,'11-GJ'!$B$60:$B$71,0)),5)*($D$53-MID(INDEX('11-GJ'!$G$60:$G$71,MATCH(Input!$D$50,'11-GJ'!$B$60:$B$71,0)),10,2)),0)+LEFT(INDEX('11-GJ'!$H$60:$H$71,MATCH(Input!$D$50,'11-GJ'!$B$60:$B$71,0)),5)*($D$54-MID(INDEX('11-GJ'!$H$60:$H$71,MATCH(Input!$D$50,'11-GJ'!$B$60:$B$71,0)),10,2)))*$D$51 -> 16.75 | U50: =(INDEX('12-HR'!$E$60:$E$71,MATCH(Input!$D$50,'12-HR'!$B$60:$B$71,0))+ROUND(($D$52-1)/0.5,0)*INDEX('12-HR'!$F$60:$F$71,MATCH(Input!$D$50,'12-HR'!$B$60:$B$71,0))+IFERROR(LEFT(INDEX('12-HR'!$G$60:$G$71,MATCH(Input!$D$50,'12-HR'!$B$60:$B$71,0)),5)*($D$53-MID(INDEX('12-HR'!$G$60:$G$71,MATCH(Input!$D$50,'12-HR'!$B$60:$B$71,0)),10,2)),0)+LEFT(INDEX('12-HR'!$H$60:$H$71,MATCH(Input!$D$50,'12-HR'!$B$60:$B$71,0)),5)*($D$54-MID(INDEX('12-HR'!$H$60:$H$71,MATCH(Input!$D$50,'12-HR'!$B$60:$B$71,0)),10,2)))*$D$51 -> 18.1 | V50: =(INDEX('13-HP'!$E$60:$E$71,MATCH(Input!$D$50,'13-HP'!$B$60:$B$71,0))+ROUND(($D$52-1)/0.5,0)*INDEX('13-HP'!$F$60:$F$71,MATCH(Input!$D$50,'13-HP'!$B$60:$B$71,0))+IFERROR(LEFT(INDEX('13-HP'!$G$60:$G$71,MATCH(Input!$D$50,'13-HP'!$B$60:$B$71,0)),5)*($D$53-MID(INDEX('13-HP'!$G$60:$G$71,MATCH(Input!$D$50,'13-HP'!$B$60:$B$71,0)),10,2)),0)+LEFT(INDEX('13-HP'!$H$60:$H$71,MATCH(Input!$D$50,'13-HP'!$B$60:$B$71,0)),5)*($D$54-MID(INDEX('13-HP'!$H$60:$H$71,MATCH(Input!$D$50,'13-HP'!$B$60:$B$71,0)),10,2)))*$D$51 -> 22.7 | W50: =(INDEX('14-JK'!$E$60:$E$71,MATCH(Input!$D$50,'14-JK'!$B$60:$B$71,0))+ROUND(($D$52-1)/0.5,0)*INDEX('14-JK'!$F$60:$F$71,MATCH(Input!$D$50,'14-JK'!$B$60:$B$71,0))+IFERROR(LEFT(INDEX('14-JK'!$G$60:$G$71,MATCH(Input!$D$50,'14-JK'!$B$60:$B$71,0)),5)*($D$53-MID(INDEX('14-JK'!$G$60:$G$71,MATCH(Input!$D$50,'14-JK'!$B$60:$B$71,0)),10,2)),0)+LEFT(INDEX('14-JK'!$H$60:$H$71,MATCH(Input!$D$50,'14-JK'!$B$60:$B$71,0)),5)*($D$54-MID(INDEX('14-JK'!$H$60:$H$71,MATCH(Input!$D$50,'14-JK'!$B$60:$B$71,0)),10,2)))*$D$51 -> 21.55 | X50: =(INDEX('15-JH'!$E$60:$E$71,MATCH(Input!$D$50,'15-JH'!$B$60:$B$71,0))+ROUND(($D$52-1)/0.5,0)*INDEX('15-JH'!$F$60:$F$71,MATCH(Input!$D$50,'15-JH'!$B$60:$B$71,0))+IFERROR(LEFT(INDEX('15-JH'!$G$60:$G$71,MATCH(Input!$D$50,'15-JH'!$B$60:$B$71,0)),5)*($D$53-MID(INDEX('15-JH'!$G$60:$G$71,MATCH(Input!$D$50,'15-JH'!$B$60:$B$71,0)),10,2)),0)+LEFT(INDEX('15-JH'!$H$60:$H$71,MATCH(Input!$D$50,'15-JH'!$B$60:$B$71,0)),5)*($D$54-MID(INDEX('15-JH'!$H$60:$H$71,MATCH(Input!$D$50,'15-JH'!$B$60:$B$71,0)),10,2)))*$D$51 -> 17 | Y50: =(INDEX('16-KA'!$E$60:$E$71,MATCH(Input!$D$50,'16-KA'!$B$60:$B$71,0))+ROUND(($D$52-1)/0.5,0)*INDEX('16-KA'!$F$60:$F$71,MATCH(Input!$D$50,'16-KA'!$B$60:$B$71,0))+IFERROR(LEFT(INDEX('16-KA'!$G$60:$G$71,MATCH(Input!$D$50,'16-KA'!$B$60:$B$71,0)),5)*($D$53-MID(INDEX('16-KA'!$G$60:$G$71,MATCH(Input!$D$50,'16-KA'!$B$60:$B$71,0)),10,2)),0)+LEFT(INDEX('16-KA'!$H$60:$H$71,MATCH(Input!$D$50,'16-KA'!$B$60:$B$71,0)),5)*($D$54-MID(INDEX('16-KA'!$H$60:$H$71,MATCH(Input!$D$50,'16-KA'!$B$60:$B$71,0)),10,2)))*$D$51 -> 17.2 | Z50: =(INDEX('17-KL'!$E$60:$E$71,MATCH(Input!$D$50,'17-KL'!$B$60:$B$71,0))+ROUND(($D$52-1)/0.5,0)*INDEX('17-KL'!$F$60:$F$71,MATCH(Input!$D$50,'17-KL'!$B$60:$B$71,0))+IFERROR(LEFT(INDEX('17-KL'!$G$60:$G$71,MATCH(Input!$D$50,'17-KL'!$B$60:$B$71,0)),5)*($D$53-MID(INDEX('17-KL'!$G$60:$G$71,MATCH(Input!$D$50,'17-KL'!$B$60:$B$71,0)),10,2)),0)+LEFT(INDEX('17-KL'!$H$60:$H$71,MATCH(Input!$D$50,'17-KL'!$B$60:$B$71,0)),5)*($D$54-MID(INDEX('17-KL'!$H$60:$H$71,MATCH(Input!$D$50,'17-KL'!$B$60:$B$71,0)),10,2)))*$D$51 -> 17.8 | AA50: =(INDEX('18-LD'!$E$60:$E$71,MATCH(Input!$D$50,'18-LD'!$B$60:$B$71,0))+ROUND(($D$52-1)/0.5,0)*INDEX('18-LD'!$F$60:$F$71,MATCH(Input!$D$50,'18-LD'!$B$60:$B$71,0))+IFERROR(LEFT(INDEX('18-LD'!$G$60:$G$71,MATCH(Input!$D$50,'18-LD'!$B$60:$B$71,0)),5)*($D$53-MID(INDEX('18-LD'!$G$60:$G$71,MATCH(Input!$D$50,'18-LD'!$B$60:$B$71,0)),10,2)),0)+LEFT(INDEX('18-LD'!$H$60:$H$71,MATCH(Input!$D$50,'18-LD'!$B$60:$B$71,0)),5)*($D$54-MID(INDEX('18-LD'!$H$60:$H$71,MATCH(Input!$D$50,'18-LD'!$B$60:$B$71,0)),10,2)))*$D$51 -> 18.6 | AB50: =(INDEX('19-MP'!$E$60:$E$71,MATCH(Input!$D$50,'19-MP'!$B$60:$B$71,0))+ROUND(($D$52-1)/0.5,0)*INDEX('19-MP'!$F$60:$F$71,MATCH(Input!$D$50,'19-MP'!$B$60:$B$71,0))+IFERROR(LEFT(INDEX('19-MP'!$G$60:$G$71,MATCH(Input!$D$50,'19-MP'!$B$60:$B$71,0)),5)*($D$53-MID(INDEX('19-MP'!$G$60:$G$71,MATCH(Input!$D$50,'19-MP'!$B$60:$B$71,0)),10,2)),0)+LEFT(INDEX('19-MP'!$H$60:$H$71,MATCH(Input!$D$50,'19-MP'!$B$60:$B$71,0)),5)*($D$54-MID(INDEX('19-MP'!$H$60:$H$71,MATCH(Input!$D$50,'19-MP'!$B$60:$B$71,0)),10,2)))*$D$51 -> 17 | AC50: =(INDEX('20-MH'!$E$60:$E$71,MATCH(Input!$D$50,'20-MH'!$B$60:$B$71,0))+ROUND(($D$52-1)/0.5,0)*INDEX('20-MH'!$F$60:$F$71,MATCH(Input!$D$50,'20-MH'!$B$60:$B$71,0))+IFERROR(LEFT(INDEX('20-MH'!$G$60:$G$71,MATCH(Input!$D$50,'20-MH'!$B$60:$B$71,0)),5)*($D$53-MID(INDEX('20-MH'!$G$60:$G$71,MATCH(Input!$D$50,'20-MH'!$B$60:$B$71,0)),10,2)),0)+LEFT(INDEX('20-MH'!$H$60:$H$71,MATCH(Input!$D$50,'20-MH'!$B$60:$B$71,0)),5)*($D$54-MID(INDEX('20-MH'!$H$60:$H$71,MATCH(Input!$D$50,'20-MH'!$B$60:$B$71,0)),10,2)))*$D$51 -> 22.3 | AD50: =(INDEX('21-OD'!$E$60:$E$71,MATCH(Input!$D$50,'21-OD'!$B$60:$B$71,0))+ROUND(($D$52-1)/0.5,0)*INDEX('21-OD'!$F$60:$F$71,MATCH(Input!$D$50,'21-OD'!$B$60:$B$71,0))+IFERROR(LEFT(INDEX('21-OD'!$G$60:$G$71,MATCH(Input!$D$50,'21-OD'!$B$60:$B$71,0)),5)*($D$53-MID(INDEX('21-OD'!$G$60:$G$71,MATCH(Input!$D$50,'21-OD'!$B$60:$B$71,0)),10,2)),0)+LEFT(INDEX('21-OD'!$H$60:$H$71,MATCH(Input!$D$50,'21-OD'!$B$60:$B$71,0)),5)*($D$54-MID(INDEX('21-OD'!$H$60:$H$71,MATCH(Input!$D$50,'21-OD'!$B$60:$B$71,0)),10,2)))*$D$51 -> 17.25 | AE50: =(INDEX('22-PY'!$E$60:$E$71,MATCH(Input!$D$50,'22-PY'!$B$60:$B$71,0))+ROUND(($D$52-1)/0.5,0)*INDEX('22-PY'!$F$60:$F$71,MATCH(Input!$D$50,'22-PY'!$B$60:$B$71,0))+IFERROR(LEFT(INDEX('22-PY'!$G$60:$G$71,MATCH(Input!$D$50,'22-PY'!$B$60:$B$71,0)),5)*($D$53-MID(INDEX('22-PY'!$G$60:$G$71,MATCH(Input!$D$50,'22-PY'!$B$60:$B$71,0)),10,2)),0)+LEFT(INDEX('22-PY'!$H$60:$H$71,MATCH(Input!$D$50,'22-PY'!$B$60:$B$71,0)),5)*($D$54-MID(INDEX('22-PY'!$H$60:$H$71,MATCH(Input!$D$50,'22-PY'!$B$60:$B$71,0)),10,2)))*$D$51 -> 17.9 | AF50: =(INDEX('23-PB'!$E$60:$E$71,MATCH(Input!$D$50,'23-PB'!$B$60:$B$71,0))+ROUND(($D$52-1)/0.5,0)*INDEX('23-PB'!$F$60:$F$71,MATCH(Input!$D$50,'23-PB'!$B$60:$B$71,0))+IFERROR(LEFT(INDEX('23-PB'!$G$60:$G$71,MATCH(Input!$D$50,'23-PB'!$B$60:$B$71,0)),5)*($D$53-MID(INDEX('23-PB'!$G$60:$G$71,MATCH(Input!$D$50,'23-PB'!$B$60:$B$71,0)),10,2)),0)+LEFT(INDEX('23-PB'!$H$60:$H$71,MATCH(Input!$D$50,'23-PB'!$B$60:$B$71,0)),5)*($D$54-MID(INDEX('23-PB'!$H$60:$H$71,MATCH(Input!$D$50,'23-PB'!$B$60:$B$71,0)),10,2)))*$D$51 -> 20.15 | AG50: =(INDEX('24-RJ'!$E$60:$E$71,MATCH(Input!$D$50,'24-RJ'!$B$60:$B$71,0))+ROUND(($D$52-1)/0.5,0)*INDEX('24-RJ'!$F$60:$F$71,MATCH(Input!$D$50,'24-RJ'!$B$60:$B$71,0))+IFERROR(LEFT(INDEX('24-RJ'!$G$60:$G$71,MATCH(Input!$D$50,'24-RJ'!$B$60:$B$71,0)),5)*($D$53-MID(INDEX('24-RJ'!$G$60:$G$71,MATCH(Input!$D$50,'24-RJ'!$B$60:$B$71,0)),10,2)),0)+LEFT(INDEX('24-RJ'!$H$60:$H$71,MATCH(Input!$D$50,'24-RJ'!$B$60:$B$71,0)),5)*($D$54-MID(INDEX('24-RJ'!$H$60:$H$71,MATCH(Input!$D$50,'24-RJ'!$B$60:$B$71,0)),10,2)))*$D$51 -> 19.1 | AH50: =(INDEX('25-TN'!$E$60:$E$71,MATCH(Input!$D$50,'25-TN'!$B$60:$B$71,0))+ROUND(($D$52-1)/0.5,0)*INDEX('25-TN'!$F$60:$F$71,MATCH(Input!$D$50,'25-TN'!$B$60:$B$71,0))+IFERROR(LEFT(INDEX('25-TN'!$G$60:$G$71,MATCH(Input!$D$50,'25-TN'!$B$60:$B$71,0)),5)*($D$53-MID(INDEX('25-TN'!$G$60:$G$71,MATCH(Input!$D$50,'25-TN'!$B$60:$B$71,0)),10,2)),0)+LEFT(INDEX('25-TN'!$H$60:$H$71,MATCH(Input!$D$50,'25-TN'!$B$60:$B$71,0)),5)*($D$54-MID(INDEX('25-TN'!$H$60:$H$71,MATCH(Input!$D$50,'25-TN'!$B$60:$B$71,0)),10,2)))*$D$51 -> 17.1 | AI50: =(INDEX('26-TS'!$E$60:$E$71,MATCH(Input!$D$50,'26-TS'!$B$60:$B$71,0))+ROUND(($D$52-1)/0.5,0)*INDEX('26-TS'!$F$60:$F$71,MATCH(Input!$D$50,'26-TS'!$B$60:$B$71,0))+IFERROR(LEFT(INDEX('26-TS'!$G$60:$G$71,MATCH(Input!$D$50,'26-TS'!$B$60:$B$71,0)),5)*($D$53-MID(INDEX('26-TS'!$G$60:$G$71,MATCH(Input!$D$50,'26-TS'!$B$60:$B$71,0)),10,2)),0)+LEFT(INDEX('26-TS'!$H$60:$H$71,MATCH(Input!$D$50,'26-TS'!$B$60:$B$71,0)),5)*($D$54-MID(INDEX('26-TS'!$H$60:$H$71,MATCH(Input!$D$50,'26-TS'!$B$60:$B$71,0)),10,2)))*$D$51 -> 16.35 | AJ50: =(INDEX('27-UP'!$E$60:$E$71,MATCH(Input!$D$50,'27-UP'!$B$60:$B$71,0))+ROUND(($D$52-1)/0.5,0)*INDEX('27-UP'!$F$60:$F$71,MATCH(Input!$D$50,'27-UP'!$B$60:$B$71,0))+IFERROR(LEFT(INDEX('27-UP'!$G$60:$G$71,MATCH(Input!$D$50,'27-UP'!$B$60:$B$71,0)),5)*($D$53-MID(INDEX('27-UP'!$G$60:$G$71,MATCH(Input!$D$50,'27-UP'!$B$60:$B$71,0)),10,2)),0)+LEFT(INDEX('27-UP'!$H$60:$H$71,MATCH(Input!$D$50,'27-UP'!$B$60:$B$71,0)),5)*($D$54-MID(INDEX('27-UP'!$H$60:$H$71,MATCH(Input!$D$50,'27-UP'!$B$60:$B$71,0)),10,2)))*$D$51 -> 17.4 | AK50: =(INDEX('28-UK'!$E$60:$E$71,MATCH(Input!$D$50,'28-UK'!$B$60:$B$71,0))+ROUND(($D$52-1)/0.5,0)*INDEX('28-UK'!$F$60:$F$71,MATCH(Input!$D$50,'28-UK'!$B$60:$B$71,0))+IFERROR(LEFT(INDEX('28-UK'!$G$60:$G$71,MATCH(Input!$D$50,'28-UK'!$B$60:$B$71,0)),5)*($D$53-MID(INDEX('28-UK'!$G$60:$G$71,MATCH(Input!$D$50,'28-UK'!$B$60:$B$71,0)),10,2)),0)+LEFT(INDEX('28-UK'!$H$60:$H$71,MATCH(Input!$D$50,'28-UK'!$B$60:$B$71,0)),5)*($D$54-MID(INDEX('28-UK'!$H$60:$H$71,MATCH(Input!$D$50,'28-UK'!$B$60:$B$71,0)),10,2)))*$D$51 -> 21.5 | AL50: =(INDEX('29-WB'!$E$60:$E$71,MATCH(Input!$D$50,'29-WB'!$B$60:$B$71,0))+ROUND(($D$52-1)/0.5,0)*INDEX('29-WB'!$F$60:$F$71,MATCH(Input!$D$50,'29-WB'!$B$60:$B$71,0))+IFERROR(LEFT(INDEX('29-WB'!$G$60:$G$71,MATCH(Input!$D$50,'29-WB'!$B$60:$B$71,0)),5)*($D$53-MID(INDEX('29-WB'!$G$60:$G$71,MATCH(Input!$D$50,'29-WB'!$B$60:$B$71,0)),10,2)),0)+LEFT(INDEX('29-WB'!$H$60:$H$71,MATCH(Input!$D$50,'29-WB'!$B$60:$B$71,0)),5)*($D$54-MID(INDEX('29-WB'!$H$60:$H$71,MATCH(Input!$D$50,'29-WB'!$B$60:$B$71,0)),10,2)))*$D$51 -> 20.85
C51: Length in Km | D51: 10
C52: Embankment Height in meter | D52: 1
C53: MSA | D53: 20
C54: Aggregate Lead in km | D54: =$D$9 -> 50
B55: (b) | C55: Type-2
C56: Configuration of Road with Pavement Combination | D56: With flexible pavement-7 meter carriageway_(BC, DBM, WMM & GSB) | E56: =IF($D$8="Andaman & Nicobar Islands ",J56,IF($D$8="Andhra Pradesh",K56,IF($D$8="Assam",L56,IF($D$8="Bihar",M56,IF($D$8="Chandigarh",N56,IF($D$8="Chhattisgarh",O56,IF($D$8="Dadra & Nagar Haveli",P56,IF($D$8="Daman & Diu",Q56,IF($D$8="Delhi",R56,IF($D$8="Goa",S56,IF($D$8="Gujarat",T56,IF($D$8="Haryana",U56,IF($D$8="Himachal Pradesh",V56,IF($D$8="Jammu & Kashmir",W56,IF($D$8="Jharkhand",X56,IF($D$8="Karnataka",Y56,IF($D$8="Kerala",Z56,IF($D$8="Lakshadweep",AA56,IF($D$8="Madhya Pradesh",AB56,IF($D$8="Maharashtra",AC56,IF($D$8="Odisha",AD56,IF($D$8="Puducherry",AE56,IF($D$8="Punjab",AF56,IF($D$8="Rajasthan",AG56,IF($D$8="Tamil Nadu",AH56,IF($D$8="Telangana",AI56,IF($D$8="Uttar Pradesh",AJ56,IF($D$8="Uttarakhand",AK56,IF($D$8="West Bengal",AL56))))))))))))))))))))))))))))) -> 12.3 | F56: =E56*10^7 -> 123000000 | G56: =IF(E56>0,E56/D57,0) -> 2.46 | J56: =(INDEX('1-AN'!$E$60:$E$71,MATCH(Input!$D$56,'1-AN'!$B$60:$B$71,0))+ROUND(($D$58-1)/0.5,0)*INDEX('1-AN'!$F$60:$F$71,MATCH(Input!$D$56,'1-AN'!$B$60:$B$71,0))+IFERROR(LEFT(INDEX('1-AN'!$G$60:$G$71,MATCH(Input!$D$56,'1-AN'!$B$60:$B$71,0)),5)*($D$59-MID(INDEX('1-AN'!$G$60:$G$71,MATCH(Input!$D$56,'1-AN'!$B$60:$B$71,0)),10,2)),0)+LEFT(INDEX('1-AN'!$H$60:$H$71,MATCH(Input!$D$56,'1-AN'!$B$60:$B$71,0)),5)*($D$60-MID(INDEX('1-AN'!$H$60:$H$71,MATCH(Input!$D$56,'1-AN'!$B$60:$B$71,0)),10,2)))*$D$57 -> 13.375 | K56: =(INDEX('2-AP'!$E$60:$E$71,MATCH(Input!$D$56,'2-AP'!$B$60:$B$71,0))+ROUND(($D$58-1)/0.5,0)*INDEX('2-AP'!$F$60:$F$71,MATCH(Input!$D$56,'2-AP'!$B$60:$B$71,0))+IFERROR(LEFT(INDEX('2-AP'!$G$60:$G$71,MATCH(Input!$D$56,'2-AP'!$B$60:$B$71,0)),5)*($D$59-MID(INDEX('2-AP'!$G$60:$G$71,MATCH(Input!$D$56,'2-AP'!$B$60:$B$71,0)),10,2)),0)+LEFT(INDEX('2-AP'!$H$60:$H$71,MATCH(Input!$D$56,'2-AP'!$B$60:$B$71,0)),5)*($D$60-MID(INDEX('2-AP'!$H$60:$H$71,MATCH(Input!$D$56,'2-AP'!$B$60:$B$71,0)),10,2)))*$D$57 -> 10.6 | L56: =(INDEX('3-AS'!$E$60:$E$71,MATCH(Input!$D$56,'3-AS'!$B$60:$B$71,0))+ROUND(($D$58-1)/0.5,0)*INDEX('3-AS'!$F$60:$F$71,MATCH(Input!$D$56,'3-AS'!$B$60:$B$71,0))+IFERROR(LEFT(INDEX('3-AS'!$G$60:$G$71,MATCH(Input!$D$56,'3-AS'!$B$60:$B$71,0)),5)*($D$59-MID(INDEX('3-AS'!$G$60:$G$71,MATCH(Input!$D$56,'3-AS'!$B$60:$B$71,0)),10,2)),0)+LEFT(INDEX('3-AS'!$H$60:$H$71,MATCH(Input!$D$56,'3-AS'!$B$60:$B$71,0)),5)*($D$60-MID(INDEX('3-AS'!$H$60:$H$71,MATCH(Input!$D$56,'3-AS'!$B$60:$B$71,0)),10,2)))*$D$57 -> 13.375 | M56: =(INDEX('4-BR'!$E$60:$E$71,MATCH(Input!$D$56,'4-BR'!$B$60:$B$71,0))+ROUND(($D$58-1)/0.5,0)*INDEX('4-BR'!$F$60:$F$71,MATCH(Input!$D$56,'4-BR'!$B$60:$B$71,0))+IFERROR(LEFT(INDEX('4-BR'!$G$60:$G$71,MATCH(Input!$D$56,'4-BR'!$B$60:$B$71,0)),5)*($D$59-MID(INDEX('4-BR'!$G$60:$G$71,MATCH(Input!$D$56,'4-BR'!$B$60:$B$71,0)),10,2)),0)+LEFT(INDEX('4-BR'!$H$60:$H$71,MATCH(Input!$D$56,'4-BR'!$B$60:$B$71,0)),5)*($D$60-MID(INDEX('4-BR'!$H$60:$H$71,MATCH(Input!$D$56,'4-BR'!$B$60:$B$71,0)),10,2)))*$D$57 -> 11.575 | N56: =(INDEX('5-CH'!$E$60:$E$71,MATCH(Input!$D$56,'5-CH'!$B$60:$B$71,0))+ROUND(($D$58-1)/0.5,0)*INDEX('5-CH'!$F$60:$F$71,MATCH(Input!$D$56,'5-CH'!$B$60:$B$71,0))+IFERROR(LEFT(INDEX('5-CH'!$G$60:$G$71,MATCH(Input!$D$56,'5-CH'!$B$60:$B$71,0)),5)*($D$59-MID(INDEX('5-CH'!$G$60:$G$71,MATCH(Input!$D$56,'5-CH'!$B$60:$B$71,0)),10,2)),0)+LEFT(INDEX('5-CH'!$H$60:$H$71,MATCH(Input!$D$56,'5-CH'!$B$60:$B$71,0)),5)*($D$60-MID(INDEX('5-CH'!$H$60:$H$71,MATCH(Input!$D$56,'5-CH'!$B$60:$B$71,0)),10,2)))*$D$57 -> 13 | O56: =(INDEX('6-CG'!$E$60:$E$71,MATCH(Input!$D$56,'6-CG'!$B$60:$B$71,0))+ROUND(($D$58-1)/0.5,0)*INDEX('6-CG'!$F$60:$F$71,MATCH(Input!$D$56,'6-CG'!$B$60:$B$71,0))+IFERROR(LEFT(INDEX('6-CG'!$G$60:$G$71,MATCH(Input!$D$56,'6-CG'!$B$60:$B$71,0)),5)*($D$59-MID(INDEX('6-CG'!$G$60:$G$71,MATCH(Input!$D$56,'6-CG'!$B$60:$B$71,0)),10,2)),0)+LEFT(INDEX('6-CG'!$H$60:$H$71,MATCH(Input!$D$56,'6-CG'!$B$60:$B$71,0)),5)*($D$60-MID(INDEX('6-CG'!$H$60:$H$71,MATCH(Input!$D$56,'6-CG'!$B$60:$B$71,0)),10,2)))*$D$57 -> 11.525 | P56: =(INDEX('7-DN'!$E$60:$E$71,MATCH(Input!$D$56,'7-DN'!$B$60:$B$71,0))+ROUND(($D$58-1)/0.5,0)*INDEX('7-DN'!$F$60:$F$71,MATCH(Input!$D$56,'7-DN'!$B$60:$B$71,0))+IFERROR(LEFT(INDEX('7-DN'!$G$60:$G$71,MATCH(Input!$D$56,'7-DN'!$B$60:$B$71,0)),5)*($D$59-MID(INDEX('7-DN'!$G$60:$G$71,MATCH(Input!$D$56,'7-DN'!$B$60:$B$71,0)),10,2)),0)+LEFT(INDEX('7-DN'!$H$60:$H$71,MATCH(Input!$D$56,'7-DN'!$B$60:$B$71,0)),5)*($D$60-MID(INDEX('7-DN'!$H$60:$H$71,MATCH(Input!$D$56,'7-DN'!$B$60:$B$71,0)),10,2)))*$D$57 -> 14.125 | Q56: =(INDEX('8-DD'!$E$60:$E$71,MATCH(Input!$D$56,'8-DD'!$B$60:$B$71,0))+ROUND(($D$58-1)/0.5,0)*INDEX('8-DD'!$F$60:$F$71,MATCH(Input!$D$56,'8-DD'!$B$60:$B$71,0))+IFERROR(LEFT(INDEX('8-DD'!$G$60:$G$71,MATCH(Input!$D$56,'8-DD'!$B$60:$B$71,0)),5)*($D$59-MID(INDEX('8-DD'!$G$60:$G$71,MATCH(Input!$D$56,'8-DD'!$B$60:$B$71,0)),10,2)),0)+LEFT(INDEX('8-DD'!$H$60:$H$71,MATCH(Input!$D$56,'8-DD'!$B$60:$B$71,0)),5)*($D$60-MID(INDEX('8-DD'!$H$60:$H$71,MATCH(Input!$D$56,'8-DD'!$B$60:$B$71,0)),10,2)))*$D$57 -> 11.4 | R56: =(INDEX('9-DL'!$E$60:$E$71,MATCH(Input!$D$56,'9-DL'!$B$60:$B$71,0))+ROUND(($D$58-1)/0.5,0)*INDEX('9-DL'!$F$60:$F$71,MATCH(Input!$D$56,'9-DL'!$B$60:$B$71,0))+IFERROR(LEFT(INDEX('9-DL'!$G$60:$G$71,MATCH(Input!$D$56,'9-DL'!$B$60:$B$71,0)),5)*($D$59-MID(INDEX('9-DL'!$G$60:$G$71,MATCH(Input!$D$56,'9-DL'!$B$60:$B$71,0)),10,2)),0)+LEFT(INDEX('9-DL'!$H$60:$H$71,MATCH(Input!$D$56,'9-DL'!$B$60:$B$71,0)),5)*($D$60-MID(INDEX('9-DL'!$H$60:$H$71,MATCH(Input!$D$56,'9-DL'!$B$60:$B$71,0)),10,2)))*$D$57 -> 12.3 | S56: =(INDEX('10-GA'!$E$60:$E$71,MATCH(Input!$D$56,'10-GA'!$B$60:$B$71,0))+ROUND(($D$58-1)/0.5,0)*INDEX('10-GA'!$F$60:$F$71,MATCH(Input!$D$56,'10-GA'!$B$60:$B$71,0))+IFERROR(LEFT(INDEX('10-GA'!$G$60:$G$71,MATCH(Input!$D$56,'10-GA'!$B$60:$B$71,0)),5)*($D$59-MID(INDEX('10-GA'!$G$60:$G$71,MATCH(Input!$D$56,'10-GA'!$B$60:$B$71,0)),10,2)),0)+LEFT(INDEX('10-GA'!$H$60:$H$71,MATCH(Input!$D$56,'10-GA'!$B$60:$B$71,0)),5)*($D$60-MID(INDEX('10-GA'!$H$60:$H$71,MATCH(Input!$D$56,'10-GA'!$B$60:$B$71,0)),10,2)))*$D$57 -> 14.125 | T56: =(INDEX('11-GJ'!$E$60:$E$71,MATCH(Input!$D$56,'11-GJ'!$B$60:$B$71,0))+ROUND(($D$58-1)/0.5,0)*INDEX('11-GJ'!$F$60:$F$71,MATCH(Input!$D$56,'11-GJ'!$B$60:$B$71,0))+IFERROR(LEFT(INDEX('11-GJ'!$G$60:$G$71,MATCH(Input!$D$56,'11-GJ'!$B$60:$B$71,0)),5)*($D$59-MID(INDEX('11-GJ'!$G$60:$G$71,MATCH(Input!$D$56,'11-GJ'!$B$60:$B$71,0)),10,2)),0)+LEFT(INDEX('11-GJ'!$H$60:$H$71,MATCH(Input!$D$56,'11-GJ'!$B$60:$B$71,0)),5)*($D$60-MID(INDEX('11-GJ'!$H$60:$H$71,MATCH(Input!$D$56,'11-GJ'!$B$60:$B$71,0)),10,2)))*$D$57 -> 10.925 | U56: =(INDEX('12-HR'!$E$60:$E$71,MATCH(Input!$D$56,'12-HR'!$B$60:$B$71,0))+ROUND(($D$58-1)/0.5,0)*INDEX('12-HR'!$F$60:$F$71,MATCH(Input!$D$56,'12-HR'!$B$60:$B$71,0))+IFERROR(LEFT(INDEX('12-HR'!$G$60:$G$71,MATCH(Input!$D$56,'12-HR'!$B$60:$B$71,0)),5)*($D$59-MID(INDEX('12-HR'!$G$60:$G$71,MATCH(Input!$D$56,'12-HR'!$B$60:$B$71,0)),10,2)),0)+LEFT(INDEX('12-HR'!$H$60:$H$71,MATCH(Input!$D$56,'12-HR'!$B$60:$B$71,0)),5)*($D$60-MID(INDEX('12-HR'!$H$60:$H$71,MATCH(Input!$D$56,'12-HR'!$B$60:$B$71,0)),10,2)))*$D$57 -> 11.75 | V56: =(INDEX('13-HP'!$E$60:$E$71,MATCH(Input!$D$56,'13-HP'!$B$60:$B$71,0))+ROUND(($D$58-1)/0.5,0)*INDEX('13-HP'!$F$60:$F$71,MATCH(Input!$D$56,'13-HP'!$B$60:$B$71,0))+IFERROR(LEFT(INDEX('13-HP'!$G$60:$G$71,MATCH(Input!$D$56,'13-HP'!$B$60:$B$71,0)),5)*($D$59-MID(INDEX('13-HP'!$G$60:$G$71,MATCH(Input!$D$56,'13-HP'!$B$60:$B$71,0)),10,2)),0)+LEFT(INDEX('13-HP'!$H$60:$H$71,MATCH(Input!$D$56,'13-HP'!$B$60:$B$71,0)),5)*($D$60-MID(INDEX('13-HP'!$H$60:$H$71,MATCH(Input!$D$56,'13-HP'!$B$60:$B$71,0)),10,2)))*$D$57 -> 14.4 | W56: =(INDEX('14-JK'!$E$60:$E$71,MATCH(Input!$D$56,'14-JK'!$B$60:$B$71,0))+ROUND(($D$58-1)/0.5,0)*INDEX('14-JK'!$F$60:$F$71,MATCH(Input!$D$56,'14-JK'!$B$60:$B$71,0))+IFERROR(LEFT(INDEX('14-JK'!$G$60:$G$71,MATCH(Input!$D$56,'14-JK'!$B$60:$B$71,0)),5)*($D$59-MID(INDEX('14-JK'!$G$60:$G$71,MATCH(Input!$D$56,'14-JK'!$B$60:$B$71,0)),10,2)),0)+LEFT(INDEX('14-JK'!$H$60:$H$71,MATCH(Input!$D$56,'14-JK'!$B$60:$B$71,0)),5)*($D$60-MID(INDEX('14-JK'!$H$60:$H$71,MATCH(Input!$D$56,'14-JK'!$B$60:$B$71,0)),10,2)))*$D$57 -> 13.7 | X56: =(INDEX('15-JH'!$E$60:$E$71,MATCH(Input!$D$56,'15-JH'!$B$60:$B$71,0))+ROUND(($D$58-1)/0.5,0)*INDEX('15-JH'!$F$60:$F$71,MATCH(Input!$D$56,'15-JH'!$B$60:$B$71,0))+IFERROR(LEFT(INDEX('15-JH'!$G$60:$G$71,MATCH(Input!$D$56,'15-JH'!$B$60:$B$71,0)),5)*($D$59-MID(INDEX('15-JH'!$G$60:$G$71,MATCH(Input!$D$56,'15-JH'!$B$60:$B$71,0)),10,2)),0)+LEFT(INDEX('15-JH'!$H$60:$H$71,MATCH(Input!$D$56,'15-JH'!$B$60:$B$71,0)),5)*($D$60-MID(INDEX('15-JH'!$H$60:$H$71,MATCH(Input!$D$56,'15-JH'!$B$60:$B$71,0)),10,2)))*$D$57 -> 11.05 | Y56: =(INDEX('16-KA'!$E$60:$E$71,MATCH(Input!$D$56,'16-KA'!$B$60:$B$71,0))+ROUND(($D$58-1)/0.5,0)*INDEX('16-KA'!$F$60:$F$71,MATCH(Input!$D$56,'16-KA'!$B$60:$B$71,0))+IFERROR(LEFT(INDEX('16-KA'!$G$60:$G$71,MATCH(Input!$D$56,'16-KA'!$B$60:$B$71,0)),5)*($D$59-MID(INDEX('16-KA'!$G$60:$G$71,MATCH(Input!$D$56,'16-KA'!$B$60:$B$71,0)),10,2)),0)+LEFT(INDEX('16-KA'!$H$60:$H$71,MATCH(Input!$D$56,'16-KA'!$B$60:$B$71,0)),5)*($D$60-MID(INDEX('16-KA'!$H$60:$H$71,MATCH(Input!$D$56,'16-KA'!$B$60:$B$71,0)),10,2)))*$D$57 -> 11.15 | Z56: =(INDEX('17-KL'!$E$60:$E$71,MATCH(Input!$D$56,'17-KL'!$B$60:$B$71,0))+ROUND(($D$58-1)/0.5,0)*INDEX('17-KL'!$F$60:$F$71,MATCH(Input!$D$56,'17-KL'!$B$60:$B$71,0))+IFERROR(LEFT(INDEX('17-KL'!$G$60:$G$71,MATCH(Input!$D$56,'17-KL'!$B$60:$B$71,0)),5)*($D$59-MID(INDEX('17-KL'!$G$60:$G$71,MATCH(Input!$D$56,'17-KL'!$B$60:$B$71,0)),10,2)),0)+LEFT(INDEX('17-KL'!$H$60:$H$71,MATCH(Input!$D$56,'17-KL'!$B$60:$B$71,0)),5)*($D$60-MID(INDEX('17-KL'!$H$60:$H$71,MATCH(Input!$D$56,'17-KL'!$B$60:$B$71,0)),10,2)))*$D$57 -> 11.55 | AA56: =(INDEX('18-LD'!$E$60:$E$71,MATCH(Input!$D$56,'18-LD'!$B$60:$B$71,0))+ROUND(($D$58-1)/0.5,0)*INDEX('18-LD'!$F$60:$F$71,MATCH(Input!$D$56,'18-LD'!$B$60:$B$71,0))+IFERROR(LEFT(INDEX('18-LD'!$G$60:$G$71,MATCH(Input!$D$56,'18-LD'!$B$60:$B$71,0)),5)*($D$59-MID(INDEX('18-LD'!$G$60:$G$71,MATCH(Input!$D$56,'18-LD'!$B$60:$B$71,0)),10,2)),0)+LEFT(INDEX('18-LD'!$H$60:$H$71,MATCH(Input!$D$56,'18-LD'!$B$60:$B$71,0)),5)*($D$60-MID(INDEX('18-LD'!$H$60:$H$71,MATCH(Input!$D$56,'18-LD'!$B$60:$B$71,0)),10,2)))*$D$57 -> 12.05 | AB56: =(INDEX('19-MP'!$E$60:$E$71,MATCH(Input!$D$56,'19-MP'!$B$60:$B$71,0))+ROUND(($D$58-1)/0.5,0)*INDEX('19-MP'!$F$60:$F$71,MATCH(Input!$D$56,'19-MP'!$B$60:$B$71,0))+IFERROR(LEFT(INDEX('19-MP'!$G$60:$G$71,MATCH(Input!$D$56,'19-MP'!$B$60:$B$71,0)),5)*($D$59-MID(INDEX('19-MP'!$G$60:$G$71,MATCH(Input!$D$56,'19-MP'!$B$60:$B$71,0)),10,2)),0)+LEFT(INDEX('19-MP'!$H$60:$H$71,MATCH(Input!$D$56,'19-MP'!$B$60:$B$71,0)),5)*($D$60-MID(INDEX('19-MP'!$H$60:$H$71,MATCH(Input!$D$56,'19-MP'!$B$60:$B$71,0)),10,2)))*$D$57 -> 11 | AC56: =(INDEX('20-MH'!$E$60:$E$71,MATCH(Input!$D$56,'20-MH'!$B$60:$B$71,0))+ROUND(($D$58-1)/0.5,0)*INDEX('20-MH'!$F$60:$F$71,MATCH(Input!$D$56,'20-MH'!$B$60:$B$71,0))+IFERROR(LEFT(INDEX('20-MH'!$G$60:$G$71,MATCH(Input!$D$56,'20-MH'!$B$60:$B$71,0)),5)*($D$59-MID(INDEX('20-MH'!$G$60:$G$71,MATCH(Input!$D$56,'20-MH'!$B$60:$B$71,0)),10,2)),0)+LEFT(INDEX('20-MH'!$H$60:$H$71,MATCH(Input!$D$56,'20-MH'!$B$60:$B$71,0)),5)*($D$60-MID(INDEX('20-MH'!$H$60:$H$71,MATCH(Input!$D$56,'20-MH'!$B$60:$B$71,0)),10,2)))*$D$57 -> 14.125 | AD56: =(INDEX('21-OD'!$E$60:$E$71,MATCH(Input!$D$56,'21-OD'!$B$60:$B$71,0))+ROUND(($D$58-1)/0.5,0)*INDEX('21-OD'!$F$60:$F$71,MATCH(Input!$D$56,'21-OD'!$B$60:$B$71,0))+IFERROR(LEFT(INDEX('21-OD'!$G$60:$G$71,MATCH(Input!$D$56,'21-OD'!$B$60:$B$71,0)),5)*($D$59-MID(INDEX('21-OD'!$G$60:$G$71,MATCH(Input!$D$56,'21-OD'!$B$60:$B$71,0)),10,2)),0)+LEFT(INDEX('21-OD'!$H$60:$H$71,MATCH(Input!$D$56,'21-OD'!$B$60:$B$71,0)),5)*($D$60-MID(INDEX('21-OD'!$H$60:$H$71,MATCH(Input!$D$56,'21-OD'!$B$60:$B$71,0)),10,2)))*$D$57 -> 11.175 | AE56: =(INDEX('22-PY'!$E$60:$E$71,MATCH(Input!$D$56,'22-PY'!$B$60:$B$71,0))+ROUND(($D$58-1)/0.5,0)*INDEX('22-PY'!$F$60:$F$71,MATCH(Input!$D$56,'22-PY'!$B$60:$B$71,0))+IFERROR(LEFT(INDEX('22-PY'!$G$60:$G$71,MATCH(Input!$D$56,'22-PY'!$B$60:$B$71,0)),5)*($D$59-MID(INDEX('22-PY'!$G$60:$G$71,MATCH(Input!$D$56,'22-PY'!$B$60:$B$71,0)),10,2)),0)+LEFT(INDEX('22-PY'!$H$60:$H$71,MATCH(Input!$D$56,'22-PY'!$B$60:$B$71,0)),5)*($D$60-MID(INDEX('22-PY'!$H$60:$H$71,MATCH(Input!$D$56,'22-PY'!$B$60:$B$71,0)),10,2)))*$D$57 -> 11.55 | AF56: =(INDEX('23-PB'!$E$60:$E$71,MATCH(Input!$D$56,'23-PB'!$B$60:$B$71,0))+ROUND(($D$58-1)/0.5,0)*INDEX('23-PB'!$F$60:$F$71,MATCH(Input!$D$56,'23-PB'!$B$60:$B$71,0))+IFERROR(LEFT(INDEX('23-PB'!$G$60:$G$71,MATCH(Input!$D$56,'23-PB'!$B$60:$B$71,0)),5)*($D$59-MID(INDEX('23-PB'!$G$60:$G$71,MATCH(Input!$D$56,'23-PB'!$B$60:$B$71,0)),10,2)),0)+LEFT(INDEX('23-PB'!$H$60:$H$71,MATCH(Input!$D$56,'23-PB'!$B$60:$B$71,0)),5)*($D$60-MID(INDEX('23-PB'!$H$60:$H$71,MATCH(Input!$D$56,'23-PB'!$B$60:$B$71,0)),10,2)))*$D$57 -> 13 | AG56: =(INDEX('24-RJ'!$E$60:$E$71,MATCH(Input!$D$56,'24-RJ'!$B$60:$B$71,0))+ROUND(($D$58-1)/0.5,0)*INDEX('24-RJ'!$F$60:$F$71,MATCH(Input!$D$56,'24-RJ'!$B$60:$B$71,0))+IFERROR(LEFT(INDEX('24-RJ'!$G$60:$G$71,MATCH(Input!$D$56,'24-RJ'!$B$60:$B$71,0)),5)*($D$59-MID(INDEX('24-RJ'!$G$60:$G$71,MATCH(Input!$D$56,'24-RJ'!$B$60:$B$71,0)),10,2)),0)+LEFT(INDEX('24-RJ'!$H$60:$H$71,MATCH(Input!$D$56,'24-RJ'!$B$60:$B$71,0)),5)*($D$60-MID(INDEX('24-RJ'!$H$60:$H$71,MATCH(Input!$D$56,'24-RJ'!$B$60:$B$71,0)),10,2)))*$D$57 -> 12.375 | AH56: =(INDEX('25-TN'!$E$60:$E$71,MATCH(Input!$D$56,'25-TN'!$B$60:$B$71,0))+ROUND(($D$58-1)/0.5,0)*INDEX('25-TN'!$F$60:$F$71,MATCH(Input!$D$56,'25-TN'!$B$60:$B$71,0))+IFERROR(LEFT(INDEX('25-TN'!$G$60:$G$71,MATCH(Input!$D$56,'25-TN'!$B$60:$B$71,0)),5)*($D$59-MID(INDEX('25-TN'!$G$60:$G$71,MATCH(Input!$D$56,'25-TN'!$B$60:$B$71,0)),10,2)),0)+LEFT(INDEX('25-TN'!$H$60:$H$71,MATCH(Input!$D$56,'25-TN'!$B$60:$B$71,0)),5)*($D$60-MID(INDEX('25-TN'!$H$60:$H$71,MATCH(Input!$D$56,'25-TN'!$B$60:$B$71,0)),10,2)))*$D$57 -> 11.05 | AI56: =(INDEX('26-TS'!$E$60:$E$71,MATCH(Input!$D$56,'26-TS'!$B$60:$B$71,0))+ROUND(($D$58-1)/0.5,0)*INDEX('26-TS'!$F$60:$F$71,MATCH(Input!$D$56,'26-TS'!$B$60:$B$71,0))+IFERROR(LEFT(INDEX('26-TS'!$G$60:$G$71,MATCH(Input!$D$56,'26-TS'!$B$60:$B$71,0)),5)*($D$59-MID(INDEX('26-TS'!$G$60:$G$71,MATCH(Input!$D$56,'26-TS'!$B$60:$B$71,0)),10,2)),0)+LEFT(INDEX('26-TS'!$H$60:$H$71,MATCH(Input!$D$56,'26-TS'!$B$60:$B$71,0)),5)*($D$60-MID(INDEX('26-TS'!$H$60:$H$71,MATCH(Input!$D$56,'26-TS'!$B$60:$B$71,0)),10,2)))*$D$57 -> 10.625 | AJ56: =(INDEX('27-UP'!$E$60:$E$71,MATCH(Input!$D$56,'27-UP'!$B$60:$B$71,0))+ROUND(($D$58-1)/0.5,0)*INDEX('27-UP'!$F$60:$F$71,MATCH(Input!$D$56,'27-UP'!$B$60:$B$71,0))+IFERROR(LEFT(INDEX('27-UP'!$G$60:$G$71,MATCH(Input!$D$56,'27-UP'!$B$60:$B$71,0)),5)*($D$59-MID(INDEX('27-UP'!$G$60:$G$71,MATCH(Input!$D$56,'27-UP'!$B$60:$B$71,0)),10,2)),0)+LEFT(INDEX('27-UP'!$H$60:$H$71,MATCH(Input!$D$56,'27-UP'!$B$60:$B$71,0)),5)*($D$60-MID(INDEX('27-UP'!$H$60:$H$71,MATCH(Input!$D$56,'27-UP'!$B$60:$B$71,0)),10,2)))*$D$57 -> 11.325 | AK56: =(INDEX('28-UK'!$E$60:$E$71,MATCH(Input!$D$56,'28-UK'!$B$60:$B$71,0))+ROUND(($D$58-1)/0.5,0)*INDEX('28-UK'!$F$60:$F$71,MATCH(Input!$D$56,'28-UK'!$B$60:$B$71,0))+IFERROR(LEFT(INDEX('28-UK'!$G$60:$G$71,MATCH(Input!$D$56,'28-UK'!$B$60:$B$71,0)),5)*($D$59-MID(INDEX('28-UK'!$G$60:$G$71,MATCH(Input!$D$56,'28-UK'!$B$60:$B$71,0)),10,2)),0)+LEFT(INDEX('28-UK'!$H$60:$H$71,MATCH(Input!$D$56,'28-UK'!$B$60:$B$71,0)),5)*($D$60-MID(INDEX('28-UK'!$H$60:$H$71,MATCH(Input!$D$56,'28-UK'!$B$60:$B$71,0)),10,2)))*$D$57 -> 13.675 | AL56: =(INDEX('29-WB'!$E$60:$E$71,MATCH(Input!$D$56,'29-WB'!$B$60:$B$71,0))+ROUND(($D$58-1)/0.5,0)*INDEX('29-WB'!$F$60:$F$71,MATCH(Input!$D$56,'29-WB'!$B$60:$B$71,0))+IFERROR(LEFT(INDEX('29-WB'!$G$60:$G$71,MATCH(Input!$D$56,'29-WB'!$B$60:$B$71,0)),5)*($D$59-MID(INDEX('29-WB'!$G$60:$G$71,MATCH(Input!$D$56,'29-WB'!$B$60:$B$71,0)),10,2)),0)+LEFT(INDEX('29-WB'!$H$60:$H$71,MATCH(Input!$D$56,'29-WB'!$B$60:$B$71,0)),5)*($D$60-MID(INDEX('29-WB'!$H$60:$H$71,MATCH(Input!$D$56,'29-WB'!$B$60:$B$71,0)),10,2)))*$D$57 -> 13.375
C57: Length in Km | D57: 5
C58: Embankment Height in meter | D58: 1
C59: MSA | D59: 30
C60: Aggregate Lead in km | D60: =$D$9 -> 50
B61: (c) | C61: Type-3
C62: Configuration of Road with Pavement Combination | D62: With flexible pavement-7 meter carriageway + PS_(BC, DBM, WMM & GSB) | E62: =IF($D$8="Andaman & Nicobar Islands ",J62,IF($D$8="Andhra Pradesh",K62,IF($D$8="Assam",L62,IF($D$8="Bihar",M62,IF($D$8="Chandigarh",N62,IF($D$8="Chhattisgarh",O62,IF($D$8="Dadra & Nagar Haveli",P62,IF($D$8="Daman & Diu",Q62,IF($D$8="Delhi",R62,IF($D$8="Goa",S62,IF($D$8="Gujarat",T62,IF($D$8="Haryana",U62,IF($D$8="Himachal Pradesh",V62,IF($D$8="Jammu & Kashmir",W62,IF($D$8="Jharkhand",X62,IF($D$8="Karnataka",Y62,IF($D$8="Kerala",Z62,IF($D$8="Lakshadweep",AA62,IF($D$8="Madhya Pradesh",AB62,IF($D$8="Maharashtra",AC62,IF($D$8="Odisha",AD62,IF($D$8="Puducherry",AE62,IF($D$8="Punjab",AF62,IF($D$8="Rajasthan",AG62,IF($D$8="Tamil Nadu",AH62,IF($D$8="Telangana",AI62,IF($D$8="Uttar Pradesh",AJ62,IF($D$8="Uttarakhand",AK62,IF($D$8="West Bengal",AL62))))))))))))))))))))))))))))) -> 29.2 | F62: =E62*10^7 -> 292000000 | G62: =IF(E62>0,E62/D63,0) -> 2.92 | J62: =(INDEX('1-AN'!$E$60:$E$71,MATCH(Input!$D$62,'1-AN'!$B$60:$B$71,0))+ROUND(($D$64-1)/0.5,0)*INDEX('1-AN'!$F$60:$F$71,MATCH(Input!$D$62,'1-AN'!$B$60:$B$71,0))+IFERROR(LEFT(INDEX('1-AN'!$G$60:$G$71,MATCH(Input!$D$62,'1-AN'!$B$60:$B$71,0)),5)*($D$65-MID(INDEX('1-AN'!$G$60:$G$71,MATCH(Input!$D$62,'1-AN'!$B$60:$B$71,0)),10,2)),0)+LEFT(INDEX('1-AN'!$H$60:$H$71,MATCH(Input!$D$62,'1-AN'!$B$60:$B$71,0)),5)*($D$66-MID(INDEX('1-AN'!$H$60:$H$71,MATCH(Input!$D$62,'1-AN'!$B$60:$B$71,0)),10,2)))*$D$63 -> 31.45 | K62: =(INDEX('2-AP'!$E$60:$E$71,MATCH(Input!$D$62,'2-AP'!$B$60:$B$71,0))+ROUND(($D$64-1)/0.5,0)*INDEX('2-AP'!$F$60:$F$71,MATCH(Input!$D$62,'2-AP'!$B$60:$B$71,0))+IFERROR(LEFT(INDEX('2-AP'!$G$60:$G$71,MATCH(Input!$D$62,'2-AP'!$B$60:$B$71,0)),5)*($D$65-MID(INDEX('2-AP'!$G$60:$G$71,MATCH(Input!$D$62,'2-AP'!$B$60:$B$71,0)),10,2)),0)+LEFT(INDEX('2-AP'!$H$60:$H$71,MATCH(Input!$D$62,'2-AP'!$B$60:$B$71,0)),5)*($D$66-MID(INDEX('2-AP'!$H$60:$H$71,MATCH(Input!$D$62,'2-AP'!$B$60:$B$71,0)),10,2)))*$D$63 -> 25.25 | L62: =(INDEX('3-AS'!$E$60:$E$71,MATCH(Input!$D$62,'3-AS'!$B$60:$B$71,0))+ROUND(($D$64-1)/0.5,0)*INDEX('3-AS'!$F$60:$F$71,MATCH(Input!$D$62,'3-AS'!$B$60:$B$71,0))+IFERROR(LEFT(INDEX('3-AS'!$G$60:$G$71,MATCH(Input!$D$62,'3-AS'!$B$60:$B$71,0)),5)*($D$65-MID(INDEX('3-AS'!$G$60:$G$71,MATCH(Input!$D$62,'3-AS'!$B$60:$B$71,0)),10,2)),0)+LEFT(INDEX('3-AS'!$H$60:$H$71,MATCH(Input!$D$62,'3-AS'!$B$60:$B$71,0)),5)*($D$66-MID(INDEX('3-AS'!$H$60:$H$71,MATCH(Input!$D$62,'3-AS'!$B$60:$B$71,0)),10,2)))*$D$63 -> 31.45 | M62: =(INDEX('4-BR'!$E$60:$E$71,MATCH(Input!$D$62,'4-BR'!$B$60:$B$71,0))+ROUND(($D$64-1)/0.5,0)*INDEX('4-BR'!$F$60:$F$71,MATCH(Input!$D$62,'4-BR'!$B$60:$B$71,0))+IFERROR(LEFT(INDEX('4-BR'!$G$60:$G$71,MATCH(Input!$D$62,'4-BR'!$B$60:$B$71,0)),5)*($D$65-MID(INDEX('4-BR'!$G$60:$G$71,MATCH(Input!$D$62,'4-BR'!$B$60:$B$71,0)),10,2)),0)+LEFT(INDEX('4-BR'!$H$60:$H$71,MATCH(Input!$D$62,'4-BR'!$B$60:$B$71,0)),5)*($D$66-MID(INDEX('4-BR'!$H$60:$H$71,MATCH(Input!$D$62,'4-BR'!$B$60:$B$71,0)),10,2)))*$D$63 -> 27.65 | N62: =(INDEX('5-CH'!$E$60:$E$71,MATCH(Input!$D$62,'5-CH'!$B$60:$B$71,0))+ROUND(($D$64-1)/0.5,0)*INDEX('5-CH'!$F$60:$F$71,MATCH(Input!$D$62,'5-CH'!$B$60:$B$71,0))+IFERROR(LEFT(INDEX('5-CH'!$G$60:$G$71,MATCH(Input!$D$62,'5-CH'!$B$60:$B$71,0)),5)*($D$65-MID(INDEX('5-CH'!$G$60:$G$71,MATCH(Input!$D$62,'5-CH'!$B$60:$B$71,0)),10,2)),0)+LEFT(INDEX('5-CH'!$H$60:$H$71,MATCH(Input!$D$62,'5-CH'!$B$60:$B$71,0)),5)*($D$66-MID(INDEX('5-CH'!$H$60:$H$71,MATCH(Input!$D$62,'5-CH'!$B$60:$B$71,0)),10,2)))*$D$63 -> 30.85 | O62: =(INDEX('6-CG'!$E$60:$E$71,MATCH(Input!$D$62,'6-CG'!$B$60:$B$71,0))+ROUND(($D$64-1)/0.5,0)*INDEX('6-CG'!$F$60:$F$71,MATCH(Input!$D$62,'6-CG'!$B$60:$B$71,0))+IFERROR(LEFT(INDEX('6-CG'!$G$60:$G$71,MATCH(Input!$D$62,'6-CG'!$B$60:$B$71,0)),5)*($D$65-MID(INDEX('6-CG'!$G$60:$G$71,MATCH(Input!$D$62,'6-CG'!$B$60:$B$71,0)),10,2)),0)+LEFT(INDEX('6-CG'!$H$60:$H$71,MATCH(Input!$D$62,'6-CG'!$B$60:$B$71,0)),5)*($D$66-MID(INDEX('6-CG'!$H$60:$H$71,MATCH(Input!$D$62,'6-CG'!$B$60:$B$71,0)),10,2)))*$D$63 -> 27.3 | P62: =(INDEX('7-DN'!$E$60:$E$71,MATCH(Input!$D$62,'7-DN'!$B$60:$B$71,0))+ROUND(($D$64-1)/0.5,0)*INDEX('7-DN'!$F$60:$F$71,MATCH(Input!$D$62,'7-DN'!$B$60:$B$71,0))+IFERROR(LEFT(INDEX('7-DN'!$G$60:$G$71,MATCH(Input!$D$62,'7-DN'!$B$60:$B$71,0)),5)*($D$65-MID(INDEX('7-DN'!$G$60:$G$71,MATCH(Input!$D$62,'7-DN'!$B$60:$B$71,0)),10,2)),0)+LEFT(INDEX('7-DN'!$H$60:$H$71,MATCH(Input!$D$62,'7-DN'!$B$60:$B$71,0)),5)*($D$66-MID(INDEX('7-DN'!$H$60:$H$71,MATCH(Input!$D$62,'7-DN'!$B$60:$B$71,0)),10,2)))*$D$63 -> 32.6 | Q62: =(INDEX('8-DD'!$E$60:$E$71,MATCH(Input!$D$62,'8-DD'!$B$60:$B$71,0))+ROUND(($D$64-1)/0.5,0)*INDEX('8-DD'!$F$60:$F$71,MATCH(Input!$D$62,'8-DD'!$B$60:$B$71,0))+IFERROR(LEFT(INDEX('8-DD'!$G$60:$G$71,MATCH(Input!$D$62,'8-DD'!$B$60:$B$71,0)),5)*($D$65-MID(INDEX('8-DD'!$G$60:$G$71,MATCH(Input!$D$62,'8-DD'!$B$60:$B$71,0)),10,2)),0)+LEFT(INDEX('8-DD'!$H$60:$H$71,MATCH(Input!$D$62,'8-DD'!$B$60:$B$71,0)),5)*($D$66-MID(INDEX('8-DD'!$H$60:$H$71,MATCH(Input!$D$62,'8-DD'!$B$60:$B$71,0)),10,2)))*$D$63 -> 27.3 | R62: =(INDEX('9-DL'!$E$60:$E$71,MATCH(Input!$D$62,'9-DL'!$B$60:$B$71,0))+ROUND(($D$64-1)/0.5,0)*INDEX('9-DL'!$F$60:$F$71,MATCH(Input!$D$62,'9-DL'!$B$60:$B$71,0))+IFERROR(LEFT(INDEX('9-DL'!$G$60:$G$71,MATCH(Input!$D$62,'9-DL'!$B$60:$B$71,0)),5)*($D$65-MID(INDEX('9-DL'!$G$60:$G$71,MATCH(Input!$D$62,'9-DL'!$B$60:$B$71,0)),10,2)),0)+LEFT(INDEX('9-DL'!$H$60:$H$71,MATCH(Input!$D$62,'9-DL'!$B$60:$B$71,0)),5)*($D$66-MID(INDEX('9-DL'!$H$60:$H$71,MATCH(Input!$D$62,'9-DL'!$B$60:$B$71,0)),10,2)))*$D$63 -> 29.2 | S62: =(INDEX('10-GA'!$E$60:$E$71,MATCH(Input!$D$62,'10-GA'!$B$60:$B$71,0))+ROUND(($D$64-1)/0.5,0)*INDEX('10-GA'!$F$60:$F$71,MATCH(Input!$D$62,'10-GA'!$B$60:$B$71,0))+IFERROR(LEFT(INDEX('10-GA'!$G$60:$G$71,MATCH(Input!$D$62,'10-GA'!$B$60:$B$71,0)),5)*($D$65-MID(INDEX('10-GA'!$G$60:$G$71,MATCH(Input!$D$62,'10-GA'!$B$60:$B$71,0)),10,2)),0)+LEFT(INDEX('10-GA'!$H$60:$H$71,MATCH(Input!$D$62,'10-GA'!$B$60:$B$71,0)),5)*($D$66-MID(INDEX('10-GA'!$H$60:$H$71,MATCH(Input!$D$62,'10-GA'!$B$60:$B$71,0)),10,2)))*$D$63 -> 32.6 | T62: =(INDEX('11-GJ'!$E$60:$E$71,MATCH(Input!$D$62,'11-GJ'!$B$60:$B$71,0))+ROUND(($D$64-1)/0.5,0)*INDEX('11-GJ'!$F$60:$F$71,MATCH(Input!$D$62,'11-GJ'!$B$60:$B$71,0))+IFERROR(LEFT(INDEX('11-GJ'!$G$60:$G$71,MATCH(Input!$D$62,'11-GJ'!$B$60:$B$71,0)),5)*($D$65-MID(INDEX('11-GJ'!$G$60:$G$71,MATCH(Input!$D$62,'11-GJ'!$B$60:$B$71,0)),10,2)),0)+LEFT(INDEX('11-GJ'!$H$60:$H$71,MATCH(Input!$D$62,'11-GJ'!$B$60:$B$71,0)),5)*($D$66-MID(INDEX('11-GJ'!$H$60:$H$71,MATCH(Input!$D$62,'11-GJ'!$B$60:$B$71,0)),10,2)))*$D$63 -> 26.25 | U62: =(INDEX('12-HR'!$E$60:$E$71,MATCH(Input!$D$62,'12-HR'!$B$60:$B$71,0))+ROUND(($D$64-1)/0.5,0)*INDEX('12-HR'!$F$60:$F$71,MATCH(Input!$D$62,'12-HR'!$B$60:$B$71,0))+IFERROR(LEFT(INDEX('12-HR'!$G$60:$G$71,MATCH(Input!$D$62,'12-HR'!$B$60:$B$71,0)),5)*($D$65-MID(INDEX('12-HR'!$G$60:$G$71,MATCH(Input!$D$62,'12-HR'!$B$60:$B$71,0)),10,2)),0)+LEFT(INDEX('12-HR'!$H$60:$H$71,MATCH(Input!$D$62,'12-HR'!$B$60:$B$71,0)),5)*($D$66-MID(INDEX('12-HR'!$H$60:$H$71,MATCH(Input!$D$62,'12-HR'!$B$60:$B$71,0)),10,2)))*$D$63 -> 28 | V62: =(INDEX('13-HP'!$E$60:$E$71,MATCH(Input!$D$62,'13-HP'!$B$60:$B$71,0))+ROUND(($D$64-1)/0.5,0)*INDEX('13-HP'!$F$60:$F$71,MATCH(Input!$D$62,'13-HP'!$B$60:$B$71,0))+IFERROR(LEFT(INDEX('13-HP'!$G$60:$G$71,MATCH(Input!$D$62,'13-HP'!$B$60:$B$71,0)),5)*($D$65-MID(INDEX('13-HP'!$G$60:$G$71,MATCH(Input!$D$62,'13-HP'!$B$60:$B$71,0)),10,2)),0)+LEFT(INDEX('13-HP'!$H$60:$H$71,MATCH(Input!$D$62,'13-HP'!$B$60:$B$71,0)),5)*($D$66-MID(INDEX('13-HP'!$H$60:$H$71,MATCH(Input!$D$62,'13-HP'!$B$60:$B$71,0)),10,2)))*$D$63 -> 33.4 | W62: =(INDEX('14-JK'!$E$60:$E$71,MATCH(Input!$D$62,'14-JK'!$B$60:$B$71,0))+ROUND(($D$64-1)/0.5,0)*INDEX('14-JK'!$F$60:$F$71,MATCH(Input!$D$62,'14-JK'!$B$60:$B$71,0))+IFERROR(LEFT(INDEX('14-JK'!$G$60:$G$71,MATCH(Input!$D$62,'14-JK'!$B$60:$B$71,0)),5)*($D$65-MID(INDEX('14-JK'!$G$60:$G$71,MATCH(Input!$D$62,'14-JK'!$B$60:$B$71,0)),10,2)),0)+LEFT(INDEX('14-JK'!$H$60:$H$71,MATCH(Input!$D$62,'14-JK'!$B$60:$B$71,0)),5)*($D$66-MID(INDEX('14-JK'!$H$60:$H$71,MATCH(Input!$D$62,'14-JK'!$B$60:$B$71,0)),10,2)))*$D$63 -> 31.9 | X62: =(INDEX('15-JH'!$E$60:$E$71,MATCH(Input!$D$62,'15-JH'!$B$60:$B$71,0))+ROUND(($D$64-1)/0.5,0)*INDEX('15-JH'!$F$60:$F$71,MATCH(Input!$D$62,'15-JH'!$B$60:$B$71,0))+IFERROR(LEFT(INDEX('15-JH'!$G$60:$G$71,MATCH(Input!$D$62,'15-JH'!$B$60:$B$71,0)),5)*($D$65-MID(INDEX('15-JH'!$G$60:$G$71,MATCH(Input!$D$62,'15-JH'!$B$60:$B$71,0)),10,2)),0)+LEFT(INDEX('15-JH'!$H$60:$H$71,MATCH(Input!$D$62,'15-JH'!$B$60:$B$71,0)),5)*($D$66-MID(INDEX('15-JH'!$H$60:$H$71,MATCH(Input!$D$62,'15-JH'!$B$60:$B$71,0)),10,2)))*$D$63 -> 26.5 | Y62: =(INDEX('16-KA'!$E$60:$E$71,MATCH(Input!$D$62,'16-KA'!$B$60:$B$71,0))+ROUND(($D$64-1)/0.5,0)*INDEX('16-KA'!$F$60:$F$71,MATCH(Input!$D$62,'16-KA'!$B$60:$B$71,0))+IFERROR(LEFT(INDEX('16-KA'!$G$60:$G$71,MATCH(Input!$D$62,'16-KA'!$B$60:$B$71,0)),5)*($D$65-MID(INDEX('16-KA'!$G$60:$G$71,MATCH(Input!$D$62,'16-KA'!$B$60:$B$71,0)),10,2)),0)+LEFT(INDEX('16-KA'!$H$60:$H$71,MATCH(Input!$D$62,'16-KA'!$B$60:$B$71,0)),5)*($D$66-MID(INDEX('16-KA'!$H$60:$H$71,MATCH(Input!$D$62,'16-KA'!$B$60:$B$71,0)),10,2)))*$D$63 -> 26.4 | Z62: =(INDEX('17-KL'!$E$60:$E$71,MATCH(Input!$D$62,'17-KL'!$B$60:$B$71,0))+ROUND(($D$64-1)/0.5,0)*INDEX('17-KL'!$F$60:$F$71,MATCH(Input!$D$62,'17-KL'!$B$60:$B$71,0))+IFERROR(LEFT(INDEX('17-KL'!$G$60:$G$71,MATCH(Input!$D$62,'17-KL'!$B$60:$B$71,0)),5)*($D$65-MID(INDEX('17-KL'!$G$60:$G$71,MATCH(Input!$D$62,'17-KL'!$B$60:$B$71,0)),10,2)),0)+LEFT(INDEX('17-KL'!$H$60:$H$71,MATCH(Input!$D$62,'17-KL'!$B$60:$B$71,0)),5)*($D$66-MID(INDEX('17-KL'!$H$60:$H$71,MATCH(Input!$D$62,'17-KL'!$B$60:$B$71,0)),10,2)))*$D$63 -> 27.2 | AA62: =(INDEX('18-LD'!$E$60:$E$71,MATCH(Input!$D$62,'18-LD'!$B$60:$B$71,0))+ROUND(($D$64-1)/0.5,0)*INDEX('18-LD'!$F$60:$F$71,MATCH(Input!$D$62,'18-LD'!$B$60:$B$71,0))+IFERROR(LEFT(INDEX('18-LD'!$G$60:$G$71,MATCH(Input!$D$62,'18-LD'!$B$60:$B$71,0)),5)*($D$65-MID(INDEX('18-LD'!$G$60:$G$71,MATCH(Input!$D$62,'18-LD'!$B$60:$B$71,0)),10,2)),0)+LEFT(INDEX('18-LD'!$H$60:$H$71,MATCH(Input!$D$62,'18-LD'!$B$60:$B$71,0)),5)*($D$66-MID(INDEX('18-LD'!$H$60:$H$71,MATCH(Input!$D$62,'18-LD'!$B$60:$B$71,0)),10,2)))*$D$63 -> 28.3 | AB62: =(INDEX('19-MP'!$E$60:$E$71,MATCH(Input!$D$62,'19-MP'!$B$60:$B$71,0))+ROUND(($D$64-1)/0.5,0)*INDEX('19-MP'!$F$60:$F$71,MATCH(Input!$D$62,'19-MP'!$B$60:$B$71,0))+IFERROR(LEFT(INDEX('19-MP'!$G$60:$G$71,MATCH(Input!$D$62,'19-MP'!$B$60:$B$71,0)),5)*($D$65-MID(INDEX('19-MP'!$G$60:$G$71,MATCH(Input!$D$62,'19-MP'!$B$60:$B$71,0)),10,2)),0)+LEFT(INDEX('19-MP'!$H$60:$H$71,MATCH(Input!$D$62,'19-MP'!$B$60:$B$71,0)),5)*($D$66-MID(INDEX('19-MP'!$H$60:$H$71,MATCH(Input!$D$62,'19-MP'!$B$60:$B$71,0)),10,2)))*$D$63 -> 26.2 | AC62: =(INDEX('20-MH'!$E$60:$E$71,MATCH(Input!$D$62,'20-MH'!$B$60:$B$71,0))+ROUND(($D$64-1)/0.5,0)*INDEX('20-MH'!$F$60:$F$71,MATCH(Input!$D$62,'20-MH'!$B$60:$B$71,0))+IFERROR(LEFT(INDEX('20-MH'!$G$60:$G$71,MATCH(Input!$D$62,'20-MH'!$B$60:$B$71,0)),5)*($D$65-MID(INDEX('20-MH'!$G$60:$G$71,MATCH(Input!$D$62,'20-MH'!$B$60:$B$71,0)),10,2)),0)+LEFT(INDEX('20-MH'!$H$60:$H$71,MATCH(Input!$D$62,'20-MH'!$B$60:$B$71,0)),5)*($D$66-MID(INDEX('20-MH'!$H$60:$H$71,MATCH(Input!$D$62,'20-MH'!$B$60:$B$71,0)),10,2)))*$D$63 -> 32.6 | AD62: =(INDEX('21-OD'!$E$60:$E$71,MATCH(Input!$D$62,'21-OD'!$B$60:$B$71,0))+ROUND(($D$64-1)/0.5,0)*INDEX('21-OD'!$F$60:$F$71,MATCH(Input!$D$62,'21-OD'!$B$60:$B$71,0))+IFERROR(LEFT(INDEX('21-OD'!$G$60:$G$71,MATCH(Input!$D$62,'21-OD'!$B$60:$B$71,0)),5)*($D$65-MID(INDEX('21-OD'!$G$60:$G$71,MATCH(Input!$D$62,'21-OD'!$B$60:$B$71,0)),10,2)),0)+LEFT(INDEX('21-OD'!$H$60:$H$71,MATCH(Input!$D$62,'21-OD'!$B$60:$B$71,0)),5)*($D$66-MID(INDEX('21-OD'!$H$60:$H$71,MATCH(Input!$D$62,'21-OD'!$B$60:$B$71,0)),10,2)))*$D$63 -> 26.55 | AE62: =(INDEX('22-PY'!$E$60:$E$71,MATCH(Input!$D$62,'22-PY'!$B$60:$B$71,0))+ROUND(($D$64-1)/0.5,0)*INDEX('22-PY'!$F$60:$F$71,MATCH(Input!$D$62,'22-PY'!$B$60:$B$71,0))+IFERROR(LEFT(INDEX('22-PY'!$G$60:$G$71,MATCH(Input!$D$62,'22-PY'!$B$60:$B$71,0)),5)*($D$65-MID(INDEX('22-PY'!$G$60:$G$71,MATCH(Input!$D$62,'22-PY'!$B$60:$B$71,0)),10,2)),0)+LEFT(INDEX('22-PY'!$H$60:$H$71,MATCH(Input!$D$62,'22-PY'!$B$60:$B$71,0)),5)*($D$66-MID(INDEX('22-PY'!$H$60:$H$71,MATCH(Input!$D$62,'22-PY'!$B$60:$B$71,0)),10,2)))*$D$63 -> 27.2 | AF62: =(INDEX('23-PB'!$E$60:$E$71,MATCH(Input!$D$62,'23-PB'!$B$60:$B$71,0))+ROUND(($D$64-1)/0.5,0)*INDEX('23-PB'!$F$60:$F$71,MATCH(Input!$D$62,'23-PB'!$B$60:$B$71,0))+IFERROR(LEFT(INDEX('23-PB'!$G$60:$G$71,MATCH(Input!$D$62,'23-PB'!$B$60:$B$71,0)),5)*($D$65-MID(INDEX('23-PB'!$G$60:$G$71,MATCH(Input!$D$62,'23-PB'!$B$60:$B$71,0)),10,2)),0)+LEFT(INDEX('23-PB'!$H$60:$H$71,MATCH(Input!$D$62,'23-PB'!$B$60:$B$71,0)),5)*($D$66-MID(INDEX('23-PB'!$H$60:$H$71,MATCH(Input!$D$62,'23-PB'!$B$60:$B$71,0)),10,2)))*$D$63 -> 30.85 | AG62: =(INDEX('24-RJ'!$E$60:$E$71,MATCH(Input!$D$62,'24-RJ'!$B$60:$B$71,0))+ROUND(($D$64-1)/0.5,0)*INDEX('24-RJ'!$F$60:$F$71,MATCH(Input!$D$62,'24-RJ'!$B$60:$B$71,0))+IFERROR(LEFT(INDEX('24-RJ'!$G$60:$G$71,MATCH(Input!$D$62,'24-RJ'!$B$60:$B$71,0)),5)*($D$65-MID(INDEX('24-RJ'!$G$60:$G$71,MATCH(Input!$D$62,'24-RJ'!$B$60:$B$71,0)),10,2)),0)+LEFT(INDEX('24-RJ'!$H$60:$H$71,MATCH(Input!$D$62,'24-RJ'!$B$60:$B$71,0)),5)*($D$66-MID(INDEX('24-RJ'!$H$60:$H$71,MATCH(Input!$D$62,'24-RJ'!$B$60:$B$71,0)),10,2)))*$D$63 -> 29.45 | AH62: =(INDEX('25-TN'!$E$60:$E$71,MATCH(Input!$D$62,'25-TN'!$B$60:$B$71,0))+ROUND(($D$64-1)/0.5,0)*INDEX('25-TN'!$F$60:$F$71,MATCH(Input!$D$62,'25-TN'!$B$60:$B$71,0))+IFERROR(LEFT(INDEX('25-TN'!$G$60:$G$71,MATCH(Input!$D$62,'25-TN'!$B$60:$B$71,0)),5)*($D$65-MID(INDEX('25-TN'!$G$60:$G$71,MATCH(Input!$D$62,'25-TN'!$B$60:$B$71,0)),10,2)),0)+LEFT(INDEX('25-TN'!$H$60:$H$71,MATCH(Input!$D$62,'25-TN'!$B$60:$B$71,0)),5)*($D$66-MID(INDEX('25-TN'!$H$60:$H$71,MATCH(Input!$D$62,'25-TN'!$B$60:$B$71,0)),10,2)))*$D$63 -> 26.2 | AI62: =(INDEX('26-TS'!$E$60:$E$71,MATCH(Input!$D$62,'26-TS'!$B$60:$B$71,0))+ROUND(($D$64-1)/0.5,0)*INDEX('26-TS'!$F$60:$F$71,MATCH(Input!$D$62,'26-TS'!$B$60:$B$71,0))+IFERROR(LEFT(INDEX('26-TS'!$G$60:$G$71,MATCH(Input!$D$62,'26-TS'!$B$60:$B$71,0)),5)*($D$65-MID(INDEX('26-TS'!$G$60:$G$71,MATCH(Input!$D$62,'26-TS'!$B$60:$B$71,0)),10,2)),0)+LEFT(INDEX('26-TS'!$H$60:$H$71,MATCH(Input!$D$62,'26-TS'!$B$60:$B$71,0)),5)*($D$66-MID(INDEX('26-TS'!$H$60:$H$71,MATCH(Input!$D$62,'26-TS'!$B$60:$B$71,0)),10,2)))*$D$63 -> 25.35 | AJ62: =(INDEX('27-UP'!$E$60:$E$71,MATCH(Input!$D$62,'27-UP'!$B$60:$B$71,0))+ROUND(($D$64-1)/0.5,0)*INDEX('27-UP'!$F$60:$F$71,MATCH(Input!$D$62,'27-UP'!$B$60:$B$71,0))+IFERROR(LEFT(INDEX('27-UP'!$G$60:$G$71,MATCH(Input!$D$62,'27-UP'!$B$60:$B$71,0)),5)*($D$65-MID(INDEX('27-UP'!$G$60:$G$71,MATCH(Input!$D$62,'27-UP'!$B$60:$B$71,0)),10,2)),0)+LEFT(INDEX('27-UP'!$H$60:$H$71,MATCH(Input!$D$62,'27-UP'!$B$60:$B$71,0)),5)*($D$66-MID(INDEX('27-UP'!$H$60:$H$71,MATCH(Input!$D$62,'27-UP'!$B$60:$B$71,0)),10,2)))*$D$63 -> 27.05 | AK62: =(INDEX('28-UK'!$E$60:$E$71,MATCH(Input!$D$62,'28-UK'!$B$60:$B$71,0))+ROUND(($D$64-1)/0.5,0)*INDEX('28-UK'!$F$60:$F$71,MATCH(Input!$D$62,'28-UK'!$B$60:$B$71,0))+IFERROR(LEFT(INDEX('28-UK'!$G$60:$G$71,MATCH(Input!$D$62,'28-UK'!$B$60:$B$71,0)),5)*($D$65-MID(INDEX('28-UK'!$G$60:$G$71,MATCH(Input!$D$62,'28-UK'!$B$60:$B$71,0)),10,2)),0)+LEFT(INDEX('28-UK'!$H$60:$H$71,MATCH(Input!$D$62,'28-UK'!$B$60:$B$71,0)),5)*($D$66-MID(INDEX('28-UK'!$H$60:$H$71,MATCH(Input!$D$62,'28-UK'!$B$60:$B$71,0)),10,2)))*$D$63 -> 31.85 | AL62: =(INDEX('29-WB'!$E$60:$E$71,MATCH(Input!$D$62,'29-WB'!$B$60:$B$71,0))+ROUND(($D$64-1)/0.5,0)*INDEX('29-WB'!$F$60:$F$71,MATCH(Input!$D$62,'29-WB'!$B$60:$B$71,0))+IFERROR(LEFT(INDEX('29-WB'!$G$60:$G$71,MATCH(Input!$D$62,'29-WB'!$B$60:$B$71,0)),5)*($D$65-MID(INDEX('29-WB'!$G$60:$G$71,MATCH(Input!$D$62,'29-WB'!$B$60:$B$71,0)),10,2)),0)+LEFT(INDEX('29-WB'!$H$60:$H$71,MATCH(Input!$D$62,'29-WB'!$B$60:$B$71,0)),5)*($D$66-MID(INDEX('29-WB'!$H$60:$H$71,MATCH(Input!$D$62,'29-WB'!$B$60:$B$71,0)),10,2)))*$D$63 -> 31.45
C63: Length in Km | D63: 10
C64: Embankment Height in meter | D64: 1
C65: MSA | D65: 40
C66: Aggregate Lead in km | D66: =$D$9 -> 50
B68: 5 | C68: Junctions
B69: (i) | C69: Major Junction
B70: (a) | C70: Type-1
C71: Type of Junction | D71: X Type | E71: =IF($D$8="Andaman & Nicobar Islands ",J71,IF($D$8="Andhra Pradesh",K71,IF($D$8="Assam",L71,IF($D$8="Bihar",M71,IF($D$8="Chandigarh",N71,IF($D$8="Chhattisgarh",O71,IF($D$8="Dadra & Nagar Haveli",P71,IF($D$8="Daman & Diu",Q71,IF($D$8="Delhi",R71,IF($D$8="Goa",S71,IF($D$8="Gujarat",T71,IF($D$8="Haryana",U71,IF($D$8="Himachal Pradesh",V71,IF($D$8="Jammu & Kashmir",W71,IF($D$8="Jharkhand",X71,IF($D$8="Karnataka",Y71,IF($D$8="Kerala",Z71,IF($D$8="Lakshadweep",AA71,IF($D$8="Madhya Pradesh",AB71,IF($D$8="Maharashtra",AC71,IF($D$8="Odisha",AD71,IF($D$8="Puducherry",AE71,IF($D$8="Punjab",AF71,IF($D$8="Rajasthan",AG71,IF($D$8="Tamil Nadu",AH71,IF($D$8="Telangana",AI71,IF($D$8="Uttar Pradesh",AJ71,IF($D$8="Uttarakhand",AK71,IF($D$8="West Bengal",AL71))))))))))))))))))))))))))))) -> 0.9621879324 | F71: =E71*10^7 -> 9621879.324 | G71: =IF(E71>0,E71/D72,0) -> 0.9621879324 | J71: =(INDEX('1-AN'!$E$74:$E$76,MATCH(Input!$D$71,'1-AN'!$B$74:$B$76,0))+IFERROR(LEFT(INDEX('1-AN'!$G$74:$G$76,MATCH(Input!$D$71,'1-AN'!$B$74:$B$76,0)),5)*($D$73-MID(INDEX('1-AN'!$G$74:$G$76,MATCH(Input!$D$71,'1-AN'!$B$74:$B$76,0)),10,2)),0))*$D$72 -> 1.02315859 | K71: =(INDEX('2-AP'!$E$74:$E$76,MATCH(Input!$D$71,'2-AP'!$B$74:$B$76,0))+IFERROR(LEFT(INDEX('2-AP'!$G$74:$G$76,MATCH(Input!$D$71,'2-AP'!$B$74:$B$76,0)),5)*($D$73-MID(INDEX('2-AP'!$G$74:$G$76,MATCH(Input!$D$71,'2-AP'!$B$74:$B$76,0)),10,2)),0))*$D$72 -> 0.8570281413 | L71: =(INDEX('3-AS'!$E$74:$E$76,MATCH(Input!$D$71,'3-AS'!$B$74:$B$76,0))+IFERROR(LEFT(INDEX('3-AS'!$G$74:$G$76,MATCH(Input!$D$71,'3-AS'!$B$74:$B$76,0)),5)*($D$73-MID(INDEX('3-AS'!$G$74:$G$76,MATCH(Input!$D$71,'3-AS'!$B$74:$B$76,0)),10,2)),0))*$D$72 -> 1.053229899 | M71: =(INDEX('4-BR'!$E$74:$E$76,MATCH(Input!$D$71,'4-BR'!$B$74:$B$76,0))+IFERROR(LEFT(INDEX('4-BR'!$G$74:$G$76,MATCH(Input!$D$71,'4-BR'!$B$74:$B$76,0)),5)*($D$73-MID(INDEX('4-BR'!$G$74:$G$76,MATCH(Input!$D$71,'4-BR'!$B$74:$B$76,0)),10,2)),0))*$D$72 -> 0.9050630844 | N71: =(INDEX('5-CH'!$E$74:$E$76,MATCH(Input!$D$71,'5-CH'!$B$74:$B$76,0))+IFERROR(LEFT(INDEX('5-CH'!$G$74:$G$76,MATCH(Input!$D$71,'5-CH'!$B$74:$B$76,0)),5)*($D$73-MID(INDEX('5-CH'!$G$74:$G$76,MATCH(Input!$D$71,'5-CH'!$B$74:$B$76,0)),10,2)),0))*$D$72 -> 1.050662864 | O71: =(INDEX('6-CG'!$E$74:$E$76,MATCH(Input!$D$71,'6-CG'!$B$74:$B$76,0))+IFERROR(LEFT(INDEX('6-CG'!$G$74:$G$76,MATCH(Input!$D$71,'6-CG'!$B$74:$B$76,0)),5)*($D$73-MID(INDEX('6-CG'!$G$74:$G$76,MATCH(Input!$D$71,'6-CG'!$B$74:$B$76,0)),10,2)),0))*$D$72 -> 0.9377037687 | P71: =(INDEX('7-DN'!$E$74:$E$76,MATCH(Input!$D$71,'7-DN'!$B$74:$B$76,0))+IFERROR(LEFT(INDEX('7-DN'!$G$74:$G$76,MATCH(Input!$D$71,'7-DN'!$B$74:$B$76,0)),5)*($D$73-MID(INDEX('7-DN'!$G$74:$G$76,MATCH(Input!$D$71,'7-DN'!$B$74:$B$76,0)),10,2)),0))*$D$72 -> 1.012646423 | Q71: =(INDEX('8-DD'!$E$74:$E$76,MATCH(Input!$D$71,'8-DD'!$B$74:$B$76,0))+IFERROR(LEFT(INDEX('8-DD'!$G$74:$G$76,MATCH(Input!$D$71,'8-DD'!$B$74:$B$76,0)),5)*($D$73-MID(INDEX('8-DD'!$G$74:$G$76,MATCH(Input!$D$71,'8-DD'!$B$74:$B$76,0)),10,2)),0))*$D$72 -> 0.92 | R71: =(INDEX('9-DL'!$E$74:$E$76,MATCH(Input!$D$71,'9-DL'!$B$74:$B$76,0))+IFERROR(LEFT(INDEX('9-DL'!$G$74:$G$76,MATCH(Input!$D$71,'9-DL'!$B$74:$B$76,0)),5)*($D$73-MID(INDEX('9-DL'!$G$74:$G$76,MATCH(Input!$D$71,'9-DL'!$B$74:$B$76,0)),10,2)),0))*$D$72 -> 0.9621879324 | S71: =(INDEX('10-GA'!$E$74:$E$76,MATCH(Input!$D$71,'10-GA'!$B$74:$B$76,0))+IFERROR(LEFT(INDEX('10-GA'!$G$74:$G$76,MATCH(Input!$D$71,'10-GA'!$B$74:$B$76,0)),5)*($D$73-MID(INDEX('10-GA'!$G$74:$G$76,MATCH(Input!$D$71,'10-GA'!$B$74:$B$76,0)),10,2)),0))*$D$72 -> 1.012646423 | T71: =(INDEX('11-GJ'!$E$74:$E$76,MATCH(Input!$D$71,'11-GJ'!$B$74:$B$76,0))+IFERROR(LEFT(INDEX('11-GJ'!$G$74:$G$76,MATCH(Input!$D$71,'11-GJ'!$B$74:$B$76,0)),5)*($D$73-MID(INDEX('11-GJ'!$G$74:$G$76,MATCH(Input!$D$71,'11-GJ'!$B$74:$B$76,0)),10,2)),0))*$D$72 -> 0.8803913515 | U71: =(INDEX('12-HR'!$E$74:$E$76,MATCH(Input!$D$71,'12-HR'!$B$74:$B$76,0))+IFERROR(LEFT(INDEX('12-HR'!$G$74:$G$76,MATCH(Input!$D$71,'12-HR'!$B$74:$B$76,0)),5)*($D$73-MID(INDEX('12-HR'!$G$74:$G$76,MATCH(Input!$D$71,'12-HR'!$B$74:$B$76,0)),10,2)),0))*$D$72 -> 0.9621879324 | V71: =(INDEX('13-HP'!$E$74:$E$76,MATCH(Input!$D$71,'13-HP'!$B$74:$B$76,0))+IFERROR(LEFT(INDEX('13-HP'!$G$74:$G$76,MATCH(Input!$D$71,'13-HP'!$B$74:$B$76,0)),5)*($D$73-MID(INDEX('13-HP'!$G$74:$G$76,MATCH(Input!$D$71,'13-HP'!$B$74:$B$76,0)),10,2)),0))*$D$72 -> 1.074405118 | W71: =(INDEX('14-JK'!$E$74:$E$76,MATCH(Input!$D$71,'14-JK'!$B$74:$B$76,0))+IFERROR(LEFT(INDEX('14-JK'!$G$74:$G$76,MATCH(Input!$D$71,'14-JK'!$B$74:$B$76,0)),5)*($D$73-MID(INDEX('14-JK'!$G$74:$G$76,MATCH(Input!$D$71,'14-JK'!$B$74:$B$76,0)),10,2)),0))*$D$72 -> 1.004975186 | X71: =(INDEX('15-JH'!$E$74:$E$76,MATCH(Input!$D$71,'15-JH'!$B$74:$B$76,0))+IFERROR(LEFT(INDEX('15-JH'!$G$74:$G$76,MATCH(Input!$D$71,'15-JH'!$B$74:$B$76,0)),5)*($D$73-MID(INDEX('15-JH'!$G$74:$G$76,MATCH(Input!$D$71,'15-JH'!$B$74:$B$76,0)),10,2)),0))*$D$72 -> 0.86 | Y71: =(INDEX('16-KA'!$E$74:$E$76,MATCH(Input!$D$71,'16-KA'!$B$74:$B$76,0))+IFERROR(LEFT(INDEX('16-KA'!$G$74:$G$76,MATCH(Input!$D$71,'16-KA'!$B$74:$B$76,0)),5)*($D$73-MID(INDEX('16-KA'!$G$74:$G$76,MATCH(Input!$D$71,'16-KA'!$B$74:$B$76,0)),10,2)),0))*$D$72 -> 0.91 | Z71: =(INDEX('17-KL'!$E$74:$E$76,MATCH(Input!$D$71,'17-KL'!$B$74:$B$76,0))+IFERROR(LEFT(INDEX('17-KL'!$G$74:$G$76,MATCH(Input!$D$71,'17-KL'!$B$74:$B$76,0)),5)*($D$73-MID(INDEX('17-KL'!$G$74:$G$76,MATCH(Input!$D$71,'17-KL'!$B$74:$B$76,0)),10,2)),0))*$D$72 -> 0.95 | AA71: =(INDEX('18-LD'!$E$74:$E$76,MATCH(Input!$D$71,'18-LD'!$B$74:$B$76,0))+IFERROR(LEFT(INDEX('18-LD'!$G$74:$G$76,MATCH(Input!$D$71,'18-LD'!$B$74:$B$76,0)),5)*($D$73-MID(INDEX('18-LD'!$G$74:$G$76,MATCH(Input!$D$71,'18-LD'!$B$74:$B$76,0)),10,2)),0))*$D$72 -> 1 | AB71: =(INDEX('19-MP'!$E$74:$E$76,MATCH(Input!$D$71,'19-MP'!$B$74:$B$76,0))+IFERROR(LEFT(INDEX('19-MP'!$G$74:$G$76,MATCH(Input!$D$71,'19-MP'!$B$74:$B$76,0)),5)*($D$73-MID(INDEX('19-MP'!$G$74:$G$76,MATCH(Input!$D$71,'19-MP'!$B$74:$B$76,0)),10,2)),0))*$D$72 -> 0.89 | AC71: =(INDEX('20-MH'!$E$74:$E$76,MATCH(Input!$D$71,'20-MH'!$B$74:$B$76,0))+IFERROR(LEFT(INDEX('20-MH'!$G$74:$G$76,MATCH(Input!$D$71,'20-MH'!$B$74:$B$76,0)),5)*($D$73-MID(INDEX('20-MH'!$G$74:$G$76,MATCH(Input!$D$71,'20-MH'!$B$74:$B$76,0)),10,2)),0))*$D$72 -> 1.012646423 | AD71: =(INDEX('21-OD'!$E$74:$E$76,MATCH(Input!$D$71,'21-OD'!$B$74:$B$76,0))+IFERROR(LEFT(INDEX('21-OD'!$G$74:$G$76,MATCH(Input!$D$71,'21-OD'!$B$74:$B$76,0)),5)*($D$73-MID(INDEX('21-OD'!$G$74:$G$76,MATCH(Input!$D$71,'21-OD'!$B$74:$B$76,0)),10,2)),0))*$D$72 -> 0.8936933068 | AE71: =(INDEX('22-PY'!$E$74:$E$76,MATCH(Input!$D$71,'22-PY'!$B$74:$B$76,0))+IFERROR(LEFT(INDEX('22-PY'!$G$74:$G$76,MATCH(Input!$D$71,'22-PY'!$B$74:$B$76,0)),5)*($D$73-MID(INDEX('22-PY'!$G$74:$G$76,MATCH(Input!$D$71,'22-PY'!$B$74:$B$76,0)),10,2)),0))*$D$72 -> 0.95 | AF71: =(INDEX('23-PB'!$E$74:$E$76,MATCH(Input!$D$71,'23-PB'!$B$74:$B$76,0))+IFERROR(LEFT(INDEX('23-PB'!$G$74:$G$76,MATCH(Input!$D$71,'23-PB'!$B$74:$B$76,0)),5)*($D$73-MID(INDEX('23-PB'!$G$74:$G$76,MATCH(Input!$D$71,'23-PB'!$B$74:$B$76,0)),10,2)),0))*$D$72 -> 1.050662864 | AG71: =(INDEX('24-RJ'!$E$74:$E$76,MATCH(Input!$D$71,'24-RJ'!$B$74:$B$76,0))+IFERROR(LEFT(INDEX('24-RJ'!$G$74:$G$76,MATCH(Input!$D$71,'24-RJ'!$B$74:$B$76,0)),5)*($D$73-MID(INDEX('24-RJ'!$G$74:$G$76,MATCH(Input!$D$71,'24-RJ'!$B$74:$B$76,0)),10,2)),0))*$D$72 -> 1.026823348 | AH71: =(INDEX('25-TN'!$E$74:$E$76,MATCH(Input!$D$71,'25-TN'!$B$74:$B$76,0))+IFERROR(LEFT(INDEX('25-TN'!$G$74:$G$76,MATCH(Input!$D$71,'25-TN'!$B$74:$B$76,0)),5)*($D$73-MID(INDEX('25-TN'!$G$74:$G$76,MATCH(Input!$D$71,'25-TN'!$B$74:$B$76,0)),10,2)),0))*$D$72 -> 0.9 | AI71: =(INDEX('26-TS'!$E$74:$E$76,MATCH(Input!$D$71,'26-TS'!$B$74:$B$76,0))+IFERROR(LEFT(INDEX('26-TS'!$G$74:$G$76,MATCH(Input!$D$71,'26-TS'!$B$74:$B$76,0)),5)*($D$73-MID(INDEX('26-TS'!$G$74:$G$76,MATCH(Input!$D$71,'26-TS'!$B$74:$B$76,0)),10,2)),0))*$D$72 -> 0.8555120986 | AJ71: =(INDEX('27-UP'!$E$74:$E$76,MATCH(Input!$D$71,'27-UP'!$B$74:$B$76,0))+IFERROR(LEFT(INDEX('27-UP'!$G$74:$G$76,MATCH(Input!$D$71,'27-UP'!$B$74:$B$76,0)),5)*($D$73-MID(INDEX('27-UP'!$G$74:$G$76,MATCH(Input!$D$71,'27-UP'!$B$74:$B$76,0)),10,2)),0))*$D$72 -> 0.8879779462 | AK71: =(INDEX('28-UK'!$E$74:$E$76,MATCH(Input!$D$71,'28-UK'!$B$74:$B$76,0))+IFERROR(LEFT(INDEX('28-UK'!$G$74:$G$76,MATCH(Input!$D$71,'28-UK'!$B$74:$B$76,0)),5)*($D$73-MID(INDEX('28-UK'!$G$74:$G$76,MATCH(Input!$D$71,'28-UK'!$B$74:$B$76,0)),10,2)),0))*$D$72 -> 1.036302246 | AL71: =(INDEX('29-WB'!$E$74:$E$76,MATCH(Input!$D$71,'29-WB'!$B$74:$B$76,0))+IFERROR(LEFT(INDEX('29-WB'!$G$74:$G$76,MATCH(Input!$D$71,'29-WB'!$B$74:$B$76,0)),5)*($D$73-MID(INDEX('29-WB'!$G$74:$G$76,MATCH(Input!$D$71,'29-WB'!$B$74:$B$76,0)),10,2)),0))*$D$72 -> 1.02315859
C72: No | D72: 1
C73: Aggregate Lead in km | D73: =$D$9 -> 50
B74: (b) | C74: Type-2
C75: Type of Junction | D75: T Type | E75: =IF($D$8="Andaman & Nicobar Islands ",J75,IF($D$8="Andhra Pradesh",K75,IF($D$8="Assam",L75,IF($D$8="Bihar",M75,IF($D$8="Chandigarh",N75,IF($D$8="Chhattisgarh",O75,IF($D$8="Dadra & Nagar Haveli",P75,IF($D$8="Daman & Diu",Q75,IF($D$8="Delhi",R75,IF($D$8="Goa",S75,IF($D$8="Gujarat",T75,IF($D$8="Haryana",U75,IF($D$8="Himachal Pradesh",V75,IF($D$8="Jammu & Kashmir",W75,IF($D$8="Jharkhand",X75,IF($D$8="Karnataka",Y75,IF($D$8="Kerala",Z75,IF($D$8="Lakshadweep",AA75,IF($D$8="Madhya Pradesh",AB75,IF($D$8="Maharashtra",AC75,IF($D$8="Odisha",AD75,IF($D$8="Puducherry",AE75,IF($D$8="Punjab",AF75,IF($D$8="Rajasthan",AG75,IF($D$8="Tamil Nadu",AH75,IF($D$8="Telangana",AI75,IF($D$8="Uttar Pradesh",AJ75,IF($D$8="Uttarakhand",AK75,IF($D$8="West Bengal",AL75))))))))))))))))))))))))))))) -> 1.22218447 | F75: =E75*10^7 -> 12221844.7 | G75: =IF(E75>0,E75/D76,0) -> 0.6110922349 | J75: =(INDEX('1-AN'!$E$74:$E$76,MATCH(Input!$D$75,'1-AN'!$B$74:$B$76,0))+IFERROR(LEFT(INDEX('1-AN'!$G$74:$G$76,MATCH(Input!$D$75,'1-AN'!$B$74:$B$76,0)),5)*($D$77-MID(INDEX('1-AN'!$G$74:$G$76,MATCH(Input!$D$75,'1-AN'!$B$74:$B$76,0)),10,2)),0))*$D$76 -> 1.287813716 | K75: =(INDEX('2-AP'!$E$74:$E$76,MATCH(Input!$D$75,'2-AP'!$B$74:$B$76,0))+IFERROR(LEFT(INDEX('2-AP'!$G$74:$G$76,MATCH(Input!$D$75,'2-AP'!$B$74:$B$76,0)),5)*($D$77-MID(INDEX('2-AP'!$G$74:$G$76,MATCH(Input!$D$75,'2-AP'!$B$74:$B$76,0)),10,2)),0))*$D$76 -> 1.140138758 | L75: =(INDEX('3-AS'!$E$74:$E$76,MATCH(Input!$D$75,'3-AS'!$B$74:$B$76,0))+IFERROR(LEFT(INDEX('3-AS'!$G$74:$G$76,MATCH(Input!$D$75,'3-AS'!$B$74:$B$76,0)),5)*($D$77-MID(INDEX('3-AS'!$G$74:$G$76,MATCH(Input!$D$75,'3-AS'!$B$74:$B$76,0)),10,2)),0))*$D$76 -> 1.33644462 | M75: =(INDEX('4-BR'!$E$74:$E$76,MATCH(Input!$D$75,'4-BR'!$B$74:$B$76,0))+IFERROR(LEFT(INDEX('4-BR'!$G$74:$G$76,MATCH(Input!$D$75,'4-BR'!$B$74:$B$76,0)),5)*($D$77-MID(INDEX('4-BR'!$G$74:$G$76,MATCH(Input!$D$75,'4-BR'!$B$74:$B$76,0)),10,2)),0))*$D$76 -> 1.158275835 | N75: =(INDEX('5-CH'!$E$74:$E$76,MATCH(Input!$D$75,'5-CH'!$B$74:$B$76,0))+IFERROR(LEFT(INDEX('5-CH'!$G$74:$G$76,MATCH(Input!$D$75,'5-CH'!$B$74:$B$76,0)),5)*($D$77-MID(INDEX('5-CH'!$G$74:$G$76,MATCH(Input!$D$75,'5-CH'!$B$74:$B$76,0)),10,2)),0))*$D$76 -> 1.336912289 | O75: =(INDEX('6-CG'!$E$74:$E$76,MATCH(Input!$D$75,'6-CG'!$B$74:$B$76,0))+IFERROR(LEFT(INDEX('6-CG'!$G$74:$G$76,MATCH(Input!$D$75,'6-CG'!$B$74:$B$76,0)),5)*($D$77-MID(INDEX('6-CG'!$G$74:$G$76,MATCH(Input!$D$75,'6-CG'!$B$74:$B$76,0)),10,2)),0))*$D$76 -> 1.255121515 | P75: =(INDEX('7-DN'!$E$74:$E$76,MATCH(Input!$D$75,'7-DN'!$B$74:$B$76,0))+IFERROR(LEFT(INDEX('7-DN'!$G$74:$G$76,MATCH(Input!$D$75,'7-DN'!$B$74:$B$76,0)),5)*($D$77-MID(INDEX('7-DN'!$G$74:$G$76,MATCH(Input!$D$75,'7-DN'!$B$74:$B$76,0)),10,2)),0))*$D$76 -> 1.274603816 | Q75: =(INDEX('8-DD'!$E$74:$E$76,MATCH(Input!$D$75,'8-DD'!$B$74:$B$76,0))+IFERROR(LEFT(INDEX('8-DD'!$G$74:$G$76,MATCH(Input!$D$75,'8-DD'!$B$74:$B$76,0)),5)*($D$77-MID(INDEX('8-DD'!$G$74:$G$76,MATCH(Input!$D$75,'8-DD'!$B$74:$B$76,0)),10,2)),0))*$D$76 -> 1.18 | R75: =(INDEX('9-DL'!$E$74:$E$76,MATCH(Input!$D$75,'9-DL'!$B$74:$B$76,0))+IFERROR(LEFT(INDEX('9-DL'!$G$74:$G$76,MATCH(Input!$D$75,'9-DL'!$B$74:$B$76,0)),5)*($D$77-MID(INDEX('9-DL'!$G$74:$G$76,MATCH(Input!$D$75,'9-DL'!$B$74:$B$76,0)),10,2)),0))*$D$76 -> 1.22218447 | S75: =(INDEX('10-GA'!$E$74:$E$76,MATCH(Input!$D$75,'10-GA'!$B$74:$B$76,0))+IFERROR(LEFT(INDEX('10-GA'!$G$74:$G$76,MATCH(Input!$D$75,'10-GA'!$B$74:$B$76,0)),5)*($D$77-MID(INDEX('10-GA'!$G$74:$G$76,MATCH(Input!$D$75,'10-GA'!$B$74:$B$76,0)),10,2)),0))*$D$76 -> 1.274603816 | T75: =(INDEX('11-GJ'!$E$74:$E$76,MATCH(Input!$D$75,'11-GJ'!$B$74:$B$76,0))+IFERROR(LEFT(INDEX('11-GJ'!$G$74:$G$76,MATCH(Input!$D$75,'11-GJ'!$B$74:$B$76,0)),5)*($D$77-MID(INDEX('11-GJ'!$G$74:$G$76,MATCH(Input!$D$75,'11-GJ'!$B$74:$B$76,0)),10,2)),0))*$D$76 -> 1.13097658 | U75: =(INDEX('12-HR'!$E$74:$E$76,MATCH(Input!$D$75,'12-HR'!$B$74:$B$76,0))+IFERROR(LEFT(INDEX('12-HR'!$G$74:$G$76,MATCH(Input!$D$75,'12-HR'!$B$74:$B$76,0)),5)*($D$77-MID(INDEX('12-HR'!$G$74:$G$76,MATCH(Input!$D$75,'12-HR'!$B$74:$B$76,0)),10,2)),0))*$D$76 -> 1.22218447 | V75: =(INDEX('13-HP'!$E$74:$E$76,MATCH(Input!$D$75,'13-HP'!$B$74:$B$76,0))+IFERROR(LEFT(INDEX('13-HP'!$G$74:$G$76,MATCH(Input!$D$75,'13-HP'!$B$74:$B$76,0)),5)*($D$77-MID(INDEX('13-HP'!$G$74:$G$76,MATCH(Input!$D$75,'13-HP'!$B$74:$B$76,0)),10,2)),0))*$D$76 -> 1.36376968 | W75: =(INDEX('14-JK'!$E$74:$E$76,MATCH(Input!$D$75,'14-JK'!$B$74:$B$76,0))+IFERROR(LEFT(INDEX('14-JK'!$G$74:$G$76,MATCH(Input!$D$75,'14-JK'!$B$74:$B$76,0)),5)*($D$77-MID(INDEX('14-JK'!$G$74:$G$76,MATCH(Input!$D$75,'14-JK'!$B$74:$B$76,0)),10,2)),0))*$D$76 -> 1.276598481 | X75: =(INDEX('15-JH'!$E$74:$E$76,MATCH(Input!$D$75,'15-JH'!$B$74:$B$76,0))+IFERROR(LEFT(INDEX('15-JH'!$G$74:$G$76,MATCH(Input!$D$75,'15-JH'!$B$74:$B$76,0)),5)*($D$77-MID(INDEX('15-JH'!$G$74:$G$76,MATCH(Input!$D$75,'15-JH'!$B$74:$B$76,0)),10,2)),0))*$D$76 -> 1.1 | Y75: =(INDEX('16-KA'!$E$74:$E$76,MATCH(Input!$D$75,'16-KA'!$B$74:$B$76,0))+IFERROR(LEFT(INDEX('16-KA'!$G$74:$G$76,MATCH(Input!$D$75,'16-KA'!$B$74:$B$76,0)),5)*($D$77-MID(INDEX('16-KA'!$G$74:$G$76,MATCH(Input!$D$75,'16-KA'!$B$74:$B$76,0)),10,2)),0))*$D$76 -> 1.2 | Z75: =(INDEX('17-KL'!$E$74:$E$76,MATCH(Input!$D$75,'17-KL'!$B$74:$B$76,0))+IFERROR(LEFT(INDEX('17-KL'!$G$74:$G$76,MATCH(Input!$D$75,'17-KL'!$B$74:$B$76,0)),5)*($D$77-MID(INDEX('17-KL'!$G$74:$G$76,MATCH(Input!$D$75,'17-KL'!$B$74:$B$76,0)),10,2)),0))*$D$76 -> 1.24 | AA75: =(INDEX('18-LD'!$E$74:$E$76,MATCH(Input!$D$75,'18-LD'!$B$74:$B$76,0))+IFERROR(LEFT(INDEX('18-LD'!$G$74:$G$76,MATCH(Input!$D$75,'18-LD'!$B$74:$B$76,0)),5)*($D$77-MID(INDEX('18-LD'!$G$74:$G$76,MATCH(Input!$D$75,'18-LD'!$B$74:$B$76,0)),10,2)),0))*$D$76 -> 1.3 | AB75: =(INDEX('19-MP'!$E$74:$E$76,MATCH(Input!$D$75,'19-MP'!$B$74:$B$76,0))+IFERROR(LEFT(INDEX('19-MP'!$G$74:$G$76,MATCH(Input!$D$75,'19-MP'!$B$74:$B$76,0)),5)*($D$77-MID(INDEX('19-MP'!$G$74:$G$76,MATCH(Input!$D$75,'19-MP'!$B$74:$B$76,0)),10,2)),0))*$D$76 -> 1.2 | AC75: =(INDEX('20-MH'!$E$74:$E$76,MATCH(Input!$D$75,'20-MH'!$B$74:$B$76,0))+IFERROR(LEFT(INDEX('20-MH'!$G$74:$G$76,MATCH(Input!$D$75,'20-MH'!$B$74:$B$76,0)),5)*($D$77-MID(INDEX('20-MH'!$G$74:$G$76,MATCH(Input!$D$75,'20-MH'!$B$74:$B$76,0)),10,2)),0))*$D$76 -> 1.274603816 | AD75: =(INDEX('21-OD'!$E$74:$E$76,MATCH(Input!$D$75,'21-OD'!$B$74:$B$76,0))+IFERROR(LEFT(INDEX('21-OD'!$G$74:$G$76,MATCH(Input!$D$75,'21-OD'!$B$74:$B$76,0)),5)*($D$77-MID(INDEX('21-OD'!$G$74:$G$76,MATCH(Input!$D$75,'21-OD'!$B$74:$B$76,0)),10,2)),0))*$D$76 -> 1.183992273 | AE75: =(INDEX('22-PY'!$E$74:$E$76,MATCH(Input!$D$75,'22-PY'!$B$74:$B$76,0))+IFERROR(LEFT(INDEX('22-PY'!$G$74:$G$76,MATCH(Input!$D$75,'22-PY'!$B$74:$B$76,0)),5)*($D$77-MID(INDEX('22-PY'!$G$74:$G$76,MATCH(Input!$D$75,'22-PY'!$B$74:$B$76,0)),10,2)),0))*$D$76 -> 1.26 | AF75: =(INDEX('23-PB'!$E$74:$E$76,MATCH(Input!$D$75,'23-PB'!$B$74:$B$76,0))+IFERROR(LEFT(INDEX('23-PB'!$G$74:$G$76,MATCH(Input!$D$75,'23-PB'!$B$74:$B$76,0)),5)*($D$77-MID(INDEX('23-PB'!$G$74:$G$76,MATCH(Input!$D$75,'23-PB'!$B$74:$B$76,0)),10,2)),0))*$D$76 -> 1.336912289 | AG75: =(INDEX('24-RJ'!$E$74:$E$76,MATCH(Input!$D$75,'24-RJ'!$B$74:$B$76,0))+IFERROR(LEFT(INDEX('24-RJ'!$G$74:$G$76,MATCH(Input!$D$75,'24-RJ'!$B$74:$B$76,0)),5)*($D$77-MID(INDEX('24-RJ'!$G$74:$G$76,MATCH(Input!$D$75,'24-RJ'!$B$74:$B$76,0)),10,2)),0))*$D$76 -> 1.329443744 | AH75: =(INDEX('25-TN'!$E$74:$E$76,MATCH(Input!$D$75,'25-TN'!$B$74:$B$76,0))+IFERROR(LEFT(INDEX('25-TN'!$G$74:$G$76,MATCH(Input!$D$75,'25-TN'!$B$74:$B$76,0)),5)*($D$77-MID(INDEX('25-TN'!$G$74:$G$76,MATCH(Input!$D$75,'25-TN'!$B$74:$B$76,0)),10,2)),0))*$D$76 -> 1.198 | AI75: =(INDEX('26-TS'!$E$74:$E$76,MATCH(Input!$D$75,'26-TS'!$B$74:$B$76,0))+IFERROR(LEFT(INDEX('26-TS'!$G$74:$G$76,MATCH(Input!$D$75,'26-TS'!$B$74:$B$76,0)),5)*($D$77-MID(INDEX('26-TS'!$G$74:$G$76,MATCH(Input!$D$75,'26-TS'!$B$74:$B$76,0)),10,2)),0))*$D$76 -> 1.137646347 | AJ75: =(INDEX('27-UP'!$E$74:$E$76,MATCH(Input!$D$75,'27-UP'!$B$74:$B$76,0))+IFERROR(LEFT(INDEX('27-UP'!$G$74:$G$76,MATCH(Input!$D$75,'27-UP'!$B$74:$B$76,0)),5)*($D$77-MID(INDEX('27-UP'!$G$74:$G$76,MATCH(Input!$D$75,'27-UP'!$B$74:$B$76,0)),10,2)),0))*$D$76 -> 1.140712835 | AK75: =(INDEX('28-UK'!$E$74:$E$76,MATCH(Input!$D$75,'28-UK'!$B$74:$B$76,0))+IFERROR(LEFT(INDEX('28-UK'!$G$74:$G$76,MATCH(Input!$D$75,'28-UK'!$B$74:$B$76,0)),5)*($D$77-MID(INDEX('28-UK'!$G$74:$G$76,MATCH(Input!$D$75,'28-UK'!$B$74:$B$76,0)),10,2)),0))*$D$76 -> 1.329698662 | AL75: =(INDEX('29-WB'!$E$74:$E$76,MATCH(Input!$D$75,'29-WB'!$B$74:$B$76,0))+IFERROR(LEFT(INDEX('29-WB'!$G$74:$G$76,MATCH(Input!$D$75,'29-WB'!$B$74:$B$76,0)),5)*($D$77-MID(INDEX('29-WB'!$G$74:$G$76,MATCH(Input!$D$75,'29-WB'!$B$74:$B$76,0)),10,2)),0))*$D$76 -> 1.287813716
C76: No | D76: 2
C77: Aggregate Lead in km | D77: =$D$9 -> 50
B78: (c) | C78: Type-3
C79: Type of Junction | D79: Y Type | E79: =IF($D$8="Andaman & Nicobar Islands ",J79,IF($D$8="Andhra Pradesh",K79,IF($D$8="Assam",L79,IF($D$8="Bihar",M79,IF($D$8="Chandigarh",N79,IF($D$8="Chhattisgarh",O79,IF($D$8="Dadra & Nagar Haveli",P79,IF($D$8="Daman & Diu",Q79,IF($D$8="Delhi",R79,IF($D$8="Goa",S79,IF($D$8="Gujarat",T79,IF($D$8="Haryana",U79,IF($D$8="Himachal Pradesh",V79,IF($D$8="Jammu & Kashmir",W79,IF($D$8="Jharkhand",X79,IF($D$8="Karnataka",Y79,IF($D$8="Kerala",Z79,IF($D$8="Lakshadweep",AA79,IF($D$8="Madhya Pradesh",AB79,IF($D$8="Maharashtra",AC79,IF($D$8="Odisha",AD79,IF($D$8="Puducherry",AE79,IF($D$8="Punjab",AF79,IF($D$8="Rajasthan",AG79,IF($D$8="Tamil Nadu",AH79,IF($D$8="Telangana",AI79,IF($D$8="Uttar Pradesh",AJ79,IF($D$8="Uttarakhand",AK79,IF($D$8="West Bengal",AL79))))))))))))))))))))))))))))) -> 5.08927079 | F79: =E79*10^7 -> 50892707.9 | G79: =IF(E79>0,E79/D80,0) -> 0.508927079 | J79: =(INDEX('1-AN'!$E$74:$E$76,MATCH(Input!$D$79,'1-AN'!$B$74:$B$76,0))+IFERROR(LEFT(INDEX('1-AN'!$G$74:$G$76,MATCH(Input!$D$79,'1-AN'!$B$74:$B$76,0)),5)*($D$81-MID(INDEX('1-AN'!$G$74:$G$76,MATCH(Input!$D$79,'1-AN'!$B$74:$B$76,0)),10,2)),0))*$D$80 -> 5.3336564 | K79: =(INDEX('2-AP'!$E$74:$E$76,MATCH(Input!$D$79,'2-AP'!$B$74:$B$76,0))+IFERROR(LEFT(INDEX('2-AP'!$G$74:$G$76,MATCH(Input!$D$79,'2-AP'!$B$74:$B$76,0)),5)*($D$81-MID(INDEX('2-AP'!$G$74:$G$76,MATCH(Input!$D$79,'2-AP'!$B$74:$B$76,0)),10,2)),0))*$D$80 -> 4.866390889 | L79: =(INDEX('3-AS'!$E$74:$E$76,MATCH(Input!$D$79,'3-AS'!$B$74:$B$76,0))+IFERROR(LEFT(INDEX('3-AS'!$G$74:$G$76,MATCH(Input!$D$79,'3-AS'!$B$74:$B$76,0)),5)*($D$81-MID(INDEX('3-AS'!$G$74:$G$76,MATCH(Input!$D$79,'3-AS'!$B$74:$B$76,0)),10,2)),0))*$D$80 -> 5.553332032 | M79: =(INDEX('4-BR'!$E$74:$E$76,MATCH(Input!$D$79,'4-BR'!$B$74:$B$76,0))+IFERROR(LEFT(INDEX('4-BR'!$G$74:$G$76,MATCH(Input!$D$79,'4-BR'!$B$74:$B$76,0)),5)*($D$81-MID(INDEX('4-BR'!$G$74:$G$76,MATCH(Input!$D$79,'4-BR'!$B$74:$B$76,0)),10,2)),0))*$D$80 -> 4.839134089 | N79: =(INDEX('5-CH'!$E$74:$E$76,MATCH(Input!$D$79,'5-CH'!$B$74:$B$76,0))+IFERROR(LEFT(INDEX('5-CH'!$G$74:$G$76,MATCH(Input!$D$79,'5-CH'!$B$74:$B$76,0)),5)*($D$81-MID(INDEX('5-CH'!$G$74:$G$76,MATCH(Input!$D$79,'5-CH'!$B$74:$B$76,0)),10,2)),0))*$D$80 -> 5.565890276 | O79: =(INDEX('6-CG'!$E$74:$E$76,MATCH(Input!$D$79,'6-CG'!$B$74:$B$76,0))+IFERROR(LEFT(INDEX('6-CG'!$G$74:$G$76,MATCH(Input!$D$79,'6-CG'!$B$74:$B$76,0)),5)*($D$81-MID(INDEX('6-CG'!$G$74:$G$76,MATCH(Input!$D$79,'6-CG'!$B$74:$B$76,0)),10,2)),0))*$D$80 -> 5.367221962 | P79: =(INDEX('7-DN'!$E$74:$E$76,MATCH(Input!$D$79,'7-DN'!$B$74:$B$76,0))+IFERROR(LEFT(INDEX('7-DN'!$G$74:$G$76,MATCH(Input!$D$79,'7-DN'!$B$74:$B$76,0)),5)*($D$81-MID(INDEX('7-DN'!$G$74:$G$76,MATCH(Input!$D$79,'7-DN'!$B$74:$B$76,0)),10,2)),0))*$D$80 -> 5.27897021 | Q79: =(INDEX('8-DD'!$E$74:$E$76,MATCH(Input!$D$79,'8-DD'!$B$74:$B$76,0))+IFERROR(LEFT(INDEX('8-DD'!$G$74:$G$76,MATCH(Input!$D$79,'8-DD'!$B$74:$B$76,0)),5)*($D$81-MID(INDEX('8-DD'!$G$74:$G$76,MATCH(Input!$D$79,'8-DD'!$B$74:$B$76,0)),10,2)),0))*$D$80 -> 4.74 | R79: =(INDEX('9-DL'!$E$74:$E$76,MATCH(Input!$D$79,'9-DL'!$B$74:$B$76,0))+IFERROR(LEFT(INDEX('9-DL'!$G$74:$G$76,MATCH(Input!$D$79,'9-DL'!$B$74:$B$76,0)),5)*($D$81-MID(INDEX('9-DL'!$G$74:$G$76,MATCH(Input!$D$79,'9-DL'!$B$74:$B$76,0)),10,2)),0))*$D$80 -> 5.08927079 | S79: =(INDEX('10-GA'!$E$74:$E$76,MATCH(Input!$D$79,'10-GA'!$B$74:$B$76,0))+IFERROR(LEFT(INDEX('10-GA'!$G$74:$G$76,MATCH(Input!$D$79,'10-GA'!$B$74:$B$76,0)),5)*($D$81-MID(INDEX('10-GA'!$G$74:$G$76,MATCH(Input!$D$79,'10-GA'!$B$74:$B$76,0)),10,2)),0))*$D$80 -> 5.27897021 | T79: =(INDEX('11-GJ'!$E$74:$E$76,MATCH(Input!$D$79,'11-GJ'!$B$74:$B$76,0))+IFERROR(LEFT(INDEX('11-GJ'!$G$74:$G$76,MATCH(Input!$D$79,'11-GJ'!$B$74:$B$76,0)),5)*($D$81-MID(INDEX('11-GJ'!$G$74:$G$76,MATCH(Input!$D$79,'11-GJ'!$B$74:$B$76,0)),10,2)),0))*$D$80 -> 4.736574889 | U79: =(INDEX('12-HR'!$E$74:$E$76,MATCH(Input!$D$79,'12-HR'!$B$74:$B$76,0))+IFERROR(LEFT(INDEX('12-HR'!$G$74:$G$76,MATCH(Input!$D$79,'12-HR'!$B$74:$B$76,0)),5)*($D$81-MID(INDEX('12-HR'!$G$74:$G$76,MATCH(Input!$D$79,'12-HR'!$B$74:$B$76,0)),10,2)),0))*$D$80 -> 5.08927079 | V79: =(INDEX('13-HP'!$E$74:$E$76,MATCH(Input!$D$79,'13-HP'!$B$74:$B$76,0))+IFERROR(LEFT(INDEX('13-HP'!$G$74:$G$76,MATCH(Input!$D$79,'13-HP'!$B$74:$B$76,0)),5)*($D$81-MID(INDEX('13-HP'!$G$74:$G$76,MATCH(Input!$D$79,'13-HP'!$B$74:$B$76,0)),10,2)),0))*$D$80 -> 5.677973287 | W79: =(INDEX('14-JK'!$E$74:$E$76,MATCH(Input!$D$79,'14-JK'!$B$74:$B$76,0))+IFERROR(LEFT(INDEX('14-JK'!$G$74:$G$76,MATCH(Input!$D$79,'14-JK'!$B$74:$B$76,0)),5)*($D$81-MID(INDEX('14-JK'!$G$74:$G$76,MATCH(Input!$D$79,'14-JK'!$B$74:$B$76,0)),10,2)),0))*$D$80 -> 5.31981157 | X79: =(INDEX('15-JH'!$E$74:$E$76,MATCH(Input!$D$79,'15-JH'!$B$74:$B$76,0))+IFERROR(LEFT(INDEX('15-JH'!$G$74:$G$76,MATCH(Input!$D$79,'15-JH'!$B$74:$B$76,0)),5)*($D$81-MID(INDEX('15-JH'!$G$74:$G$76,MATCH(Input!$D$79,'15-JH'!$B$74:$B$76,0)),10,2)),0))*$D$80 -> 4.6 | Y79: =(INDEX('16-KA'!$E$74:$E$76,MATCH(Input!$D$79,'16-KA'!$B$74:$B$76,0))+IFERROR(LEFT(INDEX('16-KA'!$G$74:$G$76,MATCH(Input!$D$79,'16-KA'!$B$74:$B$76,0)),5)*($D$81-MID(INDEX('16-KA'!$G$74:$G$76,MATCH(Input!$D$79,'16-KA'!$B$74:$B$76,0)),10,2)),0))*$D$80 -> 5.2 | Z79: =(INDEX('17-KL'!$E$74:$E$76,MATCH(Input!$D$79,'17-KL'!$B$74:$B$76,0))+IFERROR(LEFT(INDEX('17-KL'!$G$74:$G$76,MATCH(Input!$D$79,'17-KL'!$B$74:$B$76,0)),5)*($D$81-MID(INDEX('17-KL'!$G$74:$G$76,MATCH(Input!$D$79,'17-KL'!$B$74:$B$76,0)),10,2)),0))*$D$80 -> 5.4 | AA79: =(INDEX('18-LD'!$E$74:$E$76,MATCH(Input!$D$79,'18-LD'!$B$74:$B$76,0))+IFERROR(LEFT(INDEX('18-LD'!$G$74:$G$76,MATCH(Input!$D$79,'18-LD'!$B$74:$B$76,0)),5)*($D$81-MID(INDEX('18-LD'!$G$74:$G$76,MATCH(Input!$D$79,'18-LD'!$B$74:$B$76,0)),10,2)),0))*$D$80 -> 5.7 | AB79: =(INDEX('19-MP'!$E$74:$E$76,MATCH(Input!$D$79,'19-MP'!$B$74:$B$76,0))+IFERROR(LEFT(INDEX('19-MP'!$G$74:$G$76,MATCH(Input!$D$79,'19-MP'!$B$74:$B$76,0)),5)*($D$81-MID(INDEX('19-MP'!$G$74:$G$76,MATCH(Input!$D$79,'19-MP'!$B$74:$B$76,0)),10,2)),0))*$D$80 -> 5.1 | AC79: =(INDEX('20-MH'!$E$74:$E$76,MATCH(Input!$D$79,'20-MH'!$B$74:$B$76,0))+IFERROR(LEFT(INDEX('20-MH'!$G$74:$G$76,MATCH(Input!$D$79,'20-MH'!$B$74:$B$76,0)),5)*($D$81-MID(INDEX('20-MH'!$G$74:$G$76,MATCH(Input!$D$79,'20-MH'!$B$74:$B$76,0)),10,2)),0))*$D$80 -> 5.27897021 | AD79: =(INDEX('21-OD'!$E$74:$E$76,MATCH(Input!$D$79,'21-OD'!$B$74:$B$76,0))+IFERROR(LEFT(INDEX('21-OD'!$G$74:$G$76,MATCH(Input!$D$79,'21-OD'!$B$74:$B$76,0)),5)*($D$81-MID(INDEX('21-OD'!$G$74:$G$76,MATCH(Input!$D$79,'21-OD'!$B$74:$B$76,0)),10,2)),0))*$D$80 -> 5.036356293 | AE79: =(INDEX('22-PY'!$E$74:$E$76,MATCH(Input!$D$79,'22-PY'!$B$74:$B$76,0))+IFERROR(LEFT(INDEX('22-PY'!$G$74:$G$76,MATCH(Input!$D$79,'22-PY'!$B$74:$B$76,0)),5)*($D$81-MID(INDEX('22-PY'!$G$74:$G$76,MATCH(Input!$D$79,'22-PY'!$B$74:$B$76,0)),10,2)),0))*$D$80 -> 5.4 | AF79: =(INDEX('23-PB'!$E$74:$E$76,MATCH(Input!$D$79,'23-PB'!$B$74:$B$76,0))+IFERROR(LEFT(INDEX('23-PB'!$G$74:$G$76,MATCH(Input!$D$79,'23-PB'!$B$74:$B$76,0)),5)*($D$81-MID(INDEX('23-PB'!$G$74:$G$76,MATCH(Input!$D$79,'23-PB'!$B$74:$B$76,0)),10,2)),0))*$D$80 -> 5.565890276 | AG79: =(INDEX('24-RJ'!$E$74:$E$76,MATCH(Input!$D$79,'24-RJ'!$B$74:$B$76,0))+IFERROR(LEFT(INDEX('24-RJ'!$G$74:$G$76,MATCH(Input!$D$79,'24-RJ'!$B$74:$B$76,0)),5)*($D$81-MID(INDEX('24-RJ'!$G$74:$G$76,MATCH(Input!$D$79,'24-RJ'!$B$74:$B$76,0)),10,2)),0))*$D$80 -> 5.587950022 | AH79: =(INDEX('25-TN'!$E$74:$E$76,MATCH(Input!$D$79,'25-TN'!$B$74:$B$76,0))+IFERROR(LEFT(INDEX('25-TN'!$G$74:$G$76,MATCH(Input!$D$79,'25-TN'!$B$74:$B$76,0)),5)*($D$81-MID(INDEX('25-TN'!$G$74:$G$76,MATCH(Input!$D$79,'25-TN'!$B$74:$B$76,0)),10,2)),0))*$D$80 -> 5.11 | AI79: =(INDEX('26-TS'!$E$74:$E$76,MATCH(Input!$D$79,'26-TS'!$B$74:$B$76,0))+IFERROR(LEFT(INDEX('26-TS'!$G$74:$G$76,MATCH(Input!$D$79,'26-TS'!$B$74:$B$76,0)),5)*($D$81-MID(INDEX('26-TS'!$G$74:$G$76,MATCH(Input!$D$79,'26-TS'!$B$74:$B$76,0)),10,2)),0))*$D$80 -> 4.853828312 | AJ79: =(INDEX('27-UP'!$E$74:$E$76,MATCH(Input!$D$79,'27-UP'!$B$74:$B$76,0))+IFERROR(LEFT(INDEX('27-UP'!$G$74:$G$76,MATCH(Input!$D$79,'27-UP'!$B$74:$B$76,0)),5)*($D$81-MID(INDEX('27-UP'!$G$74:$G$76,MATCH(Input!$D$79,'27-UP'!$B$74:$B$76,0)),10,2)),0))*$D$80 -> 4.775665105 | AK79: =(INDEX('28-UK'!$E$74:$E$76,MATCH(Input!$D$79,'28-UK'!$B$74:$B$76,0))+IFERROR(LEFT(INDEX('28-UK'!$G$74:$G$76,MATCH(Input!$D$79,'28-UK'!$B$74:$B$76,0)),5)*($D$81-MID(INDEX('28-UK'!$G$74:$G$76,MATCH(Input!$D$79,'28-UK'!$B$74:$B$76,0)),10,2)),0))*$D$80 -> 5.569366765 | AL79: =(INDEX('29-WB'!$E$74:$E$76,MATCH(Input!$D$79,'29-WB'!$B$74:$B$76,0))+IFERROR(LEFT(INDEX('29-WB'!$G$74:$G$76,MATCH(Input!$D$79,'29-WB'!$B$74:$B$76,0)),5)*($D$81-MID(INDEX('29-WB'!$G$74:$G$76,MATCH(Input!$D$79,'29-WB'!$B$74:$B$76,0)),10,2)),0))*$D$80 -> 5.3336564
C80: No | D80: 10
C81: Aggregate Lead | D81: =$D$9 -> 50
B82: (ii) | C82: Minor Junction
B83: (a) | C83: Type-1
C84: Type of Junction | D84: X Type | E84: =IF($D$8="Andaman & Nicobar Islands ",J84,IF($D$8="Andhra Pradesh",K84,IF($D$8="Assam",L84,IF($D$8="Bihar",M84,IF($D$8="Chandigarh",N84,IF($D$8="Chhattisgarh",O84,IF($D$8="Dadra & Nagar Haveli",P84,IF($D$8="Daman & Diu",Q84,IF($D$8="Delhi",R84,IF($D$8="Goa",S84,IF($D$8="Gujarat",T84,IF($D$8="Haryana",U84,IF($D$8="Himachal Pradesh",V84,IF($D$8="Jammu & Kashmir",W84,IF($D$8="Jharkhand",X84,IF($D$8="Karnataka",Y84,IF($D$8="Kerala",Z84,IF($D$8="Lakshadweep",AA84,IF($D$8="Madhya Pradesh",AB84,IF($D$8="Maharashtra",AC84,IF($D$8="Odisha",AD84,IF($D$8="Puducherry",AE84,IF($D$8="Punjab",AF84,IF($D$8="Rajasthan",AG84,IF($D$8="Tamil Nadu",AH84,IF($D$8="Telangana",AI84,IF($D$8="Uttar Pradesh",AJ84,IF($D$8="Uttarakhand",AK84,IF($D$8="West Bengal",AL84))))))))))))))))))))))))))))) -> 9.054076429 | F84: =E84*10^7 -> 90540764.29 | G84: =IF(E84>0,E84/D85,0) -> 0.6036050952 | J84: =(INDEX('1-AN'!$E$78:$E$80,MATCH(Input!$D$84,'1-AN'!$B$78:$B$80,0))+IFERROR(LEFT(INDEX('1-AN'!$G$78:$G$80,MATCH(Input!$D$84,'1-AN'!$B$78:$B$80,0)),5)*($D$86-MID(INDEX('1-AN'!$G$78:$G$80,MATCH(Input!$D$84,'1-AN'!$B$78:$B$80,0)),10,2)),0))*$D$85 -> 9.704088829 | K84: =(INDEX('2-AP'!$E$78:$E$80,MATCH(Input!$D$84,'2-AP'!$B$78:$B$80,0))+IFERROR(LEFT(INDEX('2-AP'!$G$78:$G$80,MATCH(Input!$D$84,'2-AP'!$B$78:$B$80,0)),5)*($D$86-MID(INDEX('2-AP'!$G$78:$G$80,MATCH(Input!$D$84,'2-AP'!$B$78:$B$80,0)),10,2)),0))*$D$85 -> 7.384699447 | L84: =(INDEX('3-AS'!$E$78:$E$80,MATCH(Input!$D$84,'3-AS'!$B$78:$B$80,0))+IFERROR(LEFT(INDEX('3-AS'!$G$78:$G$80,MATCH(Input!$D$84,'3-AS'!$B$78:$B$80,0)),5)*($D$86-MID(INDEX('3-AS'!$G$78:$G$80,MATCH(Input!$D$84,'3-AS'!$B$78:$B$80,0)),10,2)),0))*$D$85 -> 10.03818546 | M84: =(INDEX('4-BR'!$E$78:$E$80,MATCH(Input!$D$84,'4-BR'!$B$78:$B$80,0))+IFERROR(LEFT(INDEX('4-BR'!$G$78:$G$80,MATCH(Input!$D$84,'4-BR'!$B$78:$B$80,0)),5)*($D$86-MID(INDEX('4-BR'!$G$78:$G$80,MATCH(Input!$D$84,'4-BR'!$B$78:$B$80,0)),10,2)),0))*$D$85 -> 8.478187814 | N84: =(INDEX('5-CH'!$E$78:$E$80,MATCH(Input!$D$84,'5-CH'!$B$78:$B$80,0))+IFERROR(LEFT(INDEX('5-CH'!$G$78:$G$80,MATCH(Input!$D$84,'5-CH'!$B$78:$B$80,0)),5)*($D$86-MID(INDEX('5-CH'!$G$78:$G$80,MATCH(Input!$D$84,'5-CH'!$B$78:$B$80,0)),10,2)),0))*$D$85 -> 9.771678799 | O84: =(INDEX('6-CG'!$E$78:$E$80,MATCH(Input!$D$84,'6-CG'!$B$78:$B$80,0))+IFERROR(LEFT(INDEX('6-CG'!$G$78:$G$80,MATCH(Input!$D$84,'6-CG'!$B$78:$B$80,0)),5)*($D$86-MID(INDEX('6-CG'!$G$78:$G$80,MATCH(Input!$D$84,'6-CG'!$B$78:$B$80,0)),10,2)),0))*$D$85 -> 8.203508104 | P84: =(INDEX('7-DN'!$E$78:$E$80,MATCH(Input!$D$84,'7-DN'!$B$78:$B$80,0))+IFERROR(LEFT(INDEX('7-DN'!$G$78:$G$80,MATCH(Input!$D$84,'7-DN'!$B$78:$B$80,0)),5)*($D$86-MID(INDEX('7-DN'!$G$78:$G$80,MATCH(Input!$D$84,'7-DN'!$B$78:$B$80,0)),10,2)),0))*$D$85 -> 9.467980858 | Q84: =(INDEX('8-DD'!$E$78:$E$80,MATCH(Input!$D$84,'8-DD'!$B$78:$B$80,0))+IFERROR(LEFT(INDEX('8-DD'!$G$78:$G$80,MATCH(Input!$D$84,'8-DD'!$B$78:$B$80,0)),5)*($D$86-MID(INDEX('8-DD'!$G$78:$G$80,MATCH(Input!$D$84,'8-DD'!$B$78:$B$80,0)),10,2)),0))*$D$85 -> 8.4 | R84: =(INDEX('9-DL'!$E$78:$E$80,MATCH(Input!$D$84,'9-DL'!$B$78:$B$80,0))+IFERROR(LEFT(INDEX('9-DL'!$G$78:$G$80,MATCH(Input!$D$84,'9-DL'!$B$78:$B$80,0)),5)*($D$86-MID(INDEX('9-DL'!$G$78:$G$80,MATCH(Input!$D$84,'9-DL'!$B$78:$B$80,0)),10,2)),0))*$D$85 -> 9.054076429 | S84: =(INDEX('10-GA'!$E$78:$E$80,MATCH(Input!$D$84,'10-GA'!$B$78:$B$80,0))+IFERROR(LEFT(INDEX('10-GA'!$G$78:$G$80,MATCH(Input!$D$84,'10-GA'!$B$78:$B$80,0)),5)*($D$86-MID(INDEX('10-GA'!$G$78:$G$80,MATCH(Input!$D$84,'10-GA'!$B$78:$B$80,0)),10,2)),0))*$D$85 -> 9.467980858 | T84: =(INDEX('11-GJ'!$E$78:$E$80,MATCH(Input!$D$84,'11-GJ'!$B$78:$B$80,0))+IFERROR(LEFT(INDEX('11-GJ'!$G$78:$G$80,MATCH(Input!$D$84,'11-GJ'!$B$78:$B$80,0)),5)*($D$86-MID(INDEX('11-GJ'!$G$78:$G$80,MATCH(Input!$D$84,'11-GJ'!$B$78:$B$80,0)),10,2)),0))*$D$85 -> 8.004485058 | U84: =(INDEX('12-HR'!$E$78:$E$80,MATCH(Input!$D$84,'12-HR'!$B$78:$B$80,0))+IFERROR(LEFT(INDEX('12-HR'!$G$78:$G$80,MATCH(Input!$D$84,'12-HR'!$B$78:$B$80,0)),5)*($D$86-MID(INDEX('12-HR'!$G$78:$G$80,MATCH(Input!$D$84,'12-HR'!$B$78:$B$80,0)),10,2)),0))*$D$85 -> 9.054076429 | V84: =(INDEX('13-HP'!$E$78:$E$80,MATCH(Input!$D$84,'13-HP'!$B$78:$B$80,0))+IFERROR(LEFT(INDEX('13-HP'!$G$78:$G$80,MATCH(Input!$D$84,'13-HP'!$B$78:$B$80,0)),5)*($D$86-MID(INDEX('13-HP'!$G$78:$G$80,MATCH(Input!$D$84,'13-HP'!$B$78:$B$80,0)),10,2)),0))*$D$85 -> 10.01287226 | W84: =(INDEX('14-JK'!$E$78:$E$80,MATCH(Input!$D$84,'14-JK'!$B$78:$B$80,0))+IFERROR(LEFT(INDEX('14-JK'!$G$78:$G$80,MATCH(Input!$D$84,'14-JK'!$B$78:$B$80,0)),5)*($D$86-MID(INDEX('14-JK'!$G$78:$G$80,MATCH(Input!$D$84,'14-JK'!$B$78:$B$80,0)),10,2)),0))*$D$85 -> 9.342653741 | X84: =(INDEX('15-JH'!$E$78:$E$80,MATCH(Input!$D$84,'15-JH'!$B$78:$B$80,0))+IFERROR(LEFT(INDEX('15-JH'!$G$78:$G$80,MATCH(Input!$D$84,'15-JH'!$B$78:$B$80,0)),5)*($D$86-MID(INDEX('15-JH'!$G$78:$G$80,MATCH(Input!$D$84,'15-JH'!$B$78:$B$80,0)),10,2)),0))*$D$85 -> 8.478187814 | Y84: =(INDEX('16-KA'!$E$78:$E$80,MATCH(Input!$D$84,'16-KA'!$B$78:$B$80,0))+IFERROR(LEFT(INDEX('16-KA'!$G$78:$G$80,MATCH(Input!$D$84,'16-KA'!$B$78:$B$80,0)),5)*($D$86-MID(INDEX('16-KA'!$G$78:$G$80,MATCH(Input!$D$84,'16-KA'!$B$78:$B$80,0)),10,2)),0))*$D$85 -> 7.8 | Z84: =(INDEX('17-KL'!$E$78:$E$80,MATCH(Input!$D$84,'17-KL'!$B$78:$B$80,0))+IFERROR(LEFT(INDEX('17-KL'!$G$78:$G$80,MATCH(Input!$D$84,'17-KL'!$B$78:$B$80,0)),5)*($D$86-MID(INDEX('17-KL'!$G$78:$G$80,MATCH(Input!$D$84,'17-KL'!$B$78:$B$80,0)),10,2)),0))*$D$85 -> 8.1 | AA84: =(INDEX('18-LD'!$E$78:$E$80,MATCH(Input!$D$84,'18-LD'!$B$78:$B$80,0))+IFERROR(LEFT(INDEX('18-LD'!$G$78:$G$80,MATCH(Input!$D$84,'18-LD'!$B$78:$B$80,0)),5)*($D$86-MID(INDEX('18-LD'!$G$78:$G$80,MATCH(Input!$D$84,'18-LD'!$B$78:$B$80,0)),10,2)),0))*$D$85 -> 8.55 | AB84: =(INDEX('19-MP'!$E$78:$E$80,MATCH(Input!$D$84,'19-MP'!$B$78:$B$80,0))+IFERROR(LEFT(INDEX('19-MP'!$G$78:$G$80,MATCH(Input!$D$84,'19-MP'!$B$78:$B$80,0)),5)*($D$86-MID(INDEX('19-MP'!$G$78:$G$80,MATCH(Input!$D$84,'19-MP'!$B$78:$B$80,0)),10,2)),0))*$D$85 -> 7.8 | AC84: =(INDEX('20-MH'!$E$78:$E$80,MATCH(Input!$D$84,'20-MH'!$B$78:$B$80,0))+IFERROR(LEFT(INDEX('20-MH'!$G$78:$G$80,MATCH(Input!$D$84,'20-MH'!$B$78:$B$80,0)),5)*($D$86-MID(INDEX('20-MH'!$G$78:$G$80,MATCH(Input!$D$84,'20-MH'!$B$78:$B$80,0)),10,2)),0))*$D$85 -> 9.467980858 | AD84: =(INDEX('21-OD'!$E$78:$E$80,MATCH(Input!$D$84,'21-OD'!$B$78:$B$80,0))+IFERROR(LEFT(INDEX('21-OD'!$G$78:$G$80,MATCH(Input!$D$84,'21-OD'!$B$78:$B$80,0)),5)*($D$86-MID(INDEX('21-OD'!$G$78:$G$80,MATCH(Input!$D$84,'21-OD'!$B$78:$B$80,0)),10,2)),0))*$D$85 -> 7.833073185 | AE84: =(INDEX('22-PY'!$E$78:$E$80,MATCH(Input!$D$84,'22-PY'!$B$78:$B$80,0))+IFERROR(LEFT(INDEX('22-PY'!$G$78:$G$80,MATCH(Input!$D$84,'22-PY'!$B$78:$B$80,0)),5)*($D$86-MID(INDEX('22-PY'!$G$78:$G$80,MATCH(Input!$D$84,'22-PY'!$B$78:$B$80,0)),10,2)),0))*$D$85 -> 8.1 | AF84: =(INDEX('23-PB'!$E$78:$E$80,MATCH(Input!$D$84,'23-PB'!$B$78:$B$80,0))+IFERROR(LEFT(INDEX('23-PB'!$G$78:$G$80,MATCH(Input!$D$84,'23-PB'!$B$78:$B$80,0)),5)*($D$86-MID(INDEX('23-PB'!$G$78:$G$80,MATCH(Input!$D$84,'23-PB'!$B$78:$B$80,0)),10,2)),0))*$D$85 -> 9.771678799 | AG84: =(INDEX('24-RJ'!$E$78:$E$80,MATCH(Input!$D$84,'24-RJ'!$B$78:$B$80,0))+IFERROR(LEFT(INDEX('24-RJ'!$G$78:$G$80,MATCH(Input!$D$84,'24-RJ'!$B$78:$B$80,0)),5)*($D$86-MID(INDEX('24-RJ'!$G$78:$G$80,MATCH(Input!$D$84,'24-RJ'!$B$78:$B$80,0)),10,2)),0))*$D$85 -> 9.233996872 | AH84: =(INDEX('25-TN'!$E$78:$E$80,MATCH(Input!$D$84,'25-TN'!$B$78:$B$80,0))+IFERROR(LEFT(INDEX('25-TN'!$G$78:$G$80,MATCH(Input!$D$84,'25-TN'!$B$78:$B$80,0)),5)*($D$86-MID(INDEX('25-TN'!$G$78:$G$80,MATCH(Input!$D$84,'25-TN'!$B$78:$B$80,0)),10,2)),0))*$D$85 -> 7.755 | AI84: =(INDEX('26-TS'!$E$78:$E$80,MATCH(Input!$D$84,'26-TS'!$B$78:$B$80,0))+IFERROR(LEFT(INDEX('26-TS'!$G$78:$G$80,MATCH(Input!$D$84,'26-TS'!$B$78:$B$80,0)),5)*($D$86-MID(INDEX('26-TS'!$G$78:$G$80,MATCH(Input!$D$84,'26-TS'!$B$78:$B$80,0)),10,2)),0))*$D$85 -> 7.389425418 | AJ84: =(INDEX('27-UP'!$E$78:$E$80,MATCH(Input!$D$84,'27-UP'!$B$78:$B$80,0))+IFERROR(LEFT(INDEX('27-UP'!$G$78:$G$80,MATCH(Input!$D$84,'27-UP'!$B$78:$B$80,0)),5)*($D$86-MID(INDEX('27-UP'!$G$78:$G$80,MATCH(Input!$D$84,'27-UP'!$B$78:$B$80,0)),10,2)),0))*$D$85 -> 8.286647882 | AK84: =(INDEX('28-UK'!$E$78:$E$80,MATCH(Input!$D$84,'28-UK'!$B$78:$B$80,0))+IFERROR(LEFT(INDEX('28-UK'!$G$78:$G$80,MATCH(Input!$D$84,'28-UK'!$B$78:$B$80,0)),5)*($D$86-MID(INDEX('28-UK'!$G$78:$G$80,MATCH(Input!$D$84,'28-UK'!$B$78:$B$80,0)),10,2)),0))*$D$85 -> 9.527627816 | AL84: =(INDEX('29-WB'!$E$78:$E$80,MATCH(Input!$D$84,'29-WB'!$B$78:$B$80,0))+IFERROR(LEFT(INDEX('29-WB'!$G$78:$G$80,MATCH(Input!$D$84,'29-WB'!$B$78:$B$80,0)),5)*($D$86-MID(INDEX('29-WB'!$G$78:$G$80,MATCH(Input!$D$84,'29-WB'!$B$78:$B$80,0)),10,2)),0))*$D$85 -> 9.704088829
C85: No | D85: 15
C86: Aggregate Lead in km | D86: =$D$9 -> 50
B87: (b) | C87: Type-2
C88: Type of Junction | D88: T Type | E88: =IF($D$8="Andaman & Nicobar Islands ",J88,IF($D$8="Andhra Pradesh",K88,IF($D$8="Assam",L88,IF($D$8="Bihar",M88,IF($D$8="Chandigarh",N88,IF($D$8="Chhattisgarh",O88,IF($D$8="Dadra & Nagar Haveli",P88,IF($D$8="Daman & Diu",Q88,IF($D$8="Delhi",R88,IF($D$8="Goa",S88,IF($D$8="Gujarat",T88,IF($D$8="Haryana",U88,IF($D$8="Himachal Pradesh",V88,IF($D$8="Jammu & Kashmir",W88,IF($D$8="Jharkhand",X88,IF($D$8="Karnataka",Y88,IF($D$8="Kerala",Z88,IF($D$8="Lakshadweep",AA88,IF($D$8="Madhya Pradesh",AB88,IF($D$8="Maharashtra",AC88,IF($D$8="Odisha",AD88,IF($D$8="Puducherry",AE88,IF($D$8="Punjab",AF88,IF($D$8="Rajasthan",AG88,IF($D$8="Tamil Nadu",AH88,IF($D$8="Telangana",AI88,IF($D$8="Uttar Pradesh",AJ88,IF($D$8="Uttarakhand",AK88,IF($D$8="West Bengal",AL88))))))))))))))))))))))))))))) -> 6.536675959 | F88: =E88*10^7 -> 65366759.59 | G88: =IF(E88>0,E88/D89,0) -> 0.326833798 | J88: =(INDEX('1-AN'!$E$78:$E$80,MATCH(Input!$D$88,'1-AN'!$B$78:$B$80,0))+IFERROR(LEFT(INDEX('1-AN'!$G$78:$G$80,MATCH(Input!$D$88,'1-AN'!$B$78:$B$80,0)),5)*($D$90-MID(INDEX('1-AN'!$G$78:$G$80,MATCH(Input!$D$88,'1-AN'!$B$78:$B$80,0)),10,2)),0))*$D$89 -> 6.982351546 | K88: =(INDEX('2-AP'!$E$78:$E$80,MATCH(Input!$D$88,'2-AP'!$B$78:$B$80,0))+IFERROR(LEFT(INDEX('2-AP'!$G$78:$G$80,MATCH(Input!$D$88,'2-AP'!$B$78:$B$80,0)),5)*($D$90-MID(INDEX('2-AP'!$G$78:$G$80,MATCH(Input!$D$88,'2-AP'!$B$78:$B$80,0)),10,2)),0))*$D$89 -> 5.358708654 | L88: =(INDEX('3-AS'!$E$78:$E$80,MATCH(Input!$D$88,'3-AS'!$B$78:$B$80,0))+IFERROR(LEFT(INDEX('3-AS'!$G$78:$G$80,MATCH(Input!$D$88,'3-AS'!$B$78:$B$80,0)),5)*($D$90-MID(INDEX('3-AS'!$G$78:$G$80,MATCH(Input!$D$88,'3-AS'!$B$78:$B$80,0)),10,2)),0))*$D$89 -> 7.232789276 | M88: =(INDEX('4-BR'!$E$78:$E$80,MATCH(Input!$D$88,'4-BR'!$B$78:$B$80,0))+IFERROR(LEFT(INDEX('4-BR'!$G$78:$G$80,MATCH(Input!$D$88,'4-BR'!$B$78:$B$80,0)),5)*($D$90-MID(INDEX('4-BR'!$G$78:$G$80,MATCH(Input!$D$88,'4-BR'!$B$78:$B$80,0)),10,2)),0))*$D$89 -> 6.137557526 | N88: =(INDEX('5-CH'!$E$78:$E$80,MATCH(Input!$D$88,'5-CH'!$B$78:$B$80,0))+IFERROR(LEFT(INDEX('5-CH'!$G$78:$G$80,MATCH(Input!$D$88,'5-CH'!$B$78:$B$80,0)),5)*($D$90-MID(INDEX('5-CH'!$G$78:$G$80,MATCH(Input!$D$88,'5-CH'!$B$78:$B$80,0)),10,2)),0))*$D$89 -> 7.001996196 | O88: =(INDEX('6-CG'!$E$78:$E$80,MATCH(Input!$D$88,'6-CG'!$B$78:$B$80,0))+IFERROR(LEFT(INDEX('6-CG'!$G$78:$G$80,MATCH(Input!$D$88,'6-CG'!$B$78:$B$80,0)),5)*($D$90-MID(INDEX('6-CG'!$G$78:$G$80,MATCH(Input!$D$88,'6-CG'!$B$78:$B$80,0)),10,2)),0))*$D$89 -> 5.985496682 | P88: =(INDEX('7-DN'!$E$78:$E$80,MATCH(Input!$D$88,'7-DN'!$B$78:$B$80,0))+IFERROR(LEFT(INDEX('7-DN'!$G$78:$G$80,MATCH(Input!$D$88,'7-DN'!$B$78:$B$80,0)),5)*($D$90-MID(INDEX('7-DN'!$G$78:$G$80,MATCH(Input!$D$88,'7-DN'!$B$78:$B$80,0)),10,2)),0))*$D$89 -> 6.782774685 | Q88: =(INDEX('8-DD'!$E$78:$E$80,MATCH(Input!$D$88,'8-DD'!$B$78:$B$80,0))+IFERROR(LEFT(INDEX('8-DD'!$G$78:$G$80,MATCH(Input!$D$88,'8-DD'!$B$78:$B$80,0)),5)*($D$90-MID(INDEX('8-DD'!$G$78:$G$80,MATCH(Input!$D$88,'8-DD'!$B$78:$B$80,0)),10,2)),0))*$D$89 -> 6 | R88: =(INDEX('9-DL'!$E$78:$E$80,MATCH(Input!$D$88,'9-DL'!$B$78:$B$80,0))+IFERROR(LEFT(INDEX('9-DL'!$G$78:$G$80,MATCH(Input!$D$88,'9-DL'!$B$78:$B$80,0)),5)*($D$90-MID(INDEX('9-DL'!$G$78:$G$80,MATCH(Input!$D$88,'9-DL'!$B$78:$B$80,0)),10,2)),0))*$D$89 -> 6.536675959 | S88: =(INDEX('10-GA'!$E$78:$E$80,MATCH(Input!$D$88,'10-GA'!$B$78:$B$80,0))+IFERROR(LEFT(INDEX('10-GA'!$G$78:$G$80,MATCH(Input!$D$88,'10-GA'!$B$78:$B$80,0)),5)*($D$90-MID(INDEX('10-GA'!$G$78:$G$80,MATCH(Input!$D$88,'10-GA'!$B$78:$B$80,0)),10,2)),0))*$D$89 -> 6.782774685 | T88: =(INDEX('11-GJ'!$E$78:$E$80,MATCH(Input!$D$88,'11-GJ'!$B$78:$B$80,0))+IFERROR(LEFT(INDEX('11-GJ'!$G$78:$G$80,MATCH(Input!$D$88,'11-GJ'!$B$78:$B$80,0)),5)*($D$90-MID(INDEX('11-GJ'!$G$78:$G$80,MATCH(Input!$D$88,'11-GJ'!$B$78:$B$80,0)),10,2)),0))*$D$89 -> 5.776518779 | U88: =(INDEX('12-HR'!$E$78:$E$80,MATCH(Input!$D$88,'12-HR'!$B$78:$B$80,0))+IFERROR(LEFT(INDEX('12-HR'!$G$78:$G$80,MATCH(Input!$D$88,'12-HR'!$B$78:$B$80,0)),5)*($D$90-MID(INDEX('12-HR'!$G$78:$G$80,MATCH(Input!$D$88,'12-HR'!$B$78:$B$80,0)),10,2)),0))*$D$89 -> 6.536675959 | V88: =(INDEX('13-HP'!$E$78:$E$80,MATCH(Input!$D$88,'13-HP'!$B$78:$B$80,0))+IFERROR(LEFT(INDEX('13-HP'!$G$78:$G$80,MATCH(Input!$D$88,'13-HP'!$B$78:$B$80,0)),5)*($D$90-MID(INDEX('13-HP'!$G$78:$G$80,MATCH(Input!$D$88,'13-HP'!$B$78:$B$80,0)),10,2)),0))*$D$89 -> 7.171896827 | W88: =(INDEX('14-JK'!$E$78:$E$80,MATCH(Input!$D$88,'14-JK'!$B$78:$B$80,0))+IFERROR(LEFT(INDEX('14-JK'!$G$78:$G$80,MATCH(Input!$D$88,'14-JK'!$B$78:$B$80,0)),5)*($D$90-MID(INDEX('14-JK'!$G$78:$G$80,MATCH(Input!$D$88,'14-JK'!$B$78:$B$80,0)),10,2)),0))*$D$89 -> 6.686024865 | X88: =(INDEX('15-JH'!$E$78:$E$80,MATCH(Input!$D$88,'15-JH'!$B$78:$B$80,0))+IFERROR(LEFT(INDEX('15-JH'!$G$78:$G$80,MATCH(Input!$D$88,'15-JH'!$B$78:$B$80,0)),5)*($D$90-MID(INDEX('15-JH'!$G$78:$G$80,MATCH(Input!$D$88,'15-JH'!$B$78:$B$80,0)),10,2)),0))*$D$89 -> 6.137557526 | Y88: =(INDEX('16-KA'!$E$78:$E$80,MATCH(Input!$D$88,'16-KA'!$B$78:$B$80,0))+IFERROR(LEFT(INDEX('16-KA'!$G$78:$G$80,MATCH(Input!$D$88,'16-KA'!$B$78:$B$80,0)),5)*($D$90-MID(INDEX('16-KA'!$G$78:$G$80,MATCH(Input!$D$88,'16-KA'!$B$78:$B$80,0)),10,2)),0))*$D$89 -> 5.6 | Z88: =(INDEX('17-KL'!$E$78:$E$80,MATCH(Input!$D$88,'17-KL'!$B$78:$B$80,0))+IFERROR(LEFT(INDEX('17-KL'!$G$78:$G$80,MATCH(Input!$D$88,'17-KL'!$B$78:$B$80,0)),5)*($D$90-MID(INDEX('17-KL'!$G$78:$G$80,MATCH(Input!$D$88,'17-KL'!$B$78:$B$80,0)),10,2)),0))*$D$89 -> 5.8 | AA88: =(INDEX('18-LD'!$E$78:$E$80,MATCH(Input!$D$88,'18-LD'!$B$78:$B$80,0))+IFERROR(LEFT(INDEX('18-LD'!$G$78:$G$80,MATCH(Input!$D$88,'18-LD'!$B$78:$B$80,0)),5)*($D$90-MID(INDEX('18-LD'!$G$78:$G$80,MATCH(Input!$D$88,'18-LD'!$B$78:$B$80,0)),10,2)),0))*$D$89 -> 6 | AB88: =(INDEX('19-MP'!$E$78:$E$80,MATCH(Input!$D$88,'19-MP'!$B$78:$B$80,0))+IFERROR(LEFT(INDEX('19-MP'!$G$78:$G$80,MATCH(Input!$D$88,'19-MP'!$B$78:$B$80,0)),5)*($D$90-MID(INDEX('19-MP'!$G$78:$G$80,MATCH(Input!$D$88,'19-MP'!$B$78:$B$80,0)),10,2)),0))*$D$89 -> 5.6 | AC88: =(INDEX('20-MH'!$E$78:$E$80,MATCH(Input!$D$88,'20-MH'!$B$78:$B$80,0))+IFERROR(LEFT(INDEX('20-MH'!$G$78:$G$80,MATCH(Input!$D$88,'20-MH'!$B$78:$B$80,0)),5)*($D$90-MID(INDEX('20-MH'!$G$78:$G$80,MATCH(Input!$D$88,'20-MH'!$B$78:$B$80,0)),10,2)),0))*$D$89 -> 6.782774685 | AD88: =(INDEX('21-OD'!$E$78:$E$80,MATCH(Input!$D$88,'21-OD'!$B$78:$B$80,0))+IFERROR(LEFT(INDEX('21-OD'!$G$78:$G$80,MATCH(Input!$D$88,'21-OD'!$B$78:$B$80,0)),5)*($D$90-MID(INDEX('21-OD'!$G$78:$G$80,MATCH(Input!$D$88,'21-OD'!$B$78:$B$80,0)),10,2)),0))*$D$89 -> 5.662666832 | AE88: =(INDEX('22-PY'!$E$78:$E$80,MATCH(Input!$D$88,'22-PY'!$B$78:$B$80,0))+IFERROR(LEFT(INDEX('22-PY'!$G$78:$G$80,MATCH(Input!$D$88,'22-PY'!$B$78:$B$80,0)),5)*($D$90-MID(INDEX('22-PY'!$G$78:$G$80,MATCH(Input!$D$88,'22-PY'!$B$78:$B$80,0)),10,2)),0))*$D$89 -> 6 | AF88: =(INDEX('23-PB'!$E$78:$E$80,MATCH(Input!$D$88,'23-PB'!$B$78:$B$80,0))+IFERROR(LEFT(INDEX('23-PB'!$G$78:$G$80,MATCH(Input!$D$88,'23-PB'!$B$78:$B$80,0)),5)*($D$90-MID(INDEX('23-PB'!$G$78:$G$80,MATCH(Input!$D$88,'23-PB'!$B$78:$B$80,0)),10,2)),0))*$D$89 -> 7.001996196 | AG88: =(INDEX('24-RJ'!$E$78:$E$80,MATCH(Input!$D$88,'24-RJ'!$B$78:$B$80,0))+IFERROR(LEFT(INDEX('24-RJ'!$G$78:$G$80,MATCH(Input!$D$88,'24-RJ'!$B$78:$B$80,0)),5)*($D$90-MID(INDEX('24-RJ'!$G$78:$G$80,MATCH(Input!$D$88,'24-RJ'!$B$78:$B$80,0)),10,2)),0))*$D$89 -> 6.676486575 | AH88: =(INDEX('25-TN'!$E$78:$E$80,MATCH(Input!$D$88,'25-TN'!$B$78:$B$80,0))+IFERROR(LEFT(INDEX('25-TN'!$G$78:$G$80,MATCH(Input!$D$88,'25-TN'!$B$78:$B$80,0)),5)*($D$90-MID(INDEX('25-TN'!$G$78:$G$80,MATCH(Input!$D$88,'25-TN'!$B$78:$B$80,0)),10,2)),0))*$D$89 -> 5.62 | AI88: =(INDEX('26-TS'!$E$78:$E$80,MATCH(Input!$D$88,'26-TS'!$B$78:$B$80,0))+IFERROR(LEFT(INDEX('26-TS'!$G$78:$G$80,MATCH(Input!$D$88,'26-TS'!$B$78:$B$80,0)),5)*($D$90-MID(INDEX('26-TS'!$G$78:$G$80,MATCH(Input!$D$88,'26-TS'!$B$78:$B$80,0)),10,2)),0))*$D$89 -> 5.359834269 | AJ88: =(INDEX('27-UP'!$E$78:$E$80,MATCH(Input!$D$88,'27-UP'!$B$78:$B$80,0))+IFERROR(LEFT(INDEX('27-UP'!$G$78:$G$80,MATCH(Input!$D$88,'27-UP'!$B$78:$B$80,0)),5)*($D$90-MID(INDEX('27-UP'!$G$78:$G$80,MATCH(Input!$D$88,'27-UP'!$B$78:$B$80,0)),10,2)),0))*$D$89 -> 6.007850808 | AK88: =(INDEX('28-UK'!$E$78:$E$80,MATCH(Input!$D$88,'28-UK'!$B$78:$B$80,0))+IFERROR(LEFT(INDEX('28-UK'!$G$78:$G$80,MATCH(Input!$D$88,'28-UK'!$B$78:$B$80,0)),5)*($D$90-MID(INDEX('28-UK'!$G$78:$G$80,MATCH(Input!$D$88,'28-UK'!$B$78:$B$80,0)),10,2)),0))*$D$89 -> 6.849224775 | AL88: =(INDEX('29-WB'!$E$78:$E$80,MATCH(Input!$D$88,'29-WB'!$B$78:$B$80,0))+IFERROR(LEFT(INDEX('29-WB'!$G$78:$G$80,MATCH(Input!$D$88,'29-WB'!$B$78:$B$80,0)),5)*($D$90-MID(INDEX('29-WB'!$G$78:$G$80,MATCH(Input!$D$88,'29-WB'!$B$78:$B$80,0)),10,2)),0))*$D$89 -> 6.982351546
C89: No | D89: 20
C90: Aggregate Lead in km | D90: =$D$9 -> 50
B91: (c) | C91: Type-3
C92: Type of Junction | D92: Y Type | E92: =IF($D$8="Andaman & Nicobar Islands ",J92,IF($D$8="Andhra Pradesh",K92,IF($D$8="Assam",L92,IF($D$8="Bihar",M92,IF($D$8="Chandigarh",N92,IF($D$8="Chhattisgarh",O92,IF($D$8="Dadra & Nagar Haveli",P92,IF($D$8="Daman & Diu",Q92,IF($D$8="Delhi",R92,IF($D$8="Goa",S92,IF($D$8="Gujarat",T92,IF($D$8="Haryana",U92,IF($D$8="Himachal Pradesh",V92,IF($D$8="Jammu & Kashmir",W92,IF($D$8="Jharkhand",X92,IF($D$8="Karnataka",Y92,IF($D$8="Kerala",Z92,IF($D$8="Lakshadweep",AA92,IF($D$8="Madhya Pradesh",AB92,IF($D$8="Maharashtra",AC92,IF($D$8="Odisha",AD92,IF($D$8="Puducherry",AE92,IF($D$8="Punjab",AF92,IF($D$8="Rajasthan",AG92,IF($D$8="Tamil Nadu",AH92,IF($D$8="Telangana",AI92,IF($D$8="Uttar Pradesh",AJ92,IF($D$8="Uttarakhand",AK92,IF($D$8="West Bengal",AL92))))))))))))))))))))))))))))) -> 6.150794803 | F92: =E92*10^7 -> 61507948.03 | G92: =IF(E92>0,E92/D93,0) -> 0.2460317921 | J92: =(INDEX('1-AN'!$E$78:$E$80,MATCH(Input!$D$92,'1-AN'!$B$78:$B$80,0))+IFERROR(LEFT(INDEX('1-AN'!$G$78:$G$80,MATCH(Input!$D$92,'1-AN'!$B$78:$B$80,0)),5)*($D$94-MID(INDEX('1-AN'!$G$78:$G$80,MATCH(Input!$D$92,'1-AN'!$B$78:$B$80,0)),10,2)),0))*$D$93 -> 6.552119281 | K92: =(INDEX('2-AP'!$E$78:$E$80,MATCH(Input!$D$92,'2-AP'!$B$78:$B$80,0))+IFERROR(LEFT(INDEX('2-AP'!$G$78:$G$80,MATCH(Input!$D$92,'2-AP'!$B$78:$B$80,0)),5)*($D$94-MID(INDEX('2-AP'!$G$78:$G$80,MATCH(Input!$D$92,'2-AP'!$B$78:$B$80,0)),10,2)),0))*$D$93 -> 5.063772444 | L92: =(INDEX('3-AS'!$E$78:$E$80,MATCH(Input!$D$92,'3-AS'!$B$78:$B$80,0))+IFERROR(LEFT(INDEX('3-AS'!$G$78:$G$80,MATCH(Input!$D$92,'3-AS'!$B$78:$B$80,0)),5)*($D$94-MID(INDEX('3-AS'!$G$78:$G$80,MATCH(Input!$D$92,'3-AS'!$B$78:$B$80,0)),10,2)),0))*$D$93 -> 6.849443552 | M92: =(INDEX('4-BR'!$E$78:$E$80,MATCH(Input!$D$92,'4-BR'!$B$78:$B$80,0))+IFERROR(LEFT(INDEX('4-BR'!$G$78:$G$80,MATCH(Input!$D$92,'4-BR'!$B$78:$B$80,0)),5)*($D$94-MID(INDEX('4-BR'!$G$78:$G$80,MATCH(Input!$D$92,'4-BR'!$B$78:$B$80,0)),10,2)),0))*$D$93 -> 5.782288251 | N92: =(INDEX('5-CH'!$E$78:$E$80,MATCH(Input!$D$92,'5-CH'!$B$78:$B$80,0))+IFERROR(LEFT(INDEX('5-CH'!$G$78:$G$80,MATCH(Input!$D$92,'5-CH'!$B$78:$B$80,0)),5)*($D$94-MID(INDEX('5-CH'!$G$78:$G$80,MATCH(Input!$D$92,'5-CH'!$B$78:$B$80,0)),10,2)),0))*$D$93 -> 6.544399637 | O92: =(INDEX('6-CG'!$E$78:$E$80,MATCH(Input!$D$92,'6-CG'!$B$78:$B$80,0))+IFERROR(LEFT(INDEX('6-CG'!$G$78:$G$80,MATCH(Input!$D$92,'6-CG'!$B$78:$B$80,0)),5)*($D$94-MID(INDEX('6-CG'!$G$78:$G$80,MATCH(Input!$D$92,'6-CG'!$B$78:$B$80,0)),10,2)),0))*$D$93 -> 5.699222856 | P92: =(INDEX('7-DN'!$E$78:$E$80,MATCH(Input!$D$92,'7-DN'!$B$78:$B$80,0))+IFERROR(LEFT(INDEX('7-DN'!$G$78:$G$80,MATCH(Input!$D$92,'7-DN'!$B$78:$B$80,0)),5)*($D$94-MID(INDEX('7-DN'!$G$78:$G$80,MATCH(Input!$D$92,'7-DN'!$B$78:$B$80,0)),10,2)),0))*$D$93 -> 6.347310598 | Q92: =(INDEX('8-DD'!$E$78:$E$80,MATCH(Input!$D$92,'8-DD'!$B$78:$B$80,0))+IFERROR(LEFT(INDEX('8-DD'!$G$78:$G$80,MATCH(Input!$D$92,'8-DD'!$B$78:$B$80,0)),5)*($D$94-MID(INDEX('8-DD'!$G$78:$G$80,MATCH(Input!$D$92,'8-DD'!$B$78:$B$80,0)),10,2)),0))*$D$93 -> 5.75 | R92: =(INDEX('9-DL'!$E$78:$E$80,MATCH(Input!$D$92,'9-DL'!$B$78:$B$80,0))+IFERROR(LEFT(INDEX('9-DL'!$G$78:$G$80,MATCH(Input!$D$92,'9-DL'!$B$78:$B$80,0)),5)*($D$94-MID(INDEX('9-DL'!$G$78:$G$80,MATCH(Input!$D$92,'9-DL'!$B$78:$B$80,0)),10,2)),0))*$D$93 -> 6.150794803 | S92: =(INDEX('10-GA'!$E$78:$E$80,MATCH(Input!$D$92,'10-GA'!$B$78:$B$80,0))+IFERROR(LEFT(INDEX('10-GA'!$G$78:$G$80,MATCH(Input!$D$92,'10-GA'!$B$78:$B$80,0)),5)*($D$94-MID(INDEX('10-GA'!$G$78:$G$80,MATCH(Input!$D$92,'10-GA'!$B$78:$B$80,0)),10,2)),0))*$D$93 -> 6.347310598 | T92: =(INDEX('11-GJ'!$E$78:$E$80,MATCH(Input!$D$92,'11-GJ'!$B$78:$B$80,0))+IFERROR(LEFT(INDEX('11-GJ'!$G$78:$G$80,MATCH(Input!$D$92,'11-GJ'!$B$78:$B$80,0)),5)*($D$94-MID(INDEX('11-GJ'!$G$78:$G$80,MATCH(Input!$D$92,'11-GJ'!$B$78:$B$80,0)),10,2)),0))*$D$93 -> 5.402141006 | U92: =(INDEX('12-HR'!$E$78:$E$80,MATCH(Input!$D$92,'12-HR'!$B$78:$B$80,0))+IFERROR(LEFT(INDEX('12-HR'!$G$78:$G$80,MATCH(Input!$D$92,'12-HR'!$B$78:$B$80,0)),5)*($D$94-MID(INDEX('12-HR'!$G$78:$G$80,MATCH(Input!$D$92,'12-HR'!$B$78:$B$80,0)),10,2)),0))*$D$93 -> 6.150794803 | V92: =(INDEX('13-HP'!$E$78:$E$80,MATCH(Input!$D$92,'13-HP'!$B$78:$B$80,0))+IFERROR(LEFT(INDEX('13-HP'!$G$78:$G$80,MATCH(Input!$D$92,'13-HP'!$B$78:$B$80,0)),5)*($D$94-MID(INDEX('13-HP'!$G$78:$G$80,MATCH(Input!$D$92,'13-HP'!$B$78:$B$80,0)),10,2)),0))*$D$93 -> 6.721838708 | W92: =(INDEX('14-JK'!$E$78:$E$80,MATCH(Input!$D$92,'14-JK'!$B$78:$B$80,0))+IFERROR(LEFT(INDEX('14-JK'!$G$78:$G$80,MATCH(Input!$D$92,'14-JK'!$B$78:$B$80,0)),5)*($D$94-MID(INDEX('14-JK'!$G$78:$G$80,MATCH(Input!$D$92,'14-JK'!$B$78:$B$80,0)),10,2)),0))*$D$93 -> 6.256288416 | X92: =(INDEX('15-JH'!$E$78:$E$80,MATCH(Input!$D$92,'15-JH'!$B$78:$B$80,0))+IFERROR(LEFT(INDEX('15-JH'!$G$78:$G$80,MATCH(Input!$D$92,'15-JH'!$B$78:$B$80,0)),5)*($D$94-MID(INDEX('15-JH'!$G$78:$G$80,MATCH(Input!$D$92,'15-JH'!$B$78:$B$80,0)),10,2)),0))*$D$93 -> 5.782288251 | Y92: =(INDEX('16-KA'!$E$78:$E$80,MATCH(Input!$D$92,'16-KA'!$B$78:$B$80,0))+IFERROR(LEFT(INDEX('16-KA'!$G$78:$G$80,MATCH(Input!$D$92,'16-KA'!$B$78:$B$80,0)),5)*($D$94-MID(INDEX('16-KA'!$G$78:$G$80,MATCH(Input!$D$92,'16-KA'!$B$78:$B$80,0)),10,2)),0))*$D$93 -> 5.25 | Z92: =(INDEX('17-KL'!$E$78:$E$80,MATCH(Input!$D$92,'17-KL'!$B$78:$B$80,0))+IFERROR(LEFT(INDEX('17-KL'!$G$78:$G$80,MATCH(Input!$D$92,'17-KL'!$B$78:$B$80,0)),5)*($D$94-MID(INDEX('17-KL'!$G$78:$G$80,MATCH(Input!$D$92,'17-KL'!$B$78:$B$80,0)),10,2)),0))*$D$93 -> 5.5 | AA92: =(INDEX('18-LD'!$E$78:$E$80,MATCH(Input!$D$92,'18-LD'!$B$78:$B$80,0))+IFERROR(LEFT(INDEX('18-LD'!$G$78:$G$80,MATCH(Input!$D$92,'18-LD'!$B$78:$B$80,0)),5)*($D$94-MID(INDEX('18-LD'!$G$78:$G$80,MATCH(Input!$D$92,'18-LD'!$B$78:$B$80,0)),10,2)),0))*$D$93 -> 5.75 | AB92: =(INDEX('19-MP'!$E$78:$E$80,MATCH(Input!$D$92,'19-MP'!$B$78:$B$80,0))+IFERROR(LEFT(INDEX('19-MP'!$G$78:$G$80,MATCH(Input!$D$92,'19-MP'!$B$78:$B$80,0)),5)*($D$94-MID(INDEX('19-MP'!$G$78:$G$80,MATCH(Input!$D$92,'19-MP'!$B$78:$B$80,0)),10,2)),0))*$D$93 -> 5.5 | AC92: =(INDEX('20-MH'!$E$78:$E$80,MATCH(Input!$D$92,'20-MH'!$B$78:$B$80,0))+IFERROR(LEFT(INDEX('20-MH'!$G$78:$G$80,MATCH(Input!$D$92,'20-MH'!$B$78:$B$80,0)),5)*($D$94-MID(INDEX('20-MH'!$G$78:$G$80,MATCH(Input!$D$92,'20-MH'!$B$78:$B$80,0)),10,2)),0))*$D$93 -> 6.347310598 | AD92: =(INDEX('21-OD'!$E$78:$E$80,MATCH(Input!$D$92,'21-OD'!$B$78:$B$80,0))+IFERROR(LEFT(INDEX('21-OD'!$G$78:$G$80,MATCH(Input!$D$92,'21-OD'!$B$78:$B$80,0)),5)*($D$94-MID(INDEX('21-OD'!$G$78:$G$80,MATCH(Input!$D$92,'21-OD'!$B$78:$B$80,0)),10,2)),0))*$D$93 -> 5.34261702 | AE92: =(INDEX('22-PY'!$E$78:$E$80,MATCH(Input!$D$92,'22-PY'!$B$78:$B$80,0))+IFERROR(LEFT(INDEX('22-PY'!$G$78:$G$80,MATCH(Input!$D$92,'22-PY'!$B$78:$B$80,0)),5)*($D$94-MID(INDEX('22-PY'!$G$78:$G$80,MATCH(Input!$D$92,'22-PY'!$B$78:$B$80,0)),10,2)),0))*$D$93 -> 5.5 | AF92: =(INDEX('23-PB'!$E$78:$E$80,MATCH(Input!$D$92,'23-PB'!$B$78:$B$80,0))+IFERROR(LEFT(INDEX('23-PB'!$G$78:$G$80,MATCH(Input!$D$92,'23-PB'!$B$78:$B$80,0)),5)*($D$94-MID(INDEX('23-PB'!$G$78:$G$80,MATCH(Input!$D$92,'23-PB'!$B$78:$B$80,0)),10,2)),0))*$D$93 -> 6.544399637 | AG92: =(INDEX('24-RJ'!$E$78:$E$80,MATCH(Input!$D$92,'24-RJ'!$B$78:$B$80,0))+IFERROR(LEFT(INDEX('24-RJ'!$G$78:$G$80,MATCH(Input!$D$92,'24-RJ'!$B$78:$B$80,0)),5)*($D$94-MID(INDEX('24-RJ'!$G$78:$G$80,MATCH(Input!$D$92,'24-RJ'!$B$78:$B$80,0)),10,2)),0))*$D$93 -> 6.2444144 | AH92: =(INDEX('25-TN'!$E$78:$E$80,MATCH(Input!$D$92,'25-TN'!$B$78:$B$80,0))+IFERROR(LEFT(INDEX('25-TN'!$G$78:$G$80,MATCH(Input!$D$92,'25-TN'!$B$78:$B$80,0)),5)*($D$94-MID(INDEX('25-TN'!$G$78:$G$80,MATCH(Input!$D$92,'25-TN'!$B$78:$B$80,0)),10,2)),0))*$D$93 -> 5.325 | AI92: =(INDEX('26-TS'!$E$78:$E$80,MATCH(Input!$D$92,'26-TS'!$B$78:$B$80,0))+IFERROR(LEFT(INDEX('26-TS'!$G$78:$G$80,MATCH(Input!$D$92,'26-TS'!$B$78:$B$80,0)),5)*($D$94-MID(INDEX('26-TS'!$G$78:$G$80,MATCH(Input!$D$92,'26-TS'!$B$78:$B$80,0)),10,2)),0))*$D$93 -> 5.064464432 | AJ92: =(INDEX('27-UP'!$E$78:$E$80,MATCH(Input!$D$92,'27-UP'!$B$78:$B$80,0))+IFERROR(LEFT(INDEX('27-UP'!$G$78:$G$80,MATCH(Input!$D$92,'27-UP'!$B$78:$B$80,0)),5)*($D$94-MID(INDEX('27-UP'!$G$78:$G$80,MATCH(Input!$D$92,'27-UP'!$B$78:$B$80,0)),10,2)),0))*$D$93 -> 5.668687869 | AK92: =(INDEX('28-UK'!$E$78:$E$80,MATCH(Input!$D$92,'28-UK'!$B$78:$B$80,0))+IFERROR(LEFT(INDEX('28-UK'!$G$78:$G$80,MATCH(Input!$D$92,'28-UK'!$B$78:$B$80,0)),5)*($D$94-MID(INDEX('28-UK'!$G$78:$G$80,MATCH(Input!$D$92,'28-UK'!$B$78:$B$80,0)),10,2)),0))*$D$93 -> 6.446560629 | AL92: =(INDEX('29-WB'!$E$78:$E$80,MATCH(Input!$D$92,'29-WB'!$B$78:$B$80,0))+IFERROR(LEFT(INDEX('29-WB'!$G$78:$G$80,MATCH(Input!$D$92,'29-WB'!$B$78:$B$80,0)),5)*($D$94-MID(INDEX('29-WB'!$G$78:$G$80,MATCH(Input!$D$92,'29-WB'!$B$78:$B$80,0)),10,2)),0))*$D$93 -> 6.552119281
C93: No | D93: 25
C94: Aggregate Lead in km | D94: =$D$9 -> 50
B96: 6 | C96: RE Wall Structure Approach (Flyovers/VUP/LVUP/SVUP/ROB)
B97: (i) | C97: Flexible Pavement
C98: Type-1
C99: Configuration of Road with Pavement Combination | D99: For 4-lane Greenfield Alignment _(BC, DBM, WMM & GSB) | E99: =IF($D$8="Andaman & Nicobar Islands ",J99,IF($D$8="Andhra Pradesh",K99,IF($D$8="Assam",L99,IF($D$8="Bihar",M99,IF($D$8="Chandigarh",N99,IF($D$8="Chhattisgarh",O99,IF($D$8="Dadra & Nagar Haveli",P99,IF($D$8="Daman & Diu",Q99,IF($D$8="Delhi",R99,IF($D$8="Goa",S99,IF($D$8="Gujarat",T99,IF($D$8="Haryana",U99,IF($D$8="Himachal Pradesh",V99,IF($D$8="Jammu & Kashmir",W99,IF($D$8="Jharkhand",X99,IF($D$8="Karnataka",Y99,IF($D$8="Kerala",Z99,IF($D$8="Lakshadweep",AA99,IF($D$8="Madhya Pradesh",AB99,IF($D$8="Maharashtra",AC99,IF($D$8="Odisha",AD99,IF($D$8="Puducherry",AE99,IF($D$8="Punjab",AF99,IF($D$8="Rajasthan",AG99,IF($D$8="Tamil Nadu",AH99,IF($D$8="Telangana",AI99,IF($D$8="Uttar Pradesh",AJ99,IF($D$8="Uttarakhand",AK99,IF($D$8="West Bengal",AL99)))))))))))))))))))))))))))))/10^7 -> 0.0018575 | F99: =E99*10^7 -> 18575 | G99: =IF(E99>0,E99/D100,0) -> 0.0018575 | J99: =(INDEX('1-AN'!$E$87:$E$110,MATCH(Input!$D$99,'1-AN'!$B$87:$B$110,0))+IFERROR(LEFT(INDEX('1-AN'!$G$87:$G$110,MATCH(Input!$D$99,'1-AN'!$B$87:$B$110,0)),5)*($D$101-MID(INDEX('1-AN'!$G$87:$G$110,MATCH(Input!$D$99,'1-AN'!$B$87:$B$110,0)),10,2)),0)+LEFT(INDEX('1-AN'!$H$87:$H$110,MATCH(Input!$D$99,'1-AN'!$B$87:$B$110,0)),5)*($D$102-MID(INDEX('1-AN'!$H$87:$H$110,MATCH(Input!$D$99,'1-AN'!$B$87:$B$110,0)),10,2)))*$D$100 -> 19314 | K99: =(INDEX('1-AN'!$E$87:$E$110,MATCH(Input!$D$99,'1-AN'!$B$87:$B$110,0))+IFERROR(LEFT(INDEX('1-AN'!$G$87:$G$110,MATCH(Input!$D$99,'1-AN'!$B$87:$B$110,0)),5)*($D$101-MID(INDEX('1-AN'!$G$87:$G$110,MATCH(Input!$D$99,'1-AN'!$B$87:$B$110,0)),10,2)),0)+LEFT(INDEX('1-AN'!$H$87:$H$110,MATCH(Input!$D$99,'1-AN'!$B$87:$B$110,0)),5)*($D$102-MID(INDEX('1-AN'!$H$87:$H$110,MATCH(Input!$D$99,'1-AN'!$B$87:$B$110,0)),10,2)))*$D$100 -> 19314 | L99: =(INDEX('3-AS'!$E$87:$E$110,MATCH(Input!$D$99,'3-AS'!$B$87:$B$110,0))+IFERROR(LEFT(INDEX('3-AS'!$G$87:$G$110,MATCH(Input!$D$99,'3-AS'!$B$87:$B$110,0)),5)*($D$101-MID(INDEX('3-AS'!$G$87:$G$110,MATCH(Input!$D$99,'3-AS'!$B$87:$B$110,0)),10,2)),0)+LEFT(INDEX('3-AS'!$H$87:$H$110,MATCH(Input!$D$99,'3-AS'!$B$87:$B$110,0)),5)*($D$102-MID(INDEX('3-AS'!$H$87:$H$110,MATCH(Input!$D$99,'3-AS'!$B$87:$B$110,0)),10,2)))*$D$100 -> 23159 | M99: =(INDEX('4-BR'!$E$87:$E$110,MATCH(Input!$D$99,'4-BR'!$B$87:$B$110,0))+IFERROR(LEFT(INDEX('4-BR'!$G$87:$G$110,MATCH(Input!$D$99,'4-BR'!$B$87:$B$110,0)),5)*($D$101-MID(INDEX('4-BR'!$G$87:$G$110,MATCH(Input!$D$99,'4-BR'!$B$87:$B$110,0)),10,2)),0)+LEFT(INDEX('4-BR'!$H$87:$H$110,MATCH(Input!$D$99,'4-BR'!$B$87:$B$110,0)),5)*($D$102-MID(INDEX('4-BR'!$H$87:$H$110,MATCH(Input!$D$99,'4-BR'!$B$87:$B$110,0)),10,2)))*$D$100 -> 16072 | N99: =(INDEX('5-CH'!$E$87:$E$110,MATCH(Input!$D$99,'5-CH'!$B$87:$B$110,0))+IFERROR(LEFT(INDEX('5-CH'!$G$87:$G$110,MATCH(Input!$D$99,'5-CH'!$B$87:$B$110,0)),5)*($D$101-MID(INDEX('5-CH'!$G$87:$G$110,MATCH(Input!$D$99,'5-CH'!$B$87:$B$110,0)),10,2)),0)+LEFT(INDEX('5-CH'!$H$87:$H$110,MATCH(Input!$D$99,'5-CH'!$B$87:$B$110,0)),5)*($D$102-MID(INDEX('5-CH'!$H$87:$H$110,MATCH(Input!$D$99,'5-CH'!$B$87:$B$110,0)),10,2)))*$D$100 -> 18419 | O99: =(INDEX('6-CG'!$E$87:$E$110,MATCH(Input!$D$99,'6-CG'!$B$87:$B$110,0))+IFERROR(LEFT(INDEX('6-CG'!$G$87:$G$110,MATCH(Input!$D$99,'6-CG'!$B$87:$B$110,0)),5)*($D$101-MID(INDEX('6-CG'!$G$87:$G$110,MATCH(Input!$D$99,'6-CG'!$B$87:$B$110,0)),10,2)),0)+LEFT(INDEX('6-CG'!$H$87:$H$110,MATCH(Input!$D$99,'6-CG'!$B$87:$B$110,0)),5)*($D$102-MID(INDEX('6-CG'!$H$87:$H$110,MATCH(Input!$D$99,'6-CG'!$B$87:$B$110,0)),10,2)))*$D$100 -> 21382 | P99: =(INDEX('7-DN'!$E$87:$E$110,MATCH(Input!$D$99,'7-DN'!$B$87:$B$110,0))+IFERROR(LEFT(INDEX('7-DN'!$G$87:$G$110,MATCH(Input!$D$99,'7-DN'!$B$87:$B$110,0)),5)*($D$101-MID(INDEX('7-DN'!$G$87:$G$110,MATCH(Input!$D$99,'7-DN'!$B$87:$B$110,0)),10,2)),0)+LEFT(INDEX('7-DN'!$H$87:$H$110,MATCH(Input!$D$99,'7-DN'!$B$87:$B$110,0)),5)*($D$102-MID(INDEX('7-DN'!$H$87:$H$110,MATCH(Input!$D$99,'7-DN'!$B$87:$B$110,0)),10,2)))*$D$100 -> 24655 | Q99: =(INDEX('8-DD'!$E$87:$E$110,MATCH(Input!$D$99,'8-DD'!$B$87:$B$110,0))+IFERROR(LEFT(INDEX('8-DD'!$G$87:$G$110,MATCH(Input!$D$99,'8-DD'!$B$87:$B$110,0)),5)*($D$101-MID(INDEX('8-DD'!$G$87:$G$110,MATCH(Input!$D$99,'8-DD'!$B$87:$B$110,0)),10,2)),0)+LEFT(INDEX('8-DD'!$H$87:$H$110,MATCH(Input!$D$99,'8-DD'!$B$87:$B$110,0)),5)*($D$102-MID(INDEX('8-DD'!$H$87:$H$110,MATCH(Input!$D$99,'8-DD'!$B$87:$B$110,0)),10,2)))*$D$100 -> 20215 | R99: =(INDEX('9-DL'!$E$87:$E$110,MATCH(Input!$D$99,'9-DL'!$B$87:$B$110,0))+IFERROR(LEFT(INDEX('9-DL'!$G$87:$G$110,MATCH(Input!$D$99,'9-DL'!$B$87:$B$110,0)),5)*($D$101-MID(INDEX('9-DL'!$G$87:$G$110,MATCH(Input!$D$99,'9-DL'!$B$87:$B$110,0)),10,2)),0)+LEFT(INDEX('9-DL'!$H$87:$H$110,MATCH(Input!$D$99,'9-DL'!$B$87:$B$110,0)),5)*($D$102-MID(INDEX('9-DL'!$H$87:$H$110,MATCH(Input!$D$99,'9-DL'!$B$87:$B$110,0)),10,2)))*$D$100 -> 18575 | S99: =(INDEX('10-GA'!$E$87:$E$110,MATCH(Input!$D$99,'10-GA'!$B$87:$B$110,0))+IFERROR(LEFT(INDEX('10-GA'!$G$87:$G$110,MATCH(Input!$D$99,'10-GA'!$B$87:$B$110,0)),5)*($D$101-MID(INDEX('10-GA'!$G$87:$G$110,MATCH(Input!$D$99,'10-GA'!$B$87:$B$110,0)),10,2)),0)+LEFT(INDEX('10-GA'!$H$87:$H$110,MATCH(Input!$D$99,'10-GA'!$B$87:$B$110,0)),5)*($D$102-MID(INDEX('10-GA'!$H$87:$H$110,MATCH(Input!$D$99,'10-GA'!$B$87:$B$110,0)),10,2)))*$D$100 -> 24655 | T99: =(INDEX('11-GJ'!$E$87:$E$110,MATCH(Input!$D$99,'11-GJ'!$B$87:$B$110,0))+IFERROR(LEFT(INDEX('11-GJ'!$G$87:$G$110,MATCH(Input!$D$99,'11-GJ'!$B$87:$B$110,0)),5)*($D$101-MID(INDEX('11-GJ'!$G$87:$G$110,MATCH(Input!$D$99,'11-GJ'!$B$87:$B$110,0)),10,2)),0)+LEFT(INDEX('11-GJ'!$H$87:$H$110,MATCH(Input!$D$99,'11-GJ'!$B$87:$B$110,0)),5)*($D$102-MID(INDEX('11-GJ'!$H$87:$H$110,MATCH(Input!$D$99,'11-GJ'!$B$87:$B$110,0)),10,2)))*$D$100 -> 19327 | U99: =(INDEX('12-HR'!$E$87:$E$110,MATCH(Input!$D$99,'12-HR'!$B$87:$B$110,0))+IFERROR(LEFT(INDEX('12-HR'!$G$87:$G$110,MATCH(Input!$D$99,'12-HR'!$B$87:$B$110,0)),5)*($D$101-MID(INDEX('12-HR'!$G$87:$G$110,MATCH(Input!$D$99,'12-HR'!$B$87:$B$110,0)),10,2)),0)+LEFT(INDEX('12-HR'!$H$87:$H$110,MATCH(Input!$D$99,'12-HR'!$B$87:$B$110,0)),5)*($D$102-MID(INDEX('12-HR'!$H$87:$H$110,MATCH(Input!$D$99,'12-HR'!$B$87:$B$110,0)),10,2)))*$D$100 -> 17724 | V99: =(INDEX('13-HP'!$E$87:$E$110,MATCH(Input!$D$99,'13-HP'!$B$87:$B$110,0))+IFERROR(LEFT(INDEX('13-HP'!$G$87:$G$110,MATCH(Input!$D$99,'13-HP'!$B$87:$B$110,0)),5)*($D$101-MID(INDEX('13-HP'!$G$87:$G$110,MATCH(Input!$D$99,'13-HP'!$B$87:$B$110,0)),10,2)),0)+LEFT(INDEX('13-HP'!$H$87:$H$110,MATCH(Input!$D$99,'13-HP'!$B$87:$B$110,0)),5)*($D$102-MID(INDEX('13-HP'!$H$87:$H$110,MATCH(Input!$D$99,'13-HP'!$B$87:$B$110,0)),10,2)))*$D$100 -> 21286 | W99: =(INDEX('14-JK'!$E$87:$E$110,MATCH(Input!$D$99,'14-JK'!$B$87:$B$110,0))+IFERROR(LEFT(INDEX('14-JK'!$G$87:$G$110,MATCH(Input!$D$99,'14-JK'!$B$87:$B$110,0)),5)*($D$101-MID(INDEX('14-JK'!$G$87:$G$110,MATCH(Input!$D$99,'14-JK'!$B$87:$B$110,0)),10,2)),0)+LEFT(INDEX('14-JK'!$H$87:$H$110,MATCH(Input!$D$99,'14-JK'!$B$87:$B$110,0)),5)*($D$102-MID(INDEX('14-JK'!$H$87:$H$110,MATCH(Input!$D$99,'14-JK'!$B$87:$B$110,0)),10,2)))*$D$100 -> 20172 | X99: =(INDEX('15-JH'!$E$87:$E$110,MATCH(Input!$D$99,'15-JH'!$B$87:$B$110,0))+IFERROR(LEFT(INDEX('15-JH'!$G$87:$G$110,MATCH(Input!$D$99,'15-JH'!$B$87:$B$110,0)),5)*($D$101-MID(INDEX('15-JH'!$G$87:$G$110,MATCH(Input!$D$99,'15-JH'!$B$87:$B$110,0)),10,2)),0)+LEFT(INDEX('15-JH'!$H$87:$H$110,MATCH(Input!$D$99,'15-JH'!$B$87:$B$110,0)),5)*($D$102-MID(INDEX('15-JH'!$H$87:$H$110,MATCH(Input!$D$99,'15-JH'!$B$87:$B$110,0)),10,2)))*$D$100 -> 15347 | Y99: =(INDEX('16-KA'!$E$87:$E$110,MATCH(Input!$D$99,'16-KA'!$B$87:$B$110,0))+IFERROR(LEFT(INDEX('16-KA'!$G$87:$G$110,MATCH(Input!$D$99,'16-KA'!$B$87:$B$110,0)),5)*($D$101-MID(INDEX('16-KA'!$G$87:$G$110,MATCH(Input!$D$99,'16-KA'!$B$87:$B$110,0)),10,2)),0)+LEFT(INDEX('16-KA'!$H$87:$H$110,MATCH(Input!$D$99,'16-KA'!$B$87:$B$110,0)),5)*($D$102-MID(INDEX('16-KA'!$H$87:$H$110,MATCH(Input!$D$99,'16-KA'!$B$87:$B$110,0)),10,2)))*$D$100 -> 19315 | Z99: =(INDEX('17-KL'!$E$87:$E$110,MATCH(Input!$D$99,'17-KL'!$B$87:$B$110,0))+IFERROR(LEFT(INDEX('17-KL'!$G$87:$G$110,MATCH(Input!$D$99,'17-KL'!$B$87:$B$110,0)),5)*($D$101-MID(INDEX('17-KL'!$G$87:$G$110,MATCH(Input!$D$99,'17-KL'!$B$87:$B$110,0)),10,2)),0)+LEFT(INDEX('17-KL'!$H$87:$H$110,MATCH(Input!$D$99,'17-KL'!$B$87:$B$110,0)),5)*($D$102-MID(INDEX('17-KL'!$H$87:$H$110,MATCH(Input!$D$99,'17-KL'!$B$87:$B$110,0)),10,2)))*$D$100 -> 20025 | AA99: =(INDEX('18-LD'!$E$87:$E$110,MATCH(Input!$D$99,'18-LD'!$B$87:$B$110,0))+IFERROR(LEFT(INDEX('18-LD'!$G$87:$G$110,MATCH(Input!$D$99,'18-LD'!$B$87:$B$110,0)),5)*($D$101-MID(INDEX('18-LD'!$G$87:$G$110,MATCH(Input!$D$99,'18-LD'!$B$87:$B$110,0)),10,2)),0)+LEFT(INDEX('18-LD'!$H$87:$H$110,MATCH(Input!$D$99,'18-LD'!$B$87:$B$110,0)),5)*($D$102-MID(INDEX('18-LD'!$H$87:$H$110,MATCH(Input!$D$99,'18-LD'!$B$87:$B$110,0)),10,2)))*$D$100 -> 20948 | AB99: =(INDEX('19-MP'!$E$87:$E$110,MATCH(Input!$D$99,'19-MP'!$B$87:$B$110,0))+IFERROR(LEFT(INDEX('19-MP'!$G$87:$G$110,MATCH(Input!$D$99,'19-MP'!$B$87:$B$110,0)),5)*($D$101-MID(INDEX('19-MP'!$G$87:$G$110,MATCH(Input!$D$99,'19-MP'!$B$87:$B$110,0)),10,2)),0)+LEFT(INDEX('19-MP'!$H$87:$H$110,MATCH(Input!$D$99,'19-MP'!$B$87:$B$110,0)),5)*($D$102-MID(INDEX('19-MP'!$H$87:$H$110,MATCH(Input!$D$99,'19-MP'!$B$87:$B$110,0)),10,2)))*$D$100 -> 20392 | AC99: =(INDEX('20-MH'!$E$87:$E$110,MATCH(Input!$D$99,'20-MH'!$B$87:$B$110,0))+IFERROR(LEFT(INDEX('20-MH'!$G$87:$G$110,MATCH(Input!$D$99,'20-MH'!$B$87:$B$110,0)),5)*($D$101-MID(INDEX('20-MH'!$G$87:$G$110,MATCH(Input!$D$99,'20-MH'!$B$87:$B$110,0)),10,2)),0)+LEFT(INDEX('20-MH'!$H$87:$H$110,MATCH(Input!$D$99,'20-MH'!$B$87:$B$110,0)),5)*($D$102-MID(INDEX('20-MH'!$H$87:$H$110,MATCH(Input!$D$99,'20-MH'!$B$87:$B$110,0)),10,2)))*$D$100 -> 24655 | AD99: =(INDEX('21-OD'!$E$87:$E$110,MATCH(Input!$D$99,'21-OD'!$B$87:$B$110,0))+IFERROR(LEFT(INDEX('21-OD'!$G$87:$G$110,MATCH(Input!$D$99,'21-OD'!$B$87:$B$110,0)),5)*($D$101-MID(INDEX('21-OD'!$G$87:$G$110,MATCH(Input!$D$99,'21-OD'!$B$87:$B$110,0)),10,2)),0)+LEFT(INDEX('21-OD'!$H$87:$H$110,MATCH(Input!$D$99,'21-OD'!$B$87:$B$110,0)),5)*($D$102-MID(INDEX('21-OD'!$H$87:$H$110,MATCH(Input!$D$99,'21-OD'!$B$87:$B$110,0)),10,2)))*$D$100 -> 20217 | AE99: =(INDEX('22-PY'!$E$87:$E$110,MATCH(Input!$D$99,'22-PY'!$B$87:$B$110,0))+IFERROR(LEFT(INDEX('22-PY'!$G$87:$G$110,MATCH(Input!$D$99,'22-PY'!$B$87:$B$110,0)),5)*($D$101-MID(INDEX('22-PY'!$G$87:$G$110,MATCH(Input!$D$99,'22-PY'!$B$87:$B$110,0)),10,2)),0)+LEFT(INDEX('22-PY'!$H$87:$H$110,MATCH(Input!$D$99,'22-PY'!$B$87:$B$110,0)),5)*($D$102-MID(INDEX('22-PY'!$H$87:$H$110,MATCH(Input!$D$99,'22-PY'!$B$87:$B$110,0)),10,2)))*$D$100 -> 20027 | AF99: =(INDEX('23-PB'!$E$87:$E$110,MATCH(Input!$D$99,'23-PB'!$B$87:$B$110,0))+IFERROR(LEFT(INDEX('23-PB'!$G$87:$G$110,MATCH(Input!$D$99,'23-PB'!$B$87:$B$110,0)),5)*($D$101-MID(INDEX('23-PB'!$G$87:$G$110,MATCH(Input!$D$99,'23-PB'!$B$87:$B$110,0)),10,2)),0)+LEFT(INDEX('23-PB'!$H$87:$H$110,MATCH(Input!$D$99,'23-PB'!$B$87:$B$110,0)),5)*($D$102-MID(INDEX('23-PB'!$H$87:$H$110,MATCH(Input!$D$99,'23-PB'!$B$87:$B$110,0)),10,2)))*$D$100 -> 18419 | AG99: =(INDEX('24-RJ'!$E$87:$E$110,MATCH(Input!$D$99,'24-RJ'!$B$87:$B$110,0))+IFERROR(LEFT(INDEX('24-RJ'!$G$87:$G$110,MATCH(Input!$D$99,'24-RJ'!$B$87:$B$110,0)),5)*($D$101-MID(INDEX('24-RJ'!$G$87:$G$110,MATCH(Input!$D$99,'24-RJ'!$B$87:$B$110,0)),10,2)),0)+LEFT(INDEX('24-RJ'!$H$87:$H$110,MATCH(Input!$D$99,'24-RJ'!$B$87:$B$110,0)),5)*($D$102-MID(INDEX('24-RJ'!$H$87:$H$110,MATCH(Input!$D$99,'24-RJ'!$B$87:$B$110,0)),10,2)))*$D$100 -> 19160 | AH99: =(INDEX('25-TN'!$E$87:$E$110,MATCH(Input!$D$99,'25-TN'!$B$87:$B$110,0))+IFERROR(LEFT(INDEX('25-TN'!$G$87:$G$110,MATCH(Input!$D$99,'25-TN'!$B$87:$B$110,0)),5)*($D$101-MID(INDEX('25-TN'!$G$87:$G$110,MATCH(Input!$D$99,'25-TN'!$B$87:$B$110,0)),10,2)),0)+LEFT(INDEX('25-TN'!$H$87:$H$110,MATCH(Input!$D$99,'25-TN'!$B$87:$B$110,0)),5)*($D$102-MID(INDEX('25-TN'!$H$87:$H$110,MATCH(Input!$D$99,'25-TN'!$B$87:$B$110,0)),10,2)))*$D$100 -> 19148 | AI99: =(INDEX('26-TS'!$E$87:$E$110,MATCH(Input!$D$99,'26-TS'!$B$87:$B$110,0))+IFERROR(LEFT(INDEX('26-TS'!$G$87:$G$110,MATCH(Input!$D$99,'26-TS'!$B$87:$B$110,0)),5)*($D$101-MID(INDEX('26-TS'!$G$87:$G$110,MATCH(Input!$D$99,'26-TS'!$B$87:$B$110,0)),10,2)),0)+LEFT(INDEX('26-TS'!$H$87:$H$110,MATCH(Input!$D$99,'26-TS'!$B$87:$B$110,0)),5)*($D$102-MID(INDEX('26-TS'!$H$87:$H$110,MATCH(Input!$D$99,'26-TS'!$B$87:$B$110,0)),10,2)))*$D$100 -> 19430 | AJ99: =(INDEX('27-UP'!$E$87:$E$110,MATCH(Input!$D$99,'27-UP'!$B$87:$B$110,0))+IFERROR(LEFT(INDEX('27-UP'!$G$87:$G$110,MATCH(Input!$D$99,'27-UP'!$B$87:$B$110,0)),5)*($D$101-MID(INDEX('27-UP'!$G$87:$G$110,MATCH(Input!$D$99,'27-UP'!$B$87:$B$110,0)),10,2)),0)+LEFT(INDEX('27-UP'!$H$87:$H$110,MATCH(Input!$D$99,'27-UP'!$B$87:$B$110,0)),5)*($D$102-MID(INDEX('27-UP'!$H$87:$H$110,MATCH(Input!$D$99,'27-UP'!$B$87:$B$110,0)),10,2)))*$D$100 -> 15844 | AK99: =(INDEX('28-UK'!$E$87:$E$110,MATCH(Input!$D$99,'28-UK'!$B$87:$B$110,0))+IFERROR(LEFT(INDEX('28-UK'!$G$87:$G$110,MATCH(Input!$D$99,'28-UK'!$B$87:$B$110,0)),5)*($D$101-MID(INDEX('28-UK'!$G$87:$G$110,MATCH(Input!$D$99,'28-UK'!$B$87:$B$110,0)),10,2)),0)+LEFT(INDEX('28-UK'!$H$87:$H$110,MATCH(Input!$D$99,'28-UK'!$B$87:$B$110,0)),5)*($D$102-MID(INDEX('28-UK'!$H$87:$H$110,MATCH(Input!$D$99,'28-UK'!$B$87:$B$110,0)),10,2)))*$D$100 -> 20816 | AL99: =(INDEX('29-WB'!$E$87:$E$110,MATCH(Input!$D$99,'29-WB'!$B$87:$B$110,0))+IFERROR(LEFT(INDEX('29-WB'!$G$87:$G$110,MATCH(Input!$D$99,'29-WB'!$B$87:$B$110,0)),5)*($D$101-MID(INDEX('29-WB'!$G$87:$G$110,MATCH(Input!$D$99,'29-WB'!$B$87:$B$110,0)),10,2)),0)+LEFT(INDEX('29-WB'!$H$87:$H$110,MATCH(Input!$D$99,'29-WB'!$B$87:$B$110,0)),5)*($D$102-MID(INDEX('29-WB'!$H$87:$H$110,MATCH(Input!$D$99,'29-WB'!$B$87:$B$110,0)),10,2)))*$D$100 -> 19314
C100: Area in Sqm | D100: 1
C101: MSA | D101: 50
C102: Aggregate Lead in km | D102: 50
C103: Type-2
C104: Configuration of Road with Pavement Combination | D104: For 4-lane Greenfield Alignment _(BC, DBM, WMM & GSB) | E104: =IF($D$8="Andaman & Nicobar Islands ",J104,IF($D$8="Andhra Pradesh",K104,IF($D$8="Assam",L104,IF($D$8="Bihar",M104,IF($D$8="Chandigarh",N104,IF($D$8="Chhattisgarh",O104,IF($D$8="Dadra & Nagar Haveli",P104,IF($D$8="Daman & Diu",Q104,IF($D$8="Delhi",R104,IF($D$8="Goa",S104,IF($D$8="Gujarat",T104,IF($D$8="Haryana",U104,IF($D$8="Himachal Pradesh",V104,IF($D$8="Jammu & Kashmir",W104,IF($D$8="Jharkhand",X104,IF($D$8="Karnataka",Y104,IF($D$8="Kerala",Z104,IF($D$8="Lakshadweep",AA104,IF($D$8="Madhya Pradesh",AB104,IF($D$8="Maharashtra",AC104,IF($D$8="Odisha",AD104,IF($D$8="Puducherry",AE104,IF($D$8="Punjab",AF104,IF($D$8="Rajasthan",AG104,IF($D$8="Tamil Nadu",AH104,IF($D$8="Telangana",AI104,IF($D$8="Uttar Pradesh",AJ104,IF($D$8="Uttarakhand",AK104,IF($D$8="West Bengal",AL104)))))))))))))))))))))))))))))/10^7 -> 0.0018575 | F104: =E104*10^7 -> 18575 | G104: =IF(E104>0,E104/D105,0) -> 0.0018575 | J104: =(INDEX('1-AN'!$E$87:$E$110,MATCH(Input!$D$104,'1-AN'!$B$87:$B$110,0))+IFERROR(LEFT(INDEX('1-AN'!$G$87:$G$110,MATCH(Input!$D$104,'1-AN'!$B$87:$B$110,0)),5)*($D$106-MID(INDEX('1-AN'!$G$87:$G$110,MATCH(Input!$D$104,'1-AN'!$B$87:$B$110,0)),10,2)),0)+LEFT(INDEX('1-AN'!$H$87:$H$110,MATCH(Input!$D$104,'1-AN'!$B$87:$B$110,0)),5)*($D$107-MID(INDEX('1-AN'!$H$87:$H$110,MATCH(Input!$D$104,'1-AN'!$B$87:$B$110,0)),10,2)))*$D$105 -> 19314 | K104: =(INDEX('2-AP'!$E$87:$E$110,MATCH(Input!$D$104,'2-AP'!$B$87:$B$110,0))+IFERROR(LEFT(INDEX('2-AP'!$G$87:$G$110,MATCH(Input!$D$104,'2-AP'!$B$87:$B$110,0)),5)*($D$106-MID(INDEX('2-AP'!$G$87:$G$110,MATCH(Input!$D$104,'2-AP'!$B$87:$B$110,0)),10,2)),0)+LEFT(INDEX('2-AP'!$H$87:$H$110,MATCH(Input!$D$104,'2-AP'!$B$87:$B$110,0)),5)*($D$107-MID(INDEX('2-AP'!$H$87:$H$110,MATCH(Input!$D$104,'2-AP'!$B$87:$B$110,0)),10,2)))*$D$105 -> 18311 | L104: =(INDEX('3-AS'!$E$87:$E$110,MATCH(Input!$D$104,'3-AS'!$B$87:$B$110,0))+IFERROR(LEFT(INDEX('3-AS'!$G$87:$G$110,MATCH(Input!$D$104,'3-AS'!$B$87:$B$110,0)),5)*($D$106-MID(INDEX('3-AS'!$G$87:$G$110,MATCH(Input!$D$104,'3-AS'!$B$87:$B$110,0)),10,2)),0)+LEFT(INDEX('3-AS'!$H$87:$H$110,MATCH(Input!$D$104,'3-AS'!$B$87:$B$110,0)),5)*($D$107-MID(INDEX('3-AS'!$H$87:$H$110,MATCH(Input!$D$104,'3-AS'!$B$87:$B$110,0)),10,2)))*$D$105 -> 23159 | M104: =(INDEX('4-BR'!$E$87:$E$110,MATCH(Input!$D$104,'4-BR'!$B$87:$B$110,0))+IFERROR(LEFT(INDEX('4-BR'!$G$87:$G$110,MATCH(Input!$D$104,'4-BR'!$B$87:$B$110,0)),5)*($D$106-MID(INDEX('4-BR'!$G$87:$G$110,MATCH(Input!$D$104,'4-BR'!$B$87:$B$110,0)),10,2)),0)+LEFT(INDEX('4-BR'!$H$87:$H$110,MATCH(Input!$D$104,'4-BR'!$B$87:$B$110,0)),5)*($D$107-MID(INDEX('4-BR'!$H$87:$H$110,MATCH(Input!$D$104,'4-BR'!$B$87:$B$110,0)),10,2)))*$D$105 -> 16072 | N104: =(INDEX('5-CH'!$E$87:$E$110,MATCH(Input!$D$104,'5-CH'!$B$87:$B$110,0))+IFERROR(LEFT(INDEX('5-CH'!$G$87:$G$110,MATCH(Input!$D$104,'5-CH'!$B$87:$B$110,0)),5)*($D$106-MID(INDEX('5-CH'!$G$87:$G$110,MATCH(Input!$D$104,'5-CH'!$B$87:$B$110,0)),10,2)),0)+LEFT(INDEX('5-CH'!$H$87:$H$110,MATCH(Input!$D$104,'5-CH'!$B$87:$B$110,0)),5)*($D$107-MID(INDEX('5-CH'!$H$87:$H$110,MATCH(Input!$D$104,'5-CH'!$B$87:$B$110,0)),10,2)))*$D$105 -> 18419 | O104: =(INDEX('6-CG'!$E$87:$E$110,MATCH(Input!$D$104,'6-CG'!$B$87:$B$110,0))+IFERROR(LEFT(INDEX('6-CG'!$G$87:$G$110,MATCH(Input!$D$104,'6-CG'!$B$87:$B$110,0)),5)*($D$106-MID(INDEX('6-CG'!$G$87:$G$110,MATCH(Input!$D$104,'6-CG'!$B$87:$B$110,0)),10,2)),0)+LEFT(INDEX('6-CG'!$H$87:$H$110,MATCH(Input!$D$104,'6-CG'!$B$87:$B$110,0)),5)*($D$107-MID(INDEX('6-CG'!$H$87:$H$110,MATCH(Input!$D$104,'6-CG'!$B$87:$B$110,0)),10,2)))*$D$105 -> 21382 | P104: =(INDEX('7-DN'!$E$87:$E$110,MATCH(Input!$D$104,'7-DN'!$B$87:$B$110,0))+IFERROR(LEFT(INDEX('7-DN'!$G$87:$G$110,MATCH(Input!$D$104,'7-DN'!$B$87:$B$110,0)),5)*($D$106-MID(INDEX('7-DN'!$G$87:$G$110,MATCH(Input!$D$104,'7-DN'!$B$87:$B$110,0)),10,2)),0)+LEFT(INDEX('7-DN'!$H$87:$H$110,MATCH(Input!$D$104,'7-DN'!$B$87:$B$110,0)),5)*($D$107-MID(INDEX('7-DN'!$H$87:$H$110,MATCH(Input!$D$104,'7-DN'!$B$87:$B$110,0)),10,2)))*$D$105 -> 24655 | Q104: =(INDEX('8-DD'!$E$87:$E$110,MATCH(Input!$D$104,'8-DD'!$B$87:$B$110,0))+IFERROR(LEFT(INDEX('8-DD'!$G$87:$G$110,MATCH(Input!$D$104,'8-DD'!$B$87:$B$110,0)),5)*($D$106-MID(INDEX('8-DD'!$G$87:$G$110,MATCH(Input!$D$104,'8-DD'!$B$87:$B$110,0)),10,2)),0)+LEFT(INDEX('8-DD'!$H$87:$H$110,MATCH(Input!$D$104,'8-DD'!$B$87:$B$110,0)),5)*($D$107-MID(INDEX('8-DD'!$H$87:$H$110,MATCH(Input!$D$104,'8-DD'!$B$87:$B$110,0)),10,2)))*$D$105 -> 20215 | R104: =(INDEX('9-DL'!$E$87:$E$110,MATCH(Input!$D$104,'9-DL'!$B$87:$B$110,0))+IFERROR(LEFT(INDEX('9-DL'!$G$87:$G$110,MATCH(Input!$D$104,'9-DL'!$B$87:$B$110,0)),5)*($D$106-MID(INDEX('9-DL'!$G$87:$G$110,MATCH(Input!$D$104,'9-DL'!$B$87:$B$110,0)),10,2)),0)+LEFT(INDEX('9-DL'!$H$87:$H$110,MATCH(Input!$D$104,'9-DL'!$B$87:$B$110,0)),5)*($D$107-MID(INDEX('9-DL'!$H$87:$H$110,MATCH(Input!$D$104,'9-DL'!$B$87:$B$110,0)),10,2)))*$D$105 -> 18575 | S104: =(INDEX('10-GA'!$E$87:$E$110,MATCH(Input!$D$104,'10-GA'!$B$87:$B$110,0))+IFERROR(LEFT(INDEX('10-GA'!$G$87:$G$110,MATCH(Input!$D$104,'10-GA'!$B$87:$B$110,0)),5)*($D$106-MID(INDEX('10-GA'!$G$87:$G$110,MATCH(Input!$D$104,'10-GA'!$B$87:$B$110,0)),10,2)),0)+LEFT(INDEX('10-GA'!$H$87:$H$110,MATCH(Input!$D$104,'10-GA'!$B$87:$B$110,0)),5)*($D$107-MID(INDEX('10-GA'!$H$87:$H$110,MATCH(Input!$D$104,'10-GA'!$B$87:$B$110,0)),10,2)))*$D$105 -> 24655 | T104: =(INDEX('11-GJ'!$E$87:$E$110,MATCH(Input!$D$104,'11-GJ'!$B$87:$B$110,0))+IFERROR(LEFT(INDEX('11-GJ'!$G$87:$G$110,MATCH(Input!$D$104,'11-GJ'!$B$87:$B$110,0)),5)*($D$106-MID(INDEX('11-GJ'!$G$87:$G$110,MATCH(Input!$D$104,'11-GJ'!$B$87:$B$110,0)),10,2)),0)+LEFT(INDEX('11-GJ'!$H$87:$H$110,MATCH(Input!$D$104,'11-GJ'!$B$87:$B$110,0)),5)*($D$107-MID(INDEX('11-GJ'!$H$87:$H$110,MATCH(Input!$D$104,'11-GJ'!$B$87:$B$110,0)),10,2)))*$D$105 -> 19327 | U104: =(INDEX('12-HR'!$E$87:$E$110,MATCH(Input!$D$104,'12-HR'!$B$87:$B$110,0))+IFERROR(LEFT(INDEX('12-HR'!$G$87:$G$110,MATCH(Input!$D$104,'12-HR'!$B$87:$B$110,0)),5)*($D$106-MID(INDEX('12-HR'!$G$87:$G$110,MATCH(Input!$D$104,'12-HR'!$B$87:$B$110,0)),10,2)),0)+LEFT(INDEX('12-HR'!$H$87:$H$110,MATCH(Input!$D$104,'12-HR'!$B$87:$B$110,0)),5)*($D$107-MID(INDEX('12-HR'!$H$87:$H$110,MATCH(Input!$D$104,'12-HR'!$B$87:$B$110,0)),10,2)))*$D$105 -> 17724 | V104: =(INDEX('13-HP'!$E$87:$E$110,MATCH(Input!$D$104,'13-HP'!$B$87:$B$110,0))+IFERROR(LEFT(INDEX('13-HP'!$G$87:$G$110,MATCH(Input!$D$104,'13-HP'!$B$87:$B$110,0)),5)*($D$106-MID(INDEX('13-HP'!$G$87:$G$110,MATCH(Input!$D$104,'13-HP'!$B$87:$B$110,0)),10,2)),0)+LEFT(INDEX('13-HP'!$H$87:$H$110,MATCH(Input!$D$104,'13-HP'!$B$87:$B$110,0)),5)*($D$107-MID(INDEX('13-HP'!$H$87:$H$110,MATCH(Input!$D$104,'13-HP'!$B$87:$B$110,0)),10,2)))*$D$105 -> 21286 | W104: =(INDEX('14-JK'!$E$87:$E$110,MATCH(Input!$D$104,'14-JK'!$B$87:$B$110,0))+IFERROR(LEFT(INDEX('14-JK'!$G$87:$G$110,MATCH(Input!$D$104,'14-JK'!$B$87:$B$110,0)),5)*($D$106-MID(INDEX('14-JK'!$G$87:$G$110,MATCH(Input!$D$104,'14-JK'!$B$87:$B$110,0)),10,2)),0)+LEFT(INDEX('14-JK'!$H$87:$H$110,MATCH(Input!$D$104,'14-JK'!$B$87:$B$110,0)),5)*($D$107-MID(INDEX('14-JK'!$H$87:$H$110,MATCH(Input!$D$104,'14-JK'!$B$87:$B$110,0)),10,2)))*$D$105 -> 20172 | X104: =(INDEX('15-JH'!$E$87:$E$110,MATCH(Input!$D$104,'15-JH'!$B$87:$B$110,0))+IFERROR(LEFT(INDEX('15-JH'!$G$87:$G$110,MATCH(Input!$D$104,'15-JH'!$B$87:$B$110,0)),5)*($D$106-MID(INDEX('15-JH'!$G$87:$G$110,MATCH(Input!$D$104,'15-JH'!$B$87:$B$110,0)),10,2)),0)+LEFT(INDEX('15-JH'!$H$87:$H$110,MATCH(Input!$D$104,'15-JH'!$B$87:$B$110,0)),5)*($D$107-MID(INDEX('15-JH'!$H$87:$H$110,MATCH(Input!$D$104,'15-JH'!$B$87:$B$110,0)),10,2)))*$D$105 -> 15347 | Y104: =(INDEX('16-KA'!$E$87:$E$110,MATCH(Input!$D$104,'16-KA'!$B$87:$B$110,0))+IFERROR(LEFT(INDEX('16-KA'!$G$87:$G$110,MATCH(Input!$D$104,'16-KA'!$B$87:$B$110,0)),5)*($D$106-MID(INDEX('16-KA'!$G$87:$G$110,MATCH(Input!$D$104,'16-KA'!$B$87:$B$110,0)),10,2)),0)+LEFT(INDEX('16-KA'!$H$87:$H$110,MATCH(Input!$D$104,'16-KA'!$B$87:$B$110,0)),5)*($D$107-MID(INDEX('16-KA'!$H$87:$H$110,MATCH(Input!$D$104,'16-KA'!$B$87:$B$110,0)),10,2)))*$D$105 -> 19315 | Z104: =(INDEX('17-KL'!$E$87:$E$110,MATCH(Input!$D$104,'17-KL'!$B$87:$B$110,0))+IFERROR(LEFT(INDEX('17-KL'!$G$87:$G$110,MATCH(Input!$D$104,'17-KL'!$B$87:$B$110,0)),5)*($D$106-MID(INDEX('17-KL'!$G$87:$G$110,MATCH(Input!$D$104,'17-KL'!$B$87:$B$110,0)),10,2)),0)+LEFT(INDEX('17-KL'!$H$87:$H$110,MATCH(Input!$D$104,'17-KL'!$B$87:$B$110,0)),5)*($D$107-MID(INDEX('17-KL'!$H$87:$H$110,MATCH(Input!$D$104,'17-KL'!$B$87:$B$110,0)),10,2)))*$D$105 -> 20025 | AA104: =(INDEX('18-LD'!$E$87:$E$110,MATCH(Input!$D$104,'18-LD'!$B$87:$B$110,0))+IFERROR(LEFT(INDEX('18-LD'!$G$87:$G$110,MATCH(Input!$D$104,'18-LD'!$B$87:$B$110,0)),5)*($D$106-MID(INDEX('18-LD'!$G$87:$G$110,MATCH(Input!$D$104,'18-LD'!$B$87:$B$110,0)),10,2)),0)+LEFT(INDEX('18-LD'!$H$87:$H$110,MATCH(Input!$D$104,'18-LD'!$B$87:$B$110,0)),5)*($D$107-MID(INDEX('18-LD'!$H$87:$H$110,MATCH(Input!$D$104,'18-LD'!$B$87:$B$110,0)),10,2)))*$D$105 -> 20948 | AB104: =(INDEX('19-MP'!$E$87:$E$110,MATCH(Input!$D$104,'19-MP'!$B$87:$B$110,0))+IFERROR(LEFT(INDEX('19-MP'!$G$87:$G$110,MATCH(Input!$D$104,'19-MP'!$B$87:$B$110,0)),5)*($D$106-MID(INDEX('19-MP'!$G$87:$G$110,MATCH(Input!$D$104,'19-MP'!$B$87:$B$110,0)),10,2)),0)+LEFT(INDEX('19-MP'!$H$87:$H$110,MATCH(Input!$D$104,'19-MP'!$B$87:$B$110,0)),5)*($D$107-MID(INDEX('19-MP'!$H$87:$H$110,MATCH(Input!$D$104,'19-MP'!$B$87:$B$110,0)),10,2)))*$D$105 -> 20392 | AC104: =(INDEX('20-MH'!$E$87:$E$110,MATCH(Input!$D$104,'20-MH'!$B$87:$B$110,0))+IFERROR(LEFT(INDEX('20-MH'!$G$87:$G$110,MATCH(Input!$D$104,'20-MH'!$B$87:$B$110,0)),5)*($D$106-MID(INDEX('20-MH'!$G$87:$G$110,MATCH(Input!$D$104,'20-MH'!$B$87:$B$110,0)),10,2)),0)+LEFT(INDEX('20-MH'!$H$87:$H$110,MATCH(Input!$D$104,'20-MH'!$B$87:$B$110,0)),5)*($D$107-MID(INDEX('20-MH'!$H$87:$H$110,MATCH(Input!$D$104,'20-MH'!$B$87:$B$110,0)),10,2)))*$D$105 -> 24655 | AD104: =(INDEX('21-OD'!$E$87:$E$110,MATCH(Input!$D$104,'21-OD'!$B$87:$B$110,0))+IFERROR(LEFT(INDEX('21-OD'!$G$87:$G$110,MATCH(Input!$D$104,'21-OD'!$B$87:$B$110,0)),5)*($D$106-MID(INDEX('21-OD'!$G$87:$G$110,MATCH(Input!$D$104,'21-OD'!$B$87:$B$110,0)),10,2)),0)+LEFT(INDEX('21-OD'!$H$87:$H$110,MATCH(Input!$D$104,'21-OD'!$B$87:$B$110,0)),5)*($D$107-MID(INDEX('21-OD'!$H$87:$H$110,MATCH(Input!$D$104,'21-OD'!$B$87:$B$110,0)),10,2)))*$D$105 -> 20217 | AE104: =(INDEX('22-PY'!$E$87:$E$110,MATCH(Input!$D$104,'22-PY'!$B$87:$B$110,0))+IFERROR(LEFT(INDEX('22-PY'!$G$87:$G$110,MATCH(Input!$D$104,'22-PY'!$B$87:$B$110,0)),5)*($D$106-MID(INDEX('22-PY'!$G$87:$G$110,MATCH(Input!$D$104,'22-PY'!$B$87:$B$110,0)),10,2)),0)+LEFT(INDEX('22-PY'!$H$87:$H$110,MATCH(Input!$D$104,'22-PY'!$B$87:$B$110,0)),5)*($D$107-MID(INDEX('22-PY'!$H$87:$H$110,MATCH(Input!$D$104,'22-PY'!$B$87:$B$110,0)),10,2)))*$D$105 -> 20027 | AF104: =(INDEX('23-PB'!$E$87:$E$110,MATCH(Input!$D$104,'23-PB'!$B$87:$B$110,0))+IFERROR(LEFT(INDEX('23-PB'!$G$87:$G$110,MATCH(Input!$D$104,'23-PB'!$B$87:$B$110,0)),5)*($D$106-MID(INDEX('23-PB'!$G$87:$G$110,MATCH(Input!$D$104,'23-PB'!$B$87:$B$110,0)),10,2)),0)+LEFT(INDEX('23-PB'!$H$87:$H$110,MATCH(Input!$D$104,'23-PB'!$B$87:$B$110,0)),5)*($D$107-MID(INDEX('23-PB'!$H$87:$H$110,MATCH(Input!$D$104,'23-PB'!$B$87:$B$110,0)),10,2)))*$D$105 -> 18419 | AG104: =(INDEX('24-RJ'!$E$87:$E$110,MATCH(Input!$D$104,'24-RJ'!$B$87:$B$110,0))+IFERROR(LEFT(INDEX('24-RJ'!$G$87:$G$110,MATCH(Input!$D$104,'24-RJ'!$B$87:$B$110,0)),5)*($D$106-MID(INDEX('24-RJ'!$G$87:$G$110,MATCH(Input!$D$104,'24-RJ'!$B$87:$B$110,0)),10,2)),0)+LEFT(INDEX('24-RJ'!$H$87:$H$110,MATCH(Input!$D$104,'24-RJ'!$B$87:$B$110,0)),5)*($D$107-MID(INDEX('24-RJ'!$H$87:$H$110,MATCH(Input!$D$104,'24-RJ'!$B$87:$B$110,0)),10,2)))*$D$105 -> 19160 | AH104: =(INDEX('25-TN'!$E$87:$E$110,MATCH(Input!$D$104,'25-TN'!$B$87:$B$110,0))+IFERROR(LEFT(INDEX('25-TN'!$G$87:$G$110,MATCH(Input!$D$104,'25-TN'!$B$87:$B$110,0)),5)*($D$106-MID(INDEX('25-TN'!$G$87:$G$110,MATCH(Input!$D$104,'25-TN'!$B$87:$B$110,0)),10,2)),0)+LEFT(INDEX('25-TN'!$H$87:$H$110,MATCH(Input!$D$104,'25-TN'!$B$87:$B$110,0)),5)*($D$107-MID(INDEX('25-TN'!$H$87:$H$110,MATCH(Input!$D$104,'25-TN'!$B$87:$B$110,0)),10,2)))*$D$105 -> 19148 | AI104: =(INDEX('26-TS'!$E$87:$E$110,MATCH(Input!$D$104,'26-TS'!$B$87:$B$110,0))+IFERROR(LEFT(INDEX('26-TS'!$G$87:$G$110,MATCH(Input!$D$104,'26-TS'!$B$87:$B$110,0)),5)*($D$106-MID(INDEX('26-TS'!$G$87:$G$110,MATCH(Input!$D$104,'26-TS'!$B$87:$B$110,0)),10,2)),0)+LEFT(INDEX('26-TS'!$H$87:$H$110,MATCH(Input!$D$104,'26-TS'!$B$87:$B$110,0)),5)*($D$107-MID(INDEX('26-TS'!$H$87:$H$110,MATCH(Input!$D$104,'26-TS'!$B$87:$B$110,0)),10,2)))*$D$105 -> 19430 | AJ104: =(INDEX('27-UP'!$E$87:$E$110,MATCH(Input!$D$104,'27-UP'!$B$87:$B$110,0))+IFERROR(LEFT(INDEX('27-UP'!$G$87:$G$110,MATCH(Input!$D$104,'27-UP'!$B$87:$B$110,0)),5)*($D$106-MID(INDEX('27-UP'!$G$87:$G$110,MATCH(Input!$D$104,'27-UP'!$B$87:$B$110,0)),10,2)),0)+LEFT(INDEX('27-UP'!$H$87:$H$110,MATCH(Input!$D$104,'27-UP'!$B$87:$B$110,0)),5)*($D$107-MID(INDEX('27-UP'!$H$87:$H$110,MATCH(Input!$D$104,'27-UP'!$B$87:$B$110,0)),10,2)))*$D$105 -> 15844 | AK104: =(INDEX('28-UK'!$E$87:$E$110,MATCH(Input!$D$104,'28-UK'!$B$87:$B$110,0))+IFERROR(LEFT(INDEX('28-UK'!$G$87:$G$110,MATCH(Input!$D$104,'28-UK'!$B$87:$B$110,0)),5)*($D$106-MID(INDEX('28-UK'!$G$87:$G$110,MATCH(Input!$D$104,'28-UK'!$B$87:$B$110,0)),10,2)),0)+LEFT(INDEX('28-UK'!$H$87:$H$110,MATCH(Input!$D$104,'28-UK'!$B$87:$B$110,0)),5)*($D$107-MID(INDEX('28-UK'!$H$87:$H$110,MATCH(Input!$D$104,'28-UK'!$B$87:$B$110,0)),10,2)))*$D$105 -> 20816 | AL104: =(INDEX('29-WB'!$E$87:$E$110,MATCH(Input!$D$104,'29-WB'!$B$87:$B$110,0))+IFERROR(LEFT(INDEX('29-WB'!$G$87:$G$110,MATCH(Input!$D$104,'29-WB'!$B$87:$B$110,0)),5)*($D$106-MID(INDEX('29-WB'!$G$87:$G$110,MATCH(Input!$D$104,'29-WB'!$B$87:$B$110,0)),10,2)),0)+LEFT(INDEX('29-WB'!$H$87:$H$110,MATCH(Input!$D$104,'29-WB'!$B$87:$B$110,0)),5)*($D$107-MID(INDEX('29-WB'!$H$87:$H$110,MATCH(Input!$D$104,'29-WB'!$B$87:$B$110,0)),10,2)))*$D$105 -> 19314
C105: Area in Sqm | D105: 1
C106: MSA | D106: =D16 -> 50
C107: Aggregate Lead in km | D107: =$D$9 -> 50
C108: Type-3
C109: Configuration of Road with Pavement Combination | D109: For 6-lane Greenfield Alignment _(BC, DBM, WMM & GSB) | E109: =IF($D$8="Andaman & Nicobar Islands ",J109,IF($D$8="Andhra Pradesh",K109,IF($D$8="Assam",L109,IF($D$8="Bihar",M109,IF($D$8="Chandigarh",N109,IF($D$8="Chhattisgarh",O109,IF($D$8="Dadra & Nagar Haveli",P109,IF($D$8="Daman & Diu",Q109,IF($D$8="Delhi",R109,IF($D$8="Goa",S109,IF($D$8="Gujarat",T109,IF($D$8="Haryana",U109,IF($D$8="Himachal Pradesh",V109,IF($D$8="Jammu & Kashmir",W109,IF($D$8="Jharkhand",X109,IF($D$8="Karnataka",Y109,IF($D$8="Kerala",Z109,IF($D$8="Lakshadweep",AA109,IF($D$8="Madhya Pradesh",AB109,IF($D$8="Maharashtra",AC109,IF($D$8="Odisha",AD109,IF($D$8="Puducherry",AE109,IF($D$8="Punjab",AF109,IF($D$8="Rajasthan",AG109,IF($D$8="Tamil Nadu",AH109,IF($D$8="Telangana",AI109,IF($D$8="Uttar Pradesh",AJ109,IF($D$8="Uttarakhand",AK109,IF($D$8="West Bengal",AL109)))))))))))))))))))))))))))))/10^7 -> 0.00229486 | F109: =E109*10^7 -> 22948.6 | G109: =IF(E109>0,E109/D110,0) -> 0.00229486 | J109: =(INDEX('1-AN'!$E$87:$E$110,MATCH(Input!$D$109,'1-AN'!$B$87:$B$110,0))+IFERROR(LEFT(INDEX('1-AN'!$G$87:$G$110,MATCH(Input!$D$109,'1-AN'!$B$87:$B$110,0)),5)*($D$111-MID(INDEX('1-AN'!$G$87:$G$110,MATCH(Input!$D$109,'1-AN'!$B$87:$B$110,0)),10,2)),0)+LEFT(INDEX('1-AN'!$H$87:$H$110,MATCH(Input!$D$109,'1-AN'!$B$87:$B$110,0)),5)*($D$112-MID(INDEX('1-AN'!$H$87:$H$110,MATCH(Input!$D$109,'1-AN'!$B$87:$B$110,0)),10,2)))*$D$110 -> 24071.6 | K109: =(INDEX('2-AP'!$E$87:$E$110,MATCH(Input!$D$109,'2-AP'!$B$87:$B$110,0))+IFERROR(LEFT(INDEX('2-AP'!$G$87:$G$110,MATCH(Input!$D$109,'2-AP'!$B$87:$B$110,0)),5)*($D$111-MID(INDEX('2-AP'!$G$87:$G$110,MATCH(Input!$D$109,'2-AP'!$B$87:$B$110,0)),10,2)),0)+LEFT(INDEX('2-AP'!$H$87:$H$110,MATCH(Input!$D$109,'2-AP'!$B$87:$B$110,0)),5)*($D$112-MID(INDEX('2-AP'!$H$87:$H$110,MATCH(Input!$D$109,'2-AP'!$B$87:$B$110,0)),10,2)))*$D$110 -> 22311.6 | L109: =(INDEX('3-AS'!$E$87:$E$110,MATCH(Input!$D$109,'3-AS'!$B$87:$B$110,0))+IFERROR(LEFT(INDEX('3-AS'!$G$87:$G$110,MATCH(Input!$D$109,'3-AS'!$B$87:$B$110,0)),5)*($D$111-MID(INDEX('3-AS'!$G$87:$G$110,MATCH(Input!$D$109,'3-AS'!$B$87:$B$110,0)),10,2)),0)+LEFT(INDEX('3-AS'!$H$87:$H$110,MATCH(Input!$D$109,'3-AS'!$B$87:$B$110,0)),5)*($D$112-MID(INDEX('3-AS'!$H$87:$H$110,MATCH(Input!$D$109,'3-AS'!$B$87:$B$110,0)),10,2)))*$D$110 -> 27674.6 | M109: =(INDEX('4-BR'!$E$87:$E$110,MATCH(Input!$D$109,'4-BR'!$B$87:$B$110,0))+IFERROR(LEFT(INDEX('4-BR'!$G$87:$G$110,MATCH(Input!$D$109,'4-BR'!$B$87:$B$110,0)),5)*($D$111-MID(INDEX('4-BR'!$G$87:$G$110,MATCH(Input!$D$109,'4-BR'!$B$87:$B$110,0)),10,2)),0)+LEFT(INDEX('4-BR'!$H$87:$H$110,MATCH(Input!$D$109,'4-BR'!$B$87:$B$110,0)),5)*($D$112-MID(INDEX('4-BR'!$H$87:$H$110,MATCH(Input!$D$109,'4-BR'!$B$87:$B$110,0)),10,2)))*$D$110 -> 20292.6 | N109: =(INDEX('5-CH'!$E$87:$E$110,MATCH(Input!$D$109,'5-CH'!$B$87:$B$110,0))+IFERROR(LEFT(INDEX('5-CH'!$G$87:$G$110,MATCH(Input!$D$109,'5-CH'!$B$87:$B$110,0)),5)*($D$111-MID(INDEX('5-CH'!$G$87:$G$110,MATCH(Input!$D$109,'5-CH'!$B$87:$B$110,0)),10,2)),0)+LEFT(INDEX('5-CH'!$H$87:$H$110,MATCH(Input!$D$109,'5-CH'!$B$87:$B$110,0)),5)*($D$112-MID(INDEX('5-CH'!$H$87:$H$110,MATCH(Input!$D$109,'5-CH'!$B$87:$B$110,0)),10,2)))*$D$110 -> 23000.6 | O109: =(INDEX('6-CG'!$E$87:$E$110,MATCH(Input!$D$109,'6-CG'!$B$87:$B$110,0))+IFERROR(LEFT(INDEX('6-CG'!$G$87:$G$110,MATCH(Input!$D$109,'6-CG'!$B$87:$B$110,0)),5)*($D$111-MID(INDEX('6-CG'!$G$87:$G$110,MATCH(Input!$D$109,'6-CG'!$B$87:$B$110,0)),10,2)),0)+LEFT(INDEX('6-CG'!$H$87:$H$110,MATCH(Input!$D$109,'6-CG'!$B$87:$B$110,0)),5)*($D$112-MID(INDEX('6-CG'!$H$87:$H$110,MATCH(Input!$D$109,'6-CG'!$B$87:$B$110,0)),10,2)))*$D$110 -> 25634.6 | P109: =(INDEX('7-DN'!$E$87:$E$110,MATCH(Input!$D$109,'7-DN'!$B$87:$B$110,0))+IFERROR(LEFT(INDEX('7-DN'!$G$87:$G$110,MATCH(Input!$D$109,'7-DN'!$B$87:$B$110,0)),5)*($D$111-MID(INDEX('7-DN'!$G$87:$G$110,MATCH(Input!$D$109,'7-DN'!$B$87:$B$110,0)),10,2)),0)+LEFT(INDEX('7-DN'!$H$87:$H$110,MATCH(Input!$D$109,'7-DN'!$B$87:$B$110,0)),5)*($D$112-MID(INDEX('7-DN'!$H$87:$H$110,MATCH(Input!$D$109,'7-DN'!$B$87:$B$110,0)),10,2)))*$D$110 -> 29907.6 | Q109: =(INDEX('8-DD'!$E$87:$E$110,MATCH(Input!$D$109,'8-DD'!$B$87:$B$110,0))+IFERROR(LEFT(INDEX('8-DD'!$G$87:$G$110,MATCH(Input!$D$109,'8-DD'!$B$87:$B$110,0)),5)*($D$111-MID(INDEX('8-DD'!$G$87:$G$110,MATCH(Input!$D$109,'8-DD'!$B$87:$B$110,0)),10,2)),0)+LEFT(INDEX('8-DD'!$H$87:$H$110,MATCH(Input!$D$109,'8-DD'!$B$87:$B$110,0)),5)*($D$112-MID(INDEX('8-DD'!$H$87:$H$110,MATCH(Input!$D$109,'8-DD'!$B$87:$B$110,0)),10,2)))*$D$110 -> 24425.6 | R109: =(INDEX('9-DL'!$E$87:$E$110,MATCH(Input!$D$109,'9-DL'!$B$87:$B$110,0))+IFERROR(LEFT(INDEX('9-DL'!$G$87:$G$110,MATCH(Input!$D$109,'9-DL'!$B$87:$B$110,0)),5)*($D$111-MID(INDEX('9-DL'!$G$87:$G$110,MATCH(Input!$D$109,'9-DL'!$B$87:$B$110,0)),10,2)),0)+LEFT(INDEX('9-DL'!$H$87:$H$110,MATCH(Input!$D$109,'9-DL'!$B$87:$B$110,0)),5)*($D$112-MID(INDEX('9-DL'!$H$87:$H$110,MATCH(Input!$D$109,'9-DL'!$B$87:$B$110,0)),10,2)))*$D$110 -> 22948.6 | S109: =(INDEX('10-GA'!$E$87:$E$110,MATCH(Input!$D$109,'10-GA'!$B$87:$B$110,0))+IFERROR(LEFT(INDEX('10-GA'!$G$87:$G$110,MATCH(Input!$D$109,'10-GA'!$B$87:$B$110,0)),5)*($D$111-MID(INDEX('10-GA'!$G$87:$G$110,MATCH(Input!$D$109,'10-GA'!$B$87:$B$110,0)),10,2)),0)+LEFT(INDEX('10-GA'!$H$87:$H$110,MATCH(Input!$D$109,'10-GA'!$B$87:$B$110,0)),5)*($D$112-MID(INDEX('10-GA'!$H$87:$H$110,MATCH(Input!$D$109,'10-GA'!$B$87:$B$110,0)),10,2)))*$D$110 -> 29907.6 | T109: =(INDEX('11-GJ'!$E$87:$E$110,MATCH(Input!$D$109,'11-GJ'!$B$87:$B$110,0))+IFERROR(LEFT(INDEX('11-GJ'!$G$87:$G$110,MATCH(Input!$D$109,'11-GJ'!$B$87:$B$110,0)),5)*($D$111-MID(INDEX('11-GJ'!$G$87:$G$110,MATCH(Input!$D$109,'11-GJ'!$B$87:$B$110,0)),10,2)),0)+LEFT(INDEX('11-GJ'!$H$87:$H$110,MATCH(Input!$D$109,'11-GJ'!$B$87:$B$110,0)),5)*($D$112-MID(INDEX('11-GJ'!$H$87:$H$110,MATCH(Input!$D$109,'11-GJ'!$B$87:$B$110,0)),10,2)))*$D$110 -> 23387.6 | U109: =(INDEX('12-HR'!$E$87:$E$110,MATCH(Input!$D$109,'12-HR'!$B$87:$B$110,0))+IFERROR(LEFT(INDEX('12-HR'!$G$87:$G$110,MATCH(Input!$D$109,'12-HR'!$B$87:$B$110,0)),5)*($D$111-MID(INDEX('12-HR'!$G$87:$G$110,MATCH(Input!$D$109,'12-HR'!$B$87:$B$110,0)),10,2)),0)+LEFT(INDEX('12-HR'!$H$87:$H$110,MATCH(Input!$D$109,'12-HR'!$B$87:$B$110,0)),5)*($D$112-MID(INDEX('12-HR'!$H$87:$H$110,MATCH(Input!$D$109,'12-HR'!$B$87:$B$110,0)),10,2)))*$D$110 -> 21931.6 | V109: =(INDEX('13-HP'!$E$87:$E$110,MATCH(Input!$D$109,'13-HP'!$B$87:$B$110,0))+IFERROR(LEFT(INDEX('13-HP'!$G$87:$G$110,MATCH(Input!$D$109,'13-HP'!$B$87:$B$110,0)),5)*($D$111-MID(INDEX('13-HP'!$G$87:$G$110,MATCH(Input!$D$109,'13-HP'!$B$87:$B$110,0)),10,2)),0)+LEFT(INDEX('13-HP'!$H$87:$H$110,MATCH(Input!$D$109,'13-HP'!$B$87:$B$110,0)),5)*($D$112-MID(INDEX('13-HP'!$H$87:$H$110,MATCH(Input!$D$109,'13-HP'!$B$87:$B$110,0)),10,2)))*$D$110 -> 26866.6 | W109: =(INDEX('14-JK'!$E$87:$E$110,MATCH(Input!$D$109,'14-JK'!$B$87:$B$110,0))+IFERROR(LEFT(INDEX('14-JK'!$G$87:$G$110,MATCH(Input!$D$109,'14-JK'!$B$87:$B$110,0)),5)*($D$111-MID(INDEX('14-JK'!$G$87:$G$110,MATCH(Input!$D$109,'14-JK'!$B$87:$B$110,0)),10,2)),0)+LEFT(INDEX('14-JK'!$H$87:$H$110,MATCH(Input!$D$109,'14-JK'!$B$87:$B$110,0)),5)*($D$112-MID(INDEX('14-JK'!$H$87:$H$110,MATCH(Input!$D$109,'14-JK'!$B$87:$B$110,0)),10,2)))*$D$110 -> 25600.6 | X109: =(INDEX('15-JH'!$E$87:$E$110,MATCH(Input!$D$109,'15-JH'!$B$87:$B$110,0))+IFERROR(LEFT(INDEX('15-JH'!$G$87:$G$110,MATCH(Input!$D$109,'15-JH'!$B$87:$B$110,0)),5)*($D$111-MID(INDEX('15-JH'!$G$87:$G$110,MATCH(Input!$D$109,'15-JH'!$B$87:$B$110,0)),10,2)),0)+LEFT(INDEX('15-JH'!$H$87:$H$110,MATCH(Input!$D$109,'15-JH'!$B$87:$B$110,0)),5)*($D$112-MID(INDEX('15-JH'!$H$87:$H$110,MATCH(Input!$D$109,'15-JH'!$B$87:$B$110,0)),10,2)))*$D$110 -> 19409.6 | Y109: =(INDEX('16-KA'!$E$87:$E$110,MATCH(Input!$D$109,'16-KA'!$B$87:$B$110,0))+IFERROR(LEFT(INDEX('16-KA'!$G$87:$G$110,MATCH(Input!$D$109,'16-KA'!$B$87:$B$110,0)),5)*($D$111-MID(INDEX('16-KA'!$G$87:$G$110,MATCH(Input!$D$109,'16-KA'!$B$87:$B$110,0)),10,2)),0)+LEFT(INDEX('16-KA'!$H$87:$H$110,MATCH(Input!$D$109,'16-KA'!$B$87:$B$110,0)),5)*($D$112-MID(INDEX('16-KA'!$H$87:$H$110,MATCH(Input!$D$109,'16-KA'!$B$87:$B$110,0)),10,2)))*$D$110 -> 23492.6 | Z109: =(INDEX('17-KL'!$E$87:$E$110,MATCH(Input!$D$109,'17-KL'!$B$87:$B$110,0))+IFERROR(LEFT(INDEX('17-KL'!$G$87:$G$110,MATCH(Input!$D$109,'17-KL'!$B$87:$B$110,0)),5)*($D$111-MID(INDEX('17-KL'!$G$87:$G$110,MATCH(Input!$D$109,'17-KL'!$B$87:$B$110,0)),10,2)),0)+LEFT(INDEX('17-KL'!$H$87:$H$110,MATCH(Input!$D$109,'17-KL'!$B$87:$B$110,0)),5)*($D$112-MID(INDEX('17-KL'!$H$87:$H$110,MATCH(Input!$D$109,'17-KL'!$B$87:$B$110,0)),10,2)))*$D$110 -> 24327.6 | AA109: =(INDEX('18-LD'!$E$87:$E$110,MATCH(Input!$D$109,'18-LD'!$B$87:$B$110,0))+IFERROR(LEFT(INDEX('18-LD'!$G$87:$G$110,MATCH(Input!$D$109,'18-LD'!$B$87:$B$110,0)),5)*($D$111-MID(INDEX('18-LD'!$G$87:$G$110,MATCH(Input!$D$109,'18-LD'!$B$87:$B$110,0)),10,2)),0)+LEFT(INDEX('18-LD'!$H$87:$H$110,MATCH(Input!$D$109,'18-LD'!$B$87:$B$110,0)),5)*($D$112-MID(INDEX('18-LD'!$H$87:$H$110,MATCH(Input!$D$109,'18-LD'!$B$87:$B$110,0)),10,2)))*$D$110 -> 25412.6 | AB109: =(INDEX('19-MP'!$E$87:$E$110,MATCH(Input!$D$109,'19-MP'!$B$87:$B$110,0))+IFERROR(LEFT(INDEX('19-MP'!$G$87:$G$110,MATCH(Input!$D$109,'19-MP'!$B$87:$B$110,0)),5)*($D$111-MID(INDEX('19-MP'!$G$87:$G$110,MATCH(Input!$D$109,'19-MP'!$B$87:$B$110,0)),10,2)),0)+LEFT(INDEX('19-MP'!$H$87:$H$110,MATCH(Input!$D$109,'19-MP'!$B$87:$B$110,0)),5)*($D$112-MID(INDEX('19-MP'!$H$87:$H$110,MATCH(Input!$D$109,'19-MP'!$B$87:$B$110,0)),10,2)))*$D$110 -> 24484.6 | AC109: =(INDEX('20-MH'!$E$87:$E$110,MATCH(Input!$D$109,'20-MH'!$B$87:$B$110,0))+IFERROR(LEFT(INDEX('20-MH'!$G$87:$G$110,MATCH(Input!$D$109,'20-MH'!$B$87:$B$110,0)),5)*($D$111-MID(INDEX('20-MH'!$G$87:$G$110,MATCH(Input!$D$109,'20-MH'!$B$87:$B$110,0)),10,2)),0)+LEFT(INDEX('20-MH'!$H$87:$H$110,MATCH(Input!$D$109,'20-MH'!$B$87:$B$110,0)),5)*($D$112-MID(INDEX('20-MH'!$H$87:$H$110,MATCH(Input!$D$109,'20-MH'!$B$87:$B$110,0)),10,2)))*$D$110 -> 29907.6 | AD109: =(INDEX('21-OD'!$E$87:$E$110,MATCH(Input!$D$109,'21-OD'!$B$87:$B$110,0))+IFERROR(LEFT(INDEX('21-OD'!$G$87:$G$110,MATCH(Input!$D$109,'21-OD'!$B$87:$B$110,0)),5)*($D$111-MID(INDEX('21-OD'!$G$87:$G$110,MATCH(Input!$D$109,'21-OD'!$B$87:$B$110,0)),10,2)),0)+LEFT(INDEX('21-OD'!$H$87:$H$110,MATCH(Input!$D$109,'21-OD'!$B$87:$B$110,0)),5)*($D$112-MID(INDEX('21-OD'!$H$87:$H$110,MATCH(Input!$D$109,'21-OD'!$B$87:$B$110,0)),10,2)))*$D$110 -> 24331.6 | AE109: =(INDEX('22-PY'!$E$87:$E$110,MATCH(Input!$D$109,'22-PY'!$B$87:$B$110,0))+IFERROR(LEFT(INDEX('22-PY'!$G$87:$G$110,MATCH(Input!$D$109,'22-PY'!$B$87:$B$110,0)),5)*($D$111-MID(INDEX('22-PY'!$G$87:$G$110,MATCH(Input!$D$109,'22-PY'!$B$87:$B$110,0)),10,2)),0)+LEFT(INDEX('22-PY'!$H$87:$H$110,MATCH(Input!$D$109,'22-PY'!$B$87:$B$110,0)),5)*($D$112-MID(INDEX('22-PY'!$H$87:$H$110,MATCH(Input!$D$109,'22-PY'!$B$87:$B$110,0)),10,2)))*$D$110 -> 24329.6 | AF109: =(INDEX('23-PB'!$E$87:$E$110,MATCH(Input!$D$109,'23-PB'!$B$87:$B$110,0))+IFERROR(LEFT(INDEX('23-PB'!$G$87:$G$110,MATCH(Input!$D$109,'23-PB'!$B$87:$B$110,0)),5)*($D$111-MID(INDEX('23-PB'!$G$87:$G$110,MATCH(Input!$D$109,'23-PB'!$B$87:$B$110,0)),10,2)),0)+LEFT(INDEX('23-PB'!$H$87:$H$110,MATCH(Input!$D$109,'23-PB'!$B$87:$B$110,0)),5)*($D$112-MID(INDEX('23-PB'!$H$87:$H$110,MATCH(Input!$D$109,'23-PB'!$B$87:$B$110,0)),10,2)))*$D$110 -> 23000.6 | AG109: =(INDEX('24-RJ'!$E$87:$E$110,MATCH(Input!$D$109,'24-RJ'!$B$87:$B$110,0))+IFERROR(LEFT(INDEX('24-RJ'!$G$87:$G$110,MATCH(Input!$D$109,'24-RJ'!$B$87:$B$110,0)),5)*($D$111-MID(INDEX('24-RJ'!$G$87:$G$110,MATCH(Input!$D$109,'24-RJ'!$B$87:$B$110,0)),10,2)),0)+LEFT(INDEX('24-RJ'!$H$87:$H$110,MATCH(Input!$D$109,'24-RJ'!$B$87:$B$110,0)),5)*($D$112-MID(INDEX('24-RJ'!$H$87:$H$110,MATCH(Input!$D$109,'24-RJ'!$B$87:$B$110,0)),10,2)))*$D$110 -> 23631.6 | AH109: =(INDEX('25-TN'!$E$87:$E$110,MATCH(Input!$D$109,'25-TN'!$B$87:$B$110,0))+IFERROR(LEFT(INDEX('25-TN'!$G$87:$G$110,MATCH(Input!$D$109,'25-TN'!$B$87:$B$110,0)),5)*($D$111-MID(INDEX('25-TN'!$G$87:$G$110,MATCH(Input!$D$109,'25-TN'!$B$87:$B$110,0)),10,2)),0)+LEFT(INDEX('25-TN'!$H$87:$H$110,MATCH(Input!$D$109,'25-TN'!$B$87:$B$110,0)),5)*($D$112-MID(INDEX('25-TN'!$H$87:$H$110,MATCH(Input!$D$109,'25-TN'!$B$87:$B$110,0)),10,2)))*$D$110 -> 23295.6 | AI109: =(INDEX('26-TS'!$E$87:$E$110,MATCH(Input!$D$109,'26-TS'!$B$87:$B$110,0))+IFERROR(LEFT(INDEX('26-TS'!$G$87:$G$110,MATCH(Input!$D$109,'26-TS'!$B$87:$B$110,0)),5)*($D$111-MID(INDEX('26-TS'!$G$87:$G$110,MATCH(Input!$D$109,'26-TS'!$B$87:$B$110,0)),10,2)),0)+LEFT(INDEX('26-TS'!$H$87:$H$110,MATCH(Input!$D$109,'26-TS'!$B$87:$B$110,0)),5)*($D$112-MID(INDEX('26-TS'!$H$87:$H$110,MATCH(Input!$D$109,'26-TS'!$B$87:$B$110,0)),10,2)))*$D$110 -> 23454.6 | AJ109: =(INDEX('27-UP'!$E$87:$E$110,MATCH(Input!$D$109,'27-UP'!$B$87:$B$110,0))+IFERROR(LEFT(INDEX('27-UP'!$G$87:$G$110,MATCH(Input!$D$109,'27-UP'!$B$87:$B$110,0)),5)*($D$111-MID(INDEX('27-UP'!$G$87:$G$110,MATCH(Input!$D$109,'27-UP'!$B$87:$B$110,0)),10,2)),0)+LEFT(INDEX('27-UP'!$H$87:$H$110,MATCH(Input!$D$109,'27-UP'!$B$87:$B$110,0)),5)*($D$112-MID(INDEX('27-UP'!$H$87:$H$110,MATCH(Input!$D$109,'27-UP'!$B$87:$B$110,0)),10,2)))*$D$110 -> 20009.6 | AK109: =(INDEX('28-UK'!$E$87:$E$110,MATCH(Input!$D$109,'28-UK'!$B$87:$B$110,0))+IFERROR(LEFT(INDEX('28-UK'!$G$87:$G$110,MATCH(Input!$D$109,'28-UK'!$B$87:$B$110,0)),5)*($D$111-MID(INDEX('28-UK'!$G$87:$G$110,MATCH(Input!$D$109,'28-UK'!$B$87:$B$110,0)),10,2)),0)+LEFT(INDEX('28-UK'!$H$87:$H$110,MATCH(Input!$D$109,'28-UK'!$B$87:$B$110,0)),5)*($D$112-MID(INDEX('28-UK'!$H$87:$H$110,MATCH(Input!$D$109,'28-UK'!$B$87:$B$110,0)),10,2)))*$D$110 -> 26246.6 | AL109: =(INDEX('29-WB'!$E$87:$E$110,MATCH(Input!$D$109,'29-WB'!$B$87:$B$110,0))+IFERROR(LEFT(INDEX('29-WB'!$G$87:$G$110,MATCH(Input!$D$109,'29-WB'!$B$87:$B$110,0)),5)*($D$111-MID(INDEX('29-WB'!$G$87:$G$110,MATCH(Input!$D$109,'29-WB'!$B$87:$B$110,0)),10,2)),0)+LEFT(INDEX('29-WB'!$H$87:$H$110,MATCH(Input!$D$109,'29-WB'!$B$87:$B$110,0)),5)*($D$112-MID(INDEX('29-WB'!$H$87:$H$110,MATCH(Input!$D$109,'29-WB'!$B$87:$B$110,0)),10,2)))*$D$110 -> 24071.6
C110: Area in Sqm | D110: 1
C111: MSA | D111: =D16 -> 50
C112: Aggregate Lead in km | D112: =$D$9 -> 50
B113: (ii) | C113: Rigid Pavement
C114: Type-1
C115: Configuration of Road | D115: For 6-lane Greenfield Alignment | E115: =IF($D$8="Andaman & Nicobar Islands ",J115,IF($D$8="Andhra Pradesh",K115,IF($D$8="Assam",L115,IF($D$8="Bihar",M115,IF($D$8="Chandigarh",N115,IF($D$8="Chhattisgarh",O115,IF($D$8="Dadra & Nagar Haveli",P115,IF($D$8="Daman & Diu",Q115,IF($D$8="Delhi",R115,IF($D$8="Goa",S115,IF($D$8="Gujarat",T115,IF($D$8="Haryana",U115,IF($D$8="Himachal Pradesh",V115,IF($D$8="Jammu & Kashmir",W115,IF($D$8="Jharkhand",X115,IF($D$8="Karnataka",Y115,IF($D$8="Kerala",Z115,IF($D$8="Lakshadweep",AA115,IF($D$8="Madhya Pradesh",AB115,IF($D$8="Maharashtra",AC115,IF($D$8="Odisha",AD115,IF($D$8="Puducherry",AE115,IF($D$8="Punjab",AF115,IF($D$8="Rajasthan",AG115,IF($D$8="Tamil Nadu",AH115,IF($D$8="Telangana",AI115,IF($D$8="Uttar Pradesh",AJ115,IF($D$8="Uttarakhand",AK115,IF($D$8="West Bengal",AL115)))))))))))))))))))))))))))))/10^7 -> 0.00228735 | F115: =E115*10^7 -> 22873.5 | G115: =IF(E115>0,E115/D116,0) -> 0.00228735 | J115: =(INDEX('1-AN'!$E$112:$E$118,MATCH(Input!$D$115,'1-AN'!$B$112:$B$118,0))+IFERROR(LEFT(INDEX('1-AN'!$H$112:$H$118,MATCH(Input!$D$115,'1-AN'!$B$112:$B$118,0)),5)*($D$117-MID(INDEX('1-AN'!$H$112:$H$118,MATCH(Input!$D$115,'1-AN'!$B$112:$B$118,0)),10,2)),0))*$D$116 -> 24666.5 | K115: =(INDEX('2-AP'!$E$112:$E$118,MATCH(Input!$D$115,'2-AP'!$B$112:$B$118,0))+IFERROR(LEFT(INDEX('2-AP'!$H$112:$H$118,MATCH(Input!$D$115,'2-AP'!$B$112:$B$118,0)),5)*($D$117-MID(INDEX('2-AP'!$H$112:$H$118,MATCH(Input!$D$115,'2-AP'!$B$112:$B$118,0)),10,2)),0))*$D$116 -> 23667.5 | L115: =(INDEX('3-AS'!$E$112:$E$118,MATCH(Input!$D$115,'3-AS'!$B$112:$B$118,0))+IFERROR(LEFT(INDEX('3-AS'!$H$112:$H$118,MATCH(Input!$D$115,'3-AS'!$B$112:$B$118,0)),5)*($D$117-MID(INDEX('3-AS'!$H$112:$H$118,MATCH(Input!$D$115,'3-AS'!$B$112:$B$118,0)),10,2)),0))*$D$116 -> 30067.5 | M115: =(INDEX('4-BR'!$E$112:$E$118,MATCH(Input!$D$115,'4-BR'!$B$112:$B$118,0))+IFERROR(LEFT(INDEX('4-BR'!$H$112:$H$118,MATCH(Input!$D$115,'4-BR'!$B$112:$B$118,0)),5)*($D$117-MID(INDEX('4-BR'!$H$112:$H$118,MATCH(Input!$D$115,'4-BR'!$B$112:$B$118,0)),10,2)),0))*$D$116 -> 20210.5 | N115: =(INDEX('5-CH'!$E$112:$E$118,MATCH(Input!$D$115,'5-CH'!$B$112:$B$118,0))+IFERROR(LEFT(INDEX('5-CH'!$H$112:$H$118,MATCH(Input!$D$115,'5-CH'!$B$112:$B$118,0)),5)*($D$117-MID(INDEX('5-CH'!$H$112:$H$118,MATCH(Input!$D$115,'5-CH'!$B$112:$B$118,0)),10,2)),0))*$D$116 -> 23619.5 | O115: =(INDEX('6-CG'!$E$112:$E$118,MATCH(Input!$D$115,'6-CG'!$B$112:$B$118,0))+IFERROR(LEFT(INDEX('6-CG'!$H$112:$H$118,MATCH(Input!$D$115,'6-CG'!$B$112:$B$118,0)),5)*($D$117-MID(INDEX('6-CG'!$H$112:$H$118,MATCH(Input!$D$115,'6-CG'!$B$112:$B$118,0)),10,2)),0))*$D$116 -> 29500.5 | P115: =(INDEX('7-DN'!$E$112:$E$118,MATCH(Input!$D$115,'7-DN'!$B$112:$B$118,0))+IFERROR(LEFT(INDEX('7-DN'!$H$112:$H$118,MATCH(Input!$D$115,'7-DN'!$B$112:$B$118,0)),5)*($D$117-MID(INDEX('7-DN'!$H$112:$H$118,MATCH(Input!$D$115,'7-DN'!$B$112:$B$118,0)),10,2)),0))*$D$116 -> 32685.5 | Q115: =(INDEX('8-DD'!$E$112:$E$118,MATCH(Input!$D$115,'8-DD'!$B$112:$B$118,0))+IFERROR(LEFT(INDEX('8-DD'!$H$112:$H$118,MATCH(Input!$D$115,'8-DD'!$B$112:$B$118,0)),5)*($D$117-MID(INDEX('8-DD'!$H$112:$H$118,MATCH(Input!$D$115,'8-DD'!$B$112:$B$118,0)),10,2)),0))*$D$116 -> 25824.5 | R115: =(INDEX('9-DL'!$E$112:$E$118,MATCH(Input!$D$115,'9-DL'!$B$112:$B$118,0))+IFERROR(LEFT(INDEX('9-DL'!$H$112:$H$118,MATCH(Input!$D$115,'9-DL'!$B$112:$B$118,0)),5)*($D$117-MID(INDEX('9-DL'!$H$112:$H$118,MATCH(Input!$D$115,'9-DL'!$B$112:$B$118,0)),10,2)),0))*$D$116 -> 22873.5 | S115: =(INDEX('10-GA'!$E$112:$E$118,MATCH(Input!$D$115,'10-GA'!$B$112:$B$118,0))+IFERROR(LEFT(INDEX('10-GA'!$H$112:$H$118,MATCH(Input!$D$115,'10-GA'!$B$112:$B$118,0)),5)*($D$117-MID(INDEX('10-GA'!$H$112:$H$118,MATCH(Input!$D$115,'10-GA'!$B$112:$B$118,0)),10,2)),0))*$D$116 -> 32685.5 | T115: =(INDEX('11-GJ'!$E$112:$E$118,MATCH(Input!$D$115,'11-GJ'!$B$112:$B$118,0))+IFERROR(LEFT(INDEX('11-GJ'!$H$112:$H$118,MATCH(Input!$D$115,'11-GJ'!$B$112:$B$118,0)),5)*($D$117-MID(INDEX('11-GJ'!$H$112:$H$118,MATCH(Input!$D$115,'11-GJ'!$B$112:$B$118,0)),10,2)),0))*$D$116 -> 24670.5 | U115: =(INDEX('12-HR'!$E$112:$E$118,MATCH(Input!$D$115,'12-HR'!$B$112:$B$118,0))+IFERROR(LEFT(INDEX('12-HR'!$H$112:$H$118,MATCH(Input!$D$115,'12-HR'!$B$112:$B$118,0)),5)*($D$117-MID(INDEX('12-HR'!$H$112:$H$118,MATCH(Input!$D$115,'12-HR'!$B$112:$B$118,0)),10,2)),0))*$D$116 -> 21809.5 | V115: =(INDEX('13-HP'!$E$112:$E$118,MATCH(Input!$D$115,'13-HP'!$B$112:$B$118,0))+IFERROR(LEFT(INDEX('13-HP'!$H$112:$H$118,MATCH(Input!$D$115,'13-HP'!$B$112:$B$118,0)),5)*($D$117-MID(INDEX('13-HP'!$H$112:$H$118,MATCH(Input!$D$115,'13-HP'!$B$112:$B$118,0)),10,2)),0))*$D$116 -> 27352.5 | W115: =(INDEX('14-JK'!$E$112:$E$118,MATCH(Input!$D$115,'14-JK'!$B$112:$B$118,0))+IFERROR(LEFT(INDEX('14-JK'!$H$112:$H$118,MATCH(Input!$D$115,'14-JK'!$B$112:$B$118,0)),5)*($D$117-MID(INDEX('14-JK'!$H$112:$H$118,MATCH(Input!$D$115,'14-JK'!$B$112:$B$118,0)),10,2)),0))*$D$116 -> 25178.5 | X115: =(INDEX('15-JH'!$E$112:$E$118,MATCH(Input!$D$115,'15-JH'!$B$112:$B$118,0))+IFERROR(LEFT(INDEX('15-JH'!$H$112:$H$118,MATCH(Input!$D$115,'15-JH'!$B$112:$B$118,0)),5)*($D$117-MID(INDEX('15-JH'!$H$112:$H$118,MATCH(Input!$D$115,'15-JH'!$B$112:$B$118,0)),10,2)),0))*$D$116 -> 19280.5 | Y115: =(INDEX('16-KA'!$E$112:$E$118,MATCH(Input!$D$115,'16-KA'!$B$112:$B$118,0))+IFERROR(LEFT(INDEX('16-KA'!$H$112:$H$118,MATCH(Input!$D$115,'16-KA'!$B$112:$B$118,0)),5)*($D$117-MID(INDEX('16-KA'!$H$112:$H$118,MATCH(Input!$D$115,'16-KA'!$B$112:$B$118,0)),10,2)),0))*$D$116 -> 24991.5 | Z115: =(INDEX('17-KL'!$E$112:$E$118,MATCH(Input!$D$115,'17-KL'!$B$112:$B$118,0))+IFERROR(LEFT(INDEX('17-KL'!$H$112:$H$118,MATCH(Input!$D$115,'17-KL'!$B$112:$B$118,0)),5)*($D$117-MID(INDEX('17-KL'!$H$112:$H$118,MATCH(Input!$D$115,'17-KL'!$B$112:$B$118,0)),10,2)),0))*$D$116 -> 25927.5 | AA115: =(INDEX('18-LD'!$E$112:$E$118,MATCH(Input!$D$115,'18-LD'!$B$112:$B$118,0))+IFERROR(LEFT(INDEX('18-LD'!$H$112:$H$118,MATCH(Input!$D$115,'18-LD'!$B$112:$B$118,0)),5)*($D$117-MID(INDEX('18-LD'!$H$112:$H$118,MATCH(Input!$D$115,'18-LD'!$B$112:$B$118,0)),10,2)),0))*$D$116 -> 27143.5 | AB115: =(INDEX('19-MP'!$E$112:$E$118,MATCH(Input!$D$115,'19-MP'!$B$112:$B$118,0))+IFERROR(LEFT(INDEX('19-MP'!$H$112:$H$118,MATCH(Input!$D$115,'19-MP'!$B$112:$B$118,0)),5)*($D$117-MID(INDEX('19-MP'!$H$112:$H$118,MATCH(Input!$D$115,'19-MP'!$B$112:$B$118,0)),10,2)),0))*$D$116 -> 28105.5 | AC115: =(INDEX('20-MH'!$E$112:$E$118,MATCH(Input!$D$115,'20-MH'!$B$112:$B$118,0))+IFERROR(LEFT(INDEX('20-MH'!$H$112:$H$118,MATCH(Input!$D$115,'20-MH'!$B$112:$B$118,0)),5)*($D$117-MID(INDEX('20-MH'!$H$112:$H$118,MATCH(Input!$D$115,'20-MH'!$B$112:$B$118,0)),10,2)),0))*$D$116 -> 32685.5 | AD115: =(INDEX('21-OD'!$E$112:$E$118,MATCH(Input!$D$115,'21-OD'!$B$112:$B$118,0))+IFERROR(LEFT(INDEX('21-OD'!$H$112:$H$118,MATCH(Input!$D$115,'21-OD'!$B$112:$B$118,0)),5)*($D$117-MID(INDEX('21-OD'!$H$112:$H$118,MATCH(Input!$D$115,'21-OD'!$B$112:$B$118,0)),10,2)),0))*$D$116 -> 28051.5 | AE115: =(INDEX('22-PY'!$E$112:$E$118,MATCH(Input!$D$115,'22-PY'!$B$112:$B$118,0))+IFERROR(LEFT(INDEX('22-PY'!$H$112:$H$118,MATCH(Input!$D$115,'22-PY'!$B$112:$B$118,0)),5)*($D$117-MID(INDEX('22-PY'!$H$112:$H$118,MATCH(Input!$D$115,'22-PY'!$B$112:$B$118,0)),10,2)),0))*$D$116 -> 25929.5 | AF115: =(INDEX('23-PB'!$E$112:$E$118,MATCH(Input!$D$115,'23-PB'!$B$112:$B$118,0))+IFERROR(LEFT(INDEX('23-PB'!$H$112:$H$118,MATCH(Input!$D$115,'23-PB'!$B$112:$B$118,0)),5)*($D$117-MID(INDEX('23-PB'!$H$112:$H$118,MATCH(Input!$D$115,'23-PB'!$B$112:$B$118,0)),10,2)),0))*$D$116 -> 23619.5 | AG115: =(INDEX('24-RJ'!$E$112:$E$118,MATCH(Input!$D$115,'24-RJ'!$B$112:$B$118,0))+IFERROR(LEFT(INDEX('24-RJ'!$H$112:$H$118,MATCH(Input!$D$115,'24-RJ'!$B$112:$B$118,0)),5)*($D$117-MID(INDEX('24-RJ'!$H$112:$H$118,MATCH(Input!$D$115,'24-RJ'!$B$112:$B$118,0)),10,2)),0))*$D$116 -> 24960.5 | AH115: =(INDEX('25-TN'!$E$112:$E$118,MATCH(Input!$D$115,'25-TN'!$B$112:$B$118,0))+IFERROR(LEFT(INDEX('25-TN'!$H$112:$H$118,MATCH(Input!$D$115,'25-TN'!$B$112:$B$118,0)),5)*($D$117-MID(INDEX('25-TN'!$H$112:$H$118,MATCH(Input!$D$115,'25-TN'!$B$112:$B$118,0)),10,2)),0))*$D$116 -> 24770.5 | AI115: =(INDEX('26-TS'!$E$112:$E$118,MATCH(Input!$D$115,'26-TS'!$B$112:$B$118,0))+IFERROR(LEFT(INDEX('26-TS'!$H$112:$H$118,MATCH(Input!$D$115,'26-TS'!$B$112:$B$118,0)),5)*($D$117-MID(INDEX('26-TS'!$H$112:$H$118,MATCH(Input!$D$115,'26-TS'!$B$112:$B$118,0)),10,2)),0))*$D$116 -> 24810.5 | AJ115: =(INDEX('27-UP'!$E$112:$E$118,MATCH(Input!$D$115,'27-UP'!$B$112:$B$118,0))+IFERROR(LEFT(INDEX('27-UP'!$H$112:$H$118,MATCH(Input!$D$115,'27-UP'!$B$112:$B$118,0)),5)*($D$117-MID(INDEX('27-UP'!$H$112:$H$118,MATCH(Input!$D$115,'27-UP'!$B$112:$B$118,0)),10,2)),0))*$D$116 -> 19923.5 | AK115: =(INDEX('28-UK'!$E$112:$E$118,MATCH(Input!$D$115,'28-UK'!$B$112:$B$118,0))+IFERROR(LEFT(INDEX('28-UK'!$H$112:$H$118,MATCH(Input!$D$115,'28-UK'!$B$112:$B$118,0)),5)*($D$117-MID(INDEX('28-UK'!$H$112:$H$118,MATCH(Input!$D$115,'28-UK'!$B$112:$B$118,0)),10,2)),0))*$D$116 -> 27083.5 | AL115: =(INDEX('29-WB'!$E$112:$E$118,MATCH(Input!$D$115,'29-WB'!$B$112:$B$118,0))+IFERROR(LEFT(INDEX('29-WB'!$H$112:$H$118,MATCH(Input!$D$115,'29-WB'!$B$112:$B$118,0)),5)*($D$117-MID(INDEX('29-WB'!$H$112:$H$118,MATCH(Input!$D$115,'29-WB'!$B$112:$B$118,0)),10,2)),0))*$D$116 -> 24666.5
C116: Area in Sqm | D116: 1
C117: Aggregate Lead in km | D117: 50
C118: Type-2
C119: Configuration of Road | D119: For 6-lane Greenfield Alignment Expressway | E119: =IF($D$8="Andaman & Nicobar Islands ",J119,IF($D$8="Andhra Pradesh",K119,IF($D$8="Assam",L119,IF($D$8="Bihar",M119,IF($D$8="Chandigarh",N119,IF($D$8="Chhattisgarh",O119,IF($D$8="Dadra & Nagar Haveli",P119,IF($D$8="Daman & Diu",Q119,IF($D$8="Delhi",R119,IF($D$8="Goa",S119,IF($D$8="Gujarat",T119,IF($D$8="Haryana",U119,IF($D$8="Himachal Pradesh",V119,IF($D$8="Jammu & Kashmir",W119,IF($D$8="Jharkhand",X119,IF($D$8="Karnataka",Y119,IF($D$8="Kerala",Z119,IF($D$8="Lakshadweep",AA119,IF($D$8="Madhya Pradesh",AB119,IF($D$8="Maharashtra",AC119,IF($D$8="Odisha",AD119,IF($D$8="Puducherry",AE119,IF($D$8="Punjab",AF119,IF($D$8="Rajasthan",AG119,IF($D$8="Tamil Nadu",AH119,IF($D$8="Telangana",AI119,IF($D$8="Uttar Pradesh",AJ119,IF($D$8="Uttarakhand",AK119,IF($D$8="West Bengal",AL119)))))))))))))))))))))))))))))/10^7 -> 0.0026454 | F119: =E119*10^7 -> 26454 | G119: =IF(E119>0,E119/D120,0) -> 0.0026454 | J119: =(INDEX('1-AN'!$E$112:$E$118,MATCH(Input!$D$119,'1-AN'!$B$112:$B$118,0))+IFERROR(LEFT(INDEX('1-AN'!$H$112:$H$118,MATCH(Input!$D$119,'1-AN'!$B$112:$B$118,0)),5)*($D$121-MID(INDEX('1-AN'!$H$112:$H$118,MATCH(Input!$D$119,'1-AN'!$B$112:$B$118,0)),10,2)),0))*$D$120 -> 28791 | K119: =(INDEX('2-AP'!$E$112:$E$118,MATCH(Input!$D$119,'2-AP'!$B$112:$B$118,0))+IFERROR(LEFT(INDEX('2-AP'!$H$112:$H$118,MATCH(Input!$D$119,'2-AP'!$B$112:$B$118,0)),5)*($D$121-MID(INDEX('2-AP'!$H$112:$H$118,MATCH(Input!$D$119,'2-AP'!$B$112:$B$118,0)),10,2)),0))*$D$120 -> 27303 | L119: =(INDEX('3-AS'!$E$112:$E$118,MATCH(Input!$D$119,'3-AS'!$B$112:$B$118,0))+IFERROR(LEFT(INDEX('3-AS'!$H$112:$H$118,MATCH(Input!$D$119,'3-AS'!$B$112:$B$118,0)),5)*($D$121-MID(INDEX('3-AS'!$H$112:$H$118,MATCH(Input!$D$119,'3-AS'!$B$112:$B$118,0)),10,2)),0))*$D$120 -> 34486 | M119: =(INDEX('4-BR'!$E$112:$E$118,MATCH(Input!$D$119,'4-BR'!$B$112:$B$118,0))+IFERROR(LEFT(INDEX('4-BR'!$H$112:$H$118,MATCH(Input!$D$119,'4-BR'!$B$112:$B$118,0)),5)*($D$121-MID(INDEX('4-BR'!$H$112:$H$118,MATCH(Input!$D$119,'4-BR'!$B$112:$B$118,0)),10,2)),0))*$D$120 -> 23641 | N119: =(INDEX('5-CH'!$E$112:$E$118,MATCH(Input!$D$119,'5-CH'!$B$112:$B$118,0))+IFERROR(LEFT(INDEX('5-CH'!$H$112:$H$118,MATCH(Input!$D$119,'5-CH'!$B$112:$B$118,0)),5)*($D$121-MID(INDEX('5-CH'!$H$112:$H$118,MATCH(Input!$D$119,'5-CH'!$B$112:$B$118,0)),10,2)),0))*$D$120 -> 27575 | O119: =(INDEX('6-CG'!$E$112:$E$118,MATCH(Input!$D$119,'6-CG'!$B$112:$B$118,0))+IFERROR(LEFT(INDEX('6-CG'!$H$112:$H$118,MATCH(Input!$D$119,'6-CG'!$B$112:$B$118,0)),5)*($D$121-MID(INDEX('6-CG'!$H$112:$H$118,MATCH(Input!$D$119,'6-CG'!$B$112:$B$118,0)),10,2)),0))*$D$120 -> 34051 | P119: =(INDEX('7-DN'!$E$112:$E$118,MATCH(Input!$D$119,'7-DN'!$B$112:$B$118,0))+IFERROR(LEFT(INDEX('7-DN'!$H$112:$H$118,MATCH(Input!$D$119,'7-DN'!$B$112:$B$118,0)),5)*($D$121-MID(INDEX('7-DN'!$H$112:$H$118,MATCH(Input!$D$119,'7-DN'!$B$112:$B$118,0)),10,2)),0))*$D$120 -> 37878 | Q119: =(INDEX('8-DD'!$E$112:$E$118,MATCH(Input!$D$119,'8-DD'!$B$112:$B$118,0))+IFERROR(LEFT(INDEX('8-DD'!$H$112:$H$118,MATCH(Input!$D$119,'8-DD'!$B$112:$B$118,0)),5)*($D$121-MID(INDEX('8-DD'!$H$112:$H$118,MATCH(Input!$D$119,'8-DD'!$B$112:$B$118,0)),10,2)),0))*$D$120 -> 29642 | R119: =(INDEX('9-DL'!$E$112:$E$118,MATCH(Input!$D$119,'9-DL'!$B$112:$B$118,0))+IFERROR(LEFT(INDEX('9-DL'!$H$112:$H$118,MATCH(Input!$D$119,'9-DL'!$B$112:$B$118,0)),5)*($D$121-MID(INDEX('9-DL'!$H$112:$H$118,MATCH(Input!$D$119,'9-DL'!$B$112:$B$118,0)),10,2)),0))*$D$120 -> 26454 | S119: =(INDEX('10-GA'!$E$112:$E$118,MATCH(Input!$D$119,'10-GA'!$B$112:$B$118,0))+IFERROR(LEFT(INDEX('10-GA'!$H$112:$H$118,MATCH(Input!$D$119,'10-GA'!$B$112:$B$118,0)),5)*($D$121-MID(INDEX('10-GA'!$H$112:$H$118,MATCH(Input!$D$119,'10-GA'!$B$112:$B$118,0)),10,2)),0))*$D$120 -> 37878 | T119: =(INDEX('11-GJ'!$E$112:$E$118,MATCH(Input!$D$119,'11-GJ'!$B$112:$B$118,0))+IFERROR(LEFT(INDEX('11-GJ'!$H$112:$H$118,MATCH(Input!$D$119,'11-GJ'!$B$112:$B$118,0)),5)*($D$121-MID(INDEX('11-GJ'!$H$112:$H$118,MATCH(Input!$D$119,'11-GJ'!$B$112:$B$118,0)),10,2)),0))*$D$120 -> 28321 | U119: =(INDEX('12-HR'!$E$112:$E$118,MATCH(Input!$D$119,'12-HR'!$B$112:$B$118,0))+IFERROR(LEFT(INDEX('12-HR'!$H$112:$H$118,MATCH(Input!$D$119,'12-HR'!$B$112:$B$118,0)),5)*($D$121-MID(INDEX('12-HR'!$H$112:$H$118,MATCH(Input!$D$119,'12-HR'!$B$112:$B$118,0)),10,2)),0))*$D$120 -> 25225 | V119: =(INDEX('13-HP'!$E$112:$E$118,MATCH(Input!$D$119,'13-HP'!$B$112:$B$118,0))+IFERROR(LEFT(INDEX('13-HP'!$H$112:$H$118,MATCH(Input!$D$119,'13-HP'!$B$112:$B$118,0)),5)*($D$121-MID(INDEX('13-HP'!$H$112:$H$118,MATCH(Input!$D$119,'13-HP'!$B$112:$B$118,0)),10,2)),0))*$D$120 -> 32176 | W119: =(INDEX('14-JK'!$E$112:$E$118,MATCH(Input!$D$119,'14-JK'!$B$112:$B$118,0))+IFERROR(LEFT(INDEX('14-JK'!$H$112:$H$118,MATCH(Input!$D$119,'14-JK'!$B$112:$B$118,0)),5)*($D$121-MID(INDEX('14-JK'!$H$112:$H$118,MATCH(Input!$D$119,'14-JK'!$B$112:$B$118,0)),10,2)),0))*$D$120 -> 29606 | X119: =(INDEX('15-JH'!$E$112:$E$118,MATCH(Input!$D$119,'15-JH'!$B$112:$B$118,0))+IFERROR(LEFT(INDEX('15-JH'!$H$112:$H$118,MATCH(Input!$D$119,'15-JH'!$B$112:$B$118,0)),5)*($D$121-MID(INDEX('15-JH'!$H$112:$H$118,MATCH(Input!$D$119,'15-JH'!$B$112:$B$118,0)),10,2)),0))*$D$120 -> 22554 | Y119: =(INDEX('16-KA'!$E$112:$E$118,MATCH(Input!$D$119,'16-KA'!$B$112:$B$118,0))+IFERROR(LEFT(INDEX('16-KA'!$H$112:$H$118,MATCH(Input!$D$119,'16-KA'!$B$112:$B$118,0)),5)*($D$121-MID(INDEX('16-KA'!$H$112:$H$118,MATCH(Input!$D$119,'16-KA'!$B$112:$B$118,0)),10,2)),0))*$D$120 -> 28828 | Z119: =(INDEX('17-KL'!$E$112:$E$118,MATCH(Input!$D$119,'17-KL'!$B$112:$B$118,0))+IFERROR(LEFT(INDEX('17-KL'!$H$112:$H$118,MATCH(Input!$D$119,'17-KL'!$B$112:$B$118,0)),5)*($D$121-MID(INDEX('17-KL'!$H$112:$H$118,MATCH(Input!$D$119,'17-KL'!$B$112:$B$118,0)),10,2)),0))*$D$120 -> 29905 | AA119: =(INDEX('18-LD'!$E$112:$E$118,MATCH(Input!$D$119,'18-LD'!$B$112:$B$118,0))+IFERROR(LEFT(INDEX('18-LD'!$H$112:$H$118,MATCH(Input!$D$119,'18-LD'!$B$112:$B$118,0)),5)*($D$121-MID(INDEX('18-LD'!$H$112:$H$118,MATCH(Input!$D$119,'18-LD'!$B$112:$B$118,0)),10,2)),0))*$D$120 -> 31306 | AB119: =(INDEX('19-MP'!$E$112:$E$118,MATCH(Input!$D$119,'19-MP'!$B$112:$B$118,0))+IFERROR(LEFT(INDEX('19-MP'!$H$112:$H$118,MATCH(Input!$D$119,'19-MP'!$B$112:$B$118,0)),5)*($D$121-MID(INDEX('19-MP'!$H$112:$H$118,MATCH(Input!$D$119,'19-MP'!$B$112:$B$118,0)),10,2)),0))*$D$120 -> 32443 | AC119: =(INDEX('20-MH'!$E$112:$E$118,MATCH(Input!$D$119,'20-MH'!$B$112:$B$118,0))+IFERROR(LEFT(INDEX('20-MH'!$H$112:$H$118,MATCH(Input!$D$119,'20-MH'!$B$112:$B$118,0)),5)*($D$121-MID(INDEX('20-MH'!$H$112:$H$118,MATCH(Input!$D$119,'20-MH'!$B$112:$B$118,0)),10,2)),0))*$D$120 -> 37878 | AD119: =(INDEX('21-OD'!$E$112:$E$118,MATCH(Input!$D$119,'21-OD'!$B$112:$B$118,0))+IFERROR(LEFT(INDEX('21-OD'!$H$112:$H$118,MATCH(Input!$D$119,'21-OD'!$B$112:$B$118,0)),5)*($D$121-MID(INDEX('21-OD'!$H$112:$H$118,MATCH(Input!$D$119,'21-OD'!$B$112:$B$118,0)),10,2)),0))*$D$120 -> 32432 | AE119: =(INDEX('22-PY'!$E$112:$E$118,MATCH(Input!$D$119,'22-PY'!$B$112:$B$118,0))+IFERROR(LEFT(INDEX('22-PY'!$H$112:$H$118,MATCH(Input!$D$119,'22-PY'!$B$112:$B$118,0)),5)*($D$121-MID(INDEX('22-PY'!$H$112:$H$118,MATCH(Input!$D$119,'22-PY'!$B$112:$B$118,0)),10,2)),0))*$D$120 -> 29908 | AF119: =(INDEX('23-PB'!$E$112:$E$118,MATCH(Input!$D$119,'23-PB'!$B$112:$B$118,0))+IFERROR(LEFT(INDEX('23-PB'!$H$112:$H$118,MATCH(Input!$D$119,'23-PB'!$B$112:$B$118,0)),5)*($D$121-MID(INDEX('23-PB'!$H$112:$H$118,MATCH(Input!$D$119,'23-PB'!$B$112:$B$118,0)),10,2)),0))*$D$120 -> 27575 | AG119: =(INDEX('24-RJ'!$E$112:$E$118,MATCH(Input!$D$119,'24-RJ'!$B$112:$B$118,0))+IFERROR(LEFT(INDEX('24-RJ'!$H$112:$H$118,MATCH(Input!$D$119,'24-RJ'!$B$112:$B$118,0)),5)*($D$121-MID(INDEX('24-RJ'!$H$112:$H$118,MATCH(Input!$D$119,'24-RJ'!$B$112:$B$118,0)),10,2)),0))*$D$120 -> 29006 | AH119: =(INDEX('25-TN'!$E$112:$E$118,MATCH(Input!$D$119,'25-TN'!$B$112:$B$118,0))+IFERROR(LEFT(INDEX('25-TN'!$H$112:$H$118,MATCH(Input!$D$119,'25-TN'!$B$112:$B$118,0)),5)*($D$121-MID(INDEX('25-TN'!$H$112:$H$118,MATCH(Input!$D$119,'25-TN'!$B$112:$B$118,0)),10,2)),0))*$D$120 -> 28574 | AI119: =(INDEX('26-TS'!$E$112:$E$118,MATCH(Input!$D$119,'26-TS'!$B$112:$B$118,0))+IFERROR(LEFT(INDEX('26-TS'!$H$112:$H$118,MATCH(Input!$D$119,'26-TS'!$B$112:$B$118,0)),5)*($D$121-MID(INDEX('26-TS'!$H$112:$H$118,MATCH(Input!$D$119,'26-TS'!$B$112:$B$118,0)),10,2)),0))*$D$120 -> 28468 | AJ119: =(INDEX('27-UP'!$E$112:$E$118,MATCH(Input!$D$119,'27-UP'!$B$112:$B$118,0))+IFERROR(LEFT(INDEX('27-UP'!$H$112:$H$118,MATCH(Input!$D$119,'27-UP'!$B$112:$B$118,0)),5)*($D$121-MID(INDEX('27-UP'!$H$112:$H$118,MATCH(Input!$D$119,'27-UP'!$B$112:$B$118,0)),10,2)),0))*$D$120 -> 23301 | AK119: =(INDEX('28-UK'!$E$112:$E$118,MATCH(Input!$D$119,'28-UK'!$B$112:$B$118,0))+IFERROR(LEFT(INDEX('28-UK'!$H$112:$H$118,MATCH(Input!$D$119,'28-UK'!$B$112:$B$118,0)),5)*($D$121-MID(INDEX('28-UK'!$H$112:$H$118,MATCH(Input!$D$119,'28-UK'!$B$112:$B$118,0)),10,2)),0))*$D$120 -> 31863 | AL119: =(INDEX('29-WB'!$E$112:$E$118,MATCH(Input!$D$119,'29-WB'!$B$112:$B$118,0))+IFERROR(LEFT(INDEX('29-WB'!$H$112:$H$118,MATCH(Input!$D$119,'29-WB'!$B$112:$B$118,0)),5)*($D$121-MID(INDEX('29-WB'!$H$112:$H$118,MATCH(Input!$D$119,'29-WB'!$B$112:$B$118,0)),10,2)),0))*$D$120 -> 28791
C120: Area in Sqm | D120: 1
C121: Aggregate Lead in km | D121: =$D$9 -> 50
C122: Type-3
C123: Configuration of Road | D123: For 8-lane Greenfield Alignment Expressway | E123: =IF($D$8="Andaman & Nicobar Islands ",J123,IF($D$8="Andhra Pradesh",K123,IF($D$8="Assam",L123,IF($D$8="Bihar",M123,IF($D$8="Chandigarh",N123,IF($D$8="Chhattisgarh",O123,IF($D$8="Dadra & Nagar Haveli",P123,IF($D$8="Daman & Diu",Q123,IF($D$8="Delhi",R123,IF($D$8="Goa",S123,IF($D$8="Gujarat",T123,IF($D$8="Haryana",U123,IF($D$8="Himachal Pradesh",V123,IF($D$8="Jammu & Kashmir",W123,IF($D$8="Jharkhand",X123,IF($D$8="Karnataka",Y123,IF($D$8="Kerala",Z123,IF($D$8="Lakshadweep",AA123,IF($D$8="Madhya Pradesh",AB123,IF($D$8="Maharashtra",AC123,IF($D$8="Odisha",AD123,IF($D$8="Puducherry",AE123,IF($D$8="Punjab",AF123,IF($D$8="Rajasthan",AG123,IF($D$8="Tamil Nadu",AH123,IF($D$8="Telangana",AI123,IF($D$8="Uttar Pradesh",AJ123,IF($D$8="Uttarakhand",AK123,IF($D$8="West Bengal",AL123)))))))))))))))))))))))))))))/10^7 -> 0.0029741 | F123: =E123*10^7 -> 29741 | G123: =IF(E123>0,E123/D124,0) -> 0.0029741 | J123: =(INDEX('1-AN'!$E$112:$E$118,MATCH(Input!$D$123,'1-AN'!$B$112:$B$118,0))+IFERROR(LEFT(INDEX('1-AN'!$H$112:$H$118,MATCH(Input!$D$123,'1-AN'!$B$112:$B$118,0)),5)*($D$125-MID(INDEX('1-AN'!$H$112:$H$118,MATCH(Input!$D$123,'1-AN'!$B$112:$B$118,0)),10,2)),0))*$D$124 -> 32557 | K123: =(INDEX('2-AP'!$E$112:$E$118,MATCH(Input!$D$123,'2-AP'!$B$112:$B$118,0))+IFERROR(LEFT(INDEX('2-AP'!$H$112:$H$118,MATCH(Input!$D$123,'2-AP'!$B$112:$B$118,0)),5)*($D$125-MID(INDEX('2-AP'!$H$112:$H$118,MATCH(Input!$D$123,'2-AP'!$B$112:$B$118,0)),10,2)),0))*$D$124 -> 30642 | L123: =(INDEX('3-AS'!$E$112:$E$118,MATCH(Input!$D$123,'3-AS'!$B$112:$B$118,0))+IFERROR(LEFT(INDEX('3-AS'!$H$112:$H$118,MATCH(Input!$D$123,'3-AS'!$B$112:$B$118,0)),5)*($D$125-MID(INDEX('3-AS'!$H$112:$H$118,MATCH(Input!$D$123,'3-AS'!$B$112:$B$118,0)),10,2)),0))*$D$124 -> 38609 | M123: =(INDEX('4-BR'!$E$112:$E$118,MATCH(Input!$D$123,'4-BR'!$B$112:$B$118,0))+IFERROR(LEFT(INDEX('4-BR'!$H$112:$H$118,MATCH(Input!$D$123,'4-BR'!$B$112:$B$118,0)),5)*($D$125-MID(INDEX('4-BR'!$H$112:$H$118,MATCH(Input!$D$123,'4-BR'!$B$112:$B$118,0)),10,2)),0))*$D$124 -> 26790 | N123: =(INDEX('5-CH'!$E$112:$E$118,MATCH(Input!$D$123,'5-CH'!$B$112:$B$118,0))+IFERROR(LEFT(INDEX('5-CH'!$H$112:$H$118,MATCH(Input!$D$123,'5-CH'!$B$112:$B$118,0)),5)*($D$125-MID(INDEX('5-CH'!$H$112:$H$118,MATCH(Input!$D$123,'5-CH'!$B$112:$B$118,0)),10,2)),0))*$D$124 -> 31246 | O123: =(INDEX('6-CG'!$E$112:$E$118,MATCH(Input!$D$123,'6-CG'!$B$112:$B$118,0))+IFERROR(LEFT(INDEX('6-CG'!$H$112:$H$118,MATCH(Input!$D$123,'6-CG'!$B$112:$B$118,0)),5)*($D$125-MID(INDEX('6-CG'!$H$112:$H$118,MATCH(Input!$D$123,'6-CG'!$B$112:$B$118,0)),10,2)),0))*$D$124 -> 38319 | P123: =(INDEX('7-DN'!$E$112:$E$118,MATCH(Input!$D$123,'7-DN'!$B$112:$B$118,0))+IFERROR(LEFT(INDEX('7-DN'!$H$112:$H$118,MATCH(Input!$D$123,'7-DN'!$B$112:$B$118,0)),5)*($D$125-MID(INDEX('7-DN'!$H$112:$H$118,MATCH(Input!$D$123,'7-DN'!$B$112:$B$118,0)),10,2)),0))*$D$124 -> 42573 | Q123: =(INDEX('8-DD'!$E$112:$E$118,MATCH(Input!$D$123,'8-DD'!$B$112:$B$118,0))+IFERROR(LEFT(INDEX('8-DD'!$H$112:$H$118,MATCH(Input!$D$123,'8-DD'!$B$112:$B$118,0)),5)*($D$125-MID(INDEX('8-DD'!$H$112:$H$118,MATCH(Input!$D$123,'8-DD'!$B$112:$B$118,0)),10,2)),0))*$D$124 -> 33213 | R123: =(INDEX('9-DL'!$E$112:$E$118,MATCH(Input!$D$123,'9-DL'!$B$112:$B$118,0))+IFERROR(LEFT(INDEX('9-DL'!$H$112:$H$118,MATCH(Input!$D$123,'9-DL'!$B$112:$B$118,0)),5)*($D$125-MID(INDEX('9-DL'!$H$112:$H$118,MATCH(Input!$D$123,'9-DL'!$B$112:$B$118,0)),10,2)),0))*$D$124 -> 29741 | S123: =(INDEX('10-GA'!$E$112:$E$118,MATCH(Input!$D$123,'10-GA'!$B$112:$B$118,0))+IFERROR(LEFT(INDEX('10-GA'!$H$112:$H$118,MATCH(Input!$D$123,'10-GA'!$B$112:$B$118,0)),5)*($D$125-MID(INDEX('10-GA'!$H$112:$H$118,MATCH(Input!$D$123,'10-GA'!$B$112:$B$118,0)),10,2)),0))*$D$124 -> 42573 | T123: =(INDEX('11-GJ'!$E$112:$E$118,MATCH(Input!$D$123,'11-GJ'!$B$112:$B$118,0))+IFERROR(LEFT(INDEX('11-GJ'!$H$112:$H$118,MATCH(Input!$D$123,'11-GJ'!$B$112:$B$118,0)),5)*($D$125-MID(INDEX('11-GJ'!$H$112:$H$118,MATCH(Input!$D$123,'11-GJ'!$B$112:$B$118,0)),10,2)),0))*$D$124 -> 31735 | U123: =(INDEX('12-HR'!$E$112:$E$118,MATCH(Input!$D$123,'12-HR'!$B$112:$B$118,0))+IFERROR(LEFT(INDEX('12-HR'!$H$112:$H$118,MATCH(Input!$D$123,'12-HR'!$B$112:$B$118,0)),5)*($D$125-MID(INDEX('12-HR'!$H$112:$H$118,MATCH(Input!$D$123,'12-HR'!$B$112:$B$118,0)),10,2)),0))*$D$124 -> 28362 | V123: =(INDEX('13-HP'!$E$112:$E$118,MATCH(Input!$D$123,'13-HP'!$B$112:$B$118,0))+IFERROR(LEFT(INDEX('13-HP'!$H$112:$H$118,MATCH(Input!$D$123,'13-HP'!$B$112:$B$118,0)),5)*($D$125-MID(INDEX('13-HP'!$H$112:$H$118,MATCH(Input!$D$123,'13-HP'!$B$112:$B$118,0)),10,2)),0))*$D$124 -> 36476 | W123: =(INDEX('14-JK'!$E$112:$E$118,MATCH(Input!$D$123,'14-JK'!$B$112:$B$118,0))+IFERROR(LEFT(INDEX('14-JK'!$H$112:$H$118,MATCH(Input!$D$123,'14-JK'!$B$112:$B$118,0)),5)*($D$125-MID(INDEX('14-JK'!$H$112:$H$118,MATCH(Input!$D$123,'14-JK'!$B$112:$B$118,0)),10,2)),0))*$D$124 -> 33512 | X123: =(INDEX('15-JH'!$E$112:$E$118,MATCH(Input!$D$123,'15-JH'!$B$112:$B$118,0))+IFERROR(LEFT(INDEX('15-JH'!$H$112:$H$118,MATCH(Input!$D$123,'15-JH'!$B$112:$B$118,0)),5)*($D$125-MID(INDEX('15-JH'!$H$112:$H$118,MATCH(Input!$D$123,'15-JH'!$B$112:$B$118,0)),10,2)),0))*$D$124 -> 25559 | Y123: =(INDEX('16-KA'!$E$112:$E$118,MATCH(Input!$D$123,'16-KA'!$B$112:$B$118,0))+IFERROR(LEFT(INDEX('16-KA'!$H$112:$H$118,MATCH(Input!$D$123,'16-KA'!$B$112:$B$118,0)),5)*($D$125-MID(INDEX('16-KA'!$H$112:$H$118,MATCH(Input!$D$123,'16-KA'!$B$112:$B$118,0)),10,2)),0))*$D$124 -> 32351 | Z123: =(INDEX('17-KL'!$E$112:$E$118,MATCH(Input!$D$123,'17-KL'!$B$112:$B$118,0))+IFERROR(LEFT(INDEX('17-KL'!$H$112:$H$118,MATCH(Input!$D$123,'17-KL'!$B$112:$B$118,0)),5)*($D$125-MID(INDEX('17-KL'!$H$112:$H$118,MATCH(Input!$D$123,'17-KL'!$B$112:$B$118,0)),10,2)),0))*$D$124 -> 33558 | AA123: =(INDEX('18-LD'!$E$112:$E$118,MATCH(Input!$D$123,'18-LD'!$B$112:$B$118,0))+IFERROR(LEFT(INDEX('18-LD'!$H$112:$H$118,MATCH(Input!$D$123,'18-LD'!$B$112:$B$118,0)),5)*($D$125-MID(INDEX('18-LD'!$H$112:$H$118,MATCH(Input!$D$123,'18-LD'!$B$112:$B$118,0)),10,2)),0))*$D$124 -> 35128 | AB123: =(INDEX('19-MP'!$E$112:$E$118,MATCH(Input!$D$123,'19-MP'!$B$112:$B$118,0))+IFERROR(LEFT(INDEX('19-MP'!$H$112:$H$118,MATCH(Input!$D$123,'19-MP'!$B$112:$B$118,0)),5)*($D$125-MID(INDEX('19-MP'!$H$112:$H$118,MATCH(Input!$D$123,'19-MP'!$B$112:$B$118,0)),10,2)),0))*$D$124 -> 36511 | AC123: =(INDEX('20-MH'!$E$112:$E$118,MATCH(Input!$D$123,'20-MH'!$B$112:$B$118,0))+IFERROR(LEFT(INDEX('20-MH'!$H$112:$H$118,MATCH(Input!$D$123,'20-MH'!$B$112:$B$118,0)),5)*($D$125-MID(INDEX('20-MH'!$H$112:$H$118,MATCH(Input!$D$123,'20-MH'!$B$112:$B$118,0)),10,2)),0))*$D$124 -> 42573 | AD123: =(INDEX('21-OD'!$E$112:$E$118,MATCH(Input!$D$123,'21-OD'!$B$112:$B$118,0))+IFERROR(LEFT(INDEX('21-OD'!$H$112:$H$118,MATCH(Input!$D$123,'21-OD'!$B$112:$B$118,0)),5)*($D$125-MID(INDEX('21-OD'!$H$112:$H$118,MATCH(Input!$D$123,'21-OD'!$B$112:$B$118,0)),10,2)),0))*$D$124 -> 36556 | AE123: =(INDEX('22-PY'!$E$112:$E$118,MATCH(Input!$D$123,'22-PY'!$B$112:$B$118,0))+IFERROR(LEFT(INDEX('22-PY'!$H$112:$H$118,MATCH(Input!$D$123,'22-PY'!$B$112:$B$118,0)),5)*($D$125-MID(INDEX('22-PY'!$H$112:$H$118,MATCH(Input!$D$123,'22-PY'!$B$112:$B$118,0)),10,2)),0))*$D$124 -> 33561 | AF123: =(INDEX('23-PB'!$E$112:$E$118,MATCH(Input!$D$123,'23-PB'!$B$112:$B$118,0))+IFERROR(LEFT(INDEX('23-PB'!$H$112:$H$118,MATCH(Input!$D$123,'23-PB'!$B$112:$B$118,0)),5)*($D$125-MID(INDEX('23-PB'!$H$112:$H$118,MATCH(Input!$D$123,'23-PB'!$B$112:$B$118,0)),10,2)),0))*$D$124 -> 31246 | AG123: =(INDEX('24-RJ'!$E$112:$E$118,MATCH(Input!$D$123,'24-RJ'!$B$112:$B$118,0))+IFERROR(LEFT(INDEX('24-RJ'!$H$112:$H$118,MATCH(Input!$D$123,'24-RJ'!$B$112:$B$118,0)),5)*($D$125-MID(INDEX('24-RJ'!$H$112:$H$118,MATCH(Input!$D$123,'24-RJ'!$B$112:$B$118,0)),10,2)),0))*$D$124 -> 32776 | AH123: =(INDEX('25-TN'!$E$112:$E$118,MATCH(Input!$D$123,'25-TN'!$B$112:$B$118,0))+IFERROR(LEFT(INDEX('25-TN'!$H$112:$H$118,MATCH(Input!$D$123,'25-TN'!$B$112:$B$118,0)),5)*($D$125-MID(INDEX('25-TN'!$H$112:$H$118,MATCH(Input!$D$123,'25-TN'!$B$112:$B$118,0)),10,2)),0))*$D$124 -> 32066 | AI123: =(INDEX('26-TS'!$E$112:$E$118,MATCH(Input!$D$123,'26-TS'!$B$112:$B$118,0))+IFERROR(LEFT(INDEX('26-TS'!$H$112:$H$118,MATCH(Input!$D$123,'26-TS'!$B$112:$B$118,0)),5)*($D$125-MID(INDEX('26-TS'!$H$112:$H$118,MATCH(Input!$D$123,'26-TS'!$B$112:$B$118,0)),10,2)),0))*$D$124 -> 31823 | AJ123: =(INDEX('27-UP'!$E$112:$E$118,MATCH(Input!$D$123,'27-UP'!$B$112:$B$118,0))+IFERROR(LEFT(INDEX('27-UP'!$H$112:$H$118,MATCH(Input!$D$123,'27-UP'!$B$112:$B$118,0)),5)*($D$125-MID(INDEX('27-UP'!$H$112:$H$118,MATCH(Input!$D$123,'27-UP'!$B$112:$B$118,0)),10,2)),0))*$D$124 -> 26400 | AK123: =(INDEX('28-UK'!$E$112:$E$118,MATCH(Input!$D$123,'28-UK'!$B$112:$B$118,0))+IFERROR(LEFT(INDEX('28-UK'!$H$112:$H$118,MATCH(Input!$D$123,'28-UK'!$B$112:$B$118,0)),5)*($D$125-MID(INDEX('28-UK'!$H$112:$H$118,MATCH(Input!$D$123,'28-UK'!$B$112:$B$118,0)),10,2)),0))*$D$124 -> 36130 | AL123: =(INDEX('29-WB'!$E$112:$E$118,MATCH(Input!$D$123,'29-WB'!$B$112:$B$118,0))+IFERROR(LEFT(INDEX('29-WB'!$H$112:$H$118,MATCH(Input!$D$123,'29-WB'!$B$112:$B$118,0)),5)*($D$125-MID(INDEX('29-WB'!$H$112:$H$118,MATCH(Input!$D$123,'29-WB'!$B$112:$B$118,0)),10,2)),0))*$D$124 -> 32557
C124: Area in Sqm | D124: 1
C125: Aggregate Lead in km | D125: =$D$9 -> 50
B127: 7 | C127: Flyover/ VUP
C128: Structure No-1
C129: Structure Configuration | D129: Single Span With Open Foundation | E129: =IF($D$8="Andaman & Nicobar Islands ",J129,IF($D$8="Andhra Pradesh",K129,IF($D$8="Assam",L129,IF($D$8="Bihar",M129,IF($D$8="Chandigarh",N129,IF($D$8="Chhattisgarh",O129,IF($D$8="Dadra & Nagar Haveli",P129,IF($D$8="Daman & Diu",Q129,IF($D$8="Delhi",R129,IF($D$8="Goa",S129,IF($D$8="Gujarat",T129,IF($D$8="Haryana",U129,IF($D$8="Himachal Pradesh",V129,IF($D$8="Jammu & Kashmir",W129,IF($D$8="Jharkhand",X129,IF($D$8="Karnataka",Y129,IF($D$8="Kerala",Z129,IF($D$8="Lakshadweep",AA129,IF($D$8="Madhya Pradesh",AB129,IF($D$8="Maharashtra",AC129,IF($D$8="Odisha",AD129,IF($D$8="Puducherry",AE129,IF($D$8="Punjab",AF129,IF($D$8="Rajasthan",AG129,IF($D$8="Tamil Nadu",AH129,IF($D$8="Telangana",AI129,IF($D$8="Uttar Pradesh",AJ129,IF($D$8="Uttarakhand",AK129,IF($D$8="West Bengal",AL129))))))))))))))))))))))))))))) -> 3.558268875 | F129: =E129*10^7 -> 35582688.75 | G129: =IF(E129>0,E129/D132,0) -> 0.0033888275 | J129: =(INDEX('1-AN'!$D$126:$D$129,MATCH(Input!$D$129,'1-AN'!$B$126:$B$129,0))+INDEX(IF($D$130<=25,'1-AN'!$E$126:$E$129,IF(AND($D$130>25,$D$130<=45),'1-AN'!$F$126:$F$129,IF($D$130>45,'1-AN'!$G$126:$G$129))),MATCH(Input!$D$129,'1-AN'!$B$126:$B$129,0))*$D$130+LEFT(INDEX('1-AN'!$H$126:$H$129,MATCH(Input!$D$129,'1-AN'!$B$126:$B$129,0)),5)*($D$131-MID(INDEX('1-AN'!$H$126:$H$129,MATCH(Input!$D$129,'1-AN'!$B$126:$B$129,0)),10,2)))*$D$132/10^7 -> 4.070143875 | K129: =(INDEX('2-AP'!$D$126:$D$129,MATCH(Input!$D$129,'2-AP'!$B$126:$B$129,0))+INDEX(IF($D$130<=25,'2-AP'!$E$126:$E$129,IF(AND($D$130>25,$D$130<=45),'2-AP'!$F$126:$F$129,IF($D$130>45,'2-AP'!$G$126:$G$129))),MATCH(Input!$D$129,'2-AP'!$B$126:$B$129,0))*$D$130+LEFT(INDEX('2-AP'!$H$126:$H$129,MATCH(Input!$D$129,'2-AP'!$B$126:$B$129,0)),5)*($D$131-MID(INDEX('2-AP'!$H$126:$H$129,MATCH(Input!$D$129,'2-AP'!$B$126:$B$129,0)),10,2)))*$D$132/10^7 -> 3.512488875 | L129: =(INDEX('3-AS'!$D$126:$D$129,MATCH(Input!$D$129,'3-AS'!$B$126:$B$129,0))+INDEX(IF($D$130<=25,'3-AS'!$E$126:$E$129,IF(AND($D$130>25,$D$130<=45),'3-AS'!$F$126:$F$129,IF($D$130>45,'3-AS'!$G$126:$G$129))),MATCH(Input!$D$129,'3-AS'!$B$126:$B$129,0))*$D$130+LEFT(INDEX('3-AS'!$H$126:$H$129,MATCH(Input!$D$129,'3-AS'!$B$126:$B$129,0)),5)*($D$131-MID(INDEX('3-AS'!$H$126:$H$129,MATCH(Input!$D$129,'3-AS'!$B$126:$B$129,0)),10,2)))*$D$132/10^7 -> 4.666333875 | M129: =(INDEX('4-BR'!$D$126:$D$129,MATCH(Input!$D$129,'4-BR'!$B$126:$B$129,0))+INDEX(IF($D$130<=25,'4-BR'!$E$126:$E$129,IF(AND($D$130>25,$D$130<=45),'4-BR'!$F$126:$F$129,IF($D$130>45,'4-BR'!$G$126:$G$129))),MATCH(Input!$D$129,'4-BR'!$B$126:$B$129,0))*$D$130+LEFT(INDEX('4-BR'!$H$126:$H$129,MATCH(Input!$D$129,'4-BR'!$B$126:$B$129,0)),5)*($D$131-MID(INDEX('4-BR'!$H$126:$H$129,MATCH(Input!$D$129,'4-BR'!$B$126:$B$129,0)),10,2)))*$D$132/10^7 -> 3.361078875 | N129: =(INDEX('5-CH'!$D$126:$D$129,MATCH(Input!$D$129,'5-CH'!$B$126:$B$129,0))+INDEX(IF($D$130<=25,'5-CH'!$E$126:$E$129,IF(AND($D$130>25,$D$130<=45),'5-CH'!$F$126:$F$129,IF($D$130>45,'5-CH'!$G$126:$G$129))),MATCH(Input!$D$129,'5-CH'!$B$126:$B$129,0))*$D$130+LEFT(INDEX('5-CH'!$H$126:$H$129,MATCH(Input!$D$129,'5-CH'!$B$126:$B$129,0)),5)*($D$131-MID(INDEX('5-CH'!$H$126:$H$129,MATCH(Input!$D$129,'5-CH'!$B$126:$B$129,0)),10,2)))*$D$132/10^7 -> 4.063003875 | O129: =(INDEX('6-CG'!$D$126:$D$129,MATCH(Input!$D$129,'6-CG'!$B$126:$B$129,0))+INDEX(IF($D$130<=25,'6-CG'!$E$126:$E$129,IF(AND($D$130>25,$D$130<=45),'6-CG'!$F$126:$F$129,IF($D$130>45,'6-CG'!$G$126:$G$129))),MATCH(Input!$D$129,'6-CG'!$B$126:$B$129,0))*$D$130+LEFT(INDEX('6-CG'!$H$126:$H$129,MATCH(Input!$D$129,'6-CG'!$B$126:$B$129,0)),5)*($D$131-MID(INDEX('6-CG'!$H$126:$H$129,MATCH(Input!$D$129,'6-CG'!$B$126:$B$129,0)),10,2)))*$D$132/10^7 -> 4.644808875 | P129: =(INDEX('7-DN'!$D$126:$D$129,MATCH(Input!$D$129,'7-DN'!$B$126:$B$129,0))+INDEX(IF($D$130<=25,'7-DN'!$E$126:$E$129,IF(AND($D$130>25,$D$130<=45),'7-DN'!$F$126:$F$129,IF($D$130>45,'7-DN'!$G$126:$G$129))),MATCH(Input!$D$129,'7-DN'!$B$126:$B$129,0))*$D$130+LEFT(INDEX('7-DN'!$H$126:$H$129,MATCH(Input!$D$129,'7-DN'!$B$126:$B$129,0)),5)*($D$131-MID(INDEX('7-DN'!$H$126:$H$129,MATCH(Input!$D$129,'7-DN'!$B$126:$B$129,0)),10,2)))*$D$132/10^7 -> 4.916443875 | Q129: =(INDEX('8-DD'!$D$126:$D$129,MATCH(Input!$D$129,'8-DD'!$B$126:$B$129,0))+INDEX(IF($D$130<=25,'8-DD'!$E$126:$E$129,IF(AND($D$130>25,$D$130<=45),'8-DD'!$F$126:$F$129,IF($D$130>45,'8-DD'!$G$126:$G$129))),MATCH(Input!$D$129,'8-DD'!$B$126:$B$129,0))*$D$130+LEFT(INDEX('8-DD'!$H$126:$H$129,MATCH(Input!$D$129,'8-DD'!$B$126:$B$129,0)),5)*($D$131-MID(INDEX('8-DD'!$H$126:$H$129,MATCH(Input!$D$129,'8-DD'!$B$126:$B$129,0)),10,2)))*$D$132/10^7 -> 3.897103875 | R129: =(INDEX('9-DL'!$D$126:$D$129,MATCH(Input!$D$129,'9-DL'!$B$126:$B$129,0))+INDEX(IF($D$130<=25,'9-DL'!$E$126:$E$129,IF(AND($D$130>25,$D$130<=45),'9-DL'!$F$126:$F$129,IF($D$130>45,'9-DL'!$G$126:$G$129))),MATCH(Input!$D$129,'9-DL'!$B$126:$B$129,0))*$D$130+LEFT(INDEX('9-DL'!$H$126:$H$129,MATCH(Input!$D$129,'9-DL'!$B$126:$B$129,0)),5)*($D$131-MID(INDEX('9-DL'!$H$126:$H$129,MATCH(Input!$D$129,'9-DL'!$B$126:$B$129,0)),10,2)))*$D$132/10^7 -> 3.558268875 | S129: =(INDEX('10-GA'!$D$126:$D$129,MATCH(Input!$D$129,'10-GA'!$B$126:$B$129,0))+INDEX(IF($D$130<=25,'10-GA'!$E$126:$E$129,IF(AND($D$130>25,$D$130<=45),'10-GA'!$F$126:$F$129,IF($D$130>45,'10-GA'!$G$126:$G$129))),MATCH(Input!$D$129,'10-GA'!$B$126:$B$129,0))*$D$130+LEFT(INDEX('10-GA'!$H$126:$H$129,MATCH(Input!$D$129,'10-GA'!$B$126:$B$129,0)),5)*($D$131-MID(INDEX('10-GA'!$H$126:$H$129,MATCH(Input!$D$129,'10-GA'!$B$126:$B$129,0)),10,2)))*$D$132/10^7 -> 4.916443875 | T129: =(INDEX('11-GJ'!$D$126:$D$129,MATCH(Input!$D$129,'11-GJ'!$B$126:$B$129,0))+INDEX(IF($D$130<=25,'11-GJ'!$E$126:$E$129,IF(AND($D$130>25,$D$130<=45),'11-GJ'!$F$126:$F$129,IF($D$130>45,'11-GJ'!$G$126:$G$129))),MATCH(Input!$D$129,'11-GJ'!$B$126:$B$129,0))*$D$130+LEFT(INDEX('11-GJ'!$H$126:$H$129,MATCH(Input!$D$129,'11-GJ'!$B$126:$B$129,0)),5)*($D$131-MID(INDEX('11-GJ'!$H$126:$H$129,MATCH(Input!$D$129,'11-GJ'!$B$126:$B$129,0)),10,2)))*$D$132/10^7 -> 3.707158875 | U129: =(INDEX('12-HR'!$D$126:$D$129,MATCH(Input!$D$129,'12-HR'!$B$126:$B$129,0))+INDEX(IF($D$130<=25,'12-HR'!$E$126:$E$129,IF(AND($D$130>25,$D$130<=45),'12-HR'!$F$126:$F$129,IF($D$130>45,'12-HR'!$G$126:$G$129))),MATCH(Input!$D$129,'12-HR'!$B$126:$B$129,0))*$D$130+LEFT(INDEX('12-HR'!$H$126:$H$129,MATCH(Input!$D$129,'12-HR'!$B$126:$B$129,0)),5)*($D$131-MID(INDEX('12-HR'!$H$126:$H$129,MATCH(Input!$D$129,'12-HR'!$B$126:$B$129,0)),10,2)))*$D$132/10^7 -> 3.375358875 | V129: =(INDEX('13-HP'!$D$126:$D$129,MATCH(Input!$D$129,'13-HP'!$B$126:$B$129,0))+INDEX(IF($D$130<=25,'13-HP'!$E$126:$E$129,IF(AND($D$130>25,$D$130<=45),'13-HP'!$F$126:$F$129,IF($D$130>45,'13-HP'!$G$126:$G$129))),MATCH(Input!$D$129,'13-HP'!$B$126:$B$129,0))*$D$130+LEFT(INDEX('13-HP'!$H$126:$H$129,MATCH(Input!$D$129,'13-HP'!$B$126:$B$129,0)),5)*($D$131-MID(INDEX('13-HP'!$H$126:$H$129,MATCH(Input!$D$129,'13-HP'!$B$126:$B$129,0)),10,2)))*$D$132/10^7 -> 4.334638875 | W129: =(INDEX('14-JK'!$D$126:$D$129,MATCH(Input!$D$129,'14-JK'!$B$126:$B$129,0))+INDEX(IF($D$130<=25,'14-JK'!$E$126:$E$129,IF(AND($D$130>25,$D$130<=45),'14-JK'!$F$126:$F$129,IF($D$130>45,'14-JK'!$G$126:$G$129))),MATCH(Input!$D$129,'14-JK'!$B$126:$B$129,0))*$D$130+LEFT(INDEX('14-JK'!$H$126:$H$129,MATCH(Input!$D$129,'14-JK'!$B$126:$B$129,0)),5)*($D$131-MID(INDEX('14-JK'!$H$126:$H$129,MATCH(Input!$D$129,'14-JK'!$B$126:$B$129,0)),10,2)))*$D$132/10^7 -> 3.812893875 | X129: =(INDEX('15-JH'!$D$126:$D$129,MATCH(Input!$D$129,'15-JH'!$B$126:$B$129,0))+INDEX(IF($D$130<=25,'15-JH'!$E$126:$E$129,IF(AND($D$130>25,$D$130<=45),'15-JH'!$F$126:$F$129,IF($D$130>45,'15-JH'!$G$126:$G$129))),MATCH(Input!$D$129,'15-JH'!$B$126:$B$129,0))*$D$130+LEFT(INDEX('15-JH'!$H$126:$H$129,MATCH(Input!$D$129,'15-JH'!$B$126:$B$129,0)),5)*($D$131-MID(INDEX('15-JH'!$H$126:$H$129,MATCH(Input!$D$129,'15-JH'!$B$126:$B$129,0)),10,2)))*$D$132/10^7 -> 3.195178875 | Y129: =(INDEX('16-KA'!$D$126:$D$129,MATCH(Input!$D$129,'16-KA'!$B$126:$B$129,0))+INDEX(IF($D$130<=25,'16-KA'!$E$126:$E$129,IF(AND($D$130>25,$D$130<=45),'16-KA'!$F$126:$F$129,IF($D$130>45,'16-KA'!$G$126:$G$129))),MATCH(Input!$D$129,'16-KA'!$B$126:$B$129,0))*$D$130+LEFT(INDEX('16-KA'!$H$126:$H$129,MATCH(Input!$D$129,'16-KA'!$B$126:$B$129,0)),5)*($D$131-MID(INDEX('16-KA'!$H$126:$H$129,MATCH(Input!$D$129,'16-KA'!$B$126:$B$129,0)),10,2)))*$D$132/10^7 -> 3.724063875 | Z129: =(INDEX('17-KL'!$D$126:$D$129,MATCH(Input!$D$129,'17-KL'!$B$126:$B$129,0))+INDEX(IF($D$130<=25,'17-KL'!$E$126:$E$129,IF(AND($D$130>25,$D$130<=45),'17-KL'!$F$126:$F$129,IF($D$130>45,'17-KL'!$G$126:$G$129))),MATCH(Input!$D$129,'17-KL'!$B$126:$B$129,0))*$D$130+LEFT(INDEX('17-KL'!$H$126:$H$129,MATCH(Input!$D$129,'17-KL'!$B$126:$B$129,0)),5)*($D$131-MID(INDEX('17-KL'!$H$126:$H$129,MATCH(Input!$D$129,'17-KL'!$B$126:$B$129,0)),10,2)))*$D$132/10^7 -> 3.875578875 | AA129: =(INDEX('18-LD'!$D$126:$D$129,MATCH(Input!$D$129,'18-LD'!$B$126:$B$129,0))+INDEX(IF($D$130<=25,'18-LD'!$E$126:$E$129,IF(AND($D$130>25,$D$130<=45),'18-LD'!$F$126:$F$129,IF($D$130>45,'18-LD'!$G$126:$G$129))),MATCH(Input!$D$129,'18-LD'!$B$126:$B$129,0))*$D$130+LEFT(INDEX('18-LD'!$H$126:$H$129,MATCH(Input!$D$129,'18-LD'!$B$126:$B$129,0)),5)*($D$131-MID(INDEX('18-LD'!$H$126:$H$129,MATCH(Input!$D$129,'18-LD'!$B$126:$B$129,0)),10,2)))*$D$132/10^7 -> 4.070143875 | AB129: =(INDEX('19-MP'!$D$126:$D$129,MATCH(Input!$D$129,'19-MP'!$B$126:$B$129,0))+INDEX(IF($D$130<=25,'19-MP'!$E$126:$E$129,IF(AND($D$130>25,$D$130<=45),'19-MP'!$F$126:$F$129,IF($D$130>45,'19-MP'!$G$126:$G$129))),MATCH(Input!$D$129,'19-MP'!$B$126:$B$129,0))*$D$130+LEFT(INDEX('19-MP'!$H$126:$H$129,MATCH(Input!$D$129,'19-MP'!$B$126:$B$129,0)),5)*($D$131-MID(INDEX('19-MP'!$H$126:$H$129,MATCH(Input!$D$129,'19-MP'!$B$126:$B$129,0)),10,2)))*$D$132/10^7 -> 4.411708875 | AC129: =(INDEX('20-MH'!$D$126:$D$129,MATCH(Input!$D$129,'20-MH'!$B$126:$B$129,0))+INDEX(IF($D$130<=25,'20-MH'!$E$126:$E$129,IF(AND($D$130>25,$D$130<=45),'20-MH'!$F$126:$F$129,IF($D$130>45,'20-MH'!$G$126:$G$129))),MATCH(Input!$D$129,'20-MH'!$B$126:$B$129,0))*$D$130+LEFT(INDEX('20-MH'!$H$126:$H$129,MATCH(Input!$D$129,'20-MH'!$B$126:$B$129,0)),5)*($D$131-MID(INDEX('20-MH'!$H$126:$H$129,MATCH(Input!$D$129,'20-MH'!$B$126:$B$129,0)),10,2)))*$D$132/10^7 -> 4.916443875 | AD129: =(INDEX('21-OD'!$D$126:$D$129,MATCH(Input!$D$129,'21-OD'!$B$126:$B$129,0))+INDEX(IF($D$130<=25,'21-OD'!$E$126:$E$129,IF(AND($D$130>25,$D$130<=45),'21-OD'!$F$126:$F$129,IF($D$130>45,'21-OD'!$G$126:$G$129))),MATCH(Input!$D$129,'21-OD'!$B$126:$B$129,0))*$D$130+LEFT(INDEX('21-OD'!$H$126:$H$129,MATCH(Input!$D$129,'21-OD'!$B$126:$B$129,0)),5)*($D$131-MID(INDEX('21-OD'!$H$126:$H$129,MATCH(Input!$D$129,'21-OD'!$B$126:$B$129,0)),10,2)))*$D$132/10^7 -> 4.500538875 | AE129: =(INDEX('22-PY'!$D$126:$D$129,MATCH(Input!$D$129,'22-PY'!$B$126:$B$129,0))+INDEX(IF($D$130<=25,'22-PY'!$E$126:$E$129,IF(AND($D$130>25,$D$130<=45),'22-PY'!$F$126:$F$129,IF($D$130>45,'22-PY'!$G$126:$G$129))),MATCH(Input!$D$129,'22-PY'!$B$126:$B$129,0))*$D$130+LEFT(INDEX('22-PY'!$H$126:$H$129,MATCH(Input!$D$129,'22-PY'!$B$126:$B$129,0)),5)*($D$131-MID(INDEX('22-PY'!$H$126:$H$129,MATCH(Input!$D$129,'22-PY'!$B$126:$B$129,0)),10,2)))*$D$132/10^7 -> 3.865813875 | AF129: =(INDEX('23-PB'!$D$126:$D$129,MATCH(Input!$D$129,'23-PB'!$B$126:$B$129,0))+INDEX(IF($D$130<=25,'23-PB'!$E$126:$E$129,IF(AND($D$130>25,$D$130<=45),'23-PB'!$F$126:$F$129,IF($D$130>45,'23-PB'!$G$126:$G$129))),MATCH(Input!$D$129,'23-PB'!$B$126:$B$129,0))*$D$130+LEFT(INDEX('23-PB'!$H$126:$H$129,MATCH(Input!$D$129,'23-PB'!$B$126:$B$129,0)),5)*($D$131-MID(INDEX('23-PB'!$H$126:$H$129,MATCH(Input!$D$129,'23-PB'!$B$126:$B$129,0)),10,2)))*$D$132/10^7 -> 4.063003875 | AG129: =(INDEX('24-RJ'!$D$126:$D$129,MATCH(Input!$D$129,'24-RJ'!$B$126:$B$129,0))+INDEX(IF($D$130<=25,'24-RJ'!$E$126:$E$129,IF(AND($D$130>25,$D$130<=45),'24-RJ'!$F$126:$F$129,IF($D$130>45,'24-RJ'!$G$126:$G$129))),MATCH(Input!$D$129,'24-RJ'!$B$126:$B$129,0))*$D$130+LEFT(INDEX('24-RJ'!$H$126:$H$129,MATCH(Input!$D$129,'24-RJ'!$B$126:$B$129,0)),5)*($D$131-MID(INDEX('24-RJ'!$H$126:$H$129,MATCH(Input!$D$129,'24-RJ'!$B$126:$B$129,0)),10,2)))*$D$132/10^7 -> 4.147213875 | AH129: =(INDEX('25-TN'!$D$126:$D$129,MATCH(Input!$D$129,'25-TN'!$B$126:$B$129,0))+INDEX(IF($D$130<=25,'25-TN'!$E$126:$E$129,IF(AND($D$130>25,$D$130<=45),'25-TN'!$F$126:$F$129,IF($D$130>45,'25-TN'!$G$126:$G$129))),MATCH(Input!$D$129,'25-TN'!$B$126:$B$129,0))*$D$130+LEFT(INDEX('25-TN'!$H$126:$H$129,MATCH(Input!$D$129,'25-TN'!$B$126:$B$129,0)),5)*($D$131-MID(INDEX('25-TN'!$H$126:$H$129,MATCH(Input!$D$129,'25-TN'!$B$126:$B$129,0)),10,2)))*$D$132/10^7 -> 3.685528875 | AI129: =(INDEX('26-TS'!$D$126:$D$129,MATCH(Input!$D$129,'26-TS'!$B$126:$B$129,0))+INDEX(IF($D$130<=25,'26-TS'!$E$126:$E$129,IF(AND($D$130>25,$D$130<=45),'26-TS'!$F$126:$F$129,IF($D$130>45,'26-TS'!$G$126:$G$129))),MATCH(Input!$D$129,'26-TS'!$B$126:$B$129,0))*$D$130+LEFT(INDEX('26-TS'!$H$126:$H$129,MATCH(Input!$D$129,'26-TS'!$B$126:$B$129,0)),5)*($D$131-MID(INDEX('26-TS'!$H$126:$H$129,MATCH(Input!$D$129,'26-TS'!$B$126:$B$129,0)),10,2)))*$D$132/10^7 -> 3.519733875 | AJ129: =(INDEX('27-UP'!$D$126:$D$129,MATCH(Input!$D$129,'27-UP'!$B$126:$B$129,0))+INDEX(IF($D$130<=25,'27-UP'!$E$126:$E$129,IF(AND($D$130>25,$D$130<=45),'27-UP'!$F$126:$F$129,IF($D$130>45,'27-UP'!$G$126:$G$129))),MATCH(Input!$D$129,'27-UP'!$B$126:$B$129,0))*$D$130+LEFT(INDEX('27-UP'!$H$126:$H$129,MATCH(Input!$D$129,'27-UP'!$B$126:$B$129,0)),5)*($D$131-MID(INDEX('27-UP'!$H$126:$H$129,MATCH(Input!$D$129,'27-UP'!$B$126:$B$129,0)),10,2)))*$D$132/10^7 -> 3.293773875 | AK129: =(INDEX('28-UK'!$D$126:$D$129,MATCH(Input!$D$129,'28-UK'!$B$126:$B$129,0))+INDEX(IF($D$130<=25,'28-UK'!$E$126:$E$129,IF(AND($D$130>25,$D$130<=45),'28-UK'!$F$126:$F$129,IF($D$130>45,'28-UK'!$G$126:$G$129))),MATCH(Input!$D$129,'28-UK'!$B$126:$B$129,0))*$D$130+LEFT(INDEX('28-UK'!$H$126:$H$129,MATCH(Input!$D$129,'28-UK'!$B$126:$B$129,0)),5)*($D$131-MID(INDEX('28-UK'!$H$126:$H$129,MATCH(Input!$D$129,'28-UK'!$B$126:$B$129,0)),10,2)))*$D$132/10^7 -> 4.274578875 | AL129: =(INDEX('29-WB'!$D$126:$D$129,MATCH(Input!$D$129,'29-WB'!$B$126:$B$129,0))+INDEX(IF($D$130<=25,'29-WB'!$E$126:$E$129,IF(AND($D$130>25,$D$130<=45),'29-WB'!$F$126:$F$129,IF($D$130>45,'29-WB'!$G$126:$G$129))),MATCH(Input!$D$129,'29-WB'!$B$126:$B$129,0))*$D$130+LEFT(INDEX('29-WB'!$H$126:$H$129,MATCH(Input!$D$129,'29-WB'!$B$126:$B$129,0)),5)*($D$131-MID(INDEX('29-WB'!$H$126:$H$129,MATCH(Input!$D$129,'29-WB'!$B$126:$B$129,0)),10,2)))*$D$132/10^7 -> 4.070143875
C130: Skew Angle in degree | D130: 25
C131: Aggregate Lead in km. | D131: =$D$9 -> 50
C132: Area in Sqm. | D132: 1050
C133: Structure No-2
C134: Structure Configuration | D134: Single Span With Pile Foundation | E134: =IF($D$8="Andaman & Nicobar Islands ",J134,IF($D$8="Andhra Pradesh",K134,IF($D$8="Assam",L134,IF($D$8="Bihar",M134,IF($D$8="Chandigarh",N134,IF($D$8="Chhattisgarh",O134,IF($D$8="Dadra & Nagar Haveli",P134,IF($D$8="Daman & Diu",Q134,IF($D$8="Delhi",R134,IF($D$8="Goa",S134,IF($D$8="Gujarat",T134,IF($D$8="Haryana",U134,IF($D$8="Himachal Pradesh",V134,IF($D$8="Jammu & Kashmir",W134,IF($D$8="Jharkhand",X134,IF($D$8="Karnataka",Y134,IF($D$8="Kerala",Z134,IF($D$8="Lakshadweep",AA134,IF($D$8="Madhya Pradesh",AB134,IF($D$8="Maharashtra",AC134,IF($D$8="Odisha",AD134,IF($D$8="Puducherry",AE134,IF($D$8="Punjab",AF134,IF($D$8="Rajasthan",AG134,IF($D$8="Tamil Nadu",AH134,IF($D$8="Telangana",AI134,IF($D$8="Uttar Pradesh",AJ134,IF($D$8="Uttarakhand",AK134,IF($D$8="West Bengal",AL134))))))))))))))))))))))))))))) -> 4.183637325 | F134: =E134*10^7 -> 41836373.25 | G134: =IF(E134>0,E134/D137,0) -> 0.0039844165 | J134: =(INDEX('1-AN'!$D$126:$D$129,MATCH(Input!$D$134,'1-AN'!$B$126:$B$129,0))+INDEX(IF($D$135<=25,'1-AN'!$E$126:$E$129,IF(AND($D$135>25,$D$135<=45),'1-AN'!$F$126:$F$129,IF($D$135>45,'1-AN'!$G$126:$G$129))),MATCH(Input!$D$134,'1-AN'!$B$126:$B$129,0))*$D$135+LEFT(INDEX('1-AN'!$H$126:$H$129,MATCH(Input!$D$134,'1-AN'!$B$126:$B$129,0)),5)*($D$136-MID(INDEX('1-AN'!$H$126:$H$129,MATCH(Input!$D$134,'1-AN'!$B$126:$B$129,0)),10,2)))*$D$137/10^7 -> 4.787597325 | K134: =(INDEX('2-AP'!$D$126:$D$129,MATCH(Input!$D$134,'2-AP'!$B$126:$B$129,0))+INDEX(IF($D$135<=25,'2-AP'!$E$126:$E$129,IF(AND($D$135>25,$D$135<=45),'2-AP'!$F$126:$F$129,IF($D$135>45,'2-AP'!$G$126:$G$129))),MATCH(Input!$D$134,'2-AP'!$B$126:$B$129,0))*$D$135+LEFT(INDEX('2-AP'!$H$126:$H$129,MATCH(Input!$D$134,'2-AP'!$B$126:$B$129,0)),5)*($D$136-MID(INDEX('2-AP'!$H$126:$H$129,MATCH(Input!$D$134,'2-AP'!$B$126:$B$129,0)),10,2)))*$D$137/10^7 -> 4.130297325 | L134: =(INDEX('3-AS'!$D$126:$D$129,MATCH(Input!$D$134,'3-AS'!$B$126:$B$129,0))+INDEX(IF($D$135<=25,'3-AS'!$E$126:$E$129,IF(AND($D$135>25,$D$135<=45),'3-AS'!$F$126:$F$129,IF($D$135>45,'3-AS'!$G$126:$G$129))),MATCH(Input!$D$134,'3-AS'!$B$126:$B$129,0))*$D$135+LEFT(INDEX('3-AS'!$H$126:$H$129,MATCH(Input!$D$134,'3-AS'!$B$126:$B$129,0)),5)*($D$136-MID(INDEX('3-AS'!$H$126:$H$129,MATCH(Input!$D$134,'3-AS'!$B$126:$B$129,0)),10,2)))*$D$137/10^7 -> 5.489312325 | M134: =(INDEX('4-BR'!$D$126:$D$129,MATCH(Input!$D$134,'4-BR'!$B$126:$B$129,0))+INDEX(IF($D$135<=25,'4-BR'!$E$126:$E$129,IF(AND($D$135>25,$D$135<=45),'4-BR'!$F$126:$F$129,IF($D$135>45,'4-BR'!$G$126:$G$129))),MATCH(Input!$D$134,'4-BR'!$B$126:$B$129,0))*$D$135+LEFT(INDEX('4-BR'!$H$126:$H$129,MATCH(Input!$D$134,'4-BR'!$B$126:$B$129,0)),5)*($D$136-MID(INDEX('4-BR'!$H$126:$H$129,MATCH(Input!$D$134,'4-BR'!$B$126:$B$129,0)),10,2)))*$D$137/10^7 -> 3.952637325 | N134: =(INDEX('5-CH'!$D$126:$D$129,MATCH(Input!$D$134,'5-CH'!$B$126:$B$129,0))+INDEX(IF($D$135<=25,'5-CH'!$E$126:$E$129,IF(AND($D$135>25,$D$135<=45),'5-CH'!$F$126:$F$129,IF($D$135>45,'5-CH'!$G$126:$G$129))),MATCH(Input!$D$134,'5-CH'!$B$126:$B$129,0))*$D$135+LEFT(INDEX('5-CH'!$H$126:$H$129,MATCH(Input!$D$134,'5-CH'!$B$126:$B$129,0)),5)*($D$136-MID(INDEX('5-CH'!$H$126:$H$129,MATCH(Input!$D$134,'5-CH'!$B$126:$B$129,0)),10,2)))*$D$137/10^7 -> 4.778672325 | O134: =(INDEX('6-CG'!$D$126:$D$129,MATCH(Input!$D$134,'6-CG'!$B$126:$B$129,0))+INDEX(IF($D$135<=25,'6-CG'!$E$126:$E$129,IF(AND($D$135>25,$D$135<=45),'6-CG'!$F$126:$F$129,IF($D$135>45,'6-CG'!$G$126:$G$129))),MATCH(Input!$D$134,'6-CG'!$B$126:$B$129,0))*$D$135+LEFT(INDEX('6-CG'!$H$126:$H$129,MATCH(Input!$D$134,'6-CG'!$B$126:$B$129,0)),5)*($D$136-MID(INDEX('6-CG'!$H$126:$H$129,MATCH(Input!$D$134,'6-CG'!$B$126:$B$129,0)),10,2)))*$D$137/10^7 -> 5.462642325 | P134: =(INDEX('7-DN'!$D$126:$D$129,MATCH(Input!$D$134,'7-DN'!$B$126:$B$129,0))+INDEX(IF($D$135<=25,'7-DN'!$E$126:$E$129,IF(AND($D$135>25,$D$135<=45),'7-DN'!$F$126:$F$129,IF($D$135>45,'7-DN'!$G$126:$G$129))),MATCH(Input!$D$134,'7-DN'!$B$126:$B$129,0))*$D$135+LEFT(INDEX('7-DN'!$H$126:$H$129,MATCH(Input!$D$134,'7-DN'!$B$126:$B$129,0)),5)*($D$136-MID(INDEX('7-DN'!$H$126:$H$129,MATCH(Input!$D$134,'7-DN'!$B$126:$B$129,0)),10,2)))*$D$137/10^7 -> 5.782367325 | Q134: =(INDEX('8-DD'!$D$126:$D$129,MATCH(Input!$D$134,'8-DD'!$B$126:$B$129,0))+INDEX(IF($D$135<=25,'8-DD'!$E$126:$E$129,IF(AND($D$135>25,$D$135<=45),'8-DD'!$F$126:$F$129,IF($D$135>45,'8-DD'!$G$126:$G$129))),MATCH(Input!$D$134,'8-DD'!$B$126:$B$129,0))*$D$135+LEFT(INDEX('8-DD'!$H$126:$H$129,MATCH(Input!$D$134,'8-DD'!$B$126:$B$129,0)),5)*($D$136-MID(INDEX('8-DD'!$H$126:$H$129,MATCH(Input!$D$134,'8-DD'!$B$126:$B$129,0)),10,2)))*$D$137/10^7 -> 4.583267325 | R134: =(INDEX('9-DL'!$D$126:$D$129,MATCH(Input!$D$134,'9-DL'!$B$126:$B$129,0))+INDEX(IF($D$135<=25,'9-DL'!$E$126:$E$129,IF(AND($D$135>25,$D$135<=45),'9-DL'!$F$126:$F$129,IF($D$135>45,'9-DL'!$G$126:$G$129))),MATCH(Input!$D$134,'9-DL'!$B$126:$B$129,0))*$D$135+LEFT(INDEX('9-DL'!$H$126:$H$129,MATCH(Input!$D$134,'9-DL'!$B$126:$B$129,0)),5)*($D$136-MID(INDEX('9-DL'!$H$126:$H$129,MATCH(Input!$D$134,'9-DL'!$B$126:$B$129,0)),10,2)))*$D$137/10^7 -> 4.183637325 | S134: =(INDEX('10-GA'!$D$126:$D$129,MATCH(Input!$D$134,'10-GA'!$B$126:$B$129,0))+INDEX(IF($D$135<=25,'10-GA'!$E$126:$E$129,IF(AND($D$135>25,$D$135<=45),'10-GA'!$F$126:$F$129,IF($D$135>45,'10-GA'!$G$126:$G$129))),MATCH(Input!$D$134,'10-GA'!$B$126:$B$129,0))*$D$135+LEFT(INDEX('10-GA'!$H$126:$H$129,MATCH(Input!$D$134,'10-GA'!$B$126:$B$129,0)),5)*($D$136-MID(INDEX('10-GA'!$H$126:$H$129,MATCH(Input!$D$134,'10-GA'!$B$126:$B$129,0)),10,2)))*$D$137/10^7 -> 5.782367325 | T134: =(INDEX('11-GJ'!$D$126:$D$129,MATCH(Input!$D$134,'11-GJ'!$B$126:$B$129,0))+INDEX(IF($D$135<=25,'11-GJ'!$E$126:$E$129,IF(AND($D$135>25,$D$135<=45),'11-GJ'!$F$126:$F$129,IF($D$135>45,'11-GJ'!$G$126:$G$129))),MATCH(Input!$D$134,'11-GJ'!$B$126:$B$129,0))*$D$135+LEFT(INDEX('11-GJ'!$H$126:$H$129,MATCH(Input!$D$134,'11-GJ'!$B$126:$B$129,0)),5)*($D$136-MID(INDEX('11-GJ'!$H$126:$H$129,MATCH(Input!$D$134,'11-GJ'!$B$126:$B$129,0)),10,2)))*$D$137/10^7 -> 4.361192325 | U134: =(INDEX('12-HR'!$D$126:$D$129,MATCH(Input!$D$134,'12-HR'!$B$126:$B$129,0))+INDEX(IF($D$135<=25,'12-HR'!$E$126:$E$129,IF(AND($D$135>25,$D$135<=45),'12-HR'!$F$126:$F$129,IF($D$135>45,'12-HR'!$G$126:$G$129))),MATCH(Input!$D$134,'12-HR'!$B$126:$B$129,0))*$D$135+LEFT(INDEX('12-HR'!$H$126:$H$129,MATCH(Input!$D$134,'12-HR'!$B$126:$B$129,0)),5)*($D$136-MID(INDEX('12-HR'!$H$126:$H$129,MATCH(Input!$D$134,'12-HR'!$B$126:$B$129,0)),10,2)))*$D$137/10^7 -> 3.970382325 | V134: =(INDEX('13-HP'!$D$126:$D$129,MATCH(Input!$D$134,'13-HP'!$B$126:$B$129,0))+INDEX(IF($D$135<=25,'13-HP'!$E$126:$E$129,IF(AND($D$135>25,$D$135<=45),'13-HP'!$F$126:$F$129,IF($D$135>45,'13-HP'!$G$126:$G$129))),MATCH(Input!$D$134,'13-HP'!$B$126:$B$129,0))*$D$135+LEFT(INDEX('13-HP'!$H$126:$H$129,MATCH(Input!$D$134,'13-HP'!$B$126:$B$129,0)),5)*($D$136-MID(INDEX('13-HP'!$H$126:$H$129,MATCH(Input!$D$134,'13-HP'!$B$126:$B$129,0)),10,2)))*$D$137/10^7 -> 5.098502325 | W134: =(INDEX('14-JK'!$D$126:$D$129,MATCH(Input!$D$134,'14-JK'!$B$126:$B$129,0))+INDEX(IF($D$135<=25,'14-JK'!$E$126:$E$129,IF(AND($D$135>25,$D$135<=45),'14-JK'!$F$126:$F$129,IF($D$135>45,'14-JK'!$G$126:$G$129))),MATCH(Input!$D$134,'14-JK'!$B$126:$B$129,0))*$D$135+LEFT(INDEX('14-JK'!$H$126:$H$129,MATCH(Input!$D$134,'14-JK'!$B$126:$B$129,0)),5)*($D$136-MID(INDEX('14-JK'!$H$126:$H$129,MATCH(Input!$D$134,'14-JK'!$B$126:$B$129,0)),10,2)))*$D$137/10^7 -> 4.485617325 | X134: =(INDEX('15-JH'!$D$126:$D$129,MATCH(Input!$D$134,'15-JH'!$B$126:$B$129,0))+INDEX(IF($D$135<=25,'15-JH'!$E$126:$E$129,IF(AND($D$135>25,$D$135<=45),'15-JH'!$F$126:$F$129,IF($D$135>45,'15-JH'!$G$126:$G$129))),MATCH(Input!$D$134,'15-JH'!$B$126:$B$129,0))*$D$135+LEFT(INDEX('15-JH'!$H$126:$H$129,MATCH(Input!$D$134,'15-JH'!$B$126:$B$129,0)),5)*($D$136-MID(INDEX('15-JH'!$H$126:$H$129,MATCH(Input!$D$134,'15-JH'!$B$126:$B$129,0)),10,2)))*$D$137/10^7 -> 3.757232325 | Y134: =(INDEX('16-KA'!$D$126:$D$129,MATCH(Input!$D$134,'16-KA'!$B$126:$B$129,0))+INDEX(IF($D$135<=25,'16-KA'!$E$126:$E$129,IF(AND($D$135>25,$D$135<=45),'16-KA'!$F$126:$F$129,IF($D$135>45,'16-KA'!$G$126:$G$129))),MATCH(Input!$D$134,'16-KA'!$B$126:$B$129,0))*$D$135+LEFT(INDEX('16-KA'!$H$126:$H$129,MATCH(Input!$D$134,'16-KA'!$B$126:$B$129,0)),5)*($D$136-MID(INDEX('16-KA'!$H$126:$H$129,MATCH(Input!$D$134,'16-KA'!$B$126:$B$129,0)),10,2)))*$D$137/10^7 -> 4.379042325 | Z134: =(INDEX('17-KL'!$D$126:$D$129,MATCH(Input!$D$134,'17-KL'!$B$126:$B$129,0))+INDEX(IF($D$135<=25,'17-KL'!$E$126:$E$129,IF(AND($D$135>25,$D$135<=45),'17-KL'!$F$126:$F$129,IF($D$135>45,'17-KL'!$G$126:$G$129))),MATCH(Input!$D$134,'17-KL'!$B$126:$B$129,0))*$D$135+LEFT(INDEX('17-KL'!$H$126:$H$129,MATCH(Input!$D$134,'17-KL'!$B$126:$B$129,0)),5)*($D$136-MID(INDEX('17-KL'!$H$126:$H$129,MATCH(Input!$D$134,'17-KL'!$B$126:$B$129,0)),10,2)))*$D$137/10^7 -> 4.556702325 | AA134: =(INDEX('18-LD'!$D$126:$D$129,MATCH(Input!$D$134,'18-LD'!$B$126:$B$129,0))+INDEX(IF($D$135<=25,'18-LD'!$E$126:$E$129,IF(AND($D$135>25,$D$135<=45),'18-LD'!$F$126:$F$129,IF($D$135>45,'18-LD'!$G$126:$G$129))),MATCH(Input!$D$134,'18-LD'!$B$126:$B$129,0))*$D$135+LEFT(INDEX('18-LD'!$H$126:$H$129,MATCH(Input!$D$134,'18-LD'!$B$126:$B$129,0)),5)*($D$136-MID(INDEX('18-LD'!$H$126:$H$129,MATCH(Input!$D$134,'18-LD'!$B$126:$B$129,0)),10,2)))*$D$137/10^7 -> 4.787597325 | AB134: =(INDEX('19-MP'!$D$126:$D$129,MATCH(Input!$D$134,'19-MP'!$B$126:$B$129,0))+INDEX(IF($D$135<=25,'19-MP'!$E$126:$E$129,IF(AND($D$135>25,$D$135<=45),'19-MP'!$F$126:$F$129,IF($D$135>45,'19-MP'!$G$126:$G$129))),MATCH(Input!$D$134,'19-MP'!$B$126:$B$129,0))*$D$135+LEFT(INDEX('19-MP'!$H$126:$H$129,MATCH(Input!$D$134,'19-MP'!$B$126:$B$129,0)),5)*($D$136-MID(INDEX('19-MP'!$H$126:$H$129,MATCH(Input!$D$134,'19-MP'!$B$126:$B$129,0)),10,2)))*$D$137/10^7 -> 5.187332325 | AC134: =(INDEX('20-MH'!$D$126:$D$129,MATCH(Input!$D$134,'20-MH'!$B$126:$B$129,0))+INDEX(IF($D$135<=25,'20-MH'!$E$126:$E$129,IF(AND($D$135>25,$D$135<=45),'20-MH'!$F$126:$F$129,IF($D$135>45,'20-MH'!$G$126:$G$129))),MATCH(Input!$D$134,'20-MH'!$B$126:$B$129,0))*$D$135+LEFT(INDEX('20-MH'!$H$126:$H$129,MATCH(Input!$D$134,'20-MH'!$B$126:$B$129,0)),5)*($D$136-MID(INDEX('20-MH'!$H$126:$H$129,MATCH(Input!$D$134,'20-MH'!$B$126:$B$129,0)),10,2)))*$D$137/10^7 -> 5.782367325 | AD134: =(INDEX('21-OD'!$D$126:$D$129,MATCH(Input!$D$134,'21-OD'!$B$126:$B$129,0))+INDEX(IF($D$135<=25,'21-OD'!$E$126:$E$129,IF(AND($D$135>25,$D$135<=45),'21-OD'!$F$126:$F$129,IF($D$135>45,'21-OD'!$G$126:$G$129))),MATCH(Input!$D$134,'21-OD'!$B$126:$B$129,0))*$D$135+LEFT(INDEX('21-OD'!$H$126:$H$129,MATCH(Input!$D$134,'21-OD'!$B$126:$B$129,0)),5)*($D$136-MID(INDEX('21-OD'!$H$126:$H$129,MATCH(Input!$D$134,'21-OD'!$B$126:$B$129,0)),10,2)))*$D$137/10^7 -> 5.293907325 | AE134: =(INDEX('22-PY'!$D$126:$D$129,MATCH(Input!$D$134,'22-PY'!$B$126:$B$129,0))+INDEX(IF($D$135<=25,'22-PY'!$E$126:$E$129,IF(AND($D$135>25,$D$135<=45),'22-PY'!$F$126:$F$129,IF($D$135>45,'22-PY'!$G$126:$G$129))),MATCH(Input!$D$134,'22-PY'!$B$126:$B$129,0))*$D$135+LEFT(INDEX('22-PY'!$H$126:$H$129,MATCH(Input!$D$134,'22-PY'!$B$126:$B$129,0)),5)*($D$136-MID(INDEX('22-PY'!$H$126:$H$129,MATCH(Input!$D$134,'22-PY'!$B$126:$B$129,0)),10,2)))*$D$137/10^7 -> 4.547777325 | AF134: =(INDEX('23-PB'!$D$126:$D$129,MATCH(Input!$D$134,'23-PB'!$B$126:$B$129,0))+INDEX(IF($D$135<=25,'23-PB'!$E$126:$E$129,IF(AND($D$135>25,$D$135<=45),'23-PB'!$F$126:$F$129,IF($D$135>45,'23-PB'!$G$126:$G$129))),MATCH(Input!$D$134,'23-PB'!$B$126:$B$129,0))*$D$135+LEFT(INDEX('23-PB'!$H$126:$H$129,MATCH(Input!$D$134,'23-PB'!$B$126:$B$129,0)),5)*($D$136-MID(INDEX('23-PB'!$H$126:$H$129,MATCH(Input!$D$134,'23-PB'!$B$126:$B$129,0)),10,2)))*$D$137/10^7 -> 4.778672325 | AG134: =(INDEX('24-RJ'!$D$126:$D$129,MATCH(Input!$D$134,'24-RJ'!$B$126:$B$129,0))+INDEX(IF($D$135<=25,'24-RJ'!$E$126:$E$129,IF(AND($D$135>25,$D$135<=45),'24-RJ'!$F$126:$F$129,IF($D$135>45,'24-RJ'!$G$126:$G$129))),MATCH(Input!$D$134,'24-RJ'!$B$126:$B$129,0))*$D$135+LEFT(INDEX('24-RJ'!$H$126:$H$129,MATCH(Input!$D$134,'24-RJ'!$B$126:$B$129,0)),5)*($D$136-MID(INDEX('24-RJ'!$H$126:$H$129,MATCH(Input!$D$134,'24-RJ'!$B$126:$B$129,0)),10,2)))*$D$137/10^7 -> 4.876427325 | AH134: =(INDEX('25-TN'!$D$126:$D$129,MATCH(Input!$D$134,'25-TN'!$B$126:$B$129,0))+INDEX(IF($D$135<=25,'25-TN'!$E$126:$E$129,IF(AND($D$135>25,$D$135<=45),'25-TN'!$F$126:$F$129,IF($D$135>45,'25-TN'!$G$126:$G$129))),MATCH(Input!$D$134,'25-TN'!$B$126:$B$129,0))*$D$135+LEFT(INDEX('25-TN'!$H$126:$H$129,MATCH(Input!$D$134,'25-TN'!$B$126:$B$129,0)),5)*($D$136-MID(INDEX('25-TN'!$H$126:$H$129,MATCH(Input!$D$134,'25-TN'!$B$126:$B$129,0)),10,2)))*$D$137/10^7 -> 4.334627325 | AI134: =(INDEX('26-TS'!$D$126:$D$129,MATCH(Input!$D$134,'26-TS'!$B$126:$B$129,0))+INDEX(IF($D$135<=25,'26-TS'!$E$126:$E$129,IF(AND($D$135>25,$D$135<=45),'26-TS'!$F$126:$F$129,IF($D$135>45,'26-TS'!$G$126:$G$129))),MATCH(Input!$D$134,'26-TS'!$B$126:$B$129,0))*$D$135+LEFT(INDEX('26-TS'!$H$126:$H$129,MATCH(Input!$D$134,'26-TS'!$B$126:$B$129,0)),5)*($D$136-MID(INDEX('26-TS'!$H$126:$H$129,MATCH(Input!$D$134,'26-TS'!$B$126:$B$129,0)),10,2)))*$D$137/10^7 -> 4.139222325 | AJ134: =(INDEX('27-UP'!$D$126:$D$129,MATCH(Input!$D$134,'27-UP'!$B$126:$B$129,0))+INDEX(IF($D$135<=25,'27-UP'!$E$126:$E$129,IF(AND($D$135>25,$D$135<=45),'27-UP'!$F$126:$F$129,IF($D$135>45,'27-UP'!$G$126:$G$129))),MATCH(Input!$D$134,'27-UP'!$B$126:$B$129,0))*$D$135+LEFT(INDEX('27-UP'!$H$126:$H$129,MATCH(Input!$D$134,'27-UP'!$B$126:$B$129,0)),5)*($D$136-MID(INDEX('27-UP'!$H$126:$H$129,MATCH(Input!$D$134,'27-UP'!$B$126:$B$129,0)),10,2)))*$D$137/10^7 -> 3.872732325 | AK134: =(INDEX('28-UK'!$D$126:$D$129,MATCH(Input!$D$134,'28-UK'!$B$126:$B$129,0))+INDEX(IF($D$135<=25,'28-UK'!$E$126:$E$129,IF(AND($D$135>25,$D$135<=45),'28-UK'!$F$126:$F$129,IF($D$135>45,'28-UK'!$G$126:$G$129))),MATCH(Input!$D$134,'28-UK'!$B$126:$B$129,0))*$D$135+LEFT(INDEX('28-UK'!$H$126:$H$129,MATCH(Input!$D$134,'28-UK'!$B$126:$B$129,0)),5)*($D$136-MID(INDEX('28-UK'!$H$126:$H$129,MATCH(Input!$D$134,'28-UK'!$B$126:$B$129,0)),10,2)))*$D$137/10^7 -> 5.027417325 | AL134: =(INDEX('29-WB'!$D$126:$D$129,MATCH(Input!$D$134,'29-WB'!$B$126:$B$129,0))+INDEX(IF($D$135<=25,'29-WB'!$E$126:$E$129,IF(AND($D$135>25,$D$135<=45),'29-WB'!$F$126:$F$129,IF($D$135>45,'29-WB'!$G$126:$G$129))),MATCH(Input!$D$134,'29-WB'!$B$126:$B$129,0))*$D$135+LEFT(INDEX('29-WB'!$H$126:$H$129,MATCH(Input!$D$134,'29-WB'!$B$126:$B$129,0)),5)*($D$136-MID(INDEX('29-WB'!$H$126:$H$129,MATCH(Input!$D$134,'29-WB'!$B$126:$B$129,0)),10,2)))*$D$137/10^7 -> 4.787597325
C135: Skew Angle in degree | D135: 0
C136: Aggregate Lead in km. | D136: =$D$9 -> 50
C137: Area in Sqm. | D137: 1050
C138: Structure No-3
C139: Structure Configuration | D139: Multiple Span With Open Foundation | E139: =IF($D$8="Andaman & Nicobar Islands ",J139,IF($D$8="Andhra Pradesh",K139,IF($D$8="Assam",L139,IF($D$8="Bihar",M139,IF($D$8="Chandigarh",N139,IF($D$8="Chhattisgarh",O139,IF($D$8="Dadra & Nagar Haveli",P139,IF($D$8="Daman & Diu",Q139,IF($D$8="Delhi",R139,IF($D$8="Goa",S139,IF($D$8="Gujarat",T139,IF($D$8="Haryana",U139,IF($D$8="Himachal Pradesh",V139,IF($D$8="Jammu & Kashmir",W139,IF($D$8="Jharkhand",X139,IF($D$8="Karnataka",Y139,IF($D$8="Kerala",Z139,IF($D$8="Lakshadweep",AA139,IF($D$8="Madhya Pradesh",AB139,IF($D$8="Maharashtra",AC139,IF($D$8="Odisha",AD139,IF($D$8="Puducherry",AE139,IF($D$8="Punjab",AF139,IF($D$8="Rajasthan",AG139,IF($D$8="Tamil Nadu",AH139,IF($D$8="Telangana",AI139,IF($D$8="Uttar Pradesh",AJ139,IF($D$8="Uttarakhand",AK139,IF($D$8="West Bengal",AL139))))))))))))))))))))))))))))) -> 14.12933978 | F139: =E139*10^7 -> 141293397.8 | G139: =IF(E139>0,E139/D142,0) -> 0.0028202275 | J139: =(INDEX('1-AN'!$D$126:$D$129,MATCH(Input!$D$139,'1-AN'!$B$126:$B$129,0))+INDEX(IF($D$140<=25,'1-AN'!$E$126:$E$129,IF(AND($D$140>25,$D$140<=45),'1-AN'!$F$126:$F$129,IF($D$140>45,'1-AN'!$G$126:$G$129))),MATCH(Input!$D$139,'1-AN'!$B$126:$B$129,0))*$D$140+LEFT(INDEX('1-AN'!$H$126:$H$129,MATCH(Input!$D$139,'1-AN'!$B$126:$B$129,0)),5)*($D$141-MID(INDEX('1-AN'!$H$126:$H$129,MATCH(Input!$D$139,'1-AN'!$B$126:$B$129,0)),10,2)))*$D$142/10^7 -> 16.16891078 | K139: =(INDEX('2-AP'!$D$126:$D$129,MATCH(Input!$D$139,'2-AP'!$B$126:$B$129,0))+INDEX(IF($D$140<=25,'2-AP'!$E$126:$E$129,IF(AND($D$140>25,$D$140<=45),'2-AP'!$F$126:$F$129,IF($D$140>45,'2-AP'!$G$126:$G$129))),MATCH(Input!$D$139,'2-AP'!$B$126:$B$129,0))*$D$140+LEFT(INDEX('2-AP'!$H$126:$H$129,MATCH(Input!$D$139,'2-AP'!$B$126:$B$129,0)),5)*($D$141-MID(INDEX('2-AP'!$H$126:$H$129,MATCH(Input!$D$139,'2-AP'!$B$126:$B$129,0)),10,2)))*$D$142/10^7 -> 13.94897977 | L139: =(INDEX('3-AS'!$D$126:$D$129,MATCH(Input!$D$139,'3-AS'!$B$126:$B$129,0))+INDEX(IF($D$140<=25,'3-AS'!$E$126:$E$129,IF(AND($D$140>25,$D$140<=45),'3-AS'!$F$126:$F$129,IF($D$140>45,'3-AS'!$G$126:$G$129))),MATCH(Input!$D$139,'3-AS'!$B$126:$B$129,0))*$D$140+LEFT(INDEX('3-AS'!$H$126:$H$129,MATCH(Input!$D$139,'3-AS'!$B$126:$B$129,0)),5)*($D$141-MID(INDEX('3-AS'!$H$126:$H$129,MATCH(Input!$D$139,'3-AS'!$B$126:$B$129,0)),10,2)))*$D$142/10^7 -> 18.53914178 | M139: =(INDEX('4-BR'!$D$126:$D$129,MATCH(Input!$D$139,'4-BR'!$B$126:$B$129,0))+INDEX(IF($D$140<=25,'4-BR'!$E$126:$E$129,IF(AND($D$140>25,$D$140<=45),'4-BR'!$F$126:$F$129,IF($D$140>45,'4-BR'!$G$126:$G$129))),MATCH(Input!$D$139,'4-BR'!$B$126:$B$129,0))*$D$140+LEFT(INDEX('4-BR'!$H$126:$H$129,MATCH(Input!$D$139,'4-BR'!$B$126:$B$129,0)),5)*($D$141-MID(INDEX('4-BR'!$H$126:$H$129,MATCH(Input!$D$139,'4-BR'!$B$126:$B$129,0)),10,2)))*$D$142/10^7 -> 13.34928278 | N139: =(INDEX('5-CH'!$D$126:$D$129,MATCH(Input!$D$139,'5-CH'!$B$126:$B$129,0))+INDEX(IF($D$140<=25,'5-CH'!$E$126:$E$129,IF(AND($D$140>25,$D$140<=45),'5-CH'!$F$126:$F$129,IF($D$140>45,'5-CH'!$G$126:$G$129))),MATCH(Input!$D$139,'5-CH'!$B$126:$B$129,0))*$D$140+LEFT(INDEX('5-CH'!$H$126:$H$129,MATCH(Input!$D$139,'5-CH'!$B$126:$B$129,0)),5)*($D$141-MID(INDEX('5-CH'!$H$126:$H$129,MATCH(Input!$D$139,'5-CH'!$B$126:$B$129,0)),10,2)))*$D$142/10^7 -> 16.13885078 | O139: =(INDEX('6-CG'!$D$126:$D$129,MATCH(Input!$D$139,'6-CG'!$B$126:$B$129,0))+INDEX(IF($D$140<=25,'6-CG'!$E$126:$E$129,IF(AND($D$140>25,$D$140<=45),'6-CG'!$F$126:$F$129,IF($D$140>45,'6-CG'!$G$126:$G$129))),MATCH(Input!$D$139,'6-CG'!$B$126:$B$129,0))*$D$140+LEFT(INDEX('6-CG'!$H$126:$H$129,MATCH(Input!$D$139,'6-CG'!$B$126:$B$129,0)),5)*($D$141-MID(INDEX('6-CG'!$H$126:$H$129,MATCH(Input!$D$139,'6-CG'!$B$126:$B$129,0)),10,2)))*$D$142/10^7 -> 18.44896178 | P139: =(INDEX('7-DN'!$D$126:$D$129,MATCH(Input!$D$139,'7-DN'!$B$126:$B$129,0))+INDEX(IF($D$140<=25,'7-DN'!$E$126:$E$129,IF(AND($D$140>25,$D$140<=45),'7-DN'!$F$126:$F$129,IF($D$140>45,'7-DN'!$G$126:$G$129))),MATCH(Input!$D$139,'7-DN'!$B$126:$B$129,0))*$D$140+LEFT(INDEX('7-DN'!$H$126:$H$129,MATCH(Input!$D$139,'7-DN'!$B$126:$B$129,0)),5)*($D$141-MID(INDEX('7-DN'!$H$126:$H$129,MATCH(Input!$D$139,'7-DN'!$B$126:$B$129,0)),10,2)))*$D$142/10^7 -> 19.52861677 | Q139: =(INDEX('8-DD'!$D$126:$D$129,MATCH(Input!$D$139,'8-DD'!$B$126:$B$129,0))+INDEX(IF($D$140<=25,'8-DD'!$E$126:$E$129,IF(AND($D$140>25,$D$140<=45),'8-DD'!$F$126:$F$129,IF($D$140>45,'8-DD'!$G$126:$G$129))),MATCH(Input!$D$139,'8-DD'!$B$126:$B$129,0))*$D$140+LEFT(INDEX('8-DD'!$H$126:$H$129,MATCH(Input!$D$139,'8-DD'!$B$126:$B$129,0)),5)*($D$141-MID(INDEX('8-DD'!$H$126:$H$129,MATCH(Input!$D$139,'8-DD'!$B$126:$B$129,0)),10,2)))*$D$142/10^7 -> 15.47903377 | R139: =(INDEX('9-DL'!$D$126:$D$129,MATCH(Input!$D$139,'9-DL'!$B$126:$B$129,0))+INDEX(IF($D$140<=25,'9-DL'!$E$126:$E$129,IF(AND($D$140>25,$D$140<=45),'9-DL'!$F$126:$F$129,IF($D$140>45,'9-DL'!$G$126:$G$129))),MATCH(Input!$D$139,'9-DL'!$B$126:$B$129,0))*$D$140+LEFT(INDEX('9-DL'!$H$126:$H$129,MATCH(Input!$D$139,'9-DL'!$B$126:$B$129,0)),5)*($D$141-MID(INDEX('9-DL'!$H$126:$H$129,MATCH(Input!$D$139,'9-DL'!$B$126:$B$129,0)),10,2)))*$D$142/10^7 -> 14.12933978 | S139: =(INDEX('10-GA'!$D$126:$D$129,MATCH(Input!$D$139,'10-GA'!$B$126:$B$129,0))+INDEX(IF($D$140<=25,'10-GA'!$E$126:$E$129,IF(AND($D$140>25,$D$140<=45),'10-GA'!$F$126:$F$129,IF($D$140>45,'10-GA'!$G$126:$G$129))),MATCH(Input!$D$139,'10-GA'!$B$126:$B$129,0))*$D$140+LEFT(INDEX('10-GA'!$H$126:$H$129,MATCH(Input!$D$139,'10-GA'!$B$126:$B$129,0)),5)*($D$141-MID(INDEX('10-GA'!$H$126:$H$129,MATCH(Input!$D$139,'10-GA'!$B$126:$B$129,0)),10,2)))*$D$142/10^7 -> 19.52861677 | T139: =(INDEX('11-GJ'!$D$126:$D$129,MATCH(Input!$D$139,'11-GJ'!$B$126:$B$129,0))+INDEX(IF($D$140<=25,'11-GJ'!$E$126:$E$129,IF(AND($D$140>25,$D$140<=45),'11-GJ'!$F$126:$F$129,IF($D$140>45,'11-GJ'!$G$126:$G$129))),MATCH(Input!$D$139,'11-GJ'!$B$126:$B$129,0))*$D$140+LEFT(INDEX('11-GJ'!$H$126:$H$129,MATCH(Input!$D$139,'11-GJ'!$B$126:$B$129,0)),5)*($D$141-MID(INDEX('11-GJ'!$H$126:$H$129,MATCH(Input!$D$139,'11-GJ'!$B$126:$B$129,0)),10,2)))*$D$142/10^7 -> 14.72903678 | U139: =(INDEX('12-HR'!$D$126:$D$129,MATCH(Input!$D$139,'12-HR'!$B$126:$B$129,0))+INDEX(IF($D$140<=25,'12-HR'!$E$126:$E$129,IF(AND($D$140>25,$D$140<=45),'12-HR'!$F$126:$F$129,IF($D$140>45,'12-HR'!$G$126:$G$129))),MATCH(Input!$D$139,'12-HR'!$B$126:$B$129,0))*$D$140+LEFT(INDEX('12-HR'!$H$126:$H$129,MATCH(Input!$D$139,'12-HR'!$B$126:$B$129,0)),5)*($D$141-MID(INDEX('12-HR'!$H$126:$H$129,MATCH(Input!$D$139,'12-HR'!$B$126:$B$129,0)),10,2)))*$D$142/10^7 -> 13.40940278 | V139: =(INDEX('13-HP'!$D$126:$D$129,MATCH(Input!$D$139,'13-HP'!$B$126:$B$129,0))+INDEX(IF($D$140<=25,'13-HP'!$E$126:$E$129,IF(AND($D$140>25,$D$140<=45),'13-HP'!$F$126:$F$129,IF($D$140>45,'13-HP'!$G$126:$G$129))),MATCH(Input!$D$139,'13-HP'!$B$126:$B$129,0))*$D$140+LEFT(INDEX('13-HP'!$H$126:$H$129,MATCH(Input!$D$139,'13-HP'!$B$126:$B$129,0)),5)*($D$141-MID(INDEX('13-HP'!$H$126:$H$129,MATCH(Input!$D$139,'13-HP'!$B$126:$B$129,0)),10,2)))*$D$142/10^7 -> 17.21900678 | W139: =(INDEX('14-JK'!$D$126:$D$129,MATCH(Input!$D$139,'14-JK'!$B$126:$B$129,0))+INDEX(IF($D$140<=25,'14-JK'!$E$126:$E$129,IF(AND($D$140>25,$D$140<=45),'14-JK'!$F$126:$F$129,IF($D$140>45,'14-JK'!$G$126:$G$129))),MATCH(Input!$D$139,'14-JK'!$B$126:$B$129,0))*$D$140+LEFT(INDEX('14-JK'!$H$126:$H$129,MATCH(Input!$D$139,'14-JK'!$B$126:$B$129,0)),5)*($D$141-MID(INDEX('14-JK'!$H$126:$H$129,MATCH(Input!$D$139,'14-JK'!$B$126:$B$129,0)),10,2)))*$D$142/10^7 -> 15.14937577 | X139: =(INDEX('15-JH'!$D$126:$D$129,MATCH(Input!$D$139,'15-JH'!$B$126:$B$129,0))+INDEX(IF($D$140<=25,'15-JH'!$E$126:$E$129,IF(AND($D$140>25,$D$140<=45),'15-JH'!$F$126:$F$129,IF($D$140>45,'15-JH'!$G$126:$G$129))),MATCH(Input!$D$139,'15-JH'!$B$126:$B$129,0))*$D$140+LEFT(INDEX('15-JH'!$H$126:$H$129,MATCH(Input!$D$139,'15-JH'!$B$126:$B$129,0)),5)*($D$141-MID(INDEX('15-JH'!$H$126:$H$129,MATCH(Input!$D$139,'15-JH'!$B$126:$B$129,0)),10,2)))*$D$142/10^7 -> 12.68946578 | Y139: =(INDEX('16-KA'!$D$126:$D$129,MATCH(Input!$D$139,'16-KA'!$B$126:$B$129,0))+INDEX(IF($D$140<=25,'16-KA'!$E$126:$E$129,IF(AND($D$140>25,$D$140<=45),'16-KA'!$F$126:$F$129,IF($D$140>45,'16-KA'!$G$126:$G$129))),MATCH(Input!$D$139,'16-KA'!$B$126:$B$129,0))*$D$140+LEFT(INDEX('16-KA'!$H$126:$H$129,MATCH(Input!$D$139,'16-KA'!$B$126:$B$129,0)),5)*($D$141-MID(INDEX('16-KA'!$H$126:$H$129,MATCH(Input!$D$139,'16-KA'!$B$126:$B$129,0)),10,2)))*$D$142/10^7 -> 14.78915678 | Z139: =(INDEX('17-KL'!$D$126:$D$129,MATCH(Input!$D$139,'17-KL'!$B$126:$B$129,0))+INDEX(IF($D$140<=25,'17-KL'!$E$126:$E$129,IF(AND($D$140>25,$D$140<=45),'17-KL'!$F$126:$F$129,IF($D$140>45,'17-KL'!$G$126:$G$129))),MATCH(Input!$D$139,'17-KL'!$B$126:$B$129,0))*$D$140+LEFT(INDEX('17-KL'!$H$126:$H$129,MATCH(Input!$D$139,'17-KL'!$B$126:$B$129,0)),5)*($D$141-MID(INDEX('17-KL'!$H$126:$H$129,MATCH(Input!$D$139,'17-KL'!$B$126:$B$129,0)),10,2)))*$D$142/10^7 -> 15.38935477 | AA139: =(INDEX('18-LD'!$D$126:$D$129,MATCH(Input!$D$139,'18-LD'!$B$126:$B$129,0))+INDEX(IF($D$140<=25,'18-LD'!$E$126:$E$129,IF(AND($D$140>25,$D$140<=45),'18-LD'!$F$126:$F$129,IF($D$140>45,'18-LD'!$G$126:$G$129))),MATCH(Input!$D$139,'18-LD'!$B$126:$B$129,0))*$D$140+LEFT(INDEX('18-LD'!$H$126:$H$129,MATCH(Input!$D$139,'18-LD'!$B$126:$B$129,0)),5)*($D$141-MID(INDEX('18-LD'!$H$126:$H$129,MATCH(Input!$D$139,'18-LD'!$B$126:$B$129,0)),10,2)))*$D$142/10^7 -> 16.16891078 | AB139: =(INDEX('19-MP'!$D$126:$D$129,MATCH(Input!$D$139,'19-MP'!$B$126:$B$129,0))+INDEX(IF($D$140<=25,'19-MP'!$E$126:$E$129,IF(AND($D$140>25,$D$140<=45),'19-MP'!$F$126:$F$129,IF($D$140>45,'19-MP'!$G$126:$G$129))),MATCH(Input!$D$139,'19-MP'!$B$126:$B$129,0))*$D$140+LEFT(INDEX('19-MP'!$H$126:$H$129,MATCH(Input!$D$139,'19-MP'!$B$126:$B$129,0)),5)*($D$141-MID(INDEX('19-MP'!$H$126:$H$129,MATCH(Input!$D$139,'19-MP'!$B$126:$B$129,0)),10,2)))*$D$142/10^7 -> 17.51910577 | AC139: =(INDEX('20-MH'!$D$126:$D$129,MATCH(Input!$D$139,'20-MH'!$B$126:$B$129,0))+INDEX(IF($D$140<=25,'20-MH'!$E$126:$E$129,IF(AND($D$140>25,$D$140<=45),'20-MH'!$F$126:$F$129,IF($D$140>45,'20-MH'!$G$126:$G$129))),MATCH(Input!$D$139,'20-MH'!$B$126:$B$129,0))*$D$140+LEFT(INDEX('20-MH'!$H$126:$H$129,MATCH(Input!$D$139,'20-MH'!$B$126:$B$129,0)),5)*($D$141-MID(INDEX('20-MH'!$H$126:$H$129,MATCH(Input!$D$139,'20-MH'!$B$126:$B$129,0)),10,2)))*$D$142/10^7 -> 19.52861677 | AD139: =(INDEX('21-OD'!$D$126:$D$129,MATCH(Input!$D$139,'21-OD'!$B$126:$B$129,0))+INDEX(IF($D$140<=25,'21-OD'!$E$126:$E$129,IF(AND($D$140>25,$D$140<=45),'21-OD'!$F$126:$F$129,IF($D$140>45,'21-OD'!$G$126:$G$129))),MATCH(Input!$D$139,'21-OD'!$B$126:$B$129,0))*$D$140+LEFT(INDEX('21-OD'!$H$126:$H$129,MATCH(Input!$D$139,'21-OD'!$B$126:$B$129,0)),5)*($D$141-MID(INDEX('21-OD'!$H$126:$H$129,MATCH(Input!$D$139,'21-OD'!$B$126:$B$129,0)),10,2)))*$D$142/10^7 -> 17.87882378 | AE139: =(INDEX('22-PY'!$D$126:$D$129,MATCH(Input!$D$139,'22-PY'!$B$126:$B$129,0))+INDEX(IF($D$140<=25,'22-PY'!$E$126:$E$129,IF(AND($D$140>25,$D$140<=45),'22-PY'!$F$126:$F$129,IF($D$140>45,'22-PY'!$G$126:$G$129))),MATCH(Input!$D$139,'22-PY'!$B$126:$B$129,0))*$D$140+LEFT(INDEX('22-PY'!$H$126:$H$129,MATCH(Input!$D$139,'22-PY'!$B$126:$B$129,0)),5)*($D$141-MID(INDEX('22-PY'!$H$126:$H$129,MATCH(Input!$D$139,'22-PY'!$B$126:$B$129,0)),10,2)))*$D$142/10^7 -> 15.35929478 | AF139: =(INDEX('23-PB'!$D$126:$D$129,MATCH(Input!$D$139,'23-PB'!$B$126:$B$129,0))+INDEX(IF($D$140<=25,'23-PB'!$E$126:$E$129,IF(AND($D$140>25,$D$140<=45),'23-PB'!$F$126:$F$129,IF($D$140>45,'23-PB'!$G$126:$G$129))),MATCH(Input!$D$139,'23-PB'!$B$126:$B$129,0))*$D$140+LEFT(INDEX('23-PB'!$H$126:$H$129,MATCH(Input!$D$139,'23-PB'!$B$126:$B$129,0)),5)*($D$141-MID(INDEX('23-PB'!$H$126:$H$129,MATCH(Input!$D$139,'23-PB'!$B$126:$B$129,0)),10,2)))*$D$142/10^7 -> 16.13885078 | AG139: =(INDEX('24-RJ'!$D$126:$D$129,MATCH(Input!$D$139,'24-RJ'!$B$126:$B$129,0))+INDEX(IF($D$140<=25,'24-RJ'!$E$126:$E$129,IF(AND($D$140>25,$D$140<=45),'24-RJ'!$F$126:$F$129,IF($D$140>45,'24-RJ'!$G$126:$G$129))),MATCH(Input!$D$139,'24-RJ'!$B$126:$B$129,0))*$D$140+LEFT(INDEX('24-RJ'!$H$126:$H$129,MATCH(Input!$D$139,'24-RJ'!$B$126:$B$129,0)),5)*($D$141-MID(INDEX('24-RJ'!$H$126:$H$129,MATCH(Input!$D$139,'24-RJ'!$B$126:$B$129,0)),10,2)))*$D$142/10^7 -> 16.46900977 | AH139: =(INDEX('25-TN'!$D$126:$D$129,MATCH(Input!$D$139,'25-TN'!$B$126:$B$129,0))+INDEX(IF($D$140<=25,'25-TN'!$E$126:$E$129,IF(AND($D$140>25,$D$140<=45),'25-TN'!$F$126:$F$129,IF($D$140>45,'25-TN'!$G$126:$G$129))),MATCH(Input!$D$139,'25-TN'!$B$126:$B$129,0))*$D$140+LEFT(INDEX('25-TN'!$H$126:$H$129,MATCH(Input!$D$139,'25-TN'!$B$126:$B$129,0)),5)*($D$141-MID(INDEX('25-TN'!$H$126:$H$129,MATCH(Input!$D$139,'25-TN'!$B$126:$B$129,0)),10,2)))*$D$142/10^7 -> 14.63935778 | AI139: =(INDEX('26-TS'!$D$126:$D$129,MATCH(Input!$D$139,'26-TS'!$B$126:$B$129,0))+INDEX(IF($D$140<=25,'26-TS'!$E$126:$E$129,IF(AND($D$140>25,$D$140<=45),'26-TS'!$F$126:$F$129,IF($D$140>45,'26-TS'!$G$126:$G$129))),MATCH(Input!$D$139,'26-TS'!$B$126:$B$129,0))*$D$140+LEFT(INDEX('26-TS'!$H$126:$H$129,MATCH(Input!$D$139,'26-TS'!$B$126:$B$129,0)),5)*($D$141-MID(INDEX('26-TS'!$H$126:$H$129,MATCH(Input!$D$139,'26-TS'!$B$126:$B$129,0)),10,2)))*$D$142/10^7 -> 13.97903978 | AJ139: =(INDEX('27-UP'!$D$126:$D$129,MATCH(Input!$D$139,'27-UP'!$B$126:$B$129,0))+INDEX(IF($D$140<=25,'27-UP'!$E$126:$E$129,IF(AND($D$140>25,$D$140<=45),'27-UP'!$F$126:$F$129,IF($D$140>45,'27-UP'!$G$126:$G$129))),MATCH(Input!$D$139,'27-UP'!$B$126:$B$129,0))*$D$140+LEFT(INDEX('27-UP'!$H$126:$H$129,MATCH(Input!$D$139,'27-UP'!$B$126:$B$129,0)),5)*($D$141-MID(INDEX('27-UP'!$H$126:$H$129,MATCH(Input!$D$139,'27-UP'!$B$126:$B$129,0)),10,2)))*$D$142/10^7 -> 13.07924378 | AK139: =(INDEX('28-UK'!$D$126:$D$129,MATCH(Input!$D$139,'28-UK'!$B$126:$B$129,0))+INDEX(IF($D$140<=25,'28-UK'!$E$126:$E$129,IF(AND($D$140>25,$D$140<=45),'28-UK'!$F$126:$F$129,IF($D$140>45,'28-UK'!$G$126:$G$129))),MATCH(Input!$D$139,'28-UK'!$B$126:$B$129,0))*$D$140+LEFT(INDEX('28-UK'!$H$126:$H$129,MATCH(Input!$D$139,'28-UK'!$B$126:$B$129,0)),5)*($D$141-MID(INDEX('28-UK'!$H$126:$H$129,MATCH(Input!$D$139,'28-UK'!$B$126:$B$129,0)),10,2)))*$D$142/10^7 -> 16.97902777 | AL139: =(INDEX('29-WB'!$D$126:$D$129,MATCH(Input!$D$139,'29-WB'!$B$126:$B$129,0))+INDEX(IF($D$140<=25,'29-WB'!$E$126:$E$129,IF(AND($D$140>25,$D$140<=45),'29-WB'!$F$126:$F$129,IF($D$140>45,'29-WB'!$G$126:$G$129))),MATCH(Input!$D$139,'29-WB'!$B$126:$B$129,0))*$D$140+LEFT(INDEX('29-WB'!$H$126:$H$129,MATCH(Input!$D$139,'29-WB'!$B$126:$B$129,0)),5)*($D$141-MID(INDEX('29-WB'!$H$126:$H$129,MATCH(Input!$D$139,'29-WB'!$B$126:$B$129,0)),10,2)))*$D$142/10^7 -> 16.16891078
C140: Skew Angle in degree | D140: 0
C141: Aggregate Lead in km. | D141: =$D$9 -> 50
C142: Area in Sqm. | D142: 5010
C143: Structure No-4
